Workbook

Sheet Mode d'emploi
J3: Trier par ordre alphabétique
G5: HASSAN
G6: HAMZA
C12: Noter les équipes
C27: Noter le nom du Championnat | G27: Changer la saison au moyen de la liste déroulante
N40: Heure au format : 20:45
F46: Résultats | N46: Date au format : 01/01 ou 01/01/17
J48: Noter les matchs au moyen de la liste déroulante
J52: Points éventuels de pénalité

Sheet J01
A1: Nom du Championnat | I1: 2017-2018 | O1: JOURNEE 01 | V1: CLASSEMENT | AT1: CLASSEMENT | BS1: Domicile | BT1: Extérieur | BU1: Domicile | BV1: Extérieur | BW1: Domicile | BX1: Extérieur | BY1: Domicile | BZ1: Extérieur | CA1: Domicile | CB1: Extérieur | CC1: Domicile | CD1: Extérieur | CE1: Domicile | CF1: Extérieur | CG1: Domicile | CH1: Extérieur | CI1: Domicile | CJ1: Extérieur
A3: P | B3: Equipes | G3: Buts | H3: Buts | I3: Equipes | N3: P | O3: Dates | S3: Heure | V3: Equipes | AA3: Evolution | AC3: Place | AD3: Pts | AE3: J | AF3: G | AG3: N | AH3: P | AI3: B + | AJ3: B - | AK3: Diff. | AL3: Domicile | AO3: Extérieur | AT3: Equipes | AY3: R | AZ3: Evolution | BB3: R | BC3: Pts | BD3: J | BE3: G | BF3: N | BG3: P | BH3: B + | BI3: B - | BJ3: Diff. | BK3: Domicile | BN3: Extérieur | CK3: Domicile | CN3: Extérieur
AL4: G | AM4: N | AN4: P | AO4: G | AP4: N | AQ4: P | AS4: R | BK4: G | BL4: N | BM4: P | BN4: G | BO4: N | BP4: P | BQ4: % | BR4: % | BS4: P | BT4: P | BU4: Pts | BV4: Pts | BW4: T Pt | BX4: T Pt | BY4: J | BZ4: J | CA4: G | CB4: G | CC4: N | CD4: N | CE4: P | CF4: P | CG4: B + | CH4: B + | CI4: B - | CJ4: B - | CK4: G | CL4: N | CM4: P | CN4: G | CO4: N | CP4: P | CQ4: Equipes | CR4: % | CS4: R | CT4: Equipes | CU4: =AT5 -> AUSBK
B5: AUSBK | G5: 2 | H5: 2 | I5: CUSL | V5: =VLOOKUP(AR5,$AS$5:$AX$18,2,0) -> ASUD | AA5: =VLOOKUP(V5,$AT$5:$BP$18,7,0) -> 0 | AB5: =VLOOKUP(V5,$AT$5:$BP$18,8,0) -> u | AC5: 1 | AD5: =VLOOKUP(V5,$AT$5:$BP$18,10,0) -> 3 | AE5: =VLOOKUP(V5,$AT$5:$BP$18,11,0) -> 1 | AF5: =VLOOKUP(V5,$AT$5:$BP$18,12,0) -> 1 | AG5: =VLOOKUP(V5,$AT$5:$BP$18,13,0) -> 0 | AH5: =VLOOKUP(V5,$AT$5:$BP$18,14,0) -> 0 | AI5: =VLOOKUP(V5,$AT$5:$BP$18,15,0) -> 4 | AJ5: =VLOOKUP(V5,$AT$5:$BP$18,16,0) -> 0 | AK5: =VLOOKUP(V5,$AT$5:$BP$18,17,0) -> 4 | AL5: =VLOOKUP(V5,$AT$5:$BP$18,18,0) -> 0 | AM5: =VLOOKUP(V5,$AT$5:$BP$18,19,0) -> 0 | AN5: =VLOOKUP(V5,$AT$5:$BP$18,20,0) -> 0 | AO5: =VLOOKUP(V5,$AT$5:$BP$18,21,0) -> 1 | AP5: =VLOOKUP(V5,$AT$5:$BP$18,22,0) -> 0 | AQ5: =VLOOKUP(V5,$AT$5:$BP$18,23,0) -> 0 | AR5: 1 | AS5: =BB5 -> 5 | AT5: AUSBK | AY5: =RANK(BQ5,$BQ$5:$BQ$18) -> 5 | AZ5: =AY5-AY5 -> 0 | BA5: u | BB5: =RANK(BR5,$BR$5:$BR$18) -> 5 | BC5: =SUMPRODUCT(($B$5:$F$14=AT5)*($BW$5:$BW$14))+SUMPRODUCT(($I$5:$M$14=AT5)*($BX$5:$BX$14)) -> 1 | BD5: =SUMPRODUCT(($B$5:$F$14=AT5)*($BY$5:$BY$14))+SUMPRODUCT(($I$5:$M$14=AT5)*($BZ$5:$BZ$14)) -> 1 | BE5: =SUMPRODUCT(($B$5:$F$14=AT5)*($CA$5:$CA$14))+SUMPRODUCT(($I$5:$M$14=AT5)*($CB$5:$CB$14)) -> 0 | BF5: =SUMPRODUCT(($B$5:$F$14=AT5)*($CC$5:$CC$14))+SUMPRODUCT(($I$5:$M$14=AT5)*($CD$5:$CD$14)) -> 1 | BG5: =SUMPRODUCT(($B$5:$F$14=AT5)*($CE$5:$CE$14))+SUMPRODUCT(($I$5:$M$14=AT5)*($CF$5:$CF$14)) -> 0 | BH5: =SUMPRODUCT(($B$5:$F$14=AT5)*($CG$5:$CG$14))+SUMPRODUCT(($I$5:$M$14=AT5)*($CH$5:$CH$14)) -> 2 | BI5: =SUMPRODUCT(($B$5:$F$14=AT5)*($CI$5:$CI$14))+SUMPRODUCT(($I$5:$M$14=AT5)*($CJ$5:$CJ$14)) -> 2 | BJ5: =BH5-BI5 -> 0 | BK5: =SUMPRODUCT(($B$5:$F$14=AT5)*($CK$5:$CK$14)) -> 0 | BL5: =SUMPRODUCT(($B$5:$F$14=AT5)*($CL$5:$CL$14)) -> 1 | BM5: =SUMPRODUCT(($B$5:$F$14=AT5)*($CM$5:$CM$14)) -> 0 | BN5: =SUMPRODUCT(($I$5:$M$14=AT5)*($CN$5:$CN$14)) -> 0 | BO5: =SUMPRODUCT(($I$5:$M$14=AT5)*($CO$5:$CO$14)) -> 0 | BP5: =SUMPRODUCT(($I$5:$M$14=AT5)*($CP$5:$CP$14)) -> 0 | BQ5: =SUM(BC5*1000+(BJ5)/100+(BH5)/1000) -> 1000.002 | BR5: =BQ5+0.0000014 -> 1000.002001 | BS5: =A5 -> 0 | BT5: =N5 -> 0 | BU5: =IF(G5="",0,IF(G5>H5,3,IF(G5=H5,1,IF(G5<H5,0)))) -> 1 | BV5: =IF(H5="",0,IF(H5>G5,3,IF(H5=G5,1,IF(H5<G5,0)))) -> 1 | BW5: =BU5-BS5 -> 1 | BX5: =BV5-BT5 -> 1 | BY5: =IF(G5="",0,1) -> 1 | BZ5: =IF(H5="",0,1) -> 1 | CA5: =IF(G5<>"",IF(G5>H5,1)) -> FALSE | CB5: =IF(H5<>"",IF(H5>G5,1)) -> FALSE | CC5: =IF(G5<>"",IF(G5=H5,1)) -> 1 | CD5: =IF(H5<>"",IF(H5=G5,1)) -> 1 | CE5: =IF(G5<>"",IF(G5<H5,1)) -> FALSE | CF5: =IF(H5<>"",IF(H5<G5,1)) -> FALSE | CG5: =G5 -> 2 | CH5: =H5 -> 2 | CI5: =H5 -> 2 | CJ5: =G5 -> 2 | CK5: =IF(G5<>"",IF(G5>H5,1)) -> FALSE | CL5: =IF(G5<>"",IF(G5=H5,1)) -> 1 | CM5: =IF(G5<>"",IF(G5<H5,1)) -> FALSE | CN5: =IF(H5<>"",IF(H5>G5,1)) -> FALSE | CO5: =IF(H5<>"",IF(H5=G5,1)) -> 1 | CP5: =IF(H5<>"",IF(H5<G5,1)) -> FALSE | CQ5: =VLOOKUP(AR5,$AS$5:$AX$18,2,0) -> ASUD | CR5: =VLOOKUP(CQ5,$AT$5:$BQ$18,24,0) -> 3000.044 | CS5: =RANK(CR5,$CR$5:$CR$18) -> 1 | CT5: =AT5 -> AUSBK | CU5: =AT6 -> CUSL
B6: AUSA | G6: 0 | H6: 0 | I6: CJBF | V6: HSMK | AA6: 0 | AB6: u | AC6: =IF(CR6=CR5,CS5,CS6) -> 2 | AD6: 3 | AE6: 1 | AF6: 1 | AG6: 0 | AH6: 0 | AI6: 5 | AJ6: 2 | AK6: 3 | AL6: 1 | AM6: 0 | AN6: =VLOOKUP(V6,$AT$5:$BP$18,20,0) -> 0 | AO6: 0 | AP6: =VLOOKUP(V6,$AT$5:$BP$18,22,0) -> 0 | AQ6: 0 | AR6: 2 | AS6: =BB6 -> 6 | AT6: CUSL | AY6: 5 | AZ6: =AY6-AY6 -> 0 | BA6: u | BB6: =RANK(BR6,$BR$5:$BR$18) -> 6 | BC6: =SUMPRODUCT(($B$5:$F$14=AT6)*($BW$5:$BW$14))+SUMPRODUCT(($I$5:$M$14=AT6)*($BX$5:$BX$14)) -> 1 | BD6: =SUMPRODUCT(($B$5:$F$14=AT6)*($BY$5:$BY$14))+SUMPRODUCT(($I$5:$M$14=AT6)*($BZ$5:$BZ$14)) -> 1 | BE6: =SUMPRODUCT(($B$5:$F$14=AT6)*($CA$5:$CA$14))+SUMPRODUCT(($I$5:$M$14=AT6)*($CB$5:$CB$14)) -> 0 | BF6: =SUMPRODUCT(($B$5:$F$14=AT6)*($CC$5:$CC$14))+SUMPRODUCT(($I$5:$M$14=AT6)*($CD$5:$CD$14)) -> 1 | BG6: =SUMPRODUCT(($B$5:$F$14=AT6)*($CE$5:$CE$14))+SUMPRODUCT(($I$5:$M$14=AT6)*($CF$5:$CF$14)) -> 0 | BH6: =SUMPRODUCT(($B$5:$F$14=AT6)*($CG$5:$CG$14))+SUMPRODUCT(($I$5:$M$14=AT6)*($CH$5:$CH$14)) -> 2 | BI6: =SUMPRODUCT(($B$5:$F$14=AT6)*($CI$5:$CI$14))+SUMPRODUCT(($I$5:$M$14=AT6)*($CJ$5:$CJ$14)) -> 2 | BJ6: =BH6-BI6 -> 0 | BK6: =SUMPRODUCT(($B$5:$F$14=AT6)*($CK$5:$CK$14)) -> 0 | BL6: =SUMPRODUCT(($B$5:$F$14=AT6)*($CL$5:$CL$14)) -> 0 | BM6: =SUMPRODUCT(($B$5:$F$14=AT6)*($CM$5:$CM$14)) -> 0 | BN6: =SUMPRODUCT(($I$5:$M$14=AT6)*($CN$5:$CN$14)) -> 0 | BO6: =SUMPRODUCT(($I$5:$M$14=AT6)*($CO$5:$CO$14)) -> 1 | BP6: =SUMPRODUCT(($I$5:$M$14=AT6)*($CP$5:$CP$14)) -> 0 | BQ6: =SUM(BC6*1000+(BJ6)/100+(BH6)/1000) -> 1000.002 | BR6: =BQ6+0.0000013 -> 1000.002001 | BS6: =A6 -> 0 | BT6: =N6 -> 0 | BU6: =IF(G6="",0,IF(G6>H6,3,IF(G6=H6,1,IF(G6<H6,0)))) -> 1 | BV6: =IF(H6="",0,IF(H6>G6,3,IF(H6=G6,1,IF(H6<G6,0)))) -> 1 | BW6: =BU6-BS6 -> 1 | BX6: =BV6-BT6 -> 1 | BY6: =IF(G6="",0,1) -> 1 | BZ6: =IF(H6="",0,1) -> 1 | CA6: =IF(G6<>"",IF(G6>H6,1)) -> FALSE | CB6: =IF(H6<>"",IF(H6>G6,1)) -> FALSE | CC6: =IF(G6<>"",IF(G6=H6,1)) -> 1 | CD6: =IF(H6<>"",IF(H6=G6,1)) -> 1 | CE6: =IF(G6<>"",IF(G6<H6,1)) -> FALSE | CF6: =IF(H6<>"",IF(H6<G6,1)) -> FALSE | CG6: =G6 -> 0 | CH6: =H6 -> 0 | CI6: =H6 -> 0 | CJ6: =G6 -> 0 | CK6: =IF(G6<>"",IF(G6>H6,1)) -> FALSE | CL6: =IF(G6<>"",IF(G6=H6,1)) -> 1 | CM6: =IF(G6<>"",IF(G6<H6,1)) -> FALSE | CN6: =IF(H6<>"",IF(H6>G6,1)) -> FALSE | CO6: =IF(H6<>"",IF(H6=G6,1)) -> 1 | CP6: =IF(H6<>"",IF(H6<G6,1)) -> FALSE | CQ6: HSMK | CR6: 3000.035 | CS6: 2 | CT6: =AT6 -> CUSL | CU6: AUSA
B7: AJAK | G7: 0 | H7: 4 | I7: ASUD | V7: ALC | AA7: 0 | AB7: u | AC7: =IF(CR7=CR6,CS6,CS7) -> 3 | AD7: 3 | AE7: 1 | AF7: 1 | AG7: 0 | AH7: 0 | AI7: 1 | AJ7: 0 | AK7: 1 | AL7: 1 | AM7: 0 | AN7: 0 | AO7: 0 | AP7: 0 | AQ7: 0 | AR7: 3 | AS7: 7 | AT7: AUSA | AY7: 7 | AZ7: 0 | BA7: u | BB7: 7 | BC7: 1 | BD7: 1 | BE7: 0 | BF7: 1 | BG7: 0 | BH7: 0 | BI7: 0 | BJ7: 0 | BK7: 0 | BL7: 1 | BM7: 0 | BN7: 0 | BO7: 0 | BP7: 0 | BQ7: 1000 | BR7: =BQ7+0.0000012 -> 1000.000001 | BS7: 0 | BT7: 0 | BU7: 0 | BV7: 3 | BW7: 0 | BX7: 3 | BY7: 1 | BZ7: 1 | CA7: FALSE | CB7: 1 | CC7: FALSE | CD7: FALSE | CE7: 1 | CF7: FALSE | CG7: 0 | CH7: 4 | CI7: 4 | CJ7: 0 | CK7: FALSE | CL7: FALSE | CM7: 1 | CN7: 1 | CO7: FALSE | CP7: FALSE | CQ7: ALC | CR7: 3000.011 | CS7: 3 | CT7: AUSA | CU7: CJBF
B8: AHDOZ | G8: 0 | H8: 0 | I8: USB | V8: AWSOM | AA8: 0 | AB8: u | AC8: 3 | AD8: 3 | AE8: 1 | AF8: 1 | AG8: 0 | AH8: 0 | AI8: 1 | AJ8: 0 | AK8: 1 | AL8: 0 | AM8: 0 | AN8: 0 | AO8: 1 | AP8: 0 | AQ8: 0 | AR8: 4 | AS8: 8 | AT8: CJBF | AY8: 7 | AZ8: 0 | BA8: u | BB8: 8 | BC8: 1 | BD8: 1 | BE8: 0 | BF8: 1 | BG8: 0 | BH8: 0 | BI8: 0 | BJ8: 0 | BK8: 0 | BL8: 0 | BM8: 0 | BN8: 0 | BO8: 1 | BP8: 0 | BQ8: 1000 | BR8: =BQ8+0.0000011 -> 1000.000001 | BS8: 0 | BT8: 0 | BU8: 1 | BV8: 1 | BW8: 1 | BX8: 1 | BY8: 1 | BZ8: 1 | CA8: FALSE | CB8: FALSE | CC8: 1 | CD8: 1 | CE8: FALSE | CF8: FALSE | CG8: 0 | CH8: 0 | CI8: 0 | CJ8: 0 | CK8: FALSE | CL8: 1 | CM8: FALSE | CN8: FALSE | CO8: 1 | CP8: FALSE | CQ8: AWSOM | CR8: 3000.011 | CS8: 3 | CT8: CJBF | CU8: AJAK
B9: ALC | G9: 1 | H9: 0 | I9: AUSAF | V9: AUSBK | AA9: 0 | AB9: u | AC9: 5 | AD9: 1 | AE9: 1 | AF9: 0 | AG9: 1 | AH9: 0 | AI9: 2 | AJ9: 2 | AK9: 0 | AL9: 0 | AM9: 1 | AN9: 0 | AO9: 0 | AP9: 0 | AQ9: 0 | AR9: 5 | AS9: 14 | AT9: AJAK | AY9: 14 | AZ9: 0 | BA9: u | BB9: 14 | BC9: 0 | BD9: 1 | BE9: 0 | BF9: 0 | BG9: 1 | BH9: 0 | BI9: 4 | BJ9: -4 | BK9: 0 | BL9: 0 | BM9: 1 | BN9: 0 | BO9: 0 | BP9: 0 | BQ9: -0.04 | BR9: =BQ9+0.000001 -> -0.039999 | BS9: 0 | BT9: 0 | BU9: 3 | BV9: 0 | BW9: 3 | BX9: 0 | BY9: 1 | BZ9: 1 | CA9: 1 | CB9: FALSE | CC9: FALSE | CD9: FALSE | CE9: FALSE | CF9: 1 | CG9: 1 | CH9: 0 | CI9: 0 | CJ9: 1 | CK9: 1 | CL9: FALSE | CM9: FALSE | CN9: FALSE | CO9: FALSE | CP9: 1 | CQ9: AUSBK | CR9: 1000.002 | CS9: 5 | CT9: AJAK | CU9: ASUD
B10: JSOA | G10: 0 | H10: 1 | I10: AWSOM | V10: CUSL | AA10: 0 | AB10: u | AC10: 5 | AD10: 1 | AE10: 1 | AF10: 0 | AG10: 1 | AH10: 0 | AI10: 2 | AJ10: 2 | AK10: 0 | AL10: 0 | AM10: 0 | AN10: 0 | AO10: 0 | AP10: 1 | AQ10: 0 | AR10: 6 | AS10: 1 | AT10: ASUD | AY10: 1 | AZ10: 0 | BA10: u | BB10: 1 | BC10: 3 | BD10: 1 | BE10: 1 | BF10: 0 | BG10: 0 | BH10: 4 | BI10: 0 | BJ10: 4 | BK10: 0 | BL10: 0 | BM10: 0 | BN10: 1 | BO10: 0 | BP10: 0 | BQ10: 3000.044 | BR10: =BQ10+0.0000009 -> 3000.044001 | BS10: 0 | BT10: 0 | BU10: 0 | BV10: 3 | BW10: 0 | BX10: 3 | BY10: 1 | BZ10: 1 | CA10: FALSE | CB10: 1 | CC10: FALSE | CD10: FALSE | CE10: 1 | CF10: FALSE | CG10: 0 | CH10: 1 | CI10: 1 | CJ10: 0 | CK10: FALSE | CL10: FALSE | CM10: 1 | CN10: 1 | CO10: FALSE | CP10: FALSE | CQ10: CUSL | CR10: 1000.002 | CS10: 5 | CT10: ASUD | CU10: AHDOZ
B11: HSMK | G11: 5 | H11: 2 | I11: ESMB | V11: AUSA | AA11: 0 | AB11: u | AC11: 7 | AD11: 1 | AE11: 1 | AF11: 0 | AG11: 1 | AH11: 0 | AI11: 0 | AJ11: 0 | AK11: 0 | AL11: 0 | AM11: 1 | AN11: 0 | AO11: 0 | AP11: 0 | AQ11: 0 | AR11: 7 | AS11: 9 | AT11: AHDOZ | AY11: 7 | AZ11: 0 | BA11: u | BB11: 9 | BC11: 1 | BD11: 1 | BE11: 0 | BF11: 1 | BG11: 0 | BH11: 0 | BI11: 0 | BJ11: 0 | BK11: 0 | BL11: 1 | BM11: 0 | BN11: 0 | BO11: 0 | BP11: 0 | BQ11: 1000 | BR11: =BQ11+0.0000008 -> 1000.000001 | BS11: 0 | BT11: 0 | BU11: 3 | BV11: 0 | BW11: 3 | BX11: 0 | BY11: 1 | BZ11: 1 | CA11: 1 | CB11: FALSE | CC11: FALSE | CD11: FALSE | CE11: FALSE | CF11: 1 | CG11: 5 | CH11: 2 | CI11: 2 | CJ11: 5 | CK11: 1 | CL11: FALSE | CM11: FALSE | CN11: FALSE | CO11: FALSE | CP11: 1 | CQ11: AUSA | CR11: 1000 | CS11: 7 | CT11: AHDOZ | CU11: USB
V12: CJBF | AA12: 0 | AB12: u | AC12: 7 | AD12: 1 | AE12: 1 | AF12: 0 | AG12: 1 | AH12: 0 | AI12: 0 | AJ12: 0 | AK12: 0 | AL12: 0 | AM12: 0 | AN12: 0 | AO12: 0 | AP12: 1 | AQ12: 0 | AR12: 8 | AS12: 10 | AT12: USB | AY12: 7 | AZ12: 0 | BA12: u | BB12: 10 | BC12: 1 | BD12: 1 | BE12: 0 | BF12: 1 | BG12: 0 | BH12: 0 | BI12: 0 | BJ12: 0 | BK12: 0 | BL12: 0 | BM12: 0 | BN12: 0 | BO12: 1 | BP12: 0 | BQ12: 1000 | BR12: =BQ12+0.0000007 -> 1000.000001 | BS12: 0 | BT12: 0 | BU12: 0 | BV12: 0 | BW12: 0 | BX12: 0 | BY12: 0 | BZ12: 0 | CA12: FALSE | CB12: FALSE | CC12: FALSE | CD12: FALSE | CE12: FALSE | CF12: FALSE | CG12: 0 | CH12: 0 | CI12: 0 | CJ12: 0 | CK12: FALSE | CL12: FALSE | CM12: FALSE | CN12: FALSE | CO12: FALSE | CP12: FALSE | CQ12: CJBF | CR12: 1000 | CS12: 7 | CT12: USB | CU12: ALC
V13: AHDOZ | AA13: 0 | AB13: u | AC13: 7 | AD13: 1 | AE13: 1 | AF13: 0 | AG13: 1 | AH13: 0 | AI13: 0 | AJ13: 0 | AK13: 0 | AL13: 0 | AM13: 1 | AN13: 0 | AO13: 0 | AP13: 0 | AQ13: 0 | AR13: 9 | AS13: 3 | AT13: ALC | AY13: 3 | AZ13: 0 | BA13: u | BB13: 3 | BC13: 3 | BD13: 1 | BE13: 1 | BF13: 0 | BG13: 0 | BH13: 1 | BI13: 0 | BJ13: 1 | BK13: 1 | BL13: 0 | BM13: 0 | BN13: 0 | BO13: 0 | BP13: 0 | BQ13: 3000.011 | BR13: =BQ13+0.0000006 -> 3000.011001 | BS13: 0 | BT13: 0 | BU13: 0 | BV13: 0 | BW13: 0 | BX13: 0 | BY13: 0 | BZ13: 0 | CA13: FALSE | CB13: FALSE | CC13: FALSE | CD13: FALSE | CE13: FALSE | CF13: FALSE | CG13: 0 | CH13: 0 | CI13: 0 | CJ13: 0 | CK13: FALSE | CL13: FALSE | CM13: FALSE | CN13: FALSE | CO13: FALSE | CP13: FALSE | CQ13: AHDOZ | CR13: 1000 | CS13: 7 | CT13: ALC | CU13: AUSAF
V14: USB | AA14: 0 | AB14: u | AC14: 7 | AD14: 1 | AE14: 1 | AF14: 0 | AG14: 1 | AH14: 0 | AI14: 0 | AJ14: 0 | AK14: 0 | AL14: 0 | AM14: 0 | AN14: 0 | AO14: 0 | AP14: 1 | AQ14: 0 | AR14: 10 | AS14: 11 | AT14: AUSAF | AY14: 11 | AZ14: 0 | BA14: u | BB14: 11 | BC14: 0 | BD14: 1 | BE14: 0 | BF14: 0 | BG14: 1 | BH14: 0 | BI14: 1 | BJ14: -1 | BK14: 0 | BL14: 0 | BM14: 0 | BN14: 0 | BO14: 0 | BP14: 1 | BQ14: -0.01 | BR14: =BQ14+0.0000005 -> -0.0099995 | BS14: 0 | BT14: 0 | BU14: 0 | BV14: 0 | BW14: 0 | BX14: 0 | BY14: 0 | BZ14: 0 | CA14: FALSE | CB14: FALSE | CC14: FALSE | CD14: FALSE | CE14: FALSE | CF14: FALSE | CG14: 0 | CH14: 0 | CI14: 0 | CJ14: 0 | CK14: FALSE | CL14: FALSE | CM14: FALSE | CN14: FALSE | CO14: FALSE | CP14: FALSE | CQ14: USB | CR14: 1000 | CS14: 7 | CT14: AUSAF | CU14: JSOA
V15: AUSAF | AA15: 0 | AB15: u | AC15: 11 | AD15: 0 | AE15: 1 | AF15: 0 | AG15: 0 | AH15: 1 | AI15: 0 | AJ15: 1 | AK15: -1 | AL15: 0 | AM15: 0 | AN15: 0 | AO15: 0 | AP15: 0 | AQ15: 1 | AR15: 11 | AS15: 12 | AT15: JSOA | AY15: 11 | AZ15: 0 | BA15: u | BB15: 12 | BC15: 0 | BD15: 1 | BE15: 0 | BF15: 0 | BG15: 1 | BH15: 0 | BI15: 1 | BJ15: -1 | BK15: 0 | BL15: 0 | BM15: 1 | BN15: 0 | BO15: 0 | BP15: 0 | BQ15: -0.01 | BR15: =BQ15+0.0000004 -> -0.0099996 | CQ15: AUSAF | CR15: -0.01 | CS15: 11 | CT15: JSOA | CU15: AWSOM
V16: JSOA | AA16: 0 | AB16: u | AC16: 11 | AD16: 0 | AE16: 1 | AF16: 0 | AG16: 0 | AH16: 1 | AI16: 0 | AJ16: 1 | AK16: -1 | AL16: 0 | AM16: 0 | AN16: 1 | AO16: 0 | AP16: 0 | AQ16: 0 | AR16: 12 | AS16: 4 | AT16: AWSOM | AY16: 3 | AZ16: 0 | BA16: u | BB16: 4 | BC16: 3 | BD16: 1 | BE16: 1 | BF16: 0 | BG16: 0 | BH16: 1 | BI16: 0 | BJ16: 1 | BK16: 0 | BL16: 0 | BM16: 0 | BN16: 1 | BO16: 0 | BP16: 0 | BQ16: 3000.011 | BR16: =BQ16+0.0000003 -> 3000.011 | CQ16: JSOA | CR16: -0.01 | CS16: 11 | CT16: AWSOM | CU16: HSMK
V17: ESMB | AA17: 0 | AB17: u | AC17: 13 | AD17: 0 | AE17: 1 | AF17: 0 | AG17: 0 | AH17: 1 | AI17: 2 | AJ17: 5 | AK17: -3 | AL17: 0 | AM17: 0 | AN17: 0 | AO17: 0 | AP17: 0 | AQ17: 1 | AR17: 13 | AS17: 2 | AT17: HSMK | AY17: 2 | AZ17: 0 | BA17: u | BB17: 2 | BC17: 3 | BD17: 1 | BE17: 1 | BF17: 0 | BG17: 0 | BH17: 5 | BI17: 2 | BJ17: 3 | BK17: 1 | BL17: 0 | BM17: 0 | BN17: 0 | BO17: 0 | BP17: 0 | BQ17: 3000.035 | BR17: =BQ17+0.0000002 -> 3000.035 | CQ17: ESMB | CR17: -0.028 | CS17: 13 | CT17: HSMK | CU17: ESMB
V18: AJAK | AA18: 0 | AB18: u | AC18: 14 | AD18: 0 | AE18: 1 | AF18: 0 | AG18: 0 | AH18: 1 | AI18: 0 | AJ18: 4 | AK18: -4 | AL18: 0 | AM18: 0 | AN18: 1 | AO18: 0 | AP18: 0 | AQ18: 0 | AR18: 14 | AS18: 13 | AT18: ESMB | AY18: 13 | AZ18: 0 | BA18: u | BB18: 13 | BC18: 0 | BD18: 1 | BE18: 0 | BF18: 0 | BG18: 1 | BH18: 2 | BI18: 5 | BJ18: -3 | BK18: 0 | BL18: 0 | BM18: 0 | BN18: 0 | BO18: 0 | BP18: 1 | BQ18: -0.028 | BR18: =BQ18+0.0000001 -> -0.0279999 | CQ18: AJAK | CR18: -0.04 | CS18: 14 | CT18: ESMB
AO19: Buts/Journée | AY19: p | AZ19: u | BA19: q
AO20: =SUM(G5:H14) -> 17 | AY20: p | AZ20: u | BA20: q
AO22: Total Buts du Championnat
AO24: =AO20 -> 17
AO26: Moyenne générale
AO28: =IF(AE5=0,"",SUM(AI5:AI24)/SUM(AE5:AE24)*2) -> 2.428571429

Sheet J02
A1: ='J01'!A1:C2 -> Nom du Championnat | I1: ='J01'!H1:K2 -> 2017-2018 | O1: JOURNEE 02 | V1: CLASSEMENT | AT1: CLASSEMENT | BS1: Domicile | BT1: Extérieur | BU1: Domicile | BV1: Extérieur | BW1: Domicile | BX1: Extérieur | BY1: Domicile | BZ1: Extérieur | CA1: Domicile | CB1: Extérieur | CC1: Domicile | CD1: Extérieur | CE1: Domicile | CF1: Extérieur | CG1: Domicile | CH1: Extérieur | CI1: Domicile | CJ1: Extérieur
A3: P | B3: Equipes | G3: Buts | H3: Buts | I3: Equipes | N3: P | O3: Dates | S3: Heure | V3: Equipes | AA3: Evolution | AC3: Place | AD3: Pts | AE3: J | AF3: G | AG3: N | AH3: P | AI3: B + | AJ3: B - | AK3: Diff. | AL3: Domicile | AO3: Extérieur | AT3: Equipes | AY3: R | AZ3: Evolution | BB3: R | BC3: Pts | BD3: J | BE3: G | BF3: N | BG3: P | BH3: B + | BI3: B - | BJ3: Diff. | BK3: Domicile | BN3: Extérieur | CK3: Domicile | CN3: Extérieur
AL4: G | AM4: N | AN4: P | AO4: G | AP4: N | AQ4: P | AS4: R | BK4: G | BL4: N | BM4: P | BN4: G | BO4: N | BP4: P | BQ4: % | BR4: % | BS4: P | BT4: P | BU4: Pts | BV4: Pts | BW4: T Pt | BX4: T Pt | BY4: J | BZ4: J | CA4: G | CB4: G | CC4: N | CD4: N | CE4: P | CF4: P | CG4: B + | CH4: B + | CI4: B - | CJ4: B - | CK4: G | CL4: N | CM4: P | CN4: G | CO4: N | CP4: P | CQ4: Equipes | CR4: % | CS4: R | CT4: Equipes
B5: CUSL | G5: 0 | H5: 0 | I5: HSMK | V5: =VLOOKUP(AR5,$AS$5:$AX$18,2,0) -> ASUD | AA5: =VLOOKUP(V5,$AT$5:$BP$18,7,0) -> 0 | AB5: =VLOOKUP(V5,$AT$5:$BP$18,8,0) -> u | AC5: 1 | AD5: =VLOOKUP(V5,$AT$5:$BP$18,10,0) -> 6 | AE5: =VLOOKUP(V5,$AT$5:$BP$18,11,0) -> 2 | AF5: =VLOOKUP(V5,$AT$5:$BP$18,12,0) -> 2 | AG5: =VLOOKUP(V5,$AT$5:$BP$18,13,0) -> 0 | AH5: =VLOOKUP(V5,$AT$5:$BP$18,14,0) -> 0 | AI5: =VLOOKUP(V5,$AT$5:$BP$18,15,0) -> 7 | AJ5: =VLOOKUP(V5,$AT$5:$BP$18,16,0) -> 1 | AK5: =VLOOKUP(V5,$AT$5:$BP$18,17,0) -> 6 | AL5: =VLOOKUP(V5,$AT$5:$BP$18,18,0) -> 1 | AM5: =VLOOKUP(V5,$AT$5:$BP$18,19,0) -> 0 | AN5: =VLOOKUP(V5,$AT$5:$BP$18,20,0) -> 0 | AO5: =VLOOKUP(V5,$AT$5:$BP$18,21,0) -> 1 | AP5: =VLOOKUP(V5,$AT$5:$BP$18,22,0) -> 0 | AQ5: =VLOOKUP(V5,$AT$5:$BP$18,23,0) -> 0 | AR5: 1 | AS5: =BB5 -> 11 | AT5: ='J01'!AT5:AX5 -> AUSBK | AY5: =RANK(BQ5,$BQ$5:$BQ$18) -> 11 | AZ5: ='J01'!AY5-AY5 -> -6 | BA5: =IF(AY5>'J01'!AY5,'J01'!$BA$20,IF(AY5='J01'!AY5,'J01'!$AZ$20,IF(AY5<'J01'!AY5,'J01'!$AY$20))) -> q | BB5: =RANK(BR5,$BR$5:$BR$18) -> 11 | BC5: =SUMPRODUCT(($B$5:$F$14=AT5)*($BW$5:$BW$14))+SUMPRODUCT(($I$5:$M$14=AT5)*($BX$5:$BX$14))+'J01'!BC5 -> 1 | BD5: =SUMPRODUCT(($B$5:$F$14=AT5)*($BY$5:$BY$14))+SUMPRODUCT(($I$5:$M$14=AT5)*($BZ$5:$BZ$14))+'J01'!BD5 -> 2 | BE5: =SUMPRODUCT(($B$5:$F$14=AT5)*($CA$5:$CA$14))+SUMPRODUCT(($I$5:$M$14=AT5)*($CB$5:$CB$14))+'J01'!BE5 -> 0 | BF5: =SUMPRODUCT(($B$5:$F$14=AT5)*($CC$5:$CC$14))+SUMPRODUCT(($I$5:$M$14=AT5)*($CD$5:$CD$14))+'J01'!BF5 -> 1 | BG5: =SUMPRODUCT(($B$5:$F$14=AT5)*($CE$5:$CE$14))+SUMPRODUCT(($I$5:$M$14=AT5)*($CF$5:$CF$14))+'J01'!BG5 -> 1 | BH5: =SUMPRODUCT(($B$5:$F$14=AT5)*($CG$5:$CG$14))+SUMPRODUCT(($I$5:$M$14=AT5)*($CH$5:$CH$14))+'J01'!BH5 -> 3 | BI5: =SUMPRODUCT(($B$5:$F$14=AT5)*($CI$5:$CI$14))+SUMPRODUCT(($I$5:$M$14=AT5)*($CJ$5:$CJ$14))+'J01'!BI5 -> 5 | BJ5: =BH5-BI5 -> -2 | BK5: =SUMPRODUCT(($B$5:$F$14=AT5)*($CK$5:$CK$14))+'J01'!BK5 -> 0 | BL5: =SUMPRODUCT(($B$5:$F$14=AT5)*($CL$5:$CL$14))+'J01'!BL5 -> 1 | BM5: =SUMPRODUCT(($B$5:$F$14=AT5)*($CM$5:$CM$14))+'J01'!BM5 -> 0 | BN5: =SUMPRODUCT(($I$5:$M$14=AT5)*($CN$5:$CN$14))+'J01'!BN5 -> 0 | BO5: =SUMPRODUCT(($I$5:$M$14=AT5)*($CO$5:$CO$14))+'J01'!BO5 -> 0 | BP5: =SUMPRODUCT(($I$5:$M$14=AT5)*($CP$5:$CP$14))+'J01'!BP5 -> 1 | BQ5: =SUM(BC5*1000+(BJ5)/100+(BH5)/1000) -> 999.983 | BR5: =BQ5+0.0000014 -> 999.9830014 | BS5: =A5 -> 0 | BT5: =N5 -> 0 | BU5: =IF(G5="",0,IF(G5>H5,3,IF(G5=H5,1,IF(G5<H5,0)))) -> 1 | BV5: =IF(H5="",0,IF(H5>G5,3,IF(H5=G5,1,IF(H5<G5,0)))) -> 1 | BW5: =BU5-BS5 -> 1 | BX5: =BV5-BT5 -> 1 | BY5: =IF(G5="",0,1) -> 1 | BZ5: =IF(H5="",0,1) -> 1 | CA5: =IF(G5<>"",IF(G5>H5,1)) -> FALSE | CB5: =IF(H5<>"",IF(H5>G5,1)) -> FALSE | CC5: =IF(G5<>"",IF(G5=H5,1)) -> 1 | CD5: =IF(H5<>"",IF(H5=G5,1)) -> 1 | CE5: =IF(G5<>"",IF(G5<H5,1)) -> FALSE | CF5: =IF(H5<>"",IF(H5<G5,1)) -> FALSE | CG5: =G5 -> 0 | CH5: =H5 -> 0 | CI5: =H5 -> 0 | CJ5: =G5 -> 0 | CK5: =IF(G5<>"",IF(G5>H5,1)) -> FALSE | CL5: =IF(G5<>"",IF(G5=H5,1)) -> 1 | CM5: =IF(G5<>"",IF(G5<H5,1)) -> FALSE | CN5: =IF(H5<>"",IF(H5>G5,1)) -> FALSE | CO5: =IF(H5<>"",IF(H5=G5,1)) -> 1 | CP5: =IF(H5<>"",IF(H5<G5,1)) -> FALSE | CQ5: =VLOOKUP(AR5,$AS$5:$AX$18,2,0) -> ASUD | CR5: =VLOOKUP(CQ5,$AT$5:$BQ$18,24,0) -> 6000.067 | CS5: =RANK(CR5,$CR$5:$CR$18) -> 1 | CT5: =AT5 -> AUSBK
B6: CJBF | G6: 3 | H6: 1 | I6: AUSBK | V6: HSMK | AA6: 0 | AB6: u | AC6: =IF(CR6=CR5,CS5,CS6) -> 2 | AD6: 4 | AE6: 2 | AF6: 1 | AG6: 1 | AH6: 0 | AI6: 5 | AJ6: 2 | AK6: 3 | AL6: 1 | AM6: 0 | AN6: =VLOOKUP(V6,$AT$5:$BP$18,20,0) -> 0 | AO6: 0 | AP6: =VLOOKUP(V6,$AT$5:$BP$18,22,0) -> 1 | AQ6: 0 | AR6: 2 | AS6: =BB6 -> 8 | AT6: ='J01'!AT6:AX6 -> CUSL | AY6: 8 | AZ6: ='J01'!AY6-AY6 -> -3 | BA6: =IF(AY6>'J01'!AY6,'J01'!$BA$20,IF(AY6='J01'!AY6,'J01'!$AZ$20,IF(AY6<'J01'!AY6,'J01'!$AY$20))) -> q | BB6: =RANK(BR6,$BR$5:$BR$18) -> 8 | BC6: =SUMPRODUCT(($B$5:$F$14=AT6)*($BW$5:$BW$14))+SUMPRODUCT(($I$5:$M$14=AT6)*($BX$5:$BX$14))+'J01'!BC6 -> 2 | BD6: =SUMPRODUCT(($B$5:$F$14=AT6)*($BY$5:$BY$14))+SUMPRODUCT(($I$5:$M$14=AT6)*($BZ$5:$BZ$14))+'J01'!BD6 -> 2 | BE6: =SUMPRODUCT(($B$5:$F$14=AT6)*($CA$5:$CA$14))+SUMPRODUCT(($I$5:$M$14=AT6)*($CB$5:$CB$14))+'J01'!BE6 -> 0 | BF6: =SUMPRODUCT(($B$5:$F$14=AT6)*($CC$5:$CC$14))+SUMPRODUCT(($I$5:$M$14=AT6)*($CD$5:$CD$14))+'J01'!BF6 -> 2 | BG6: =SUMPRODUCT(($B$5:$F$14=AT6)*($CE$5:$CE$14))+SUMPRODUCT(($I$5:$M$14=AT6)*($CF$5:$CF$14))+'J01'!BG6 -> 0 | BH6: =SUMPRODUCT(($B$5:$F$14=AT6)*($CG$5:$CG$14))+SUMPRODUCT(($I$5:$M$14=AT6)*($CH$5:$CH$14))+'J01'!BH6 -> 2 | BI6: =SUMPRODUCT(($B$5:$F$14=AT6)*($CI$5:$CI$14))+SUMPRODUCT(($I$5:$M$14=AT6)*($CJ$5:$CJ$14))+'J01'!BI6 -> 2 | BJ6: =BH6-BI6 -> 0 | BK6: =SUMPRODUCT(($B$5:$F$14=AT6)*($CK$5:$CK$14))+'J01'!BK6 -> 0 | BL6: =SUMPRODUCT(($B$5:$F$14=AT6)*($CL$5:$CL$14))+'J01'!BL6 -> 1 | BM6: =SUMPRODUCT(($B$5:$F$14=AT6)*($CM$5:$CM$14))+'J01'!BM6 -> 0 | BN6: =SUMPRODUCT(($I$5:$M$14=AT6)*($CN$5:$CN$14))+'J01'!BN6 -> 0 | BO6: =SUMPRODUCT(($I$5:$M$14=AT6)*($CO$5:$CO$14))+'J01'!BO6 -> 1 | BP6: =SUMPRODUCT(($I$5:$M$14=AT6)*($CP$5:$CP$14))+'J01'!BP6 -> 0 | BQ6: =SUM(BC6*1000+(BJ6)/100+(BH6)/1000) -> 2000.002 | BR6: =BQ6+0.0000013 -> 2000.002001 | BS6: =A6 -> 0 | BT6: =N6 -> 0 | BU6: =IF(G6="",0,IF(G6>H6,3,IF(G6=H6,1,IF(G6<H6,0)))) -> 3 | BV6: =IF(H6="",0,IF(H6>G6,3,IF(H6=G6,1,IF(H6<G6,0)))) -> 0 | BW6: =BU6-BS6 -> 3 | BX6: =BV6-BT6 -> 0 | BY6: =IF(G6="",0,1) -> 1 | BZ6: =IF(H6="",0,1) -> 1 | CA6: =IF(G6<>"",IF(G6>H6,1)) -> 1 | CB6: =IF(H6<>"",IF(H6>G6,1)) -> FALSE | CC6: =IF(G6<>"",IF(G6=H6,1)) -> FALSE | CD6: =IF(H6<>"",IF(H6=G6,1)) -> FALSE | CE6: =IF(G6<>"",IF(G6<H6,1)) -> FALSE | CF6: =IF(H6<>"",IF(H6<G6,1)) -> 1 | CG6: =G6 -> 3 | CH6: =H6 -> 1 | CI6: =H6 -> 1 | CJ6: =G6 -> 3 | CK6: =IF(G6<>"",IF(G6>H6,1)) -> 1 | CL6: =IF(G6<>"",IF(G6=H6,1)) -> FALSE | CM6: =IF(G6<>"",IF(G6<H6,1)) -> FALSE | CN6: =IF(H6<>"",IF(H6>G6,1)) -> FALSE | CO6: =IF(H6<>"",IF(H6=G6,1)) -> FALSE | CP6: =IF(H6<>"",IF(H6<G6,1)) -> 1 | CQ6: HSMK | CR6: 4000.035 | CS6: 2 | CT6: =AT6 -> CUSL
B7: ASUD | G7: 3 | H7: 1 | I7: AUSA | V7: CJBF | AA7: 4 | AB7: p | AC7: =IF(CR7=CR6,CS6,CS7) -> 3 | AD7: 4 | AE7: 2 | AF7: 1 | AG7: 1 | AH7: 0 | AI7: 3 | AJ7: 1 | AK7: 2 | AL7: 1 | AM7: 0 | AN7: 0 | AO7: 0 | AP7: 1 | AQ7: 0 | AR7: 3 | AS7: 12 | AT7: ='J01'!AT7:AX7 -> AUSA | AY7: 12 | AZ7: ='J01'!AY7-AY7 -> -5 | BA7: =IF(AY7>'J01'!AY7,'J01'!$BA$20,IF(AY7='J01'!AY7,'J01'!$AZ$20,IF(AY7<'J01'!AY7,'J01'!$AY$20))) -> q | BB7: 12 | BC7: =SUMPRODUCT(($B$5:$F$14=AT7)*($BW$5:$BW$14))+SUMPRODUCT(($I$5:$M$14=AT7)*($BX$5:$BX$14))+'J01'!BC7 -> 1 | BD7: =SUMPRODUCT(($B$5:$F$14=AT7)*($BY$5:$BY$14))+SUMPRODUCT(($I$5:$M$14=AT7)*($BZ$5:$BZ$14))+'J01'!BD7 -> 2 | BE7: =SUMPRODUCT(($B$5:$F$14=AT7)*($CA$5:$CA$14))+SUMPRODUCT(($I$5:$M$14=AT7)*($CB$5:$CB$14))+'J01'!BE7 -> 0 | BF7: =SUMPRODUCT(($B$5:$F$14=AT7)*($CC$5:$CC$14))+SUMPRODUCT(($I$5:$M$14=AT7)*($CD$5:$CD$14))+'J01'!BF7 -> 1 | BG7: =SUMPRODUCT(($B$5:$F$14=AT7)*($CE$5:$CE$14))+SUMPRODUCT(($I$5:$M$14=AT7)*($CF$5:$CF$14))+'J01'!BG7 -> 1 | BH7: =SUMPRODUCT(($B$5:$F$14=AT7)*($CG$5:$CG$14))+SUMPRODUCT(($I$5:$M$14=AT7)*($CH$5:$CH$14))+'J01'!BH7 -> 1 | BI7: =SUMPRODUCT(($B$5:$F$14=AT7)*($CI$5:$CI$14))+SUMPRODUCT(($I$5:$M$14=AT7)*($CJ$5:$CJ$14))+'J01'!BI7 -> 3 | BJ7: -2 | BK7: =SUMPRODUCT(($B$5:$F$14=AT7)*($CK$5:$CK$14))+'J01'!BK7 -> 0 | BL7: =SUMPRODUCT(($B$5:$F$14=AT7)*($CL$5:$CL$14))+'J01'!BL7 -> 1 | BM7: =SUMPRODUCT(($B$5:$F$14=AT7)*($CM$5:$CM$14))+'J01'!BM7 -> 0 | BN7: =SUMPRODUCT(($I$5:$M$14=AT7)*($CN$5:$CN$14))+'J01'!BN7 -> 0 | BO7: =SUMPRODUCT(($I$5:$M$14=AT7)*($CO$5:$CO$14))+'J01'!BO7 -> 0 | BP7: =SUMPRODUCT(($I$5:$M$14=AT7)*($CP$5:$CP$14))+'J01'!BP7 -> 1 | BQ7: 999.981 | BR7: =BQ7+0.0000012 -> 999.9810012 | BS7: 0 | BT7: 0 | BU7: 3 | BV7: 0 | BW7: 3 | BX7: 0 | BY7: 1 | BZ7: 1 | CA7: 1 | CB7: FALSE | CC7: FALSE | CD7: FALSE | CE7: FALSE | CF7: 1 | CG7: 3 | CH7: 1 | CI7: 1 | CJ7: 3 | CK7: 1 | CL7: FALSE | CM7: FALSE | CN7: FALSE | CO7: FALSE | CP7: 1 | CQ7: CJBF | CR7: 4000.023 | CS7: 3 | CT7: AUSA
B8: USB | G8: 0 | H8: 1 | I8: AJAK | V8: ALC | AA8: -1 | AB8: q | AC8: 4 | AD8: 4 | AE8: 2 | AF8: 1 | AG8: 1 | AH8: 0 | AI8: 2 | AJ8: 1 | AK8: 1 | AL8: 1 | AM8: 0 | AN8: 0 | AO8: 0 | AP8: 1 | AQ8: 0 | AR8: 4 | AS8: 3 | AT8: ='J01'!AT8:AX8 -> CJBF | AY8: 3 | AZ8: ='J01'!AY8-AY8 -> 4 | BA8: =IF(AY8>'J01'!AY8,'J01'!$BA$20,IF(AY8='J01'!AY8,'J01'!$AZ$20,IF(AY8<'J01'!AY8,'J01'!$AY$20))) -> p | BB8: 3 | BC8: =SUMPRODUCT(($B$5:$F$14=AT8)*($BW$5:$BW$14))+SUMPRODUCT(($I$5:$M$14=AT8)*($BX$5:$BX$14))+'J01'!BC8 -> 4 | BD8: =SUMPRODUCT(($B$5:$F$14=AT8)*($BY$5:$BY$14))+SUMPRODUCT(($I$5:$M$14=AT8)*($BZ$5:$BZ$14))+'J01'!BD8 -> 2 | BE8: =SUMPRODUCT(($B$5:$F$14=AT8)*($CA$5:$CA$14))+SUMPRODUCT(($I$5:$M$14=AT8)*($CB$5:$CB$14))+'J01'!BE8 -> 1 | BF8: =SUMPRODUCT(($B$5:$F$14=AT8)*($CC$5:$CC$14))+SUMPRODUCT(($I$5:$M$14=AT8)*($CD$5:$CD$14))+'J01'!BF8 -> 1 | BG8: =SUMPRODUCT(($B$5:$F$14=AT8)*($CE$5:$CE$14))+SUMPRODUCT(($I$5:$M$14=AT8)*($CF$5:$CF$14))+'J01'!BG8 -> 0 | BH8: =SUMPRODUCT(($B$5:$F$14=AT8)*($CG$5:$CG$14))+SUMPRODUCT(($I$5:$M$14=AT8)*($CH$5:$CH$14))+'J01'!BH8 -> 3 | BI8: =SUMPRODUCT(($B$5:$F$14=AT8)*($CI$5:$CI$14))+SUMPRODUCT(($I$5:$M$14=AT8)*($CJ$5:$CJ$14))+'J01'!BI8 -> 1 | BJ8: 2 | BK8: =SUMPRODUCT(($B$5:$F$14=AT8)*($CK$5:$CK$14))+'J01'!BK8 -> 1 | BL8: =SUMPRODUCT(($B$5:$F$14=AT8)*($CL$5:$CL$14))+'J01'!BL8 -> 0 | BM8: =SUMPRODUCT(($B$5:$F$14=AT8)*($CM$5:$CM$14))+'J01'!BM8 -> 0 | BN8: =SUMPRODUCT(($I$5:$M$14=AT8)*($CN$5:$CN$14))+'J01'!BN8 -> 0 | BO8: =SUMPRODUCT(($I$5:$M$14=AT8)*($CO$5:$CO$14))+'J01'!BO8 -> 1 | BP8: =SUMPRODUCT(($I$5:$M$14=AT8)*($CP$5:$CP$14))+'J01'!BP8 -> 0 | BQ8: 4000.023 | BR8: =BQ8+0.0000011 -> 4000.023001 | BS8: 0 | BT8: 0 | BU8: 0 | BV8: 3 | BW8: 0 | BX8: 3 | BY8: 1 | BZ8: 1 | CA8: FALSE | CB8: 1 | CC8: FALSE | CD8: FALSE | CE8: 1 | CF8: FALSE | CG8: 0 | CH8: 1 | CI8: 1 | CJ8: 0 | CK8: FALSE | CL8: FALSE | CM8: 1 | CN8: 1 | CO8: FALSE | CP8: FALSE | CQ8: ALC | CR8: 4000.012 | CS8: 4 | CT8: CJBF
B9: AUSAF | G9: 0 | H9: 1 | I9: AHDOZ | V9: AWSOM | AA9: -1 | AB9: q | AC9: 4 | AD9: 4 | AE9: 2 | AF9: 1 | AG9: 1 | AH9: 0 | AI9: 2 | AJ9: 1 | AK9: 1 | AL9: 0 | AM9: 1 | AN9: 0 | AO9: 1 | AP9: 0 | AQ9: 0 | AR9: 5 | AS9: 7 | AT9: ='J01'!AT9:AX9 -> AJAK | AY9: 7 | AZ9: ='J01'!AY9-AY9 -> 7 | BA9: =IF(AY9>'J01'!AY9,'J01'!$BA$20,IF(AY9='J01'!AY9,'J01'!$AZ$20,IF(AY9<'J01'!AY9,'J01'!$AY$20))) -> p | BB9: 7 | BC9: =SUMPRODUCT(($B$5:$F$14=AT9)*($BW$5:$BW$14))+SUMPRODUCT(($I$5:$M$14=AT9)*($BX$5:$BX$14))+'J01'!BC9 -> 3 | BD9: =SUMPRODUCT(($B$5:$F$14=AT9)*($BY$5:$BY$14))+SUMPRODUCT(($I$5:$M$14=AT9)*($BZ$5:$BZ$14))+'J01'!BD9 -> 2 | BE9: =SUMPRODUCT(($B$5:$F$14=AT9)*($CA$5:$CA$14))+SUMPRODUCT(($I$5:$M$14=AT9)*($CB$5:$CB$14))+'J01'!BE9 -> 1 | BF9: =SUMPRODUCT(($B$5:$F$14=AT9)*($CC$5:$CC$14))+SUMPRODUCT(($I$5:$M$14=AT9)*($CD$5:$CD$14))+'J01'!BF9 -> 0 | BG9: =SUMPRODUCT(($B$5:$F$14=AT9)*($CE$5:$CE$14))+SUMPRODUCT(($I$5:$M$14=AT9)*($CF$5:$CF$14))+'J01'!BG9 -> 1 | BH9: =SUMPRODUCT(($B$5:$F$14=AT9)*($CG$5:$CG$14))+SUMPRODUCT(($I$5:$M$14=AT9)*($CH$5:$CH$14))+'J01'!BH9 -> 1 | BI9: =SUMPRODUCT(($B$5:$F$14=AT9)*($CI$5:$CI$14))+SUMPRODUCT(($I$5:$M$14=AT9)*($CJ$5:$CJ$14))+'J01'!BI9 -> 4 | BJ9: -3 | BK9: =SUMPRODUCT(($B$5:$F$14=AT9)*($CK$5:$CK$14))+'J01'!BK9 -> 0 | BL9: =SUMPRODUCT(($B$5:$F$14=AT9)*($CL$5:$CL$14))+'J01'!BL9 -> 0 | BM9: =SUMPRODUCT(($B$5:$F$14=AT9)*($CM$5:$CM$14))+'J01'!BM9 -> 1 | BN9: =SUMPRODUCT(($I$5:$M$14=AT9)*($CN$5:$CN$14))+'J01'!BN9 -> 1 | BO9: =SUMPRODUCT(($I$5:$M$14=AT9)*($CO$5:$CO$14))+'J01'!BO9 -> 0 | BP9: =SUMPRODUCT(($I$5:$M$14=AT9)*($CP$5:$CP$14))+'J01'!BP9 -> 0 | BQ9: 2999.971 | BR9: =BQ9+0.000001 -> 2999.971001 | BS9: 0 | BT9: 0 | BU9: 0 | BV9: 3 | BW9: 0 | BX9: 3 | BY9: 1 | BZ9: 1 | CA9: FALSE | CB9: 1 | CC9: FALSE | CD9: FALSE | CE9: 1 | CF9: FALSE | CG9: 0 | CH9: 1 | CI9: 1 | CJ9: 0 | CK9: FALSE | CL9: FALSE | CM9: 1 | CN9: 1 | CO9: FALSE | CP9: FALSE | CQ9: AWSOM | CR9: 4000.012 | CS9: 4 | CT9: AJAK
B10: AWSOM | G10: 1 | H10: 1 | I10: ALC | V10: AHDOZ | AA10: 1 | AB10: p | AC10: 6 | AD10: 4 | AE10: 2 | AF10: 1 | AG10: 1 | AH10: 0 | AI10: 1 | AJ10: 0 | AK10: 1 | AL10: 0 | AM10: 1 | AN10: 0 | AO10: 1 | AP10: 0 | AQ10: 0 | AR10: 6 | AS10: 1 | AT10: ='J01'!AT10:AX10 -> ASUD | AY10: 1 | AZ10: ='J01'!AY10-AY10 -> 0 | BA10: =IF(AY10>'J01'!AY10,'J01'!$BA$20,IF(AY10='J01'!AY10,'J01'!$AZ$20,IF(AY10<'J01'!AY10,'J01'!$AY$20))) -> u | BB10: 1 | BC10: =SUMPRODUCT(($B$5:$F$14=AT10)*($BW$5:$BW$14))+SUMPRODUCT(($I$5:$M$14=AT10)*($BX$5:$BX$14))+'J01'!BC10 -> 6 | BD10: =SUMPRODUCT(($B$5:$F$14=AT10)*($BY$5:$BY$14))+SUMPRODUCT(($I$5:$M$14=AT10)*($BZ$5:$BZ$14))+'J01'!BD10 -> 2 | BE10: =SUMPRODUCT(($B$5:$F$14=AT10)*($CA$5:$CA$14))+SUMPRODUCT(($I$5:$M$14=AT10)*($CB$5:$CB$14))+'J01'!BE10 -> 2 | BF10: =SUMPRODUCT(($B$5:$F$14=AT10)*($CC$5:$CC$14))+SUMPRODUCT(($I$5:$M$14=AT10)*($CD$5:$CD$14))+'J01'!BF10 -> 0 | BG10: =SUMPRODUCT(($B$5:$F$14=AT10)*($CE$5:$CE$14))+SUMPRODUCT(($I$5:$M$14=AT10)*($CF$5:$CF$14))+'J01'!BG10 -> 0 | BH10: =SUMPRODUCT(($B$5:$F$14=AT10)*($CG$5:$CG$14))+SUMPRODUCT(($I$5:$M$14=AT10)*($CH$5:$CH$14))+'J01'!BH10 -> 7 | BI10: =SUMPRODUCT(($B$5:$F$14=AT10)*($CI$5:$CI$14))+SUMPRODUCT(($I$5:$M$14=AT10)*($CJ$5:$CJ$14))+'J01'!BI10 -> 1 | BJ10: 6 | BK10: =SUMPRODUCT(($B$5:$F$14=AT10)*($CK$5:$CK$14))+'J01'!BK10 -> 1 | BL10: =SUMPRODUCT(($B$5:$F$14=AT10)*($CL$5:$CL$14))+'J01'!BL10 -> 0 | BM10: =SUMPRODUCT(($B$5:$F$14=AT10)*($CM$5:$CM$14))+'J01'!BM10 -> 0 | BN10: =SUMPRODUCT(($I$5:$M$14=AT10)*($CN$5:$CN$14))+'J01'!BN10 -> 1 | BO10: =SUMPRODUCT(($I$5:$M$14=AT10)*($CO$5:$CO$14))+'J01'!BO10 -> 0 | BP10: =SUMPRODUCT(($I$5:$M$14=AT10)*($CP$5:$CP$14))+'J01'!BP10 -> 0 | BQ10: 6000.067 | BR10: =BQ10+0.0000009 -> 6000.067001 | BS10: 0 | BT10: 0 | BU10: 1 | BV10: 1 | BW10: 1 | BX10: 1 | BY10: 1 | BZ10: 1 | CA10: FALSE | CB10: FALSE | CC10: 1 | CD10: 1 | CE10: FALSE | CF10: FALSE | CG10: 1 | CH10: 1 | CI10: 1 | CJ10: 1 | CK10: FALSE | CL10: 1 | CM10: FALSE | CN10: FALSE | CO10: 1 | CP10: FALSE | CQ10: AHDOZ | CR10: 4000.011 | CS10: 6 | CT10: ASUD
B11: ESMB | G11: 1 | H11: 1 | I11: JSOA | V11: AJAK | AA11: 7 | AB11: p | AC11: 7 | AD11: 3 | AE11: 2 | AF11: 1 | AG11: 0 | AH11: 1 | AI11: 1 | AJ11: 4 | AK11: -3 | AL11: 0 | AM11: 0 | AN11: 1 | AO11: 1 | AP11: 0 | AQ11: 0 | AR11: 7 | AS11: 6 | AT11: ='J01'!AT11:AX11 -> AHDOZ | AY11: 6 | AZ11: ='J01'!AY11-AY11 -> 1 | BA11: =IF(AY11>'J01'!AY11,'J01'!$BA$20,IF(AY11='J01'!AY11,'J01'!$AZ$20,IF(AY11<'J01'!AY11,'J01'!$AY$20))) -> p | BB11: 6 | BC11: =SUMPRODUCT(($B$5:$F$14=AT11)*($BW$5:$BW$14))+SUMPRODUCT(($I$5:$M$14=AT11)*($BX$5:$BX$14))+'J01'!BC11 -> 4 | BD11: =SUMPRODUCT(($B$5:$F$14=AT11)*($BY$5:$BY$14))+SUMPRODUCT(($I$5:$M$14=AT11)*($BZ$5:$BZ$14))+'J01'!BD11 -> 2 | BE11: =SUMPRODUCT(($B$5:$F$14=AT11)*($CA$5:$CA$14))+SUMPRODUCT(($I$5:$M$14=AT11)*($CB$5:$CB$14))+'J01'!BE11 -> 1 | BF11: =SUMPRODUCT(($B$5:$F$14=AT11)*($CC$5:$CC$14))+SUMPRODUCT(($I$5:$M$14=AT11)*($CD$5:$CD$14))+'J01'!BF11 -> 1 | BG11: =SUMPRODUCT(($B$5:$F$14=AT11)*($CE$5:$CE$14))+SUMPRODUCT(($I$5:$M$14=AT11)*($CF$5:$CF$14))+'J01'!BG11 -> 0 | BH11: =SUMPRODUCT(($B$5:$F$14=AT11)*($CG$5:$CG$14))+SUMPRODUCT(($I$5:$M$14=AT11)*($CH$5:$CH$14))+'J01'!BH11 -> 1 | BI11: =SUMPRODUCT(($B$5:$F$14=AT11)*($CI$5:$CI$14))+SUMPRODUCT(($I$5:$M$14=AT11)*($CJ$5:$CJ$14))+'J01'!BI11 -> 0 | BJ11: 1 | BK11: =SUMPRODUCT(($B$5:$F$14=AT11)*($CK$5:$CK$14))+'J01'!BK11 -> 0 | BL11: =SUMPRODUCT(($B$5:$F$14=AT11)*($CL$5:$CL$14))+'J01'!BL11 -> 1 | BM11: =SUMPRODUCT(($B$5:$F$14=AT11)*($CM$5:$CM$14))+'J01'!BM11 -> 0 | BN11: =SUMPRODUCT(($I$5:$M$14=AT11)*($CN$5:$CN$14))+'J01'!BN11 -> 1 | BO11: =SUMPRODUCT(($I$5:$M$14=AT11)*($CO$5:$CO$14))+'J01'!BO11 -> 0 | BP11: =SUMPRODUCT(($I$5:$M$14=AT11)*($CP$5:$CP$14))+'J01'!BP11 -> 0 | BQ11: 4000.011 | BR11: =BQ11+0.0000008 -> 4000.011001 | BS11: 0 | BT11: 0 | BU11: 1 | BV11: 1 | BW11: 1 | BX11: 1 | BY11: 1 | BZ11: 1 | CA11: FALSE | CB11: FALSE | CC11: 1 | CD11: 1 | CE11: FALSE | CF11: FALSE | CG11: 1 | CH11: 1 | CI11: 1 | CJ11: 1 | CK11: FALSE | CL11: 1 | CM11: FALSE | CN11: FALSE | CO11: 1 | CP11: FALSE | CQ11: AJAK | CR11: 2999.971 | CS11: 7 | CT11: AHDOZ
V12: CUSL | AA12: -3 | AB12: q | AC12: 8 | AD12: 2 | AE12: 2 | AF12: 0 | AG12: 2 | AH12: 0 | AI12: 2 | AJ12: 2 | AK12: 0 | AL12: 0 | AM12: 1 | AN12: 0 | AO12: 0 | AP12: 1 | AQ12: 0 | AR12: 8 | AS12: 10 | AT12: ='J01'!AT12:AX12 -> USB | AY12: 10 | AZ12: ='J01'!AY12-AY12 -> -3 | BA12: =IF(AY12>'J01'!AY12,'J01'!$BA$20,IF(AY12='J01'!AY12,'J01'!$AZ$20,IF(AY12<'J01'!AY12,'J01'!$AY$20))) -> q | BB12: 10 | BC12: =SUMPRODUCT(($B$5:$F$14=AT12)*($BW$5:$BW$14))+SUMPRODUCT(($I$5:$M$14=AT12)*($BX$5:$BX$14))+'J01'!BC12 -> 1 | BD12: =SUMPRODUCT(($B$5:$F$14=AT12)*($BY$5:$BY$14))+SUMPRODUCT(($I$5:$M$14=AT12)*($BZ$5:$BZ$14))+'J01'!BD12 -> 2 | BE12: =SUMPRODUCT(($B$5:$F$14=AT12)*($CA$5:$CA$14))+SUMPRODUCT(($I$5:$M$14=AT12)*($CB$5:$CB$14))+'J01'!BE12 -> 0 | BF12: =SUMPRODUCT(($B$5:$F$14=AT12)*($CC$5:$CC$14))+SUMPRODUCT(($I$5:$M$14=AT12)*($CD$5:$CD$14))+'J01'!BF12 -> 1 | BG12: =SUMPRODUCT(($B$5:$F$14=AT12)*($CE$5:$CE$14))+SUMPRODUCT(($I$5:$M$14=AT12)*($CF$5:$CF$14))+'J01'!BG12 -> 1 | BH12: =SUMPRODUCT(($B$5:$F$14=AT12)*($CG$5:$CG$14))+SUMPRODUCT(($I$5:$M$14=AT12)*($CH$5:$CH$14))+'J01'!BH12 -> 0 | BI12: =SUMPRODUCT(($B$5:$F$14=AT12)*($CI$5:$CI$14))+SUMPRODUCT(($I$5:$M$14=AT12)*($CJ$5:$CJ$14))+'J01'!BI12 -> 1 | BJ12: -1 | BK12: =SUMPRODUCT(($B$5:$F$14=AT12)*($CK$5:$CK$14))+'J01'!BK12 -> 0 | BL12: =SUMPRODUCT(($B$5:$F$14=AT12)*($CL$5:$CL$14))+'J01'!BL12 -> 0 | BM12: =SUMPRODUCT(($B$5:$F$14=AT12)*($CM$5:$CM$14))+'J01'!BM12 -> 1 | BN12: =SUMPRODUCT(($I$5:$M$14=AT12)*($CN$5:$CN$14))+'J01'!BN12 -> 0 | BO12: =SUMPRODUCT(($I$5:$M$14=AT12)*($CO$5:$CO$14))+'J01'!BO12 -> 1 | BP12: =SUMPRODUCT(($I$5:$M$14=AT12)*($CP$5:$CP$14))+'J01'!BP12 -> 0 | BQ12: 999.99 | BR12: =BQ12+0.0000007 -> 999.9900007 | BS12: 0 | BT12: 0 | BU12: 0 | BV12: 0 | BW12: 0 | BX12: 0 | BY12: 0 | BZ12: 0 | CA12: FALSE | CB12: FALSE | CC12: FALSE | CD12: FALSE | CE12: FALSE | CF12: FALSE | CG12: 0 | CH12: 0 | CI12: 0 | CJ12: 0 | CK12: FALSE | CL12: FALSE | CM12: FALSE | CN12: FALSE | CO12: FALSE | CP12: FALSE | CQ12: CUSL | CR12: 2000.002 | CS12: 8 | CT12: USB
V13: JSOA | AA13: 2 | AB13: p | AC13: 9 | AD13: 1 | AE13: 2 | AF13: 0 | AG13: 1 | AH13: 1 | AI13: 1 | AJ13: 2 | AK13: -1 | AL13: 0 | AM13: 0 | AN13: 1 | AO13: 0 | AP13: 1 | AQ13: 0 | AR13: 9 | AS13: 4 | AT13: ='J01'!AT13:AX13 -> ALC | AY13: 4 | AZ13: ='J01'!AY13-AY13 -> -1 | BA13: =IF(AY13>'J01'!AY13,'J01'!$BA$20,IF(AY13='J01'!AY13,'J01'!$AZ$20,IF(AY13<'J01'!AY13,'J01'!$AY$20))) -> q | BB13: 4 | BC13: =SUMPRODUCT(($B$5:$F$14=AT13)*($BW$5:$BW$14))+SUMPRODUCT(($I$5:$M$14=AT13)*($BX$5:$BX$14))+'J01'!BC13 -> 4 | BD13: =SUMPRODUCT(($B$5:$F$14=AT13)*($BY$5:$BY$14))+SUMPRODUCT(($I$5:$M$14=AT13)*($BZ$5:$BZ$14))+'J01'!BD13 -> 2 | BE13: =SUMPRODUCT(($B$5:$F$14=AT13)*($CA$5:$CA$14))+SUMPRODUCT(($I$5:$M$14=AT13)*($CB$5:$CB$14))+'J01'!BE13 -> 1 | BF13: =SUMPRODUCT(($B$5:$F$14=AT13)*($CC$5:$CC$14))+SUMPRODUCT(($I$5:$M$14=AT13)*($CD$5:$CD$14))+'J01'!BF13 -> 1 | BG13: =SUMPRODUCT(($B$5:$F$14=AT13)*($CE$5:$CE$14))+SUMPRODUCT(($I$5:$M$14=AT13)*($CF$5:$CF$14))+'J01'!BG13 -> 0 | BH13: =SUMPRODUCT(($B$5:$F$14=AT13)*($CG$5:$CG$14))+SUMPRODUCT(($I$5:$M$14=AT13)*($CH$5:$CH$14))+'J01'!BH13 -> 2 | BI13: =SUMPRODUCT(($B$5:$F$14=AT13)*($CI$5:$CI$14))+SUMPRODUCT(($I$5:$M$14=AT13)*($CJ$5:$CJ$14))+'J01'!BI13 -> 1 | BJ13: 1 | BK13: =SUMPRODUCT(($B$5:$F$14=AT13)*($CK$5:$CK$14))+'J01'!BK13 -> 1 | BL13: =SUMPRODUCT(($B$5:$F$14=AT13)*($CL$5:$CL$14))+'J01'!BL13 -> 0 | BM13: =SUMPRODUCT(($B$5:$F$14=AT13)*($CM$5:$CM$14))+'J01'!BM13 -> 0 | BN13: =SUMPRODUCT(($I$5:$M$14=AT13)*($CN$5:$CN$14))+'J01'!BN13 -> 0 | BO13: =SUMPRODUCT(($I$5:$M$14=AT13)*($CO$5:$CO$14))+'J01'!BO13 -> 1 | BP13: =SUMPRODUCT(($I$5:$M$14=AT13)*($CP$5:$CP$14))+'J01'!BP13 -> 0 | BQ13: 4000.012 | BR13: =BQ13+0.0000006 -> 4000.012001 | BS13: 0 | BT13: 0 | BU13: 0 | BV13: 0 | BW13: 0 | BX13: 0 | BY13: 0 | BZ13: 0 | CA13: FALSE | CB13: FALSE | CC13: FALSE | CD13: FALSE | CE13: FALSE | CF13: FALSE | CG13: 0 | CH13: 0 | CI13: 0 | CJ13: 0 | CK13: FALSE | CL13: FALSE | CM13: FALSE | CN13: FALSE | CO13: FALSE | CP13: FALSE | CQ13: JSOA | CR13: 999.991 | CS13: 9 | CT13: ALC
V14: USB | AA14: -3 | AB14: q | AC14: 10 | AD14: 1 | AE14: 2 | AF14: 0 | AG14: 1 | AH14: 1 | AI14: 0 | AJ14: 1 | AK14: -1 | AL14: 0 | AM14: 0 | AN14: 1 | AO14: 0 | AP14: 1 | AQ14: 0 | AR14: 10 | AS14: 14 | AT14: ='J01'!AT14:AX14 -> AUSAF | AY14: 14 | AZ14: ='J01'!AY14-AY14 -> -3 | BA14: =IF(AY14>'J01'!AY14,'J01'!$BA$20,IF(AY14='J01'!AY14,'J01'!$AZ$20,IF(AY14<'J01'!AY14,'J01'!$AY$20))) -> q | BB14: 14 | BC14: =SUMPRODUCT(($B$5:$F$14=AT14)*($BW$5:$BW$14))+SUMPRODUCT(($I$5:$M$14=AT14)*($BX$5:$BX$14))+'J01'!BC14 -> 0 | BD14: =SUMPRODUCT(($B$5:$F$14=AT14)*($BY$5:$BY$14))+SUMPRODUCT(($I$5:$M$14=AT14)*($BZ$5:$BZ$14))+'J01'!BD14 -> 2 | BE14: =SUMPRODUCT(($B$5:$F$14=AT14)*($CA$5:$CA$14))+SUMPRODUCT(($I$5:$M$14=AT14)*($CB$5:$CB$14))+'J01'!BE14 -> 0 | BF14: =SUMPRODUCT(($B$5:$F$14=AT14)*($CC$5:$CC$14))+SUMPRODUCT(($I$5:$M$14=AT14)*($CD$5:$CD$14))+'J01'!BF14 -> 0 | BG14: =SUMPRODUCT(($B$5:$F$14=AT14)*($CE$5:$CE$14))+SUMPRODUCT(($I$5:$M$14=AT14)*($CF$5:$CF$14))+'J01'!BG14 -> 2 | BH14: =SUMPRODUCT(($B$5:$F$14=AT14)*($CG$5:$CG$14))+SUMPRODUCT(($I$5:$M$14=AT14)*($CH$5:$CH$14))+'J01'!BH14 -> 0 | BI14: =SUMPRODUCT(($B$5:$F$14=AT14)*($CI$5:$CI$14))+SUMPRODUCT(($I$5:$M$14=AT14)*($CJ$5:$CJ$14))+'J01'!BI14 -> 2 | BJ14: -2 | BK14: =SUMPRODUCT(($B$5:$F$14=AT14)*($CK$5:$CK$14))+'J01'!BK14 -> 0 | BL14: =SUMPRODUCT(($B$5:$F$14=AT14)*($CL$5:$CL$14))+'J01'!BL14 -> 0 | BM14: =SUMPRODUCT(($B$5:$F$14=AT14)*($CM$5:$CM$14))+'J01'!BM14 -> 1 | BN14: =SUMPRODUCT(($I$5:$M$14=AT14)*($CN$5:$CN$14))+'J01'!BN14 -> 0 | BO14: =SUMPRODUCT(($I$5:$M$14=AT14)*($CO$5:$CO$14))+'J01'!BO14 -> 0 | BP14: =SUMPRODUCT(($I$5:$M$14=AT14)*($CP$5:$CP$14))+'J01'!BP14 -> 1 | BQ14: -0.02 | BR14: =BQ14+0.0000005 -> -0.0199995 | BS14: 0 | BT14: 0 | BU14: 0 | BV14: 0 | BW14: 0 | BX14: 0 | BY14: 0 | BZ14: 0 | CA14: FALSE | CB14: FALSE | CC14: FALSE | CD14: FALSE | CE14: FALSE | CF14: FALSE | CG14: 0 | CH14: 0 | CI14: 0 | CJ14: 0 | CK14: FALSE | CL14: FALSE | CM14: FALSE | CN14: FALSE | CO14: FALSE | CP14: FALSE | CQ14: USB | CR14: 999.99 | CS14: 10 | CT14: AUSAF
V15: AUSBK | AA15: -6 | AB15: q | AC15: 11 | AD15: 1 | AE15: 2 | AF15: 0 | AG15: 1 | AH15: 1 | AI15: 3 | AJ15: 5 | AK15: -2 | AL15: 0 | AM15: 1 | AN15: 0 | AO15: 0 | AP15: 0 | AQ15: 1 | AR15: 11 | AS15: 9 | AT15: ='J01'!AT15:AX15 -> JSOA | AY15: 9 | AZ15: ='J01'!AY15-AY15 -> 2 | BA15: =IF(AY15>'J01'!AY15,'J01'!$BA$20,IF(AY15='J01'!AY15,'J01'!$AZ$20,IF(AY15<'J01'!AY15,'J01'!$AY$20))) -> p | BB15: 9 | BC15: =SUMPRODUCT(($B$5:$F$14=AT15)*($BW$5:$BW$14))+SUMPRODUCT(($I$5:$M$14=AT15)*($BX$5:$BX$14))+'J01'!BC15 -> 1 | BD15: =SUMPRODUCT(($B$5:$F$14=AT15)*($BY$5:$BY$14))+SUMPRODUCT(($I$5:$M$14=AT15)*($BZ$5:$BZ$14))+'J01'!BD15 -> 2 | BE15: =SUMPRODUCT(($B$5:$F$14=AT15)*($CA$5:$CA$14))+SUMPRODUCT(($I$5:$M$14=AT15)*($CB$5:$CB$14))+'J01'!BE15 -> 0 | BF15: =SUMPRODUCT(($B$5:$F$14=AT15)*($CC$5:$CC$14))+SUMPRODUCT(($I$5:$M$14=AT15)*($CD$5:$CD$14))+'J01'!BF15 -> 1 | BG15: =SUMPRODUCT(($B$5:$F$14=AT15)*($CE$5:$CE$14))+SUMPRODUCT(($I$5:$M$14=AT15)*($CF$5:$CF$14))+'J01'!BG15 -> 1 | BH15: =SUMPRODUCT(($B$5:$F$14=AT15)*($CG$5:$CG$14))+SUMPRODUCT(($I$5:$M$14=AT15)*($CH$5:$CH$14))+'J01'!BH15 -> 1 | BI15: =SUMPRODUCT(($B$5:$F$14=AT15)*($CI$5:$CI$14))+SUMPRODUCT(($I$5:$M$14=AT15)*($CJ$5:$CJ$14))+'J01'!BI15 -> 2 | BJ15: -1 | BK15: =SUMPRODUCT(($B$5:$F$14=AT15)*($CK$5:$CK$14))+'J01'!BK15 -> 0 | BL15: =SUMPRODUCT(($B$5:$F$14=AT15)*($CL$5:$CL$14))+'J01'!BL15 -> 0 | BM15: =SUMPRODUCT(($B$5:$F$14=AT15)*($CM$5:$CM$14))+'J01'!BM15 -> 1 | BN15: =SUMPRODUCT(($I$5:$M$14=AT15)*($CN$5:$CN$14))+'J01'!BN15 -> 0 | BO15: =SUMPRODUCT(($I$5:$M$14=AT15)*($CO$5:$CO$14))+'J01'!BO15 -> 1 | BP15: =SUMPRODUCT(($I$5:$M$14=AT15)*($CP$5:$CP$14))+'J01'!BP15 -> 0 | BQ15: 999.991 | BR15: =BQ15+0.0000004 -> 999.9910004 | CQ15: AUSBK | CR15: 999.983 | CS15: 11 | CT15: JSOA
V16: AUSA | AA16: -5 | AB16: q | AC16: 12 | AD16: 1 | AE16: 2 | AF16: 0 | AG16: 1 | AH16: 1 | AI16: 1 | AJ16: 3 | AK16: -2 | AL16: 0 | AM16: 1 | AN16: 0 | AO16: 0 | AP16: 0 | AQ16: 1 | AR16: 12 | AS16: 5 | AT16: ='J01'!AT16:AX16 -> AWSOM | AY16: 4 | AZ16: ='J01'!AY16-AY16 -> -1 | BA16: =IF(AY16>'J01'!AY16,'J01'!$BA$20,IF(AY16='J01'!AY16,'J01'!$AZ$20,IF(AY16<'J01'!AY16,'J01'!$AY$20))) -> q | BB16: 5 | BC16: =SUMPRODUCT(($B$5:$F$14=AT16)*($BW$5:$BW$14))+SUMPRODUCT(($I$5:$M$14=AT16)*($BX$5:$BX$14))+'J01'!BC16 -> 4 | BD16: =SUMPRODUCT(($B$5:$F$14=AT16)*($BY$5:$BY$14))+SUMPRODUCT(($I$5:$M$14=AT16)*($BZ$5:$BZ$14))+'J01'!BD16 -> 2 | BE16: =SUMPRODUCT(($B$5:$F$14=AT16)*($CA$5:$CA$14))+SUMPRODUCT(($I$5:$M$14=AT16)*($CB$5:$CB$14))+'J01'!BE16 -> 1 | BF16: =SUMPRODUCT(($B$5:$F$14=AT16)*($CC$5:$CC$14))+SUMPRODUCT(($I$5:$M$14=AT16)*($CD$5:$CD$14))+'J01'!BF16 -> 1 | BG16: =SUMPRODUCT(($B$5:$F$14=AT16)*($CE$5:$CE$14))+SUMPRODUCT(($I$5:$M$14=AT16)*($CF$5:$CF$14))+'J01'!BG16 -> 0 | BH16: =SUMPRODUCT(($B$5:$F$14=AT16)*($CG$5:$CG$14))+SUMPRODUCT(($I$5:$M$14=AT16)*($CH$5:$CH$14))+'J01'!BH16 -> 2 | BI16: =SUMPRODUCT(($B$5:$F$14=AT16)*($CI$5:$CI$14))+SUMPRODUCT(($I$5:$M$14=AT16)*($CJ$5:$CJ$14))+'J01'!BI16 -> 1 | BJ16: 1 | BK16: =SUMPRODUCT(($B$5:$F$14=AT16)*($CK$5:$CK$14))+'J01'!BK16 -> 0 | BL16: =SUMPRODUCT(($B$5:$F$14=AT16)*($CL$5:$CL$14))+'J01'!BL16 -> 1 | BM16: =SUMPRODUCT(($B$5:$F$14=AT16)*($CM$5:$CM$14))+'J01'!BM16 -> 0 | BN16: =SUMPRODUCT(($I$5:$M$14=AT16)*($CN$5:$CN$14))+'J01'!BN16 -> 1 | BO16: =SUMPRODUCT(($I$5:$M$14=AT16)*($CO$5:$CO$14))+'J01'!BO16 -> 0 | BP16: =SUMPRODUCT(($I$5:$M$14=AT16)*($CP$5:$CP$14))+'J01'!BP16 -> 0 | BQ16: 4000.012 | BR16: =BQ16+0.0000003 -> 4000.012 | CQ16: AUSA | CR16: 999.981 | CS16: 12 | CT16: AWSOM
V17: ESMB | AA17: 0 | AB17: u | AC17: 13 | AD17: 1 | AE17: 2 | AF17: 0 | AG17: 1 | AH17: 1 | AI17: 3 | AJ17: 6 | AK17: -3 | AL17: 0 | AM17: 1 | AN17: 0 | AO17: 0 | AP17: 0 | AQ17: 1 | AR17: 13 | AS17: 2 | AT17: ='J01'!AT17:AX17 -> HSMK | AY17: 2 | AZ17: ='J01'!AY17-AY17 -> 0 | BA17: =IF(AY17>'J01'!AY17,'J01'!$BA$20,IF(AY17='J01'!AY17,'J01'!$AZ$20,IF(AY17<'J01'!AY17,'J01'!$AY$20))) -> u | BB17: 2 | BC17: =SUMPRODUCT(($B$5:$F$14=AT17)*($BW$5:$BW$14))+SUMPRODUCT(($I$5:$M$14=AT17)*($BX$5:$BX$14))+'J01'!BC17 -> 4 | BD17: =SUMPRODUCT(($B$5:$F$14=AT17)*($BY$5:$BY$14))+SUMPRODUCT(($I$5:$M$14=AT17)*($BZ$5:$BZ$14))+'J01'!BD17 -> 2 | BE17: =SUMPRODUCT(($B$5:$F$14=AT17)*($CA$5:$CA$14))+SUMPRODUCT(($I$5:$M$14=AT17)*($CB$5:$CB$14))+'J01'!BE17 -> 1 | BF17: =SUMPRODUCT(($B$5:$F$14=AT17)*($CC$5:$CC$14))+SUMPRODUCT(($I$5:$M$14=AT17)*($CD$5:$CD$14))+'J01'!BF17 -> 1 | BG17: =SUMPRODUCT(($B$5:$F$14=AT17)*($CE$5:$CE$14))+SUMPRODUCT(($I$5:$M$14=AT17)*($CF$5:$CF$14))+'J01'!BG17 -> 0 | BH17: =SUMPRODUCT(($B$5:$F$14=AT17)*($CG$5:$CG$14))+SUMPRODUCT(($I$5:$M$14=AT17)*($CH$5:$CH$14))+'J01'!BH17 -> 5 | BI17: =SUMPRODUCT(($B$5:$F$14=AT17)*($CI$5:$CI$14))+SUMPRODUCT(($I$5:$M$14=AT17)*($CJ$5:$CJ$14))+'J01'!BI17 -> 2 | BJ17: 3 | BK17: =SUMPRODUCT(($B$5:$F$14=AT17)*($CK$5:$CK$14))+'J01'!BK17 -> 1 | BL17: =SUMPRODUCT(($B$5:$F$14=AT17)*($CL$5:$CL$14))+'J01'!BL17 -> 0 | BM17: =SUMPRODUCT(($B$5:$F$14=AT17)*($CM$5:$CM$14))+'J01'!BM17 -> 0 | BN17: =SUMPRODUCT(($I$5:$M$14=AT17)*($CN$5:$CN$14))+'J01'!BN17 -> 0 | BO17: =SUMPRODUCT(($I$5:$M$14=AT17)*($CO$5:$CO$14))+'J01'!BO17 -> 1 | BP17: =SUMPRODUCT(($I$5:$M$14=AT17)*($CP$5:$CP$14))+'J01'!BP17 -> 0 | BQ17: 4000.035 | BR17: =BQ17+0.0000002 -> 4000.035 | CQ17: ESMB | CR17: 999.973 | CS17: 13 | CT17: HSMK
V18: AUSAF | AA18: -3 | AB18: q | AC18: 14 | AD18: 0 | AE18: 2 | AF18: 0 | AG18: 0 | AH18: 2 | AI18: 0 | AJ18: 2 | AK18: -2 | AL18: 0 | AM18: 0 | AN18: 1 | AO18: 0 | AP18: 0 | AQ18: 1 | AR18: 14 | AS18: 13 | AT18: ='J01'!AT18:AX18 -> ESMB | AY18: 13 | AZ18: ='J01'!AY18-AY18 -> 0 | BA18: =IF(AY18>'J01'!AY18,'J01'!$BA$20,IF(AY18='J01'!AY18,'J01'!$AZ$20,IF(AY18<'J01'!AY18,'J01'!$AY$20))) -> u | BB18: 13 | BC18: =SUMPRODUCT(($B$5:$F$14=AT18)*($BW$5:$BW$14))+SUMPRODUCT(($I$5:$M$14=AT18)*($BX$5:$BX$14))+'J01'!BC18 -> 1 | BD18: =SUMPRODUCT(($B$5:$F$14=AT18)*($BY$5:$BY$14))+SUMPRODUCT(($I$5:$M$14=AT18)*($BZ$5:$BZ$14))+'J01'!BD18 -> 2 | BE18: =SUMPRODUCT(($B$5:$F$14=AT18)*($CA$5:$CA$14))+SUMPRODUCT(($I$5:$M$14=AT18)*($CB$5:$CB$14))+'J01'!BE18 -> 0 | BF18: =SUMPRODUCT(($B$5:$F$14=AT18)*($CC$5:$CC$14))+SUMPRODUCT(($I$5:$M$14=AT18)*($CD$5:$CD$14))+'J01'!BF18 -> 1 | BG18: =SUMPRODUCT(($B$5:$F$14=AT18)*($CE$5:$CE$14))+SUMPRODUCT(($I$5:$M$14=AT18)*($CF$5:$CF$14))+'J01'!BG18 -> 1 | BH18: =SUMPRODUCT(($B$5:$F$14=AT18)*($CG$5:$CG$14))+SUMPRODUCT(($I$5:$M$14=AT18)*($CH$5:$CH$14))+'J01'!BH18 -> 3 | BI18: =SUMPRODUCT(($B$5:$F$14=AT18)*($CI$5:$CI$14))+SUMPRODUCT(($I$5:$M$14=AT18)*($CJ$5:$CJ$14))+'J01'!BI18 -> 6 | BJ18: -3 | BK18: =SUMPRODUCT(($B$5:$F$14=AT18)*($CK$5:$CK$14))+'J01'!BK18 -> 0 | BL18: =SUMPRODUCT(($B$5:$F$14=AT18)*($CL$5:$CL$14))+'J01'!BL18 -> 1 | BM18: =SUMPRODUCT(($B$5:$F$14=AT18)*($CM$5:$CM$14))+'J01'!BM18 -> 0 | BN18: =SUMPRODUCT(($I$5:$M$14=AT18)*($CN$5:$CN$14))+'J01'!BN18 -> 0 | BO18: =SUMPRODUCT(($I$5:$M$14=AT18)*($CO$5:$CO$14))+'J01'!BO18 -> 0 | BP18: =SUMPRODUCT(($I$5:$M$14=AT18)*($CP$5:$CP$14))+'J01'!BP18 -> 1 | BQ18: 999.973 | BR18: =BQ18+0.0000001 -> 999.9730001 | CQ18: AUSAF | CR18: -0.02 | CS18: 14 | CT18: ESMB
AO19: Buts/Journée | AY19: p | AZ19: u | BA19: q
AO20: =SUM(G5:H14) -> 14 | AY20: p | AZ20: u | BA20: q
AO22: Total Buts du Championnat
AO24: =AO20+'J01'!AO24:AP25 -> 31
AO26: Moyenne générale
AO28: =IF(AE5=0,"",SUM(AI5:AI24)/SUM(AE5:AE24)*2) -> 2.214285714

Sheet J03
A1: ='J01'!A1:C2 -> Nom du Championnat | I1: ='J01'!H1:K2 -> 2017-2018 | O1: JOURNEE 03 | V1: CLASSEMENT | AT1: CLASSEMENT | BS1: Domicile | BT1: Extérieur | BU1: Domicile | BV1: Extérieur | BW1: Domicile | BX1: Extérieur | BY1: Domicile | BZ1: Extérieur | CA1: Domicile | CB1: Extérieur | CC1: Domicile | CD1: Extérieur | CE1: Domicile | CF1: Extérieur | CG1: Domicile | CH1: Extérieur | CI1: Domicile | CJ1: Extérieur
A3: P | B3: Equipes | G3: Buts | H3: Buts | I3: Equipes | N3: P | O3: Dates | S3: Heure | V3: Equipes | AA3: Evolution | AC3: Place | AD3: Pts | AE3: J | AF3: G | AG3: N | AH3: P | AI3: B + | AJ3: B - | AK3: Diff. | AL3: Domicile | AO3: Extérieur | AT3: Equipes | AY3: R | AZ3: Evolution | BB3: R | BC3: Pts | BD3: J | BE3: G | BF3: N | BG3: P | BH3: B + | BI3: B - | BJ3: Diff. | BK3: Domicile | BN3: Extérieur | CK3: Domicile | CN3: Extérieur
AL4: G | AM4: N | AN4: P | AO4: G | AP4: N | AQ4: P | AS4: R | BK4: G | BL4: N | BM4: P | BN4: G | BO4: N | BP4: P | BQ4: % | BR4: % | BS4: P | BT4: P | BU4: Pts | BV4: Pts | BW4: T Pt | BX4: T Pt | BY4: J | BZ4: J | CA4: G | CB4: G | CC4: N | CD4: N | CE4: P | CF4: P | CG4: B + | CH4: B + | CI4: B - | CJ4: B - | CK4: G | CL4: N | CM4: P | CN4: G | CO4: N | CP4: P | CQ4: Equipes | CR4: % | CS4: R | CT4: Equipes
B5: CUSL | G5: 1 | H5: 2 | I5: CJBF | V5: =VLOOKUP(AR5,$AS$5:$AX$18,2,0) -> ASUD | AA5: =VLOOKUP(V5,$AT$5:$BP$18,7,0) -> 0 | AB5: =VLOOKUP(V5,$AT$5:$BP$18,8,0) -> u | AC5: 1 | AD5: =VLOOKUP(V5,$AT$5:$BP$18,10,0) -> 7 | AE5: =VLOOKUP(V5,$AT$5:$BP$18,11,0) -> 3 | AF5: =VLOOKUP(V5,$AT$5:$BP$18,12,0) -> 2 | AG5: =VLOOKUP(V5,$AT$5:$BP$18,13,0) -> 1 | AH5: =VLOOKUP(V5,$AT$5:$BP$18,14,0) -> 0 | AI5: =VLOOKUP(V5,$AT$5:$BP$18,15,0) -> 9 | AJ5: =VLOOKUP(V5,$AT$5:$BP$18,16,0) -> 3 | AK5: =VLOOKUP(V5,$AT$5:$BP$18,17,0) -> 6 | AL5: =VLOOKUP(V5,$AT$5:$BP$18,18,0) -> 1 | AM5: =VLOOKUP(V5,$AT$5:$BP$18,19,0) -> 0 | AN5: =VLOOKUP(V5,$AT$5:$BP$18,20,0) -> 0 | AO5: =VLOOKUP(V5,$AT$5:$BP$18,21,0) -> 1 | AP5: =VLOOKUP(V5,$AT$5:$BP$18,22,0) -> 1 | AQ5: =VLOOKUP(V5,$AT$5:$BP$18,23,0) -> 0 | AR5: 1 | AS5: =BB5 -> 13 | AT5: ='J01'!AT5:AX5 -> AUSBK | AY5: =RANK(BQ5,$BQ$5:$BQ$18) -> 13 | AZ5: ='J02'!AY5-AY5 -> -2 | BA5: =IF(AY5>'J02'!AY5,'J02'!$BA$20,IF(AY5='J02'!AY5,'J02'!$AZ$20,IF(AY5<'J02'!AY5,'J02'!$AY$20))) -> q | BB5: =RANK(BR5,$BR$5:$BR$18) -> 13 | BC5: =SUMPRODUCT(($B$5:$F$14=AT5)*($BW$5:$BW$14))+SUMPRODUCT(($I$5:$M$14=AT5)*($BX$5:$BX$14))+'J02'!BC5 -> 2 | BD5: =SUMPRODUCT(($B$5:$F$14=AT5)*($BY$5:$BY$14))+SUMPRODUCT(($I$5:$M$14=AT5)*($BZ$5:$BZ$14))+'J02'!BD5 -> 3 | BE5: =SUMPRODUCT(($B$5:$F$14=AT5)*($CA$5:$CA$14))+SUMPRODUCT(($I$5:$M$14=AT5)*($CB$5:$CB$14))+'J02'!BE5 -> 0 | BF5: =SUMPRODUCT(($B$5:$F$14=AT5)*($CC$5:$CC$14))+SUMPRODUCT(($I$5:$M$14=AT5)*($CD$5:$CD$14))+'J02'!BF5 -> 2 | BG5: =SUMPRODUCT(($B$5:$F$14=AT5)*($CE$5:$CE$14))+SUMPRODUCT(($I$5:$M$14=AT5)*($CF$5:$CF$14))+'J02'!BG5 -> 1 | BH5: =SUMPRODUCT(($B$5:$F$14=AT5)*($CG$5:$CG$14))+SUMPRODUCT(($I$5:$M$14=AT5)*($CH$5:$CH$14))+'J02'!BH5 -> 5 | BI5: =SUMPRODUCT(($B$5:$F$14=AT5)*($CI$5:$CI$14))+SUMPRODUCT(($I$5:$M$14=AT5)*($CJ$5:$CJ$14))+'J02'!BI5 -> 7 | BJ5: =BH5-BI5 -> -2 | BK5: =SUMPRODUCT(($B$5:$F$14=AT5)*($CK$5:$CK$14))+'J02'!BK5 -> 0 | BL5: =SUMPRODUCT(($B$5:$F$14=AT5)*($CL$5:$CL$14))+'J02'!BL5 -> 2 | BM5: =SUMPRODUCT(($B$5:$F$14=AT5)*($CM$5:$CM$14))+'J02'!BM5 -> 0 | BN5: =SUMPRODUCT(($I$5:$M$14=AT5)*($CN$5:$CN$14))+'J02'!BN5 -> 0 | BO5: =SUMPRODUCT(($I$5:$M$14=AT5)*($CO$5:$CO$14))+'J02'!BO5 -> 0 | BP5: =SUMPRODUCT(($I$5:$M$14=AT5)*($CP$5:$CP$14))+'J02'!BP5 -> 1 | BQ5: =SUM(BC5*1000+(BJ5)/100+(BH5)/1000) -> 1999.985 | BR5: =BQ5+0.0000014 -> 1999.985001 | BS5: =A5 -> 0 | BT5: =N5 -> 0 | BU5: =IF(G5="",0,IF(G5>H5,3,IF(G5=H5,1,IF(G5<H5,0)))) -> 0 | BV5: =IF(H5="",0,IF(H5>G5,3,IF(H5=G5,1,IF(H5<G5,0)))) -> 3 | BW5: =BU5-BS5 -> 0 | BX5: =BV5-BT5 -> 3 | BY5: =IF(G5="",0,1) -> 1 | BZ5: =IF(H5="",0,1) -> 1 | CA5: =IF(G5<>"",IF(G5>H5,1)) -> FALSE | CB5: =IF(H5<>"",IF(H5>G5,1)) -> 1 | CC5: =IF(G5<>"",IF(G5=H5,1)) -> FALSE | CD5: =IF(H5<>"",IF(H5=G5,1)) -> FALSE | CE5: =IF(G5<>"",IF(G5<H5,1)) -> 1 | CF5: =IF(H5<>"",IF(H5<G5,1)) -> FALSE | CG5: =G5 -> 1 | CH5: =H5 -> 2 | CI5: =H5 -> 2 | CJ5: =G5 -> 1 | CK5: =IF(G5<>"",IF(G5>H5,1)) -> FALSE | CL5: =IF(G5<>"",IF(G5=H5,1)) -> FALSE | CM5: =IF(G5<>"",IF(G5<H5,1)) -> 1 | CN5: =IF(H5<>"",IF(H5>G5,1)) -> 1 | CO5: =IF(H5<>"",IF(H5=G5,1)) -> FALSE | CP5: =IF(H5<>"",IF(H5<G5,1)) -> FALSE | CQ5: =VLOOKUP(AR5,$AS$5:$AX$18,2,0) -> ASUD | CR5: =VLOOKUP(CQ5,$AT$5:$BQ$18,24,0) -> 7000.069 | CS5: =RANK(CR5,$CR$5:$CR$18) -> 1 | CT5: =AT5 -> AUSBK
B6: AUSBK | G6: 2 | H6: 2 | I6: ASUD | V6: CJBF | AA6: 1 | AB6: p | AC6: =IF(CR6=CR5,CS5,CS6) -> 2 | AD6: 7 | AE6: 3 | AF6: 2 | AG6: 1 | AH6: 0 | AI6: 5 | AJ6: 2 | AK6: 3 | AL6: 1 | AM6: 0 | AN6: =VLOOKUP(V6,$AT$5:$BP$18,20,0) -> 0 | AO6: 1 | AP6: =VLOOKUP(V6,$AT$5:$BP$18,22,0) -> 1 | AQ6: 0 | AR6: 2 | AS6: =BB6 -> 12 | AT6: ='J01'!AT6:AX6 -> CUSL | AY6: 12 | AZ6: ='J02'!AY6-AY6 -> -4 | BA6: =IF(AY6>'J02'!AY6,'J02'!$BA$20,IF(AY6='J02'!AY6,'J02'!$AZ$20,IF(AY6<'J02'!AY6,'J02'!$AY$20))) -> q | BB6: =RANK(BR6,$BR$5:$BR$18) -> 12 | BC6: =SUMPRODUCT(($B$5:$F$14=AT6)*($BW$5:$BW$14))+SUMPRODUCT(($I$5:$M$14=AT6)*($BX$5:$BX$14))+'J02'!BC6 -> 2 | BD6: =SUMPRODUCT(($B$5:$F$14=AT6)*($BY$5:$BY$14))+SUMPRODUCT(($I$5:$M$14=AT6)*($BZ$5:$BZ$14))+'J02'!BD6 -> 3 | BE6: =SUMPRODUCT(($B$5:$F$14=AT6)*($CA$5:$CA$14))+SUMPRODUCT(($I$5:$M$14=AT6)*($CB$5:$CB$14))+'J02'!BE6 -> 0 | BF6: =SUMPRODUCT(($B$5:$F$14=AT6)*($CC$5:$CC$14))+SUMPRODUCT(($I$5:$M$14=AT6)*($CD$5:$CD$14))+'J02'!BF6 -> 2 | BG6: =SUMPRODUCT(($B$5:$F$14=AT6)*($CE$5:$CE$14))+SUMPRODUCT(($I$5:$M$14=AT6)*($CF$5:$CF$14))+'J02'!BG6 -> 1 | BH6: =SUMPRODUCT(($B$5:$F$14=AT6)*($CG$5:$CG$14))+SUMPRODUCT(($I$5:$M$14=AT6)*($CH$5:$CH$14))+'J02'!BH6 -> 3 | BI6: =SUMPRODUCT(($B$5:$F$14=AT6)*($CI$5:$CI$14))+SUMPRODUCT(($I$5:$M$14=AT6)*($CJ$5:$CJ$14))+'J02'!BI6 -> 4 | BJ6: =BH6-BI6 -> -1 | BK6: =SUMPRODUCT(($B$5:$F$14=AT6)*($CK$5:$CK$14))+'J02'!BK6 -> 0 | BL6: =SUMPRODUCT(($B$5:$F$14=AT6)*($CL$5:$CL$14))+'J02'!BL6 -> 1 | BM6: =SUMPRODUCT(($B$5:$F$14=AT6)*($CM$5:$CM$14))+'J02'!BM6 -> 1 | BN6: =SUMPRODUCT(($I$5:$M$14=AT6)*($CN$5:$CN$14))+'J02'!BN6 -> 0 | BO6: =SUMPRODUCT(($I$5:$M$14=AT6)*($CO$5:$CO$14))+'J02'!BO6 -> 1 | BP6: =SUMPRODUCT(($I$5:$M$14=AT6)*($CP$5:$CP$14))+'J02'!BP6 -> 0 | BQ6: =SUM(BC6*1000+(BJ6)/100+(BH6)/1000) -> 1999.993 | BR6: =BQ6+0.0000013 -> 1999.993001 | BS6: =A6 -> 0 | BT6: =N6 -> 0 | BU6: =IF(G6="",0,IF(G6>H6,3,IF(G6=H6,1,IF(G6<H6,0)))) -> 1 | BV6: =IF(H6="",0,IF(H6>G6,3,IF(H6=G6,1,IF(H6<G6,0)))) -> 1 | BW6: =BU6-BS6 -> 1 | BX6: =BV6-BT6 -> 1 | BY6: =IF(G6="",0,1) -> 1 | BZ6: =IF(H6="",0,1) -> 1 | CA6: =IF(G6<>"",IF(G6>H6,1)) -> FALSE | CB6: =IF(H6<>"",IF(H6>G6,1)) -> FALSE | CC6: =IF(G6<>"",IF(G6=H6,1)) -> 1 | CD6: =IF(H6<>"",IF(H6=G6,1)) -> 1 | CE6: =IF(G6<>"",IF(G6<H6,1)) -> FALSE | CF6: =IF(H6<>"",IF(H6<G6,1)) -> FALSE | CG6: =G6 -> 2 | CH6: =H6 -> 2 | CI6: =H6 -> 2 | CJ6: =G6 -> 2 | CK6: =IF(G6<>"",IF(G6>H6,1)) -> FALSE | CL6: =IF(G6<>"",IF(G6=H6,1)) -> 1 | CM6: =IF(G6<>"",IF(G6<H6,1)) -> FALSE | CN6: =IF(H6<>"",IF(H6>G6,1)) -> FALSE | CO6: =IF(H6<>"",IF(H6=G6,1)) -> 1 | CP6: =IF(H6<>"",IF(H6<G6,1)) -> FALSE | CQ6: CJBF | CR6: 7000.035 | CS6: 2 | CT6: =AT6 -> CUSL
B7: AUSA | G7: 1 | H7: 0 | I7: USB | V7: AHDOZ | AA7: 3 | AB7: p | AC7: =IF(CR7=CR6,CS6,CS7) -> 3 | AD7: 7 | AE7: 3 | AF7: 2 | AG7: 1 | AH7: 0 | AI7: 3 | AJ7: 0 | AK7: 3 | AL7: 1 | AM7: 1 | AN7: 0 | AO7: 1 | AP7: 0 | AQ7: 0 | AR7: 3 | AS7: 7 | AT7: ='J01'!AT7:AX7 -> AUSA | AY7: 7 | AZ7: ='J02'!AY7-AY7 -> 5 | BA7: =IF(AY7>'J02'!AY7,'J02'!$BA$20,IF(AY7='J02'!AY7,'J02'!$AZ$20,IF(AY7<'J02'!AY7,'J02'!$AY$20))) -> p | BB7: 7 | BC7: =SUMPRODUCT(($B$5:$F$14=AT7)*($BW$5:$BW$14))+SUMPRODUCT(($I$5:$M$14=AT7)*($BX$5:$BX$14))+'J02'!BC7 -> 4 | BD7: =SUMPRODUCT(($B$5:$F$14=AT7)*($BY$5:$BY$14))+SUMPRODUCT(($I$5:$M$14=AT7)*($BZ$5:$BZ$14))+'J02'!BD7 -> 3 | BE7: =SUMPRODUCT(($B$5:$F$14=AT7)*($CA$5:$CA$14))+SUMPRODUCT(($I$5:$M$14=AT7)*($CB$5:$CB$14))+'J02'!BE7 -> 1 | BF7: =SUMPRODUCT(($B$5:$F$14=AT7)*($CC$5:$CC$14))+SUMPRODUCT(($I$5:$M$14=AT7)*($CD$5:$CD$14))+'J02'!BF7 -> 1 | BG7: =SUMPRODUCT(($B$5:$F$14=AT7)*($CE$5:$CE$14))+SUMPRODUCT(($I$5:$M$14=AT7)*($CF$5:$CF$14))+'J02'!BG7 -> 1 | BH7: =SUMPRODUCT(($B$5:$F$14=AT7)*($CG$5:$CG$14))+SUMPRODUCT(($I$5:$M$14=AT7)*($CH$5:$CH$14))+'J02'!BH7 -> 2 | BI7: =SUMPRODUCT(($B$5:$F$14=AT7)*($CI$5:$CI$14))+SUMPRODUCT(($I$5:$M$14=AT7)*($CJ$5:$CJ$14))+'J02'!BI7 -> 3 | BJ7: -1 | BK7: =SUMPRODUCT(($B$5:$F$14=AT7)*($CK$5:$CK$14))+'J02'!BK7 -> 1 | BL7: =SUMPRODUCT(($B$5:$F$14=AT7)*($CL$5:$CL$14))+'J02'!BL7 -> 1 | BM7: =SUMPRODUCT(($B$5:$F$14=AT7)*($CM$5:$CM$14))+'J02'!BM7 -> 0 | BN7: =SUMPRODUCT(($I$5:$M$14=AT7)*($CN$5:$CN$14))+'J02'!BN7 -> 0 | BO7: =SUMPRODUCT(($I$5:$M$14=AT7)*($CO$5:$CO$14))+'J02'!BO7 -> 0 | BP7: =SUMPRODUCT(($I$5:$M$14=AT7)*($CP$5:$CP$14))+'J02'!BP7 -> 1 | BQ7: 3999.992 | BR7: =BQ7+0.0000012 -> 3999.992001 | BS7: 0 | BT7: 0 | BU7: 3 | BV7: 0 | BW7: 3 | BX7: 0 | BY7: 1 | BZ7: 1 | CA7: 1 | CB7: FALSE | CC7: FALSE | CD7: FALSE | CE7: FALSE | CF7: 1 | CG7: 1 | CH7: 0 | CI7: 0 | CJ7: 1 | CK7: 1 | CL7: FALSE | CM7: FALSE | CN7: FALSE | CO7: FALSE | CP7: 1 | CQ7: AHDOZ | CR7: 7000.033 | CS7: 3 | CT7: AUSA
B8: AJAK | G8: 0 | H8: 2 | I8: AUSAF | V8: JSOA | AA8: 5 | AB8: p | AC8: 4 | AD8: 4 | AE8: 3 | AF8: 1 | AG8: 1 | AH8: 1 | AI8: 4 | AJ8: 2 | AK8: 2 | AL8: 0 | AM8: 0 | AN8: 1 | AO8: 1 | AP8: 1 | AQ8: 0 | AR8: 4 | AS8: 2 | AT8: ='J01'!AT8:AX8 -> CJBF | AY8: 2 | AZ8: ='J02'!AY8-AY8 -> 1 | BA8: =IF(AY8>'J02'!AY8,'J02'!$BA$20,IF(AY8='J02'!AY8,'J02'!$AZ$20,IF(AY8<'J02'!AY8,'J02'!$AY$20))) -> p | BB8: 2 | BC8: =SUMPRODUCT(($B$5:$F$14=AT8)*($BW$5:$BW$14))+SUMPRODUCT(($I$5:$M$14=AT8)*($BX$5:$BX$14))+'J02'!BC8 -> 7 | BD8: =SUMPRODUCT(($B$5:$F$14=AT8)*($BY$5:$BY$14))+SUMPRODUCT(($I$5:$M$14=AT8)*($BZ$5:$BZ$14))+'J02'!BD8 -> 3 | BE8: =SUMPRODUCT(($B$5:$F$14=AT8)*($CA$5:$CA$14))+SUMPRODUCT(($I$5:$M$14=AT8)*($CB$5:$CB$14))+'J02'!BE8 -> 2 | BF8: =SUMPRODUCT(($B$5:$F$14=AT8)*($CC$5:$CC$14))+SUMPRODUCT(($I$5:$M$14=AT8)*($CD$5:$CD$14))+'J02'!BF8 -> 1 | BG8: =SUMPRODUCT(($B$5:$F$14=AT8)*($CE$5:$CE$14))+SUMPRODUCT(($I$5:$M$14=AT8)*($CF$5:$CF$14))+'J02'!BG8 -> 0 | BH8: =SUMPRODUCT(($B$5:$F$14=AT8)*($CG$5:$CG$14))+SUMPRODUCT(($I$5:$M$14=AT8)*($CH$5:$CH$14))+'J02'!BH8 -> 5 | BI8: =SUMPRODUCT(($B$5:$F$14=AT8)*($CI$5:$CI$14))+SUMPRODUCT(($I$5:$M$14=AT8)*($CJ$5:$CJ$14))+'J02'!BI8 -> 2 | BJ8: 3 | BK8: =SUMPRODUCT(($B$5:$F$14=AT8)*($CK$5:$CK$14))+'J02'!BK8 -> 1 | BL8: =SUMPRODUCT(($B$5:$F$14=AT8)*($CL$5:$CL$14))+'J02'!BL8 -> 0 | BM8: =SUMPRODUCT(($B$5:$F$14=AT8)*($CM$5:$CM$14))+'J02'!BM8 -> 0 | BN8: =SUMPRODUCT(($I$5:$M$14=AT8)*($CN$5:$CN$14))+'J02'!BN8 -> 1 | BO8: =SUMPRODUCT(($I$5:$M$14=AT8)*($CO$5:$CO$14))+'J02'!BO8 -> 1 | BP8: =SUMPRODUCT(($I$5:$M$14=AT8)*($CP$5:$CP$14))+'J02'!BP8 -> 0 | BQ8: 7000.035 | BR8: =BQ8+0.0000011 -> 7000.035001 | BS8: 0 | BT8: 0 | BU8: 0 | BV8: 3 | BW8: 0 | BX8: 3 | BY8: 1 | BZ8: 1 | CA8: FALSE | CB8: 1 | CC8: FALSE | CD8: FALSE | CE8: 1 | CF8: FALSE | CG8: 0 | CH8: 2 | CI8: 2 | CJ8: 0 | CK8: FALSE | CL8: FALSE | CM8: 1 | CN8: 1 | CO8: FALSE | CP8: FALSE | CQ8: JSOA | CR8: 4000.024 | CS8: 4 | CT8: CJBF
B9: AHDOZ | G9: 2 | H9: 0 | I9: AWSOM | V9: ESMB | AA9: 8 | AB9: p | AC9: 5 | AD9: 4 | AE9: 3 | AF9: 1 | AG9: 1 | AH9: 1 | AI9: 6 | AJ9: 6 | AK9: 0 | AL9: 0 | AM9: 1 | AN9: 0 | AO9: 1 | AP9: 0 | AQ9: 1 | AR9: 5 | AS9: 11 | AT9: ='J01'!AT9:AX9 -> AJAK | AY9: 11 | AZ9: ='J02'!AY9-AY9 -> -4 | BA9: =IF(AY9>'J02'!AY9,'J02'!$BA$20,IF(AY9='J02'!AY9,'J02'!$AZ$20,IF(AY9<'J02'!AY9,'J02'!$AY$20))) -> q | BB9: 11 | BC9: =SUMPRODUCT(($B$5:$F$14=AT9)*($BW$5:$BW$14))+SUMPRODUCT(($I$5:$M$14=AT9)*($BX$5:$BX$14))+'J02'!BC9 -> 3 | BD9: =SUMPRODUCT(($B$5:$F$14=AT9)*($BY$5:$BY$14))+SUMPRODUCT(($I$5:$M$14=AT9)*($BZ$5:$BZ$14))+'J02'!BD9 -> 3 | BE9: =SUMPRODUCT(($B$5:$F$14=AT9)*($CA$5:$CA$14))+SUMPRODUCT(($I$5:$M$14=AT9)*($CB$5:$CB$14))+'J02'!BE9 -> 1 | BF9: =SUMPRODUCT(($B$5:$F$14=AT9)*($CC$5:$CC$14))+SUMPRODUCT(($I$5:$M$14=AT9)*($CD$5:$CD$14))+'J02'!BF9 -> 0 | BG9: =SUMPRODUCT(($B$5:$F$14=AT9)*($CE$5:$CE$14))+SUMPRODUCT(($I$5:$M$14=AT9)*($CF$5:$CF$14))+'J02'!BG9 -> 2 | BH9: =SUMPRODUCT(($B$5:$F$14=AT9)*($CG$5:$CG$14))+SUMPRODUCT(($I$5:$M$14=AT9)*($CH$5:$CH$14))+'J02'!BH9 -> 1 | BI9: =SUMPRODUCT(($B$5:$F$14=AT9)*($CI$5:$CI$14))+SUMPRODUCT(($I$5:$M$14=AT9)*($CJ$5:$CJ$14))+'J02'!BI9 -> 6 | BJ9: -5 | BK9: =SUMPRODUCT(($B$5:$F$14=AT9)*($CK$5:$CK$14))+'J02'!BK9 -> 0 | BL9: =SUMPRODUCT(($B$5:$F$14=AT9)*($CL$5:$CL$14))+'J02'!BL9 -> 0 | BM9: =SUMPRODUCT(($B$5:$F$14=AT9)*($CM$5:$CM$14))+'J02'!BM9 -> 2 | BN9: =SUMPRODUCT(($I$5:$M$14=AT9)*($CN$5:$CN$14))+'J02'!BN9 -> 1 | BO9: =SUMPRODUCT(($I$5:$M$14=AT9)*($CO$5:$CO$14))+'J02'!BO9 -> 0 | BP9: =SUMPRODUCT(($I$5:$M$14=AT9)*($CP$5:$CP$14))+'J02'!BP9 -> 0 | BQ9: 2999.951 | BR9: =BQ9+0.000001 -> 2999.951001 | BS9: 0 | BT9: 0 | BU9: 3 | BV9: 0 | BW9: 3 | BX9: 0 | BY9: 1 | BZ9: 1 | CA9: 1 | CB9: FALSE | CC9: FALSE | CD9: FALSE | CE9: FALSE | CF9: 1 | CG9: 2 | CH9: 0 | CI9: 0 | CJ9: 2 | CK9: 1 | CL9: FALSE | CM9: FALSE | CN9: FALSE | CO9: FALSE | CP9: 1 | CQ9: ESMB | CR9: 4000.006 | CS9: 5 | CT9: AJAK
B10: ALC | G10: 0 | H10: 3 | I10: ESMB | V10: HSMK | AA10: -4 | AB10: q | AC10: 6 | AD10: 4 | AE10: 3 | AF10: 1 | AG10: 1 | AH10: 1 | AI10: 5 | AJ10: 5 | AK10: 0 | AL10: 1 | AM10: 0 | AN10: 1 | AO10: 0 | AP10: 1 | AQ10: 0 | AR10: 6 | AS10: 1 | AT10: ='J01'!AT10:AX10 -> ASUD | AY10: 1 | AZ10: ='J02'!AY10-AY10 -> 0 | BA10: =IF(AY10>'J02'!AY10,'J02'!$BA$20,IF(AY10='J02'!AY10,'J02'!$AZ$20,IF(AY10<'J02'!AY10,'J02'!$AY$20))) -> u | BB10: 1 | BC10: =SUMPRODUCT(($B$5:$F$14=AT10)*($BW$5:$BW$14))+SUMPRODUCT(($I$5:$M$14=AT10)*($BX$5:$BX$14))+'J02'!BC10 -> 7 | BD10: =SUMPRODUCT(($B$5:$F$14=AT10)*($BY$5:$BY$14))+SUMPRODUCT(($I$5:$M$14=AT10)*($BZ$5:$BZ$14))+'J02'!BD10 -> 3 | BE10: =SUMPRODUCT(($B$5:$F$14=AT10)*($CA$5:$CA$14))+SUMPRODUCT(($I$5:$M$14=AT10)*($CB$5:$CB$14))+'J02'!BE10 -> 2 | BF10: =SUMPRODUCT(($B$5:$F$14=AT10)*($CC$5:$CC$14))+SUMPRODUCT(($I$5:$M$14=AT10)*($CD$5:$CD$14))+'J02'!BF10 -> 1 | BG10: =SUMPRODUCT(($B$5:$F$14=AT10)*($CE$5:$CE$14))+SUMPRODUCT(($I$5:$M$14=AT10)*($CF$5:$CF$14))+'J02'!BG10 -> 0 | BH10: =SUMPRODUCT(($B$5:$F$14=AT10)*($CG$5:$CG$14))+SUMPRODUCT(($I$5:$M$14=AT10)*($CH$5:$CH$14))+'J02'!BH10 -> 9 | BI10: =SUMPRODUCT(($B$5:$F$14=AT10)*($CI$5:$CI$14))+SUMPRODUCT(($I$5:$M$14=AT10)*($CJ$5:$CJ$14))+'J02'!BI10 -> 3 | BJ10: 6 | BK10: =SUMPRODUCT(($B$5:$F$14=AT10)*($CK$5:$CK$14))+'J02'!BK10 -> 1 | BL10: =SUMPRODUCT(($B$5:$F$14=AT10)*($CL$5:$CL$14))+'J02'!BL10 -> 0 | BM10: =SUMPRODUCT(($B$5:$F$14=AT10)*($CM$5:$CM$14))+'J02'!BM10 -> 0 | BN10: =SUMPRODUCT(($I$5:$M$14=AT10)*($CN$5:$CN$14))+'J02'!BN10 -> 1 | BO10: =SUMPRODUCT(($I$5:$M$14=AT10)*($CO$5:$CO$14))+'J02'!BO10 -> 1 | BP10: =SUMPRODUCT(($I$5:$M$14=AT10)*($CP$5:$CP$14))+'J02'!BP10 -> 0 | BQ10: 7000.069 | BR10: =BQ10+0.0000009 -> 7000.069001 | BS10: 0 | BT10: 0 | BU10: 0 | BV10: 3 | BW10: 0 | BX10: 3 | BY10: 1 | BZ10: 1 | CA10: FALSE | CB10: 1 | CC10: FALSE | CD10: FALSE | CE10: 1 | CF10: FALSE | CG10: 0 | CH10: 3 | CI10: 3 | CJ10: 0 | CK10: FALSE | CL10: FALSE | CM10: 1 | CN10: 1 | CO10: FALSE | CP10: FALSE | CQ10: HSMK | CR10: 4000.005 | CS10: 6 | CT10: ASUD
B11: HSMK | G11: 0 | H11: 3 | I11: JSOA | V11: AUSA | AA11: 5 | AB11: p | AC11: 7 | AD11: 4 | AE11: 3 | AF11: 1 | AG11: 1 | AH11: 1 | AI11: 2 | AJ11: 3 | AK11: -1 | AL11: 1 | AM11: 1 | AN11: 0 | AO11: 0 | AP11: 0 | AQ11: 1 | AR11: 7 | AS11: 3 | AT11: ='J01'!AT11:AX11 -> AHDOZ | AY11: 3 | AZ11: ='J02'!AY11-AY11 -> 3 | BA11: =IF(AY11>'J02'!AY11,'J02'!$BA$20,IF(AY11='J02'!AY11,'J02'!$AZ$20,IF(AY11<'J02'!AY11,'J02'!$AY$20))) -> p | BB11: 3 | BC11: =SUMPRODUCT(($B$5:$F$14=AT11)*($BW$5:$BW$14))+SUMPRODUCT(($I$5:$M$14=AT11)*($BX$5:$BX$14))+'J02'!BC11 -> 7 | BD11: =SUMPRODUCT(($B$5:$F$14=AT11)*($BY$5:$BY$14))+SUMPRODUCT(($I$5:$M$14=AT11)*($BZ$5:$BZ$14))+'J02'!BD11 -> 3 | BE11: =SUMPRODUCT(($B$5:$F$14=AT11)*($CA$5:$CA$14))+SUMPRODUCT(($I$5:$M$14=AT11)*($CB$5:$CB$14))+'J02'!BE11 -> 2 | BF11: =SUMPRODUCT(($B$5:$F$14=AT11)*($CC$5:$CC$14))+SUMPRODUCT(($I$5:$M$14=AT11)*($CD$5:$CD$14))+'J02'!BF11 -> 1 | BG11: =SUMPRODUCT(($B$5:$F$14=AT11)*($CE$5:$CE$14))+SUMPRODUCT(($I$5:$M$14=AT11)*($CF$5:$CF$14))+'J02'!BG11 -> 0 | BH11: =SUMPRODUCT(($B$5:$F$14=AT11)*($CG$5:$CG$14))+SUMPRODUCT(($I$5:$M$14=AT11)*($CH$5:$CH$14))+'J02'!BH11 -> 3 | BI11: =SUMPRODUCT(($B$5:$F$14=AT11)*($CI$5:$CI$14))+SUMPRODUCT(($I$5:$M$14=AT11)*($CJ$5:$CJ$14))+'J02'!BI11 -> 0 | BJ11: 3 | BK11: =SUMPRODUCT(($B$5:$F$14=AT11)*($CK$5:$CK$14))+'J02'!BK11 -> 1 | BL11: =SUMPRODUCT(($B$5:$F$14=AT11)*($CL$5:$CL$14))+'J02'!BL11 -> 1 | BM11: =SUMPRODUCT(($B$5:$F$14=AT11)*($CM$5:$CM$14))+'J02'!BM11 -> 0 | BN11: =SUMPRODUCT(($I$5:$M$14=AT11)*($CN$5:$CN$14))+'J02'!BN11 -> 1 | BO11: =SUMPRODUCT(($I$5:$M$14=AT11)*($CO$5:$CO$14))+'J02'!BO11 -> 0 | BP11: =SUMPRODUCT(($I$5:$M$14=AT11)*($CP$5:$CP$14))+'J02'!BP11 -> 0 | BQ11: 7000.033 | BR11: =BQ11+0.0000008 -> 7000.033001 | BS11: 0 | BT11: 0 | BU11: 0 | BV11: 3 | BW11: 0 | BX11: 3 | BY11: 1 | BZ11: 1 | CA11: FALSE | CB11: 1 | CC11: FALSE | CD11: FALSE | CE11: 1 | CF11: FALSE | CG11: 0 | CH11: 3 | CI11: 3 | CJ11: 0 | CK11: FALSE | CL11: FALSE | CM11: 1 | CN11: 1 | CO11: FALSE | CP11: FALSE | CQ11: AUSA | CR11: 3999.992 | CS11: 7 | CT11: AHDOZ
V12: AWSOM | AA12: -3 | AB12: q | AC12: 7 | AD12: 4 | AE12: 3 | AF12: 1 | AG12: 1 | AH12: 1 | AI12: 2 | AJ12: 3 | AK12: -1 | AL12: 0 | AM12: 1 | AN12: 0 | AO12: 1 | AP12: 0 | AQ12: 1 | AR12: 8 | AS12: 14 | AT12: ='J01'!AT12:AX12 -> USB | AY12: 14 | AZ12: ='J02'!AY12-AY12 -> -4 | BA12: =IF(AY12>'J02'!AY12,'J02'!$BA$20,IF(AY12='J02'!AY12,'J02'!$AZ$20,IF(AY12<'J02'!AY12,'J02'!$AY$20))) -> q | BB12: 14 | BC12: =SUMPRODUCT(($B$5:$F$14=AT12)*($BW$5:$BW$14))+SUMPRODUCT(($I$5:$M$14=AT12)*($BX$5:$BX$14))+'J02'!BC12 -> 1 | BD12: =SUMPRODUCT(($B$5:$F$14=AT12)*($BY$5:$BY$14))+SUMPRODUCT(($I$5:$M$14=AT12)*($BZ$5:$BZ$14))+'J02'!BD12 -> 3 | BE12: =SUMPRODUCT(($B$5:$F$14=AT12)*($CA$5:$CA$14))+SUMPRODUCT(($I$5:$M$14=AT12)*($CB$5:$CB$14))+'J02'!BE12 -> 0 | BF12: =SUMPRODUCT(($B$5:$F$14=AT12)*($CC$5:$CC$14))+SUMPRODUCT(($I$5:$M$14=AT12)*($CD$5:$CD$14))+'J02'!BF12 -> 1 | BG12: =SUMPRODUCT(($B$5:$F$14=AT12)*($CE$5:$CE$14))+SUMPRODUCT(($I$5:$M$14=AT12)*($CF$5:$CF$14))+'J02'!BG12 -> 2 | BH12: =SUMPRODUCT(($B$5:$F$14=AT12)*($CG$5:$CG$14))+SUMPRODUCT(($I$5:$M$14=AT12)*($CH$5:$CH$14))+'J02'!BH12 -> 0 | BI12: =SUMPRODUCT(($B$5:$F$14=AT12)*($CI$5:$CI$14))+SUMPRODUCT(($I$5:$M$14=AT12)*($CJ$5:$CJ$14))+'J02'!BI12 -> 2 | BJ12: -2 | BK12: =SUMPRODUCT(($B$5:$F$14=AT12)*($CK$5:$CK$14))+'J02'!BK12 -> 0 | BL12: =SUMPRODUCT(($B$5:$F$14=AT12)*($CL$5:$CL$14))+'J02'!BL12 -> 0 | BM12: =SUMPRODUCT(($B$5:$F$14=AT12)*($CM$5:$CM$14))+'J02'!BM12 -> 1 | BN12: =SUMPRODUCT(($I$5:$M$14=AT12)*($CN$5:$CN$14))+'J02'!BN12 -> 0 | BO12: =SUMPRODUCT(($I$5:$M$14=AT12)*($CO$5:$CO$14))+'J02'!BO12 -> 1 | BP12: =SUMPRODUCT(($I$5:$M$14=AT12)*($CP$5:$CP$14))+'J02'!BP12 -> 1 | BQ12: 999.98 | BR12: =BQ12+0.0000007 -> 999.9800007 | BS12: 0 | BT12: 0 | BU12: 0 | BV12: 0 | BW12: 0 | BX12: 0 | BY12: 0 | BZ12: 0 | CA12: FALSE | CB12: FALSE | CC12: FALSE | CD12: FALSE | CE12: FALSE | CF12: FALSE | CG12: 0 | CH12: 0 | CI12: 0 | CJ12: 0 | CK12: FALSE | CL12: FALSE | CM12: FALSE | CN12: FALSE | CO12: FALSE | CP12: FALSE | CQ12: AWSOM | CR12: 3999.992 | CS12: 7 | CT12: USB
V13: ALC | AA13: -5 | AB13: q | AC13: 9 | AD13: 4 | AE13: 3 | AF13: 1 | AG13: 1 | AH13: 1 | AI13: 2 | AJ13: 4 | AK13: -2 | AL13: 1 | AM13: 0 | AN13: 1 | AO13: 0 | AP13: 1 | AQ13: 0 | AR13: 9 | AS13: 9 | AT13: ='J01'!AT13:AX13 -> ALC | AY13: 9 | AZ13: ='J02'!AY13-AY13 -> -5 | BA13: =IF(AY13>'J02'!AY13,'J02'!$BA$20,IF(AY13='J02'!AY13,'J02'!$AZ$20,IF(AY13<'J02'!AY13,'J02'!$AY$20))) -> q | BB13: 9 | BC13: =SUMPRODUCT(($B$5:$F$14=AT13)*($BW$5:$BW$14))+SUMPRODUCT(($I$5:$M$14=AT13)*($BX$5:$BX$14))+'J02'!BC13 -> 4 | BD13: =SUMPRODUCT(($B$5:$F$14=AT13)*($BY$5:$BY$14))+SUMPRODUCT(($I$5:$M$14=AT13)*($BZ$5:$BZ$14))+'J02'!BD13 -> 3 | BE13: =SUMPRODUCT(($B$5:$F$14=AT13)*($CA$5:$CA$14))+SUMPRODUCT(($I$5:$M$14=AT13)*($CB$5:$CB$14))+'J02'!BE13 -> 1 | BF13: =SUMPRODUCT(($B$5:$F$14=AT13)*($CC$5:$CC$14))+SUMPRODUCT(($I$5:$M$14=AT13)*($CD$5:$CD$14))+'J02'!BF13 -> 1 | BG13: =SUMPRODUCT(($B$5:$F$14=AT13)*($CE$5:$CE$14))+SUMPRODUCT(($I$5:$M$14=AT13)*($CF$5:$CF$14))+'J02'!BG13 -> 1 | BH13: =SUMPRODUCT(($B$5:$F$14=AT13)*($CG$5:$CG$14))+SUMPRODUCT(($I$5:$M$14=AT13)*($CH$5:$CH$14))+'J02'!BH13 -> 2 | BI13: =SUMPRODUCT(($B$5:$F$14=AT13)*($CI$5:$CI$14))+SUMPRODUCT(($I$5:$M$14=AT13)*($CJ$5:$CJ$14))+'J02'!BI13 -> 4 | BJ13: -2 | BK13: =SUMPRODUCT(($B$5:$F$14=AT13)*($CK$5:$CK$14))+'J02'!BK13 -> 1 | BL13: =SUMPRODUCT(($B$5:$F$14=AT13)*($CL$5:$CL$14))+'J02'!BL13 -> 0 | BM13: =SUMPRODUCT(($B$5:$F$14=AT13)*($CM$5:$CM$14))+'J02'!BM13 -> 1 | BN13: =SUMPRODUCT(($I$5:$M$14=AT13)*($CN$5:$CN$14))+'J02'!BN13 -> 0 | BO13: =SUMPRODUCT(($I$5:$M$14=AT13)*($CO$5:$CO$14))+'J02'!BO13 -> 1 | BP13: =SUMPRODUCT(($I$5:$M$14=AT13)*($CP$5:$CP$14))+'J02'!BP13 -> 0 | BQ13: 3999.982 | BR13: =BQ13+0.0000006 -> 3999.982001 | BS13: 0 | BT13: 0 | BU13: 0 | BV13: 0 | BW13: 0 | BX13: 0 | BY13: 0 | BZ13: 0 | CA13: FALSE | CB13: FALSE | CC13: FALSE | CD13: FALSE | CE13: FALSE | CF13: FALSE | CG13: 0 | CH13: 0 | CI13: 0 | CJ13: 0 | CK13: FALSE | CL13: FALSE | CM13: FALSE | CN13: FALSE | CO13: FALSE | CP13: FALSE | CQ13: ALC | CR13: 3999.982 | CS13: 9 | CT13: ALC
V14: AUSAF | AA14: 4 | AB14: p | AC14: 10 | AD14: 3 | AE14: 3 | AF14: 1 | AG14: 0 | AH14: 2 | AI14: 2 | AJ14: 2 | AK14: 0 | AL14: 0 | AM14: 0 | AN14: 1 | AO14: 1 | AP14: 0 | AQ14: 1 | AR14: 10 | AS14: 10 | AT14: ='J01'!AT14:AX14 -> AUSAF | AY14: 10 | AZ14: ='J02'!AY14-AY14 -> 4 | BA14: =IF(AY14>'J02'!AY14,'J02'!$BA$20,IF(AY14='J02'!AY14,'J02'!$AZ$20,IF(AY14<'J02'!AY14,'J02'!$AY$20))) -> p | BB14: 10 | BC14: =SUMPRODUCT(($B$5:$F$14=AT14)*($BW$5:$BW$14))+SUMPRODUCT(($I$5:$M$14=AT14)*($BX$5:$BX$14))+'J02'!BC14 -> 3 | BD14: =SUMPRODUCT(($B$5:$F$14=AT14)*($BY$5:$BY$14))+SUMPRODUCT(($I$5:$M$14=AT14)*($BZ$5:$BZ$14))+'J02'!BD14 -> 3 | BE14: =SUMPRODUCT(($B$5:$F$14=AT14)*($CA$5:$CA$14))+SUMPRODUCT(($I$5:$M$14=AT14)*($CB$5:$CB$14))+'J02'!BE14 -> 1 | BF14: =SUMPRODUCT(($B$5:$F$14=AT14)*($CC$5:$CC$14))+SUMPRODUCT(($I$5:$M$14=AT14)*($CD$5:$CD$14))+'J02'!BF14 -> 0 | BG14: =SUMPRODUCT(($B$5:$F$14=AT14)*($CE$5:$CE$14))+SUMPRODUCT(($I$5:$M$14=AT14)*($CF$5:$CF$14))+'J02'!BG14 -> 2 | BH14: =SUMPRODUCT(($B$5:$F$14=AT14)*($CG$5:$CG$14))+SUMPRODUCT(($I$5:$M$14=AT14)*($CH$5:$CH$14))+'J02'!BH14 -> 2 | BI14: =SUMPRODUCT(($B$5:$F$14=AT14)*($CI$5:$CI$14))+SUMPRODUCT(($I$5:$M$14=AT14)*($CJ$5:$CJ$14))+'J02'!BI14 -> 2 | BJ14: 0 | BK14: =SUMPRODUCT(($B$5:$F$14=AT14)*($CK$5:$CK$14))+'J02'!BK14 -> 0 | BL14: =SUMPRODUCT(($B$5:$F$14=AT14)*($CL$5:$CL$14))+'J02'!BL14 -> 0 | BM14: =SUMPRODUCT(($B$5:$F$14=AT14)*($CM$5:$CM$14))+'J02'!BM14 -> 1 | BN14: =SUMPRODUCT(($I$5:$M$14=AT14)*($CN$5:$CN$14))+'J02'!BN14 -> 1 | BO14: =SUMPRODUCT(($I$5:$M$14=AT14)*($CO$5:$CO$14))+'J02'!BO14 -> 0 | BP14: =SUMPRODUCT(($I$5:$M$14=AT14)*($CP$5:$CP$14))+'J02'!BP14 -> 1 | BQ14: 3000.002 | BR14: =BQ14+0.0000005 -> 3000.002001 | BS14: 0 | BT14: 0 | BU14: 0 | BV14: 0 | BW14: 0 | BX14: 0 | BY14: 0 | BZ14: 0 | CA14: FALSE | CB14: FALSE | CC14: FALSE | CD14: FALSE | CE14: FALSE | CF14: FALSE | CG14: 0 | CH14: 0 | CI14: 0 | CJ14: 0 | CK14: FALSE | CL14: FALSE | CM14: FALSE | CN14: FALSE | CO14: FALSE | CP14: FALSE | CQ14: AUSAF | CR14: 3000.002 | CS14: 10 | CT14: AUSAF
V15: AJAK | AA15: -4 | AB15: q | AC15: 11 | AD15: 3 | AE15: 3 | AF15: 1 | AG15: 0 | AH15: 2 | AI15: 1 | AJ15: 6 | AK15: -5 | AL15: 0 | AM15: 0 | AN15: 2 | AO15: 1 | AP15: 0 | AQ15: 0 | AR15: 11 | AS15: 4 | AT15: ='J01'!AT15:AX15 -> JSOA | AY15: 4 | AZ15: ='J02'!AY15-AY15 -> 5 | BA15: =IF(AY15>'J02'!AY15,'J02'!$BA$20,IF(AY15='J02'!AY15,'J02'!$AZ$20,IF(AY15<'J02'!AY15,'J02'!$AY$20))) -> p | BB15: 4 | BC15: =SUMPRODUCT(($B$5:$F$14=AT15)*($BW$5:$BW$14))+SUMPRODUCT(($I$5:$M$14=AT15)*($BX$5:$BX$14))+'J02'!BC15 -> 4 | BD15: =SUMPRODUCT(($B$5:$F$14=AT15)*($BY$5:$BY$14))+SUMPRODUCT(($I$5:$M$14=AT15)*($BZ$5:$BZ$14))+'J02'!BD15 -> 3 | BE15: =SUMPRODUCT(($B$5:$F$14=AT15)*($CA$5:$CA$14))+SUMPRODUCT(($I$5:$M$14=AT15)*($CB$5:$CB$14))+'J02'!BE15 -> 1 | BF15: =SUMPRODUCT(($B$5:$F$14=AT15)*($CC$5:$CC$14))+SUMPRODUCT(($I$5:$M$14=AT15)*($CD$5:$CD$14))+'J02'!BF15 -> 1 | BG15: =SUMPRODUCT(($B$5:$F$14=AT15)*($CE$5:$CE$14))+SUMPRODUCT(($I$5:$M$14=AT15)*($CF$5:$CF$14))+'J02'!BG15 -> 1 | BH15: =SUMPRODUCT(($B$5:$F$14=AT15)*($CG$5:$CG$14))+SUMPRODUCT(($I$5:$M$14=AT15)*($CH$5:$CH$14))+'J02'!BH15 -> 4 | BI15: =SUMPRODUCT(($B$5:$F$14=AT15)*($CI$5:$CI$14))+SUMPRODUCT(($I$5:$M$14=AT15)*($CJ$5:$CJ$14))+'J02'!BI15 -> 2 | BJ15: 2 | BK15: =SUMPRODUCT(($B$5:$F$14=AT15)*($CK$5:$CK$14))+'J02'!BK15 -> 0 | BL15: =SUMPRODUCT(($B$5:$F$14=AT15)*($CL$5:$CL$14))+'J02'!BL15 -> 0 | BM15: =SUMPRODUCT(($B$5:$F$14=AT15)*($CM$5:$CM$14))+'J02'!BM15 -> 1 | BN15: =SUMPRODUCT(($I$5:$M$14=AT15)*($CN$5:$CN$14))+'J02'!BN15 -> 1 | BO15: =SUMPRODUCT(($I$5:$M$14=AT15)*($CO$5:$CO$14))+'J02'!BO15 -> 1 | BP15: =SUMPRODUCT(($I$5:$M$14=AT15)*($CP$5:$CP$14))+'J02'!BP15 -> 0 | BQ15: 4000.024 | BR15: =BQ15+0.0000004 -> 4000.024 | CQ15: AJAK | CR15: 2999.951 | CS15: 11 | CT15: JSOA
V16: CUSL | AA16: -4 | AB16: q | AC16: 12 | AD16: 2 | AE16: 3 | AF16: 0 | AG16: 2 | AH16: 1 | AI16: 3 | AJ16: 4 | AK16: -1 | AL16: 0 | AM16: 1 | AN16: 1 | AO16: 0 | AP16: 1 | AQ16: 0 | AR16: 12 | AS16: 8 | AT16: ='J01'!AT16:AX16 -> AWSOM | AY16: 7 | AZ16: ='J02'!AY16-AY16 -> -3 | BA16: =IF(AY16>'J02'!AY16,'J02'!$BA$20,IF(AY16='J02'!AY16,'J02'!$AZ$20,IF(AY16<'J02'!AY16,'J02'!$AY$20))) -> q | BB16: 8 | BC16: =SUMPRODUCT(($B$5:$F$14=AT16)*($BW$5:$BW$14))+SUMPRODUCT(($I$5:$M$14=AT16)*($BX$5:$BX$14))+'J02'!BC16 -> 4 | BD16: =SUMPRODUCT(($B$5:$F$14=AT16)*($BY$5:$BY$14))+SUMPRODUCT(($I$5:$M$14=AT16)*($BZ$5:$BZ$14))+'J02'!BD16 -> 3 | BE16: =SUMPRODUCT(($B$5:$F$14=AT16)*($CA$5:$CA$14))+SUMPRODUCT(($I$5:$M$14=AT16)*($CB$5:$CB$14))+'J02'!BE16 -> 1 | BF16: =SUMPRODUCT(($B$5:$F$14=AT16)*($CC$5:$CC$14))+SUMPRODUCT(($I$5:$M$14=AT16)*($CD$5:$CD$14))+'J02'!BF16 -> 1 | BG16: =SUMPRODUCT(($B$5:$F$14=AT16)*($CE$5:$CE$14))+SUMPRODUCT(($I$5:$M$14=AT16)*($CF$5:$CF$14))+'J02'!BG16 -> 1 | BH16: =SUMPRODUCT(($B$5:$F$14=AT16)*($CG$5:$CG$14))+SUMPRODUCT(($I$5:$M$14=AT16)*($CH$5:$CH$14))+'J02'!BH16 -> 2 | BI16: =SUMPRODUCT(($B$5:$F$14=AT16)*($CI$5:$CI$14))+SUMPRODUCT(($I$5:$M$14=AT16)*($CJ$5:$CJ$14))+'J02'!BI16 -> 3 | BJ16: -1 | BK16: =SUMPRODUCT(($B$5:$F$14=AT16)*($CK$5:$CK$14))+'J02'!BK16 -> 0 | BL16: =SUMPRODUCT(($B$5:$F$14=AT16)*($CL$5:$CL$14))+'J02'!BL16 -> 1 | BM16: =SUMPRODUCT(($B$5:$F$14=AT16)*($CM$5:$CM$14))+'J02'!BM16 -> 0 | BN16: =SUMPRODUCT(($I$5:$M$14=AT16)*($CN$5:$CN$14))+'J02'!BN16 -> 1 | BO16: =SUMPRODUCT(($I$5:$M$14=AT16)*($CO$5:$CO$14))+'J02'!BO16 -> 0 | BP16: =SUMPRODUCT(($I$5:$M$14=AT16)*($CP$5:$CP$14))+'J02'!BP16 -> 1 | BQ16: 3999.992 | BR16: =BQ16+0.0000003 -> 3999.992 | CQ16: CUSL | CR16: 1999.993 | CS16: 12 | CT16: AWSOM
V17: AUSBK | AA17: -2 | AB17: q | AC17: 13 | AD17: 2 | AE17: 3 | AF17: 0 | AG17: 2 | AH17: 1 | AI17: 5 | AJ17: 7 | AK17: -2 | AL17: 0 | AM17: 2 | AN17: 0 | AO17: 0 | AP17: 0 | AQ17: 1 | AR17: 13 | AS17: 6 | AT17: ='J01'!AT17:AX17 -> HSMK | AY17: 6 | AZ17: ='J02'!AY17-AY17 -> -4 | BA17: =IF(AY17>'J02'!AY17,'J02'!$BA$20,IF(AY17='J02'!AY17,'J02'!$AZ$20,IF(AY17<'J02'!AY17,'J02'!$AY$20))) -> q | BB17: 6 | BC17: =SUMPRODUCT(($B$5:$F$14=AT17)*($BW$5:$BW$14))+SUMPRODUCT(($I$5:$M$14=AT17)*($BX$5:$BX$14))+'J02'!BC17 -> 4 | BD17: =SUMPRODUCT(($B$5:$F$14=AT17)*($BY$5:$BY$14))+SUMPRODUCT(($I$5:$M$14=AT17)*($BZ$5:$BZ$14))+'J02'!BD17 -> 3 | BE17: =SUMPRODUCT(($B$5:$F$14=AT17)*($CA$5:$CA$14))+SUMPRODUCT(($I$5:$M$14=AT17)*($CB$5:$CB$14))+'J02'!BE17 -> 1 | BF17: =SUMPRODUCT(($B$5:$F$14=AT17)*($CC$5:$CC$14))+SUMPRODUCT(($I$5:$M$14=AT17)*($CD$5:$CD$14))+'J02'!BF17 -> 1 | BG17: =SUMPRODUCT(($B$5:$F$14=AT17)*($CE$5:$CE$14))+SUMPRODUCT(($I$5:$M$14=AT17)*($CF$5:$CF$14))+'J02'!BG17 -> 1 | BH17: =SUMPRODUCT(($B$5:$F$14=AT17)*($CG$5:$CG$14))+SUMPRODUCT(($I$5:$M$14=AT17)*($CH$5:$CH$14))+'J02'!BH17 -> 5 | BI17: =SUMPRODUCT(($B$5:$F$14=AT17)*($CI$5:$CI$14))+SUMPRODUCT(($I$5:$M$14=AT17)*($CJ$5:$CJ$14))+'J02'!BI17 -> 5 | BJ17: 0 | BK17: =SUMPRODUCT(($B$5:$F$14=AT17)*($CK$5:$CK$14))+'J02'!BK17 -> 1 | BL17: =SUMPRODUCT(($B$5:$F$14=AT17)*($CL$5:$CL$14))+'J02'!BL17 -> 0 | BM17: =SUMPRODUCT(($B$5:$F$14=AT17)*($CM$5:$CM$14))+'J02'!BM17 -> 1 | BN17: =SUMPRODUCT(($I$5:$M$14=AT17)*($CN$5:$CN$14))+'J02'!BN17 -> 0 | BO17: =SUMPRODUCT(($I$5:$M$14=AT17)*($CO$5:$CO$14))+'J02'!BO17 -> 1 | BP17: =SUMPRODUCT(($I$5:$M$14=AT17)*($CP$5:$CP$14))+'J02'!BP17 -> 0 | BQ17: 4000.005 | BR17: =BQ17+0.0000002 -> 4000.005 | CQ17: AUSBK | CR17: 1999.985 | CS17: 13 | CT17: HSMK
V18: USB | AA18: -4 | AB18: q | AC18: 14 | AD18: 1 | AE18: 3 | AF18: 0 | AG18: 1 | AH18: 2 | AI18: 0 | AJ18: 2 | AK18: -2 | AL18: 0 | AM18: 0 | AN18: 1 | AO18: 0 | AP18: 1 | AQ18: 1 | AR18: 14 | AS18: 5 | AT18: ='J01'!AT18:AX18 -> ESMB | AY18: 5 | AZ18: ='J02'!AY18-AY18 -> 8 | BA18: =IF(AY18>'J02'!AY18,'J02'!$BA$20,IF(AY18='J02'!AY18,'J02'!$AZ$20,IF(AY18<'J02'!AY18,'J02'!$AY$20))) -> p | BB18: 5 | BC18: =SUMPRODUCT(($B$5:$F$14=AT18)*($BW$5:$BW$14))+SUMPRODUCT(($I$5:$M$14=AT18)*($BX$5:$BX$14))+'J02'!BC18 -> 4 | BD18: =SUMPRODUCT(($B$5:$F$14=AT18)*($BY$5:$BY$14))+SUMPRODUCT(($I$5:$M$14=AT18)*($BZ$5:$BZ$14))+'J02'!BD18 -> 3 | BE18: =SUMPRODUCT(($B$5:$F$14=AT18)*($CA$5:$CA$14))+SUMPRODUCT(($I$5:$M$14=AT18)*($CB$5:$CB$14))+'J02'!BE18 -> 1 | BF18: =SUMPRODUCT(($B$5:$F$14=AT18)*($CC$5:$CC$14))+SUMPRODUCT(($I$5:$M$14=AT18)*($CD$5:$CD$14))+'J02'!BF18 -> 1 | BG18: =SUMPRODUCT(($B$5:$F$14=AT18)*($CE$5:$CE$14))+SUMPRODUCT(($I$5:$M$14=AT18)*($CF$5:$CF$14))+'J02'!BG18 -> 1 | BH18: =SUMPRODUCT(($B$5:$F$14=AT18)*($CG$5:$CG$14))+SUMPRODUCT(($I$5:$M$14=AT18)*($CH$5:$CH$14))+'J02'!BH18 -> 6 | BI18: =SUMPRODUCT(($B$5:$F$14=AT18)*($CI$5:$CI$14))+SUMPRODUCT(($I$5:$M$14=AT18)*($CJ$5:$CJ$14))+'J02'!BI18 -> 6 | BJ18: 0 | BK18: =SUMPRODUCT(($B$5:$F$14=AT18)*($CK$5:$CK$14))+'J02'!BK18 -> 0 | BL18: =SUMPRODUCT(($B$5:$F$14=AT18)*($CL$5:$CL$14))+'J02'!BL18 -> 1 | BM18: =SUMPRODUCT(($B$5:$F$14=AT18)*($CM$5:$CM$14))+'J02'!BM18 -> 0 | BN18: =SUMPRODUCT(($I$5:$M$14=AT18)*($CN$5:$CN$14))+'J02'!BN18 -> 1 | BO18: =SUMPRODUCT(($I$5:$M$14=AT18)*($CO$5:$CO$14))+'J02'!BO18 -> 0 | BP18: =SUMPRODUCT(($I$5:$M$14=AT18)*($CP$5:$CP$14))+'J02'!BP18 -> 1 | BQ18: 4000.006 | BR18: =BQ18+0.0000001 -> 4000.006 | CQ18: USB | CR18: 999.98 | CS18: 14 | CT18: ESMB
AO19: Buts/Journée | AY19: p | AZ19: u | BA19: q
AO20: =SUM(G5:H14) -> 18 | AY20: p | AZ20: u | BA20: q
AO22: Total Buts du Championnat
AO24: =AO20+'J02'!AO24:AP25 -> 49
AO26: Moyenne générale
AO28: =IF(AE5=0,"",SUM(AI5:AI24)/SUM(AE5:AE24)*2) -> 2.333333333

Sheet J04
A1: ='J01'!A1:C2 -> Nom du Championnat | I1: ='J01'!H1:K2 -> 2017-2018 | O1: JOURNEE 04 | V1: CLASSEMENT | AT1: CLASSEMENT | BS1: Domicile | BT1: Extérieur | BU1: Domicile | BV1: Extérieur | BW1: Domicile | BX1: Extérieur | BY1: Domicile | BZ1: Extérieur | CA1: Domicile | CB1: Extérieur | CC1: Domicile | CD1: Extérieur | CE1: Domicile | CF1: Extérieur | CG1: Domicile | CH1: Extérieur | CI1: Domicile | CJ1: Extérieur
A3: P | B3: Equipes | G3: Buts | H3: Buts | I3: Equipes | N3: P | O3: Dates | S3: Heure | V3: Equipes | AA3: Evolution | AC3: Place | AD3: Pts | AE3: J | AF3: G | AG3: N | AH3: P | AI3: B + | AJ3: B - | AK3: Diff. | AL3: Domicile | AO3: Extérieur | AT3: Equipes | AY3: R | AZ3: Evolution | BB3: R | BC3: Pts | BD3: J | BE3: G | BF3: N | BG3: P | BH3: B + | BI3: B - | BJ3: Diff. | BK3: Domicile | BN3: Extérieur | CK3: Domicile | CN3: Extérieur
AL4: G | AM4: N | AN4: P | AO4: G | AP4: N | AQ4: P | AS4: R | BK4: G | BL4: N | BM4: P | BN4: G | BO4: N | BP4: P | BQ4: % | BR4: % | BS4: P | BT4: P | BU4: Pts | BV4: Pts | BW4: T Pt | BX4: T Pt | BY4: J | BZ4: J | CA4: G | CB4: G | CC4: N | CD4: N | CE4: P | CF4: P | CG4: B + | CH4: B + | CI4: B - | CJ4: B - | CK4: G | CL4: N | CM4: P | CN4: G | CO4: N | CP4: P | CQ4: Equipes | CR4: % | CS4: R | CT4: Equipes
B5: CJBF | G5: 0 | H5: 0 | I5: HSMK | V5: =VLOOKUP(AR5,$AS$5:$AX$18,2,0) -> ASUD | AA5: =VLOOKUP(V5,$AT$5:$BP$18,7,0) -> 0 | AB5: =VLOOKUP(V5,$AT$5:$BP$18,8,0) -> u | AC5: 1 | AD5: =VLOOKUP(V5,$AT$5:$BP$18,10,0) -> 10 | AE5: =VLOOKUP(V5,$AT$5:$BP$18,11,0) -> 4 | AF5: =VLOOKUP(V5,$AT$5:$BP$18,12,0) -> 3 | AG5: =VLOOKUP(V5,$AT$5:$BP$18,13,0) -> 1 | AH5: =VLOOKUP(V5,$AT$5:$BP$18,14,0) -> 0 | AI5: =VLOOKUP(V5,$AT$5:$BP$18,15,0) -> 16 | AJ5: =VLOOKUP(V5,$AT$5:$BP$18,16,0) -> 5 | AK5: =VLOOKUP(V5,$AT$5:$BP$18,17,0) -> 11 | AL5: =VLOOKUP(V5,$AT$5:$BP$18,18,0) -> 2 | AM5: =VLOOKUP(V5,$AT$5:$BP$18,19,0) -> 0 | AN5: =VLOOKUP(V5,$AT$5:$BP$18,20,0) -> 0 | AO5: =VLOOKUP(V5,$AT$5:$BP$18,21,0) -> 1 | AP5: =VLOOKUP(V5,$AT$5:$BP$18,22,0) -> 1 | AQ5: =VLOOKUP(V5,$AT$5:$BP$18,23,0) -> 0 | AR5: 1 | AS5: =BB5 -> 6 | AT5: ='J01'!AT5:AX5 -> AUSBK | AY5: =RANK(BQ5,$BQ$5:$BQ$18) -> 6 | AZ5: ='J03'!AY5-AY5 -> 7 | BA5: =IF(AY5>'J03'!AY5,'J03'!$BA$20,IF(AY5='J03'!AY5,'J03'!$AZ$20,IF(AY5<'J03'!AY5,'J03'!$AY$20))) -> p | BB5: =RANK(BR5,$BR$5:$BR$18) -> 6 | BC5: =SUMPRODUCT(($B$5:$F$14=AT5)*($BW$5:$BW$14))+SUMPRODUCT(($I$5:$M$14=AT5)*($BX$5:$BX$14))+'J03'!BC5 -> 5 | BD5: =SUMPRODUCT(($B$5:$F$14=AT5)*($BY$5:$BY$14))+SUMPRODUCT(($I$5:$M$14=AT5)*($BZ$5:$BZ$14))+'J03'!BD5 -> 4 | BE5: =SUMPRODUCT(($B$5:$F$14=AT5)*($CA$5:$CA$14))+SUMPRODUCT(($I$5:$M$14=AT5)*($CB$5:$CB$14))+'J03'!BE5 -> 1 | BF5: =SUMPRODUCT(($B$5:$F$14=AT5)*($CC$5:$CC$14))+SUMPRODUCT(($I$5:$M$14=AT5)*($CD$5:$CD$14))+'J03'!BF5 -> 2 | BG5: =SUMPRODUCT(($B$5:$F$14=AT5)*($CE$5:$CE$14))+SUMPRODUCT(($I$5:$M$14=AT5)*($CF$5:$CF$14))+'J03'!BG5 -> 1 | BH5: =SUMPRODUCT(($B$5:$F$14=AT5)*($CG$5:$CG$14))+SUMPRODUCT(($I$5:$M$14=AT5)*($CH$5:$CH$14))+'J03'!BH5 -> 7 | BI5: =SUMPRODUCT(($B$5:$F$14=AT5)*($CI$5:$CI$14))+SUMPRODUCT(($I$5:$M$14=AT5)*($CJ$5:$CJ$14))+'J03'!BI5 -> 7 | BJ5: =BH5-BI5 -> 0 | BK5: =SUMPRODUCT(($B$5:$F$14=AT5)*($CK$5:$CK$14))+'J03'!BK5 -> 0 | BL5: =SUMPRODUCT(($B$5:$F$14=AT5)*($CL$5:$CL$14))+'J03'!BL5 -> 2 | BM5: =SUMPRODUCT(($B$5:$F$14=AT5)*($CM$5:$CM$14))+'J03'!BM5 -> 0 | BN5: =SUMPRODUCT(($I$5:$M$14=AT5)*($CN$5:$CN$14))+'J03'!BN5 -> 1 | BO5: =SUMPRODUCT(($I$5:$M$14=AT5)*($CO$5:$CO$14))+'J03'!BO5 -> 0 | BP5: =SUMPRODUCT(($I$5:$M$14=AT5)*($CP$5:$CP$14))+'J03'!BP5 -> 1 | BQ5: =SUM(BC5*1000+(BJ5)/100+(BH5)/1000) -> 5000.007 | BR5: =BQ5+0.0000014 -> 5000.007001 | BS5: =A5 -> 0 | BT5: =N5 -> 0 | BU5: =IF(G5="",0,IF(G5>H5,3,IF(G5=H5,1,IF(G5<H5,0)))) -> 1 | BV5: =IF(H5="",0,IF(H5>G5,3,IF(H5=G5,1,IF(H5<G5,0)))) -> 1 | BW5: =BU5-BS5 -> 1 | BX5: =BV5-BT5 -> 1 | BY5: =IF(G5="",0,1) -> 1 | BZ5: =IF(H5="",0,1) -> 1 | CA5: =IF(G5<>"",IF(G5>H5,1)) -> FALSE | CB5: =IF(H5<>"",IF(H5>G5,1)) -> FALSE | CC5: =IF(G5<>"",IF(G5=H5,1)) -> 1 | CD5: =IF(H5<>"",IF(H5=G5,1)) -> 1 | CE5: =IF(G5<>"",IF(G5<H5,1)) -> FALSE | CF5: =IF(H5<>"",IF(H5<G5,1)) -> FALSE | CG5: =G5 -> 0 | CH5: =H5 -> 0 | CI5: =H5 -> 0 | CJ5: =G5 -> 0 | CK5: =IF(G5<>"",IF(G5>H5,1)) -> FALSE | CL5: =IF(G5<>"",IF(G5=H5,1)) -> 1 | CM5: =IF(G5<>"",IF(G5<H5,1)) -> FALSE | CN5: =IF(H5<>"",IF(H5>G5,1)) -> FALSE | CO5: =IF(H5<>"",IF(H5=G5,1)) -> 1 | CP5: =IF(H5<>"",IF(H5<G5,1)) -> FALSE | CQ5: =VLOOKUP(AR5,$AS$5:$AX$18,2,0) -> ASUD | CR5: =VLOOKUP(CQ5,$AT$5:$BQ$18,24,0) -> 10000.126 | CS5: =RANK(CR5,$CR$5:$CR$18) -> 1 | CT5: =AT5 -> AUSBK
B6: ASUD | G6: 7 | H6: 2 | I6: CUSL | V6: AHDOZ | AA6: 1 | AB6: p | AC6: =IF(CR6=CR5,CS5,CS6) -> 2 | AD6: 10 | AE6: 4 | AF6: 3 | AG6: 1 | AH6: 0 | AI6: 5 | AJ6: 0 | AK6: 5 | AL6: 1 | AM6: 1 | AN6: =VLOOKUP(V6,$AT$5:$BP$18,20,0) -> 0 | AO6: 2 | AP6: =VLOOKUP(V6,$AT$5:$BP$18,22,0) -> 0 | AQ6: 0 | AR6: 2 | AS6: =BB6 -> 13 | AT6: ='J01'!AT6:AX6 -> CUSL | AY6: 13 | AZ6: ='J03'!AY6-AY6 -> -1 | BA6: =IF(AY6>'J03'!AY6,'J03'!$BA$20,IF(AY6='J03'!AY6,'J03'!$AZ$20,IF(AY6<'J03'!AY6,'J03'!$AY$20))) -> q | BB6: =RANK(BR6,$BR$5:$BR$18) -> 13 | BC6: =SUMPRODUCT(($B$5:$F$14=AT6)*($BW$5:$BW$14))+SUMPRODUCT(($I$5:$M$14=AT6)*($BX$5:$BX$14))+'J03'!BC6 -> 2 | BD6: =SUMPRODUCT(($B$5:$F$14=AT6)*($BY$5:$BY$14))+SUMPRODUCT(($I$5:$M$14=AT6)*($BZ$5:$BZ$14))+'J03'!BD6 -> 4 | BE6: =SUMPRODUCT(($B$5:$F$14=AT6)*($CA$5:$CA$14))+SUMPRODUCT(($I$5:$M$14=AT6)*($CB$5:$CB$14))+'J03'!BE6 -> 0 | BF6: =SUMPRODUCT(($B$5:$F$14=AT6)*($CC$5:$CC$14))+SUMPRODUCT(($I$5:$M$14=AT6)*($CD$5:$CD$14))+'J03'!BF6 -> 2 | BG6: =SUMPRODUCT(($B$5:$F$14=AT6)*($CE$5:$CE$14))+SUMPRODUCT(($I$5:$M$14=AT6)*($CF$5:$CF$14))+'J03'!BG6 -> 2 | BH6: =SUMPRODUCT(($B$5:$F$14=AT6)*($CG$5:$CG$14))+SUMPRODUCT(($I$5:$M$14=AT6)*($CH$5:$CH$14))+'J03'!BH6 -> 5 | BI6: =SUMPRODUCT(($B$5:$F$14=AT6)*($CI$5:$CI$14))+SUMPRODUCT(($I$5:$M$14=AT6)*($CJ$5:$CJ$14))+'J03'!BI6 -> 11 | BJ6: =BH6-BI6 -> -6 | BK6: =SUMPRODUCT(($B$5:$F$14=AT6)*($CK$5:$CK$14))+'J03'!BK6 -> 0 | BL6: =SUMPRODUCT(($B$5:$F$14=AT6)*($CL$5:$CL$14))+'J03'!BL6 -> 1 | BM6: =SUMPRODUCT(($B$5:$F$14=AT6)*($CM$5:$CM$14))+'J03'!BM6 -> 1 | BN6: =SUMPRODUCT(($I$5:$M$14=AT6)*($CN$5:$CN$14))+'J03'!BN6 -> 0 | BO6: =SUMPRODUCT(($I$5:$M$14=AT6)*($CO$5:$CO$14))+'J03'!BO6 -> 1 | BP6: =SUMPRODUCT(($I$5:$M$14=AT6)*($CP$5:$CP$14))+'J03'!BP6 -> 1 | BQ6: =SUM(BC6*1000+(BJ6)/100+(BH6)/1000) -> 1999.945 | BR6: =BQ6+0.0000013 -> 1999.945001 | BS6: =A6 -> 0 | BT6: =N6 -> 0 | BU6: =IF(G6="",0,IF(G6>H6,3,IF(G6=H6,1,IF(G6<H6,0)))) -> 3 | BV6: =IF(H6="",0,IF(H6>G6,3,IF(H6=G6,1,IF(H6<G6,0)))) -> 0 | BW6: =BU6-BS6 -> 3 | BX6: =BV6-BT6 -> 0 | BY6: =IF(G6="",0,1) -> 1 | BZ6: =IF(H6="",0,1) -> 1 | CA6: =IF(G6<>"",IF(G6>H6,1)) -> 1 | CB6: =IF(H6<>"",IF(H6>G6,1)) -> FALSE | CC6: =IF(G6<>"",IF(G6=H6,1)) -> FALSE | CD6: =IF(H6<>"",IF(H6=G6,1)) -> FALSE | CE6: =IF(G6<>"",IF(G6<H6,1)) -> FALSE | CF6: =IF(H6<>"",IF(H6<G6,1)) -> 1 | CG6: =G6 -> 7 | CH6: =H6 -> 2 | CI6: =H6 -> 2 | CJ6: =G6 -> 7 | CK6: =IF(G6<>"",IF(G6>H6,1)) -> 1 | CL6: =IF(G6<>"",IF(G6=H6,1)) -> FALSE | CM6: =IF(G6<>"",IF(G6<H6,1)) -> FALSE | CN6: =IF(H6<>"",IF(H6>G6,1)) -> FALSE | CO6: =IF(H6<>"",IF(H6=G6,1)) -> FALSE | CP6: =IF(H6<>"",IF(H6<G6,1)) -> 1 | CQ6: AHDOZ | CR6: 10000.055 | CS6: 2 | CT6: =AT6 -> CUSL
B7: USB | G7: 0 | H7: 2 | I7: AUSBK | V7: CJBF | AA7: -1 | AB7: q | AC7: =IF(CR7=CR6,CS6,CS7) -> 3 | AD7: 8 | AE7: 4 | AF7: 2 | AG7: 2 | AH7: 0 | AI7: 5 | AJ7: 2 | AK7: 3 | AL7: 1 | AM7: 1 | AN7: 0 | AO7: 1 | AP7: 1 | AQ7: 0 | AR7: 3 | AS7: 4 | AT7: ='J01'!AT7:AX7 -> AUSA | AY7: 4 | AZ7: ='J03'!AY7-AY7 -> 3 | BA7: =IF(AY7>'J03'!AY7,'J03'!$BA$20,IF(AY7='J03'!AY7,'J03'!$AZ$20,IF(AY7<'J03'!AY7,'J03'!$AY$20))) -> p | BB7: 4 | BC7: =SUMPRODUCT(($B$5:$F$14=AT7)*($BW$5:$BW$14))+SUMPRODUCT(($I$5:$M$14=AT7)*($BX$5:$BX$14))+'J03'!BC7 -> 7 | BD7: =SUMPRODUCT(($B$5:$F$14=AT7)*($BY$5:$BY$14))+SUMPRODUCT(($I$5:$M$14=AT7)*($BZ$5:$BZ$14))+'J03'!BD7 -> 4 | BE7: =SUMPRODUCT(($B$5:$F$14=AT7)*($CA$5:$CA$14))+SUMPRODUCT(($I$5:$M$14=AT7)*($CB$5:$CB$14))+'J03'!BE7 -> 2 | BF7: =SUMPRODUCT(($B$5:$F$14=AT7)*($CC$5:$CC$14))+SUMPRODUCT(($I$5:$M$14=AT7)*($CD$5:$CD$14))+'J03'!BF7 -> 1 | BG7: =SUMPRODUCT(($B$5:$F$14=AT7)*($CE$5:$CE$14))+SUMPRODUCT(($I$5:$M$14=AT7)*($CF$5:$CF$14))+'J03'!BG7 -> 1 | BH7: =SUMPRODUCT(($B$5:$F$14=AT7)*($CG$5:$CG$14))+SUMPRODUCT(($I$5:$M$14=AT7)*($CH$5:$CH$14))+'J03'!BH7 -> 3 | BI7: =SUMPRODUCT(($B$5:$F$14=AT7)*($CI$5:$CI$14))+SUMPRODUCT(($I$5:$M$14=AT7)*($CJ$5:$CJ$14))+'J03'!BI7 -> 3 | BJ7: 0 | BK7: =SUMPRODUCT(($B$5:$F$14=AT7)*($CK$5:$CK$14))+'J03'!BK7 -> 1 | BL7: =SUMPRODUCT(($B$5:$F$14=AT7)*($CL$5:$CL$14))+'J03'!BL7 -> 1 | BM7: =SUMPRODUCT(($B$5:$F$14=AT7)*($CM$5:$CM$14))+'J03'!BM7 -> 0 | BN7: =SUMPRODUCT(($I$5:$M$14=AT7)*($CN$5:$CN$14))+'J03'!BN7 -> 1 | BO7: =SUMPRODUCT(($I$5:$M$14=AT7)*($CO$5:$CO$14))+'J03'!BO7 -> 0 | BP7: =SUMPRODUCT(($I$5:$M$14=AT7)*($CP$5:$CP$14))+'J03'!BP7 -> 1 | BQ7: 7000.003 | BR7: =BQ7+0.0000012 -> 7000.003001 | BS7: 0 | BT7: 0 | BU7: 0 | BV7: 3 | BW7: 0 | BX7: 3 | BY7: 1 | BZ7: 1 | CA7: FALSE | CB7: 1 | CC7: FALSE | CD7: FALSE | CE7: 1 | CF7: FALSE | CG7: 0 | CH7: 2 | CI7: 2 | CJ7: 0 | CK7: FALSE | CL7: FALSE | CM7: 1 | CN7: 1 | CO7: FALSE | CP7: FALSE | CQ7: CJBF | CR7: 8000.035 | CS7: 3 | CT7: AUSA
B8: AUSAF | G8: 0 | H8: 1 | I8: AUSA | V8: AUSA | AA8: 3 | AB8: p | AC8: 4 | AD8: 7 | AE8: 4 | AF8: 2 | AG8: 1 | AH8: 1 | AI8: 3 | AJ8: 3 | AK8: 0 | AL8: 1 | AM8: 1 | AN8: 0 | AO8: 1 | AP8: 0 | AQ8: 1 | AR8: 4 | AS8: 3 | AT8: ='J01'!AT8:AX8 -> CJBF | AY8: 3 | AZ8: ='J03'!AY8-AY8 -> -1 | BA8: =IF(AY8>'J03'!AY8,'J03'!$BA$20,IF(AY8='J03'!AY8,'J03'!$AZ$20,IF(AY8<'J03'!AY8,'J03'!$AY$20))) -> q | BB8: 3 | BC8: =SUMPRODUCT(($B$5:$F$14=AT8)*($BW$5:$BW$14))+SUMPRODUCT(($I$5:$M$14=AT8)*($BX$5:$BX$14))+'J03'!BC8 -> 8 | BD8: =SUMPRODUCT(($B$5:$F$14=AT8)*($BY$5:$BY$14))+SUMPRODUCT(($I$5:$M$14=AT8)*($BZ$5:$BZ$14))+'J03'!BD8 -> 4 | BE8: =SUMPRODUCT(($B$5:$F$14=AT8)*($CA$5:$CA$14))+SUMPRODUCT(($I$5:$M$14=AT8)*($CB$5:$CB$14))+'J03'!BE8 -> 2 | BF8: =SUMPRODUCT(($B$5:$F$14=AT8)*($CC$5:$CC$14))+SUMPRODUCT(($I$5:$M$14=AT8)*($CD$5:$CD$14))+'J03'!BF8 -> 2 | BG8: =SUMPRODUCT(($B$5:$F$14=AT8)*($CE$5:$CE$14))+SUMPRODUCT(($I$5:$M$14=AT8)*($CF$5:$CF$14))+'J03'!BG8 -> 0 | BH8: =SUMPRODUCT(($B$5:$F$14=AT8)*($CG$5:$CG$14))+SUMPRODUCT(($I$5:$M$14=AT8)*($CH$5:$CH$14))+'J03'!BH8 -> 5 | BI8: =SUMPRODUCT(($B$5:$F$14=AT8)*($CI$5:$CI$14))+SUMPRODUCT(($I$5:$M$14=AT8)*($CJ$5:$CJ$14))+'J03'!BI8 -> 2 | BJ8: 3 | BK8: =SUMPRODUCT(($B$5:$F$14=AT8)*($CK$5:$CK$14))+'J03'!BK8 -> 1 | BL8: =SUMPRODUCT(($B$5:$F$14=AT8)*($CL$5:$CL$14))+'J03'!BL8 -> 1 | BM8: =SUMPRODUCT(($B$5:$F$14=AT8)*($CM$5:$CM$14))+'J03'!BM8 -> 0 | BN8: =SUMPRODUCT(($I$5:$M$14=AT8)*($CN$5:$CN$14))+'J03'!BN8 -> 1 | BO8: =SUMPRODUCT(($I$5:$M$14=AT8)*($CO$5:$CO$14))+'J03'!BO8 -> 1 | BP8: =SUMPRODUCT(($I$5:$M$14=AT8)*($CP$5:$CP$14))+'J03'!BP8 -> 0 | BQ8: 8000.035 | BR8: =BQ8+0.0000011 -> 8000.035001 | BS8: 0 | BT8: 0 | BU8: 0 | BV8: 3 | BW8: 0 | BX8: 3 | BY8: 1 | BZ8: 1 | CA8: FALSE | CB8: 1 | CC8: FALSE | CD8: FALSE | CE8: 1 | CF8: FALSE | CG8: 0 | CH8: 1 | CI8: 1 | CJ8: 0 | CK8: FALSE | CL8: FALSE | CM8: 1 | CN8: 1 | CO8: FALSE | CP8: FALSE | CQ8: AUSA | CR8: 7000.003 | CS8: 4 | CT8: CJBF
B9: AWSOM | G9: 1 | H9: 1 | I9: AJAK | V9: ALC | AA9: 4 | AB9: p | AC9: 5 | AD9: 7 | AE9: 4 | AF9: 2 | AG9: 1 | AH9: 1 | AI9: 4 | AJ9: 5 | AK9: -1 | AL9: 1 | AM9: 0 | AN9: 1 | AO9: 1 | AP9: 1 | AQ9: 0 | AR9: 5 | AS9: 11 | AT9: ='J01'!AT9:AX9 -> AJAK | AY9: 11 | AZ9: ='J03'!AY9-AY9 -> 0 | BA9: =IF(AY9>'J03'!AY9,'J03'!$BA$20,IF(AY9='J03'!AY9,'J03'!$AZ$20,IF(AY9<'J03'!AY9,'J03'!$AY$20))) -> u | BB9: 11 | BC9: =SUMPRODUCT(($B$5:$F$14=AT9)*($BW$5:$BW$14))+SUMPRODUCT(($I$5:$M$14=AT9)*($BX$5:$BX$14))+'J03'!BC9 -> 4 | BD9: =SUMPRODUCT(($B$5:$F$14=AT9)*($BY$5:$BY$14))+SUMPRODUCT(($I$5:$M$14=AT9)*($BZ$5:$BZ$14))+'J03'!BD9 -> 4 | BE9: =SUMPRODUCT(($B$5:$F$14=AT9)*($CA$5:$CA$14))+SUMPRODUCT(($I$5:$M$14=AT9)*($CB$5:$CB$14))+'J03'!BE9 -> 1 | BF9: =SUMPRODUCT(($B$5:$F$14=AT9)*($CC$5:$CC$14))+SUMPRODUCT(($I$5:$M$14=AT9)*($CD$5:$CD$14))+'J03'!BF9 -> 1 | BG9: =SUMPRODUCT(($B$5:$F$14=AT9)*($CE$5:$CE$14))+SUMPRODUCT(($I$5:$M$14=AT9)*($CF$5:$CF$14))+'J03'!BG9 -> 2 | BH9: =SUMPRODUCT(($B$5:$F$14=AT9)*($CG$5:$CG$14))+SUMPRODUCT(($I$5:$M$14=AT9)*($CH$5:$CH$14))+'J03'!BH9 -> 2 | BI9: =SUMPRODUCT(($B$5:$F$14=AT9)*($CI$5:$CI$14))+SUMPRODUCT(($I$5:$M$14=AT9)*($CJ$5:$CJ$14))+'J03'!BI9 -> 7 | BJ9: -5 | BK9: =SUMPRODUCT(($B$5:$F$14=AT9)*($CK$5:$CK$14))+'J03'!BK9 -> 0 | BL9: =SUMPRODUCT(($B$5:$F$14=AT9)*($CL$5:$CL$14))+'J03'!BL9 -> 0 | BM9: =SUMPRODUCT(($B$5:$F$14=AT9)*($CM$5:$CM$14))+'J03'!BM9 -> 2 | BN9: =SUMPRODUCT(($I$5:$M$14=AT9)*($CN$5:$CN$14))+'J03'!BN9 -> 1 | BO9: =SUMPRODUCT(($I$5:$M$14=AT9)*($CO$5:$CO$14))+'J03'!BO9 -> 1 | BP9: =SUMPRODUCT(($I$5:$M$14=AT9)*($CP$5:$CP$14))+'J03'!BP9 -> 0 | BQ9: 3999.952 | BR9: =BQ9+0.000001 -> 3999.952001 | BS9: 0 | BT9: 0 | BU9: 1 | BV9: 1 | BW9: 1 | BX9: 1 | BY9: 1 | BZ9: 1 | CA9: FALSE | CB9: FALSE | CC9: 1 | CD9: 1 | CE9: FALSE | CF9: FALSE | CG9: 1 | CH9: 1 | CI9: 1 | CJ9: 1 | CK9: FALSE | CL9: 1 | CM9: FALSE | CN9: FALSE | CO9: 1 | CP9: FALSE | CQ9: ALC | CR9: 6999.994 | CS9: 5 | CT9: AJAK
B10: ESMB | G10: 0 | H10: 2 | I10: AHDOZ | V10: AUSBK | AA10: 7 | AB10: p | AC10: 6 | AD10: 5 | AE10: 4 | AF10: 1 | AG10: 2 | AH10: 1 | AI10: 7 | AJ10: 7 | AK10: 0 | AL10: 0 | AM10: 2 | AN10: 0 | AO10: 1 | AP10: 0 | AQ10: 1 | AR10: 6 | AS10: 1 | AT10: ='J01'!AT10:AX10 -> ASUD | AY10: 1 | AZ10: ='J03'!AY10-AY10 -> 0 | BA10: =IF(AY10>'J03'!AY10,'J03'!$BA$20,IF(AY10='J03'!AY10,'J03'!$AZ$20,IF(AY10<'J03'!AY10,'J03'!$AY$20))) -> u | BB10: 1 | BC10: =SUMPRODUCT(($B$5:$F$14=AT10)*($BW$5:$BW$14))+SUMPRODUCT(($I$5:$M$14=AT10)*($BX$5:$BX$14))+'J03'!BC10 -> 10 | BD10: =SUMPRODUCT(($B$5:$F$14=AT10)*($BY$5:$BY$14))+SUMPRODUCT(($I$5:$M$14=AT10)*($BZ$5:$BZ$14))+'J03'!BD10 -> 4 | BE10: =SUMPRODUCT(($B$5:$F$14=AT10)*($CA$5:$CA$14))+SUMPRODUCT(($I$5:$M$14=AT10)*($CB$5:$CB$14))+'J03'!BE10 -> 3 | BF10: =SUMPRODUCT(($B$5:$F$14=AT10)*($CC$5:$CC$14))+SUMPRODUCT(($I$5:$M$14=AT10)*($CD$5:$CD$14))+'J03'!BF10 -> 1 | BG10: =SUMPRODUCT(($B$5:$F$14=AT10)*($CE$5:$CE$14))+SUMPRODUCT(($I$5:$M$14=AT10)*($CF$5:$CF$14))+'J03'!BG10 -> 0 | BH10: =SUMPRODUCT(($B$5:$F$14=AT10)*($CG$5:$CG$14))+SUMPRODUCT(($I$5:$M$14=AT10)*($CH$5:$CH$14))+'J03'!BH10 -> 16 | BI10: =SUMPRODUCT(($B$5:$F$14=AT10)*($CI$5:$CI$14))+SUMPRODUCT(($I$5:$M$14=AT10)*($CJ$5:$CJ$14))+'J03'!BI10 -> 5 | BJ10: 11 | BK10: =SUMPRODUCT(($B$5:$F$14=AT10)*($CK$5:$CK$14))+'J03'!BK10 -> 2 | BL10: =SUMPRODUCT(($B$5:$F$14=AT10)*($CL$5:$CL$14))+'J03'!BL10 -> 0 | BM10: =SUMPRODUCT(($B$5:$F$14=AT10)*($CM$5:$CM$14))+'J03'!BM10 -> 0 | BN10: =SUMPRODUCT(($I$5:$M$14=AT10)*($CN$5:$CN$14))+'J03'!BN10 -> 1 | BO10: =SUMPRODUCT(($I$5:$M$14=AT10)*($CO$5:$CO$14))+'J03'!BO10 -> 1 | BP10: =SUMPRODUCT(($I$5:$M$14=AT10)*($CP$5:$CP$14))+'J03'!BP10 -> 0 | BQ10: 10000.126 | BR10: =BQ10+0.0000009 -> 10000.126 | BS10: 0 | BT10: 0 | BU10: 0 | BV10: 3 | BW10: 0 | BX10: 3 | BY10: 1 | BZ10: 1 | CA10: FALSE | CB10: 1 | CC10: FALSE | CD10: FALSE | CE10: 1 | CF10: FALSE | CG10: 0 | CH10: 2 | CI10: 2 | CJ10: 0 | CK10: FALSE | CL10: FALSE | CM10: 1 | CN10: 1 | CO10: FALSE | CP10: FALSE | CQ10: AUSBK | CR10: 5000.007 | CS10: 6 | CT10: ASUD
B11: JSOA | G11: 1 | H11: 2 | I11: ALC | V11: HSMK | AA11: -1 | AB11: q | AC11: 7 | AD11: 5 | AE11: 4 | AF11: 1 | AG11: 2 | AH11: 1 | AI11: 5 | AJ11: 5 | AK11: 0 | AL11: 1 | AM11: 0 | AN11: 1 | AO11: 0 | AP11: 2 | AQ11: 0 | AR11: 7 | AS11: 2 | AT11: ='J01'!AT11:AX11 -> AHDOZ | AY11: 2 | AZ11: ='J03'!AY11-AY11 -> 1 | BA11: =IF(AY11>'J03'!AY11,'J03'!$BA$20,IF(AY11='J03'!AY11,'J03'!$AZ$20,IF(AY11<'J03'!AY11,'J03'!$AY$20))) -> p | BB11: 2 | BC11: =SUMPRODUCT(($B$5:$F$14=AT11)*($BW$5:$BW$14))+SUMPRODUCT(($I$5:$M$14=AT11)*($BX$5:$BX$14))+'J03'!BC11 -> 10 | BD11: =SUMPRODUCT(($B$5:$F$14=AT11)*($BY$5:$BY$14))+SUMPRODUCT(($I$5:$M$14=AT11)*($BZ$5:$BZ$14))+'J03'!BD11 -> 4 | BE11: =SUMPRODUCT(($B$5:$F$14=AT11)*($CA$5:$CA$14))+SUMPRODUCT(($I$5:$M$14=AT11)*($CB$5:$CB$14))+'J03'!BE11 -> 3 | BF11: =SUMPRODUCT(($B$5:$F$14=AT11)*($CC$5:$CC$14))+SUMPRODUCT(($I$5:$M$14=AT11)*($CD$5:$CD$14))+'J03'!BF11 -> 1 | BG11: =SUMPRODUCT(($B$5:$F$14=AT11)*($CE$5:$CE$14))+SUMPRODUCT(($I$5:$M$14=AT11)*($CF$5:$CF$14))+'J03'!BG11 -> 0 | BH11: =SUMPRODUCT(($B$5:$F$14=AT11)*($CG$5:$CG$14))+SUMPRODUCT(($I$5:$M$14=AT11)*($CH$5:$CH$14))+'J03'!BH11 -> 5 | BI11: =SUMPRODUCT(($B$5:$F$14=AT11)*($CI$5:$CI$14))+SUMPRODUCT(($I$5:$M$14=AT11)*($CJ$5:$CJ$14))+'J03'!BI11 -> 0 | BJ11: 5 | BK11: =SUMPRODUCT(($B$5:$F$14=AT11)*($CK$5:$CK$14))+'J03'!BK11 -> 1 | BL11: =SUMPRODUCT(($B$5:$F$14=AT11)*($CL$5:$CL$14))+'J03'!BL11 -> 1 | BM11: =SUMPRODUCT(($B$5:$F$14=AT11)*($CM$5:$CM$14))+'J03'!BM11 -> 0 | BN11: =SUMPRODUCT(($I$5:$M$14=AT11)*($CN$5:$CN$14))+'J03'!BN11 -> 2 | BO11: =SUMPRODUCT(($I$5:$M$14=AT11)*($CO$5:$CO$14))+'J03'!BO11 -> 0 | BP11: =SUMPRODUCT(($I$5:$M$14=AT11)*($CP$5:$CP$14))+'J03'!BP11 -> 0 | BQ11: 10000.055 | BR11: =BQ11+0.0000008 -> 10000.055 | BS11: 0 | BT11: 0 | BU11: 0 | BV11: 3 | BW11: 0 | BX11: 3 | BY11: 1 | BZ11: 1 | CA11: FALSE | CB11: 1 | CC11: FALSE | CD11: FALSE | CE11: 1 | CF11: FALSE | CG11: 1 | CH11: 2 | CI11: 2 | CJ11: 1 | CK11: FALSE | CL11: FALSE | CM11: 1 | CN11: 1 | CO11: FALSE | CP11: FALSE | CQ11: HSMK | CR11: 5000.005 | CS11: 7 | CT11: AHDOZ
V12: AWSOM | AA12: -1 | AB12: q | AC12: 8 | AD12: 5 | AE12: 4 | AF12: 1 | AG12: 2 | AH12: 1 | AI12: 3 | AJ12: 4 | AK12: -1 | AL12: 0 | AM12: 2 | AN12: 0 | AO12: 1 | AP12: 0 | AQ12: 1 | AR12: 8 | AS12: 14 | AT12: ='J01'!AT12:AX12 -> USB | AY12: 14 | AZ12: ='J03'!AY12-AY12 -> 0 | BA12: =IF(AY12>'J03'!AY12,'J03'!$BA$20,IF(AY12='J03'!AY12,'J03'!$AZ$20,IF(AY12<'J03'!AY12,'J03'!$AY$20))) -> u | BB12: 14 | BC12: =SUMPRODUCT(($B$5:$F$14=AT12)*($BW$5:$BW$14))+SUMPRODUCT(($I$5:$M$14=AT12)*($BX$5:$BX$14))+'J03'!BC12 -> 1 | BD12: =SUMPRODUCT(($B$5:$F$14=AT12)*($BY$5:$BY$14))+SUMPRODUCT(($I$5:$M$14=AT12)*($BZ$5:$BZ$14))+'J03'!BD12 -> 4 | BE12: =SUMPRODUCT(($B$5:$F$14=AT12)*($CA$5:$CA$14))+SUMPRODUCT(($I$5:$M$14=AT12)*($CB$5:$CB$14))+'J03'!BE12 -> 0 | BF12: =SUMPRODUCT(($B$5:$F$14=AT12)*($CC$5:$CC$14))+SUMPRODUCT(($I$5:$M$14=AT12)*($CD$5:$CD$14))+'J03'!BF12 -> 1 | BG12: =SUMPRODUCT(($B$5:$F$14=AT12)*($CE$5:$CE$14))+SUMPRODUCT(($I$5:$M$14=AT12)*($CF$5:$CF$14))+'J03'!BG12 -> 3 | BH12: =SUMPRODUCT(($B$5:$F$14=AT12)*($CG$5:$CG$14))+SUMPRODUCT(($I$5:$M$14=AT12)*($CH$5:$CH$14))+'J03'!BH12 -> 0 | BI12: =SUMPRODUCT(($B$5:$F$14=AT12)*($CI$5:$CI$14))+SUMPRODUCT(($I$5:$M$14=AT12)*($CJ$5:$CJ$14))+'J03'!BI12 -> 4 | BJ12: -4 | BK12: =SUMPRODUCT(($B$5:$F$14=AT12)*($CK$5:$CK$14))+'J03'!BK12 -> 0 | BL12: =SUMPRODUCT(($B$5:$F$14=AT12)*($CL$5:$CL$14))+'J03'!BL12 -> 0 | BM12: =SUMPRODUCT(($B$5:$F$14=AT12)*($CM$5:$CM$14))+'J03'!BM12 -> 2 | BN12: =SUMPRODUCT(($I$5:$M$14=AT12)*($CN$5:$CN$14))+'J03'!BN12 -> 0 | BO12: =SUMPRODUCT(($I$5:$M$14=AT12)*($CO$5:$CO$14))+'J03'!BO12 -> 1 | BP12: =SUMPRODUCT(($I$5:$M$14=AT12)*($CP$5:$CP$14))+'J03'!BP12 -> 1 | BQ12: 999.96 | BR12: =BQ12+0.0000007 -> 999.9600007 | BS12: 0 | BT12: 0 | BU12: 0 | BV12: 0 | BW12: 0 | BX12: 0 | BY12: 0 | BZ12: 0 | CA12: FALSE | CB12: FALSE | CC12: FALSE | CD12: FALSE | CE12: FALSE | CF12: FALSE | CG12: 0 | CH12: 0 | CI12: 0 | CJ12: 0 | CK12: FALSE | CL12: FALSE | CM12: FALSE | CN12: FALSE | CO12: FALSE | CP12: FALSE | CQ12: AWSOM | CR12: 4999.993 | CS12: 8 | CT12: USB
V13: JSOA | AA13: -5 | AB13: q | AC13: 9 | AD13: 4 | AE13: 4 | AF13: 1 | AG13: 1 | AH13: 2 | AI13: 5 | AJ13: 4 | AK13: 1 | AL13: 0 | AM13: 0 | AN13: 2 | AO13: 1 | AP13: 1 | AQ13: 0 | AR13: 9 | AS13: 5 | AT13: ='J01'!AT13:AX13 -> ALC | AY13: 5 | AZ13: ='J03'!AY13-AY13 -> 4 | BA13: =IF(AY13>'J03'!AY13,'J03'!$BA$20,IF(AY13='J03'!AY13,'J03'!$AZ$20,IF(AY13<'J03'!AY13,'J03'!$AY$20))) -> p | BB13: 5 | BC13: =SUMPRODUCT(($B$5:$F$14=AT13)*($BW$5:$BW$14))+SUMPRODUCT(($I$5:$M$14=AT13)*($BX$5:$BX$14))+'J03'!BC13 -> 7 | BD13: =SUMPRODUCT(($B$5:$F$14=AT13)*($BY$5:$BY$14))+SUMPRODUCT(($I$5:$M$14=AT13)*($BZ$5:$BZ$14))+'J03'!BD13 -> 4 | BE13: =SUMPRODUCT(($B$5:$F$14=AT13)*($CA$5:$CA$14))+SUMPRODUCT(($I$5:$M$14=AT13)*($CB$5:$CB$14))+'J03'!BE13 -> 2 | BF13: =SUMPRODUCT(($B$5:$F$14=AT13)*($CC$5:$CC$14))+SUMPRODUCT(($I$5:$M$14=AT13)*($CD$5:$CD$14))+'J03'!BF13 -> 1 | BG13: =SUMPRODUCT(($B$5:$F$14=AT13)*($CE$5:$CE$14))+SUMPRODUCT(($I$5:$M$14=AT13)*($CF$5:$CF$14))+'J03'!BG13 -> 1 | BH13: =SUMPRODUCT(($B$5:$F$14=AT13)*($CG$5:$CG$14))+SUMPRODUCT(($I$5:$M$14=AT13)*($CH$5:$CH$14))+'J03'!BH13 -> 4 | BI13: =SUMPRODUCT(($B$5:$F$14=AT13)*($CI$5:$CI$14))+SUMPRODUCT(($I$5:$M$14=AT13)*($CJ$5:$CJ$14))+'J03'!BI13 -> 5 | BJ13: -1 | BK13: =SUMPRODUCT(($B$5:$F$14=AT13)*($CK$5:$CK$14))+'J03'!BK13 -> 1 | BL13: =SUMPRODUCT(($B$5:$F$14=AT13)*($CL$5:$CL$14))+'J03'!BL13 -> 0 | BM13: =SUMPRODUCT(($B$5:$F$14=AT13)*($CM$5:$CM$14))+'J03'!BM13 -> 1 | BN13: =SUMPRODUCT(($I$5:$M$14=AT13)*($CN$5:$CN$14))+'J03'!BN13 -> 1 | BO13: =SUMPRODUCT(($I$5:$M$14=AT13)*($CO$5:$CO$14))+'J03'!BO13 -> 1 | BP13: =SUMPRODUCT(($I$5:$M$14=AT13)*($CP$5:$CP$14))+'J03'!BP13 -> 0 | BQ13: 6999.994 | BR13: =BQ13+0.0000006 -> 6999.994001 | BS13: 0 | BT13: 0 | BU13: 0 | BV13: 0 | BW13: 0 | BX13: 0 | BY13: 0 | BZ13: 0 | CA13: FALSE | CB13: FALSE | CC13: FALSE | CD13: FALSE | CE13: FALSE | CF13: FALSE | CG13: 0 | CH13: 0 | CI13: 0 | CJ13: 0 | CK13: FALSE | CL13: FALSE | CM13: FALSE | CN13: FALSE | CO13: FALSE | CP13: FALSE | CQ13: JSOA | CR13: 4000.015 | CS13: 9 | CT13: ALC
V14: ESMB | AA14: -5 | AB14: q | AC14: 10 | AD14: 4 | AE14: 4 | AF14: 1 | AG14: 1 | AH14: 2 | AI14: 6 | AJ14: 8 | AK14: -2 | AL14: 0 | AM14: 1 | AN14: 1 | AO14: 1 | AP14: 0 | AQ14: 1 | AR14: 10 | AS14: 12 | AT14: ='J01'!AT14:AX14 -> AUSAF | AY14: 12 | AZ14: ='J03'!AY14-AY14 -> -2 | BA14: =IF(AY14>'J03'!AY14,'J03'!$BA$20,IF(AY14='J03'!AY14,'J03'!$AZ$20,IF(AY14<'J03'!AY14,'J03'!$AY$20))) -> q | BB14: 12 | BC14: =SUMPRODUCT(($B$5:$F$14=AT14)*($BW$5:$BW$14))+SUMPRODUCT(($I$5:$M$14=AT14)*($BX$5:$BX$14))+'J03'!BC14 -> 3 | BD14: =SUMPRODUCT(($B$5:$F$14=AT14)*($BY$5:$BY$14))+SUMPRODUCT(($I$5:$M$14=AT14)*($BZ$5:$BZ$14))+'J03'!BD14 -> 4 | BE14: =SUMPRODUCT(($B$5:$F$14=AT14)*($CA$5:$CA$14))+SUMPRODUCT(($I$5:$M$14=AT14)*($CB$5:$CB$14))+'J03'!BE14 -> 1 | BF14: =SUMPRODUCT(($B$5:$F$14=AT14)*($CC$5:$CC$14))+SUMPRODUCT(($I$5:$M$14=AT14)*($CD$5:$CD$14))+'J03'!BF14 -> 0 | BG14: =SUMPRODUCT(($B$5:$F$14=AT14)*($CE$5:$CE$14))+SUMPRODUCT(($I$5:$M$14=AT14)*($CF$5:$CF$14))+'J03'!BG14 -> 3 | BH14: =SUMPRODUCT(($B$5:$F$14=AT14)*($CG$5:$CG$14))+SUMPRODUCT(($I$5:$M$14=AT14)*($CH$5:$CH$14))+'J03'!BH14 -> 2 | BI14: =SUMPRODUCT(($B$5:$F$14=AT14)*($CI$5:$CI$14))+SUMPRODUCT(($I$5:$M$14=AT14)*($CJ$5:$CJ$14))+'J03'!BI14 -> 3 | BJ14: -1 | BK14: =SUMPRODUCT(($B$5:$F$14=AT14)*($CK$5:$CK$14))+'J03'!BK14 -> 0 | BL14: =SUMPRODUCT(($B$5:$F$14=AT14)*($CL$5:$CL$14))+'J03'!BL14 -> 0 | BM14: =SUMPRODUCT(($B$5:$F$14=AT14)*($CM$5:$CM$14))+'J03'!BM14 -> 2 | BN14: =SUMPRODUCT(($I$5:$M$14=AT14)*($CN$5:$CN$14))+'J03'!BN14 -> 1 | BO14: =SUMPRODUCT(($I$5:$M$14=AT14)*($CO$5:$CO$14))+'J03'!BO14 -> 0 | BP14: =SUMPRODUCT(($I$5:$M$14=AT14)*($CP$5:$CP$14))+'J03'!BP14 -> 1 | BQ14: 2999.992 | BR14: =BQ14+0.0000005 -> 2999.992 | BS14: 0 | BT14: 0 | BU14: 0 | BV14: 0 | BW14: 0 | BX14: 0 | BY14: 0 | BZ14: 0 | CA14: FALSE | CB14: FALSE | CC14: FALSE | CD14: FALSE | CE14: FALSE | CF14: FALSE | CG14: 0 | CH14: 0 | CI14: 0 | CJ14: 0 | CK14: FALSE | CL14: FALSE | CM14: FALSE | CN14: FALSE | CO14: FALSE | CP14: FALSE | CQ14: ESMB | CR14: 3999.986 | CS14: 10 | CT14: AUSAF
V15: AJAK | AA15: 0 | AB15: u | AC15: 11 | AD15: 4 | AE15: 4 | AF15: 1 | AG15: 1 | AH15: 2 | AI15: 2 | AJ15: 7 | AK15: -5 | AL15: 0 | AM15: 0 | AN15: 2 | AO15: 1 | AP15: 1 | AQ15: 0 | AR15: 11 | AS15: 9 | AT15: ='J01'!AT15:AX15 -> JSOA | AY15: 9 | AZ15: ='J03'!AY15-AY15 -> -5 | BA15: =IF(AY15>'J03'!AY15,'J03'!$BA$20,IF(AY15='J03'!AY15,'J03'!$AZ$20,IF(AY15<'J03'!AY15,'J03'!$AY$20))) -> q | BB15: 9 | BC15: =SUMPRODUCT(($B$5:$F$14=AT15)*($BW$5:$BW$14))+SUMPRODUCT(($I$5:$M$14=AT15)*($BX$5:$BX$14))+'J03'!BC15 -> 4 | BD15: =SUMPRODUCT(($B$5:$F$14=AT15)*($BY$5:$BY$14))+SUMPRODUCT(($I$5:$M$14=AT15)*($BZ$5:$BZ$14))+'J03'!BD15 -> 4 | BE15: =SUMPRODUCT(($B$5:$F$14=AT15)*($CA$5:$CA$14))+SUMPRODUCT(($I$5:$M$14=AT15)*($CB$5:$CB$14))+'J03'!BE15 -> 1 | BF15: =SUMPRODUCT(($B$5:$F$14=AT15)*($CC$5:$CC$14))+SUMPRODUCT(($I$5:$M$14=AT15)*($CD$5:$CD$14))+'J03'!BF15 -> 1 | BG15: =SUMPRODUCT(($B$5:$F$14=AT15)*($CE$5:$CE$14))+SUMPRODUCT(($I$5:$M$14=AT15)*($CF$5:$CF$14))+'J03'!BG15 -> 2 | BH15: =SUMPRODUCT(($B$5:$F$14=AT15)*($CG$5:$CG$14))+SUMPRODUCT(($I$5:$M$14=AT15)*($CH$5:$CH$14))+'J03'!BH15 -> 5 | BI15: =SUMPRODUCT(($B$5:$F$14=AT15)*($CI$5:$CI$14))+SUMPRODUCT(($I$5:$M$14=AT15)*($CJ$5:$CJ$14))+'J03'!BI15 -> 4 | BJ15: 1 | BK15: =SUMPRODUCT(($B$5:$F$14=AT15)*($CK$5:$CK$14))+'J03'!BK15 -> 0 | BL15: =SUMPRODUCT(($B$5:$F$14=AT15)*($CL$5:$CL$14))+'J03'!BL15 -> 0 | BM15: =SUMPRODUCT(($B$5:$F$14=AT15)*($CM$5:$CM$14))+'J03'!BM15 -> 2 | BN15: =SUMPRODUCT(($I$5:$M$14=AT15)*($CN$5:$CN$14))+'J03'!BN15 -> 1 | BO15: =SUMPRODUCT(($I$5:$M$14=AT15)*($CO$5:$CO$14))+'J03'!BO15 -> 1 | BP15: =SUMPRODUCT(($I$5:$M$14=AT15)*($CP$5:$CP$14))+'J03'!BP15 -> 0 | BQ15: 4000.015 | BR15: =BQ15+0.0000004 -> 4000.015 | CQ15: AJAK | CR15: 3999.952 | CS15: 11 | CT15: JSOA
V16: AUSAF | AA16: -2 | AB16: q | AC16: 12 | AD16: 3 | AE16: 4 | AF16: 1 | AG16: 0 | AH16: 3 | AI16: 2 | AJ16: 3 | AK16: -1 | AL16: 0 | AM16: 0 | AN16: 2 | AO16: 1 | AP16: 0 | AQ16: 1 | AR16: 12 | AS16: 8 | AT16: ='J01'!AT16:AX16 -> AWSOM | AY16: 8 | AZ16: ='J03'!AY16-AY16 -> -1 | BA16: =IF(AY16>'J03'!AY16,'J03'!$BA$20,IF(AY16='J03'!AY16,'J03'!$AZ$20,IF(AY16<'J03'!AY16,'J03'!$AY$20))) -> q | BB16: 8 | BC16: =SUMPRODUCT(($B$5:$F$14=AT16)*($BW$5:$BW$14))+SUMPRODUCT(($I$5:$M$14=AT16)*($BX$5:$BX$14))+'J03'!BC16 -> 5 | BD16: =SUMPRODUCT(($B$5:$F$14=AT16)*($BY$5:$BY$14))+SUMPRODUCT(($I$5:$M$14=AT16)*($BZ$5:$BZ$14))+'J03'!BD16 -> 4 | BE16: =SUMPRODUCT(($B$5:$F$14=AT16)*($CA$5:$CA$14))+SUMPRODUCT(($I$5:$M$14=AT16)*($CB$5:$CB$14))+'J03'!BE16 -> 1 | BF16: =SUMPRODUCT(($B$5:$F$14=AT16)*($CC$5:$CC$14))+SUMPRODUCT(($I$5:$M$14=AT16)*($CD$5:$CD$14))+'J03'!BF16 -> 2 | BG16: =SUMPRODUCT(($B$5:$F$14=AT16)*($CE$5:$CE$14))+SUMPRODUCT(($I$5:$M$14=AT16)*($CF$5:$CF$14))+'J03'!BG16 -> 1 | BH16: =SUMPRODUCT(($B$5:$F$14=AT16)*($CG$5:$CG$14))+SUMPRODUCT(($I$5:$M$14=AT16)*($CH$5:$CH$14))+'J03'!BH16 -> 3 | BI16: =SUMPRODUCT(($B$5:$F$14=AT16)*($CI$5:$CI$14))+SUMPRODUCT(($I$5:$M$14=AT16)*($CJ$5:$CJ$14))+'J03'!BI16 -> 4 | BJ16: -1 | BK16: =SUMPRODUCT(($B$5:$F$14=AT16)*($CK$5:$CK$14))+'J03'!BK16 -> 0 | BL16: =SUMPRODUCT(($B$5:$F$14=AT16)*($CL$5:$CL$14))+'J03'!BL16 -> 2 | BM16: =SUMPRODUCT(($B$5:$F$14=AT16)*($CM$5:$CM$14))+'J03'!BM16 -> 0 | BN16: =SUMPRODUCT(($I$5:$M$14=AT16)*($CN$5:$CN$14))+'J03'!BN16 -> 1 | BO16: =SUMPRODUCT(($I$5:$M$14=AT16)*($CO$5:$CO$14))+'J03'!BO16 -> 0 | BP16: =SUMPRODUCT(($I$5:$M$14=AT16)*($CP$5:$CP$14))+'J03'!BP16 -> 1 | BQ16: 4999.993 | BR16: =BQ16+0.0000003 -> 4999.993 | CQ16: AUSAF | CR16: 2999.992 | CS16: 12 | CT16: AWSOM
V17: CUSL | AA17: -1 | AB17: q | AC17: 13 | AD17: 2 | AE17: 4 | AF17: 0 | AG17: 2 | AH17: 2 | AI17: 5 | AJ17: 11 | AK17: -6 | AL17: 0 | AM17: 1 | AN17: 1 | AO17: 0 | AP17: 1 | AQ17: 1 | AR17: 13 | AS17: 7 | AT17: ='J01'!AT17:AX17 -> HSMK | AY17: 7 | AZ17: ='J03'!AY17-AY17 -> -1 | BA17: =IF(AY17>'J03'!AY17,'J03'!$BA$20,IF(AY17='J03'!AY17,'J03'!$AZ$20,IF(AY17<'J03'!AY17,'J03'!$AY$20))) -> q | BB17: 7 | BC17: =SUMPRODUCT(($B$5:$F$14=AT17)*($BW$5:$BW$14))+SUMPRODUCT(($I$5:$M$14=AT17)*($BX$5:$BX$14))+'J03'!BC17 -> 5 | BD17: =SUMPRODUCT(($B$5:$F$14=AT17)*($BY$5:$BY$14))+SUMPRODUCT(($I$5:$M$14=AT17)*($BZ$5:$BZ$14))+'J03'!BD17 -> 4 | BE17: =SUMPRODUCT(($B$5:$F$14=AT17)*($CA$5:$CA$14))+SUMPRODUCT(($I$5:$M$14=AT17)*($CB$5:$CB$14))+'J03'!BE17 -> 1 | BF17: =SUMPRODUCT(($B$5:$F$14=AT17)*($CC$5:$CC$14))+SUMPRODUCT(($I$5:$M$14=AT17)*($CD$5:$CD$14))+'J03'!BF17 -> 2 | BG17: =SUMPRODUCT(($B$5:$F$14=AT17)*($CE$5:$CE$14))+SUMPRODUCT(($I$5:$M$14=AT17)*($CF$5:$CF$14))+'J03'!BG17 -> 1 | BH17: =SUMPRODUCT(($B$5:$F$14=AT17)*($CG$5:$CG$14))+SUMPRODUCT(($I$5:$M$14=AT17)*($CH$5:$CH$14))+'J03'!BH17 -> 5 | BI17: =SUMPRODUCT(($B$5:$F$14=AT17)*($CI$5:$CI$14))+SUMPRODUCT(($I$5:$M$14=AT17)*($CJ$5:$CJ$14))+'J03'!BI17 -> 5 | BJ17: 0 | BK17: =SUMPRODUCT(($B$5:$F$14=AT17)*($CK$5:$CK$14))+'J03'!BK17 -> 1 | BL17: =SUMPRODUCT(($B$5:$F$14=AT17)*($CL$5:$CL$14))+'J03'!BL17 -> 0 | BM17: =SUMPRODUCT(($B$5:$F$14=AT17)*($CM$5:$CM$14))+'J03'!BM17 -> 1 | BN17: =SUMPRODUCT(($I$5:$M$14=AT17)*($CN$5:$CN$14))+'J03'!BN17 -> 0 | BO17: =SUMPRODUCT(($I$5:$M$14=AT17)*($CO$5:$CO$14))+'J03'!BO17 -> 2 | BP17: =SUMPRODUCT(($I$5:$M$14=AT17)*($CP$5:$CP$14))+'J03'!BP17 -> 0 | BQ17: 5000.005 | BR17: =BQ17+0.0000002 -> 5000.005 | CQ17: CUSL | CR17: 1999.945 | CS17: 13 | CT17: HSMK
V18: USB | AA18: 0 | AB18: u | AC18: 14 | AD18: 1 | AE18: 4 | AF18: 0 | AG18: 1 | AH18: 3 | AI18: 0 | AJ18: 4 | AK18: -4 | AL18: 0 | AM18: 0 | AN18: 2 | AO18: 0 | AP18: 1 | AQ18: 1 | AR18: 14 | AS18: 10 | AT18: ='J01'!AT18:AX18 -> ESMB | AY18: 10 | AZ18: ='J03'!AY18-AY18 -> -5 | BA18: =IF(AY18>'J03'!AY18,'J03'!$BA$20,IF(AY18='J03'!AY18,'J03'!$AZ$20,IF(AY18<'J03'!AY18,'J03'!$AY$20))) -> q | BB18: 10 | BC18: =SUMPRODUCT(($B$5:$F$14=AT18)*($BW$5:$BW$14))+SUMPRODUCT(($I$5:$M$14=AT18)*($BX$5:$BX$14))+'J03'!BC18 -> 4 | BD18: =SUMPRODUCT(($B$5:$F$14=AT18)*($BY$5:$BY$14))+SUMPRODUCT(($I$5:$M$14=AT18)*($BZ$5:$BZ$14))+'J03'!BD18 -> 4 | BE18: =SUMPRODUCT(($B$5:$F$14=AT18)*($CA$5:$CA$14))+SUMPRODUCT(($I$5:$M$14=AT18)*($CB$5:$CB$14))+'J03'!BE18 -> 1 | BF18: =SUMPRODUCT(($B$5:$F$14=AT18)*($CC$5:$CC$14))+SUMPRODUCT(($I$5:$M$14=AT18)*($CD$5:$CD$14))+'J03'!BF18 -> 1 | BG18: =SUMPRODUCT(($B$5:$F$14=AT18)*($CE$5:$CE$14))+SUMPRODUCT(($I$5:$M$14=AT18)*($CF$5:$CF$14))+'J03'!BG18 -> 2 | BH18: =SUMPRODUCT(($B$5:$F$14=AT18)*($CG$5:$CG$14))+SUMPRODUCT(($I$5:$M$14=AT18)*($CH$5:$CH$14))+'J03'!BH18 -> 6 | BI18: =SUMPRODUCT(($B$5:$F$14=AT18)*($CI$5:$CI$14))+SUMPRODUCT(($I$5:$M$14=AT18)*($CJ$5:$CJ$14))+'J03'!BI18 -> 8 | BJ18: -2 | BK18: =SUMPRODUCT(($B$5:$F$14=AT18)*($CK$5:$CK$14))+'J03'!BK18 -> 0 | BL18: =SUMPRODUCT(($B$5:$F$14=AT18)*($CL$5:$CL$14))+'J03'!BL18 -> 1 | BM18: =SUMPRODUCT(($B$5:$F$14=AT18)*($CM$5:$CM$14))+'J03'!BM18 -> 1 | BN18: =SUMPRODUCT(($I$5:$M$14=AT18)*($CN$5:$CN$14))+'J03'!BN18 -> 1 | BO18: =SUMPRODUCT(($I$5:$M$14=AT18)*($CO$5:$CO$14))+'J03'!BO18 -> 0 | BP18: =SUMPRODUCT(($I$5:$M$14=AT18)*($CP$5:$CP$14))+'J03'!BP18 -> 1 | BQ18: 3999.986 | BR18: =BQ18+0.0000001 -> 3999.986 | CQ18: USB | CR18: 999.96 | CS18: 14 | CT18: ESMB
AO19: Buts/Journée | AY19: p | AZ19: u | BA19: q
AO20: =SUM(G5:H14) -> 19 | AY20: p | AZ20: u | BA20: q
AO22: Total Buts du Championnat
AO24: =AO20+'J03'!AO24:AP25 -> 68
AO26: Moyenne générale
AO28: =IF(AE5=0,"",SUM(AI5:AI24)/SUM(AE5:AE24)*2) -> 2.428571429

Sheet J05
A1: ='J01'!A1:C2 -> Nom du Championnat | I1: ='J01'!H1:K2 -> 2017-2018 | O1: JOURNEE 05 | V1: CLASSEMENT | AT1: CLASSEMENT | BS1: Domicile | BT1: Extérieur | BU1: Domicile | BV1: Extérieur | BW1: Domicile | BX1: Extérieur | BY1: Domicile | BZ1: Extérieur | CA1: Domicile | CB1: Extérieur | CC1: Domicile | CD1: Extérieur | CE1: Domicile | CF1: Extérieur | CG1: Domicile | CH1: Extérieur | CI1: Domicile | CJ1: Extérieur
A3: P | B3: Equipes | G3: Buts | H3: Buts | I3: Equipes | N3: P | O3: Dates | S3: Heure | V3: Equipes | AA3: Evolution | AC3: Place | AD3: Pts | AE3: J | AF3: G | AG3: N | AH3: P | AI3: B + | AJ3: B - | AK3: Diff. | AL3: Domicile | AO3: Extérieur | AT3: Equipes | AY3: R | AZ3: Evolution | BB3: R | BC3: Pts | BD3: J | BE3: G | BF3: N | BG3: P | BH3: B + | BI3: B - | BJ3: Diff. | BK3: Domicile | BN3: Extérieur | CK3: Domicile | CN3: Extérieur
AL4: G | AM4: N | AN4: P | AO4: G | AP4: N | AQ4: P | AS4: R | BK4: G | BL4: N | BM4: P | BN4: G | BO4: N | BP4: P | BQ4: % | BR4: % | BS4: P | BT4: P | BU4: Pts | BV4: Pts | BW4: T Pt | BX4: T Pt | BY4: J | BZ4: J | CA4: G | CB4: G | CC4: N | CD4: N | CE4: P | CF4: P | CG4: B + | CH4: B + | CI4: B - | CJ4: B - | CK4: G | CL4: N | CM4: P | CN4: G | CO4: N | CP4: P | CQ4: Equipes | CR4: % | CS4: R | CT4: Equipes
V5: =VLOOKUP(AR5,$AS$5:$AX$18,2,0) -> ASUD | AA5: =VLOOKUP(V5,$AT$5:$BP$18,7,0) -> 0 | AB5: =VLOOKUP(V5,$AT$5:$BP$18,8,0) -> u | AC5: 1 | AD5: =VLOOKUP(V5,$AT$5:$BP$18,10,0) -> 10 | AE5: =VLOOKUP(V5,$AT$5:$BP$18,11,0) -> 4 | AF5: =VLOOKUP(V5,$AT$5:$BP$18,12,0) -> 3 | AG5: =VLOOKUP(V5,$AT$5:$BP$18,13,0) -> 1 | AH5: =VLOOKUP(V5,$AT$5:$BP$18,14,0) -> 0 | AI5: =VLOOKUP(V5,$AT$5:$BP$18,15,0) -> 16 | AJ5: =VLOOKUP(V5,$AT$5:$BP$18,16,0) -> 5 | AK5: =VLOOKUP(V5,$AT$5:$BP$18,17,0) -> 11 | AL5: =VLOOKUP(V5,$AT$5:$BP$18,18,0) -> 2 | AM5: =VLOOKUP(V5,$AT$5:$BP$18,19,0) -> 0 | AN5: =VLOOKUP(V5,$AT$5:$BP$18,20,0) -> 0 | AO5: =VLOOKUP(V5,$AT$5:$BP$18,21,0) -> 1 | AP5: =VLOOKUP(V5,$AT$5:$BP$18,22,0) -> 1 | AQ5: =VLOOKUP(V5,$AT$5:$BP$18,23,0) -> 0 | AR5: 1 | AS5: =BB5 -> 6 | AT5: ='J01'!AT5:AX5 -> AUSBK | AY5: =RANK(BQ5,$BQ$5:$BQ$18) -> 6 | AZ5: ='J04'!AY5-AY5 -> 0 | BA5: =IF(AY5>'J04'!AY5,'J04'!$BA$20,IF(AY5='J04'!AY5,'J04'!$AZ$20,IF(AY5<'J04'!AY5,'J04'!$AY$20))) -> u | BB5: =RANK(BR5,$BR$5:$BR$18) -> 6 | BC5: =SUMPRODUCT(($B$5:$F$14=AT5)*($BW$5:$BW$14))+SUMPRODUCT(($I$5:$M$14=AT5)*($BX$5:$BX$14))+'J04'!BC5 -> 5 | BD5: =SUMPRODUCT(($B$5:$F$14=AT5)*($BY$5:$BY$14))+SUMPRODUCT(($I$5:$M$14=AT5)*($BZ$5:$BZ$14))+'J04'!BD5 -> 4 | BE5: =SUMPRODUCT(($B$5:$F$14=AT5)*($CA$5:$CA$14))+SUMPRODUCT(($I$5:$M$14=AT5)*($CB$5:$CB$14))+'J04'!BE5 -> 1 | BF5: =SUMPRODUCT(($B$5:$F$14=AT5)*($CC$5:$CC$14))+SUMPRODUCT(($I$5:$M$14=AT5)*($CD$5:$CD$14))+'J04'!BF5 -> 2 | BG5: =SUMPRODUCT(($B$5:$F$14=AT5)*($CE$5:$CE$14))+SUMPRODUCT(($I$5:$M$14=AT5)*($CF$5:$CF$14))+'J04'!BG5 -> 1 | BH5: =SUMPRODUCT(($B$5:$F$14=AT5)*($CG$5:$CG$14))+SUMPRODUCT(($I$5:$M$14=AT5)*($CH$5:$CH$14))+'J04'!BH5 -> 7 | BI5: =SUMPRODUCT(($B$5:$F$14=AT5)*($CI$5:$CI$14))+SUMPRODUCT(($I$5:$M$14=AT5)*($CJ$5:$CJ$14))+'J04'!BI5 -> 7 | BJ5: =BH5-BI5 -> 0 | BK5: =SUMPRODUCT(($B$5:$F$14=AT5)*($CK$5:$CK$14))+'J04'!BK5 -> 0 | BL5: =SUMPRODUCT(($B$5:$F$14=AT5)*($CL$5:$CL$14))+'J04'!BL5 -> 2 | BM5: =SUMPRODUCT(($B$5:$F$14=AT5)*($CM$5:$CM$14))+'J04'!BM5 -> 0 | BN5: =SUMPRODUCT(($I$5:$M$14=AT5)*($CN$5:$CN$14))+'J04'!BN5 -> 1 | BO5: =SUMPRODUCT(($I$5:$M$14=AT5)*($CO$5:$CO$14))+'J04'!BO5 -> 0 | BP5: =SUMPRODUCT(($I$5:$M$14=AT5)*($CP$5:$CP$14))+'J04'!BP5 -> 1 | BQ5: =SUM(BC5*1000+(BJ5)/100+(BH5)/1000) -> 5000.007 | BR5: =BQ5+0.0000014 -> 5000.007001 | BS5: =A5 -> 0 | BT5: =N5 -> 0 | BU5: =IF(G5="",0,IF(G5>H5,3,IF(G5=H5,1,IF(G5<H5,0)))) -> 0 | BV5: =IF(H5="",0,IF(H5>G5,3,IF(H5=G5,1,IF(H5<G5,0)))) -> 0 | BW5: =BU5-BS5 -> 0 | BX5: =BV5-BT5 -> 0 | BY5: =IF(G5="",0,1) -> 0 | BZ5: =IF(H5="",0,1) -> 0 | CA5: =IF(G5<>"",IF(G5>H5,1)) -> FALSE | CB5: =IF(H5<>"",IF(H5>G5,1)) -> FALSE | CC5: =IF(G5<>"",IF(G5=H5,1)) -> FALSE | CD5: =IF(H5<>"",IF(H5=G5,1)) -> FALSE | CE5: =IF(G5<>"",IF(G5<H5,1)) -> FALSE | CF5: =IF(H5<>"",IF(H5<G5,1)) -> FALSE | CG5: =G5 -> 0 | CH5: =H5 -> 0 | CI5: =H5 -> 0 | CJ5: =G5 -> 0 | CK5: =IF(G5<>"",IF(G5>H5,1)) -> FALSE | CL5: =IF(G5<>"",IF(G5=H5,1)) -> FALSE | CM5: =IF(G5<>"",IF(G5<H5,1)) -> FALSE | CN5: =IF(H5<>"",IF(H5>G5,1)) -> FALSE | CO5: =IF(H5<>"",IF(H5=G5,1)) -> FALSE | CP5: =IF(H5<>"",IF(H5<G5,1)) -> FALSE | CQ5: =VLOOKUP(AR5,$AS$5:$AX$18,2,0) -> ASUD | CR5: =VLOOKUP(CQ5,$AT$5:$BQ$18,24,0) -> 10000.126 | CS5: =RANK(CR5,$CR$5:$CR$18) -> 1 | CT5: =AT5 -> AUSBK
V6: AHDOZ | AA6: 0 | AB6: u | AC6: =IF(CR6=CR5,CS5,CS6) -> 2 | AD6: 10 | AE6: 4 | AF6: 3 | AG6: 1 | AH6: 0 | AI6: 5 | AJ6: 0 | AK6: 5 | AL6: 1 | AM6: 1 | AN6: =VLOOKUP(V6,$AT$5:$BP$18,20,0) -> 0 | AO6: 2 | AP6: =VLOOKUP(V6,$AT$5:$BP$18,22,0) -> 0 | AQ6: 0 | AR6: 2 | AS6: =BB6 -> 13 | AT6: ='J01'!AT6:AX6 -> CUSL | AY6: 13 | AZ6: ='J04'!AY6-AY6 -> 0 | BA6: =IF(AY6>'J04'!AY6,'J04'!$BA$20,IF(AY6='J04'!AY6,'J04'!$AZ$20,IF(AY6<'J04'!AY6,'J04'!$AY$20))) -> u | BB6: =RANK(BR6,$BR$5:$BR$18) -> 13 | BC6: =SUMPRODUCT(($B$5:$F$14=AT6)*($BW$5:$BW$14))+SUMPRODUCT(($I$5:$M$14=AT6)*($BX$5:$BX$14))+'J04'!BC6 -> 2 | BD6: =SUMPRODUCT(($B$5:$F$14=AT6)*($BY$5:$BY$14))+SUMPRODUCT(($I$5:$M$14=AT6)*($BZ$5:$BZ$14))+'J04'!BD6 -> 4 | BE6: =SUMPRODUCT(($B$5:$F$14=AT6)*($CA$5:$CA$14))+SUMPRODUCT(($I$5:$M$14=AT6)*($CB$5:$CB$14))+'J04'!BE6 -> 0 | BF6: =SUMPRODUCT(($B$5:$F$14=AT6)*($CC$5:$CC$14))+SUMPRODUCT(($I$5:$M$14=AT6)*($CD$5:$CD$14))+'J04'!BF6 -> 2 | BG6: =SUMPRODUCT(($B$5:$F$14=AT6)*($CE$5:$CE$14))+SUMPRODUCT(($I$5:$M$14=AT6)*($CF$5:$CF$14))+'J04'!BG6 -> 2 | BH6: =SUMPRODUCT(($B$5:$F$14=AT6)*($CG$5:$CG$14))+SUMPRODUCT(($I$5:$M$14=AT6)*($CH$5:$CH$14))+'J04'!BH6 -> 5 | BI6: =SUMPRODUCT(($B$5:$F$14=AT6)*($CI$5:$CI$14))+SUMPRODUCT(($I$5:$M$14=AT6)*($CJ$5:$CJ$14))+'J04'!BI6 -> 11 | BJ6: =BH6-BI6 -> -6 | BK6: =SUMPRODUCT(($B$5:$F$14=AT6)*($CK$5:$CK$14))+'J04'!BK6 -> 0 | BL6: =SUMPRODUCT(($B$5:$F$14=AT6)*($CL$5:$CL$14))+'J04'!BL6 -> 1 | BM6: =SUMPRODUCT(($B$5:$F$14=AT6)*($CM$5:$CM$14))+'J04'!BM6 -> 1 | BN6: =SUMPRODUCT(($I$5:$M$14=AT6)*($CN$5:$CN$14))+'J04'!BN6 -> 0 | BO6: =SUMPRODUCT(($I$5:$M$14=AT6)*($CO$5:$CO$14))+'J04'!BO6 -> 1 | BP6: =SUMPRODUCT(($I$5:$M$14=AT6)*($CP$5:$CP$14))+'J04'!BP6 -> 1 | BQ6: =SUM(BC6*1000+(BJ6)/100+(BH6)/1000) -> 1999.945 | BR6: =BQ6+0.0000013 -> 1999.945001 | BS6: =A6 -> 0 | BT6: =N6 -> 0 | BU6: =IF(G6="",0,IF(G6>H6,3,IF(G6=H6,1,IF(G6<H6,0)))) -> 0 | BV6: =IF(H6="",0,IF(H6>G6,3,IF(H6=G6,1,IF(H6<G6,0)))) -> 0 | BW6: =BU6-BS6 -> 0 | BX6: =BV6-BT6 -> 0 | BY6: =IF(G6="",0,1) -> 0 | BZ6: =IF(H6="",0,1) -> 0 | CA6: =IF(G6<>"",IF(G6>H6,1)) -> FALSE | CB6: =IF(H6<>"",IF(H6>G6,1)) -> FALSE | CC6: =IF(G6<>"",IF(G6=H6,1)) -> FALSE | CD6: =IF(H6<>"",IF(H6=G6,1)) -> FALSE | CE6: =IF(G6<>"",IF(G6<H6,1)) -> FALSE | CF6: =IF(H6<>"",IF(H6<G6,1)) -> FALSE | CG6: =G6 -> 0 | CH6: =H6 -> 0 | CI6: =H6 -> 0 | CJ6: =G6 -> 0 | CK6: =IF(G6<>"",IF(G6>H6,1)) -> FALSE | CL6: =IF(G6<>"",IF(G6=H6,1)) -> FALSE | CM6: =IF(G6<>"",IF(G6<H6,1)) -> FALSE | CN6: =IF(H6<>"",IF(H6>G6,1)) -> FALSE | CO6: =IF(H6<>"",IF(H6=G6,1)) -> FALSE | CP6: =IF(H6<>"",IF(H6<G6,1)) -> FALSE | CQ6: AHDOZ | CR6: 10000.055 | CS6: 2 | CT6: =AT6 -> CUSL
V7: CJBF | AA7: 0 | AB7: u | AC7: =IF(CR7=CR6,CS6,CS7) -> 3 | AD7: 8 | AE7: 4 | AF7: 2 | AG7: 2 | AH7: 0 | AI7: 5 | AJ7: 2 | AK7: 3 | AL7: 1 | AM7: 1 | AN7: 0 | AO7: 1 | AP7: 1 | AQ7: 0 | AR7: 3 | AS7: 4 | AT7: ='J01'!AT7:AX7 -> AUSA | AY7: 4 | AZ7: ='J04'!AY7-AY7 -> 0 | BA7: =IF(AY7>'J04'!AY7,'J04'!$BA$20,IF(AY7='J04'!AY7,'J04'!$AZ$20,IF(AY7<'J04'!AY7,'J04'!$AY$20))) -> u | BB7: 4 | BC7: =SUMPRODUCT(($B$5:$F$14=AT7)*($BW$5:$BW$14))+SUMPRODUCT(($I$5:$M$14=AT7)*($BX$5:$BX$14))+'J04'!BC7 -> 7 | BD7: =SUMPRODUCT(($B$5:$F$14=AT7)*($BY$5:$BY$14))+SUMPRODUCT(($I$5:$M$14=AT7)*($BZ$5:$BZ$14))+'J04'!BD7 -> 4 | BE7: =SUMPRODUCT(($B$5:$F$14=AT7)*($CA$5:$CA$14))+SUMPRODUCT(($I$5:$M$14=AT7)*($CB$5:$CB$14))+'J04'!BE7 -> 2 | BF7: =SUMPRODUCT(($B$5:$F$14=AT7)*($CC$5:$CC$14))+SUMPRODUCT(($I$5:$M$14=AT7)*($CD$5:$CD$14))+'J04'!BF7 -> 1 | BG7: =SUMPRODUCT(($B$5:$F$14=AT7)*($CE$5:$CE$14))+SUMPRODUCT(($I$5:$M$14=AT7)*($CF$5:$CF$14))+'J04'!BG7 -> 1 | BH7: =SUMPRODUCT(($B$5:$F$14=AT7)*($CG$5:$CG$14))+SUMPRODUCT(($I$5:$M$14=AT7)*($CH$5:$CH$14))+'J04'!BH7 -> 3 | BI7: =SUMPRODUCT(($B$5:$F$14=AT7)*($CI$5:$CI$14))+SUMPRODUCT(($I$5:$M$14=AT7)*($CJ$5:$CJ$14))+'J04'!BI7 -> 3 | BJ7: 0 | BK7: =SUMPRODUCT(($B$5:$F$14=AT7)*($CK$5:$CK$14))+'J04'!BK7 -> 1 | BL7: =SUMPRODUCT(($B$5:$F$14=AT7)*($CL$5:$CL$14))+'J04'!BL7 -> 1 | BM7: =SUMPRODUCT(($B$5:$F$14=AT7)*($CM$5:$CM$14))+'J04'!BM7 -> 0 | BN7: =SUMPRODUCT(($I$5:$M$14=AT7)*($CN$5:$CN$14))+'J04'!BN7 -> 1 | BO7: =SUMPRODUCT(($I$5:$M$14=AT7)*($CO$5:$CO$14))+'J04'!BO7 -> 0 | BP7: =SUMPRODUCT(($I$5:$M$14=AT7)*($CP$5:$CP$14))+'J04'!BP7 -> 1 | BQ7: 7000.003 | BR7: =BQ7+0.0000012 -> 7000.003001 | BS7: 0 | BT7: 0 | BU7: 0 | BV7: 0 | BW7: 0 | BX7: 0 | BY7: 0 | BZ7: 0 | CA7: FALSE | CB7: FALSE | CC7: FALSE | CD7: FALSE | CE7: FALSE | CF7: FALSE | CG7: 0 | CH7: 0 | CI7: 0 | CJ7: 0 | CK7: FALSE | CL7: FALSE | CM7: FALSE | CN7: FALSE | CO7: FALSE | CP7: FALSE | CQ7: CJBF | CR7: 8000.035 | CS7: 3 | CT7: AUSA
V8: AUSA | AA8: 0 | AB8: u | AC8: 4 | AD8: 7 | AE8: 4 | AF8: 2 | AG8: 1 | AH8: 1 | AI8: 3 | AJ8: 3 | AK8: 0 | AL8: 1 | AM8: 1 | AN8: 0 | AO8: 1 | AP8: 0 | AQ8: 1 | AR8: 4 | AS8: 3 | AT8: ='J01'!AT8:AX8 -> CJBF | AY8: 3 | AZ8: ='J04'!AY8-AY8 -> 0 | BA8: =IF(AY8>'J04'!AY8,'J04'!$BA$20,IF(AY8='J04'!AY8,'J04'!$AZ$20,IF(AY8<'J04'!AY8,'J04'!$AY$20))) -> u | BB8: 3 | BC8: =SUMPRODUCT(($B$5:$F$14=AT8)*($BW$5:$BW$14))+SUMPRODUCT(($I$5:$M$14=AT8)*($BX$5:$BX$14))+'J04'!BC8 -> 8 | BD8: =SUMPRODUCT(($B$5:$F$14=AT8)*($BY$5:$BY$14))+SUMPRODUCT(($I$5:$M$14=AT8)*($BZ$5:$BZ$14))+'J04'!BD8 -> 4 | BE8: =SUMPRODUCT(($B$5:$F$14=AT8)*($CA$5:$CA$14))+SUMPRODUCT(($I$5:$M$14=AT8)*($CB$5:$CB$14))+'J04'!BE8 -> 2 | BF8: =SUMPRODUCT(($B$5:$F$14=AT8)*($CC$5:$CC$14))+SUMPRODUCT(($I$5:$M$14=AT8)*($CD$5:$CD$14))+'J04'!BF8 -> 2 | BG8: =SUMPRODUCT(($B$5:$F$14=AT8)*($CE$5:$CE$14))+SUMPRODUCT(($I$5:$M$14=AT8)*($CF$5:$CF$14))+'J04'!BG8 -> 0 | BH8: =SUMPRODUCT(($B$5:$F$14=AT8)*($CG$5:$CG$14))+SUMPRODUCT(($I$5:$M$14=AT8)*($CH$5:$CH$14))+'J04'!BH8 -> 5 | BI8: =SUMPRODUCT(($B$5:$F$14=AT8)*($CI$5:$CI$14))+SUMPRODUCT(($I$5:$M$14=AT8)*($CJ$5:$CJ$14))+'J04'!BI8 -> 2 | BJ8: 3 | BK8: =SUMPRODUCT(($B$5:$F$14=AT8)*($CK$5:$CK$14))+'J04'!BK8 -> 1 | BL8: =SUMPRODUCT(($B$5:$F$14=AT8)*($CL$5:$CL$14))+'J04'!BL8 -> 1 | BM8: =SUMPRODUCT(($B$5:$F$14=AT8)*($CM$5:$CM$14))+'J04'!BM8 -> 0 | BN8: =SUMPRODUCT(($I$5:$M$14=AT8)*($CN$5:$CN$14))+'J04'!BN8 -> 1 | BO8: =SUMPRODUCT(($I$5:$M$14=AT8)*($CO$5:$CO$14))+'J04'!BO8 -> 1 | BP8: =SUMPRODUCT(($I$5:$M$14=AT8)*($CP$5:$CP$14))+'J04'!BP8 -> 0 | BQ8: 8000.035 | BR8: =BQ8+0.0000011 -> 8000.035001 | BS8: 0 | BT8: 0 | BU8: 0 | BV8: 0 | BW8: 0 | BX8: 0 | BY8: 0 | BZ8: 0 | CA8: FALSE | CB8: FALSE | CC8: FALSE | CD8: FALSE | CE8: FALSE | CF8: FALSE | CG8: 0 | CH8: 0 | CI8: 0 | CJ8: 0 | CK8: FALSE | CL8: FALSE | CM8: FALSE | CN8: FALSE | CO8: FALSE | CP8: FALSE | CQ8: AUSA | CR8: 7000.003 | CS8: 4 | CT8: CJBF
V9: ALC | AA9: 0 | AB9: u | AC9: 5 | AD9: 7 | AE9: 4 | AF9: 2 | AG9: 1 | AH9: 1 | AI9: 4 | AJ9: 5 | AK9: -1 | AL9: 1 | AM9: 0 | AN9: 1 | AO9: 1 | AP9: 1 | AQ9: 0 | AR9: 5 | AS9: 11 | AT9: ='J01'!AT9:AX9 -> AJAK | AY9: 11 | AZ9: ='J04'!AY9-AY9 -> 0 | BA9: =IF(AY9>'J04'!AY9,'J04'!$BA$20,IF(AY9='J04'!AY9,'J04'!$AZ$20,IF(AY9<'J04'!AY9,'J04'!$AY$20))) -> u | BB9: 11 | BC9: =SUMPRODUCT(($B$5:$F$14=AT9)*($BW$5:$BW$14))+SUMPRODUCT(($I$5:$M$14=AT9)*($BX$5:$BX$14))+'J04'!BC9 -> 4 | BD9: =SUMPRODUCT(($B$5:$F$14=AT9)*($BY$5:$BY$14))+SUMPRODUCT(($I$5:$M$14=AT9)*($BZ$5:$BZ$14))+'J04'!BD9 -> 4 | BE9: =SUMPRODUCT(($B$5:$F$14=AT9)*($CA$5:$CA$14))+SUMPRODUCT(($I$5:$M$14=AT9)*($CB$5:$CB$14))+'J04'!BE9 -> 1 | BF9: =SUMPRODUCT(($B$5:$F$14=AT9)*($CC$5:$CC$14))+SUMPRODUCT(($I$5:$M$14=AT9)*($CD$5:$CD$14))+'J04'!BF9 -> 1 | BG9: =SUMPRODUCT(($B$5:$F$14=AT9)*($CE$5:$CE$14))+SUMPRODUCT(($I$5:$M$14=AT9)*($CF$5:$CF$14))+'J04'!BG9 -> 2 | BH9: =SUMPRODUCT(($B$5:$F$14=AT9)*($CG$5:$CG$14))+SUMPRODUCT(($I$5:$M$14=AT9)*($CH$5:$CH$14))+'J04'!BH9 -> 2 | BI9: =SUMPRODUCT(($B$5:$F$14=AT9)*($CI$5:$CI$14))+SUMPRODUCT(($I$5:$M$14=AT9)*($CJ$5:$CJ$14))+'J04'!BI9 -> 7 | BJ9: -5 | BK9: =SUMPRODUCT(($B$5:$F$14=AT9)*($CK$5:$CK$14))+'J04'!BK9 -> 0 | BL9: =SUMPRODUCT(($B$5:$F$14=AT9)*($CL$5:$CL$14))+'J04'!BL9 -> 0 | BM9: =SUMPRODUCT(($B$5:$F$14=AT9)*($CM$5:$CM$14))+'J04'!BM9 -> 2 | BN9: =SUMPRODUCT(($I$5:$M$14=AT9)*($CN$5:$CN$14))+'J04'!BN9 -> 1 | BO9: =SUMPRODUCT(($I$5:$M$14=AT9)*($CO$5:$CO$14))+'J04'!BO9 -> 1 | BP9: =SUMPRODUCT(($I$5:$M$14=AT9)*($CP$5:$CP$14))+'J04'!BP9 -> 0 | BQ9: 3999.952 | BR9: =BQ9+0.000001 -> 3999.952001 | BS9: 0 | BT9: 0 | BU9: 0 | BV9: 0 | BW9: 0 | BX9: 0 | BY9: 0 | BZ9: 0 | CA9: FALSE | CB9: FALSE | CC9: FALSE | CD9: FALSE | CE9: FALSE | CF9: FALSE | CG9: 0 | CH9: 0 | CI9: 0 | CJ9: 0 | CK9: FALSE | CL9: FALSE | CM9: FALSE | CN9: FALSE | CO9: FALSE | CP9: FALSE | CQ9: ALC | CR9: 6999.994 | CS9: 5 | CT9: AJAK
V10: AUSBK | AA10: 0 | AB10: u | AC10: 6 | AD10: 5 | AE10: 4 | AF10: 1 | AG10: 2 | AH10: 1 | AI10: 7 | AJ10: 7 | AK10: 0 | AL10: 0 | AM10: 2 | AN10: 0 | AO10: 1 | AP10: 0 | AQ10: 1 | AR10: 6 | AS10: 1 | AT10: ='J01'!AT10:AX10 -> ASUD | AY10: 1 | AZ10: ='J04'!AY10-AY10 -> 0 | BA10: =IF(AY10>'J04'!AY10,'J04'!$BA$20,IF(AY10='J04'!AY10,'J04'!$AZ$20,IF(AY10<'J04'!AY10,'J04'!$AY$20))) -> u | BB10: 1 | BC10: =SUMPRODUCT(($B$5:$F$14=AT10)*($BW$5:$BW$14))+SUMPRODUCT(($I$5:$M$14=AT10)*($BX$5:$BX$14))+'J04'!BC10 -> 10 | BD10: =SUMPRODUCT(($B$5:$F$14=AT10)*($BY$5:$BY$14))+SUMPRODUCT(($I$5:$M$14=AT10)*($BZ$5:$BZ$14))+'J04'!BD10 -> 4 | BE10: =SUMPRODUCT(($B$5:$F$14=AT10)*($CA$5:$CA$14))+SUMPRODUCT(($I$5:$M$14=AT10)*($CB$5:$CB$14))+'J04'!BE10 -> 3 | BF10: =SUMPRODUCT(($B$5:$F$14=AT10)*($CC$5:$CC$14))+SUMPRODUCT(($I$5:$M$14=AT10)*($CD$5:$CD$14))+'J04'!BF10 -> 1 | BG10: =SUMPRODUCT(($B$5:$F$14=AT10)*($CE$5:$CE$14))+SUMPRODUCT(($I$5:$M$14=AT10)*($CF$5:$CF$14))+'J04'!BG10 -> 0 | BH10: =SUMPRODUCT(($B$5:$F$14=AT10)*($CG$5:$CG$14))+SUMPRODUCT(($I$5:$M$14=AT10)*($CH$5:$CH$14))+'J04'!BH10 -> 16 | BI10: =SUMPRODUCT(($B$5:$F$14=AT10)*($CI$5:$CI$14))+SUMPRODUCT(($I$5:$M$14=AT10)*($CJ$5:$CJ$14))+'J04'!BI10 -> 5 | BJ10: 11 | BK10: =SUMPRODUCT(($B$5:$F$14=AT10)*($CK$5:$CK$14))+'J04'!BK10 -> 2 | BL10: =SUMPRODUCT(($B$5:$F$14=AT10)*($CL$5:$CL$14))+'J04'!BL10 -> 0 | BM10: =SUMPRODUCT(($B$5:$F$14=AT10)*($CM$5:$CM$14))+'J04'!BM10 -> 0 | BN10: =SUMPRODUCT(($I$5:$M$14=AT10)*($CN$5:$CN$14))+'J04'!BN10 -> 1 | BO10: =SUMPRODUCT(($I$5:$M$14=AT10)*($CO$5:$CO$14))+'J04'!BO10 -> 1 | BP10: =SUMPRODUCT(($I$5:$M$14=AT10)*($CP$5:$CP$14))+'J04'!BP10 -> 0 | BQ10: 10000.126 | BR10: =BQ10+0.0000009 -> 10000.126 | BS10: 0 | BT10: 0 | BU10: 0 | BV10: 0 | BW10: 0 | BX10: 0 | BY10: 0 | BZ10: 0 | CA10: FALSE | CB10: FALSE | CC10: FALSE | CD10: FALSE | CE10: FALSE | CF10: FALSE | CG10: 0 | CH10: 0 | CI10: 0 | CJ10: 0 | CK10: FALSE | CL10: FALSE | CM10: FALSE | CN10: FALSE | CO10: FALSE | CP10: FALSE | CQ10: AUSBK | CR10: 5000.007 | CS10: 6 | CT10: ASUD
V11: HSMK | AA11: 0 | AB11: u | AC11: 7 | AD11: 5 | AE11: 4 | AF11: 1 | AG11: 2 | AH11: 1 | AI11: 5 | AJ11: 5 | AK11: 0 | AL11: 1 | AM11: 0 | AN11: 1 | AO11: 0 | AP11: 2 | AQ11: 0 | AR11: 7 | AS11: 2 | AT11: ='J01'!AT11:AX11 -> AHDOZ | AY11: 2 | AZ11: ='J04'!AY11-AY11 -> 0 | BA11: =IF(AY11>'J04'!AY11,'J04'!$BA$20,IF(AY11='J04'!AY11,'J04'!$AZ$20,IF(AY11<'J04'!AY11,'J04'!$AY$20))) -> u | BB11: 2 | BC11: =SUMPRODUCT(($B$5:$F$14=AT11)*($BW$5:$BW$14))+SUMPRODUCT(($I$5:$M$14=AT11)*($BX$5:$BX$14))+'J04'!BC11 -> 10 | BD11: =SUMPRODUCT(($B$5:$F$14=AT11)*($BY$5:$BY$14))+SUMPRODUCT(($I$5:$M$14=AT11)*($BZ$5:$BZ$14))+'J04'!BD11 -> 4 | BE11: =SUMPRODUCT(($B$5:$F$14=AT11)*($CA$5:$CA$14))+SUMPRODUCT(($I$5:$M$14=AT11)*($CB$5:$CB$14))+'J04'!BE11 -> 3 | BF11: =SUMPRODUCT(($B$5:$F$14=AT11)*($CC$5:$CC$14))+SUMPRODUCT(($I$5:$M$14=AT11)*($CD$5:$CD$14))+'J04'!BF11 -> 1 | BG11: =SUMPRODUCT(($B$5:$F$14=AT11)*($CE$5:$CE$14))+SUMPRODUCT(($I$5:$M$14=AT11)*($CF$5:$CF$14))+'J04'!BG11 -> 0 | BH11: =SUMPRODUCT(($B$5:$F$14=AT11)*($CG$5:$CG$14))+SUMPRODUCT(($I$5:$M$14=AT11)*($CH$5:$CH$14))+'J04'!BH11 -> 5 | BI11: =SUMPRODUCT(($B$5:$F$14=AT11)*($CI$5:$CI$14))+SUMPRODUCT(($I$5:$M$14=AT11)*($CJ$5:$CJ$14))+'J04'!BI11 -> 0 | BJ11: 5 | BK11: =SUMPRODUCT(($B$5:$F$14=AT11)*($CK$5:$CK$14))+'J04'!BK11 -> 1 | BL11: =SUMPRODUCT(($B$5:$F$14=AT11)*($CL$5:$CL$14))+'J04'!BL11 -> 1 | BM11: =SUMPRODUCT(($B$5:$F$14=AT11)*($CM$5:$CM$14))+'J04'!BM11 -> 0 | BN11: =SUMPRODUCT(($I$5:$M$14=AT11)*($CN$5:$CN$14))+'J04'!BN11 -> 2 | BO11: =SUMPRODUCT(($I$5:$M$14=AT11)*($CO$5:$CO$14))+'J04'!BO11 -> 0 | BP11: =SUMPRODUCT(($I$5:$M$14=AT11)*($CP$5:$CP$14))+'J04'!BP11 -> 0 | BQ11: 10000.055 | BR11: =BQ11+0.0000008 -> 10000.055 | BS11: 0 | BT11: 0 | BU11: 0 | BV11: 0 | BW11: 0 | BX11: 0 | BY11: 0 | BZ11: 0 | CA11: FALSE | CB11: FALSE | CC11: FALSE | CD11: FALSE | CE11: FALSE | CF11: FALSE | CG11: 0 | CH11: 0 | CI11: 0 | CJ11: 0 | CK11: FALSE | CL11: FALSE | CM11: FALSE | CN11: FALSE | CO11: FALSE | CP11: FALSE | CQ11: HSMK | CR11: 5000.005 | CS11: 7 | CT11: AHDOZ
V12: AWSOM | AA12: 0 | AB12: u | AC12: 8 | AD12: 5 | AE12: 4 | AF12: 1 | AG12: 2 | AH12: 1 | AI12: 3 | AJ12: 4 | AK12: -1 | AL12: 0 | AM12: 2 | AN12: 0 | AO12: 1 | AP12: 0 | AQ12: 1 | AR12: 8 | AS12: 14 | AT12: ='J01'!AT12:AX12 -> USB | AY12: 14 | AZ12: ='J04'!AY12-AY12 -> 0 | BA12: =IF(AY12>'J04'!AY12,'J04'!$BA$20,IF(AY12='J04'!AY12,'J04'!$AZ$20,IF(AY12<'J04'!AY12,'J04'!$AY$20))) -> u | BB12: 14 | BC12: =SUMPRODUCT(($B$5:$F$14=AT12)*($BW$5:$BW$14))+SUMPRODUCT(($I$5:$M$14=AT12)*($BX$5:$BX$14))+'J04'!BC12 -> 1 | BD12: =SUMPRODUCT(($B$5:$F$14=AT12)*($BY$5:$BY$14))+SUMPRODUCT(($I$5:$M$14=AT12)*($BZ$5:$BZ$14))+'J04'!BD12 -> 4 | BE12: =SUMPRODUCT(($B$5:$F$14=AT12)*($CA$5:$CA$14))+SUMPRODUCT(($I$5:$M$14=AT12)*($CB$5:$CB$14))+'J04'!BE12 -> 0 | BF12: =SUMPRODUCT(($B$5:$F$14=AT12)*($CC$5:$CC$14))+SUMPRODUCT(($I$5:$M$14=AT12)*($CD$5:$CD$14))+'J04'!BF12 -> 1 | BG12: =SUMPRODUCT(($B$5:$F$14=AT12)*($CE$5:$CE$14))+SUMPRODUCT(($I$5:$M$14=AT12)*($CF$5:$CF$14))+'J04'!BG12 -> 3 | BH12: =SUMPRODUCT(($B$5:$F$14=AT12)*($CG$5:$CG$14))+SUMPRODUCT(($I$5:$M$14=AT12)*($CH$5:$CH$14))+'J04'!BH12 -> 0 | BI12: =SUMPRODUCT(($B$5:$F$14=AT12)*($CI$5:$CI$14))+SUMPRODUCT(($I$5:$M$14=AT12)*($CJ$5:$CJ$14))+'J04'!BI12 -> 4 | BJ12: -4 | BK12: =SUMPRODUCT(($B$5:$F$14=AT12)*($CK$5:$CK$14))+'J04'!BK12 -> 0 | BL12: =SUMPRODUCT(($B$5:$F$14=AT12)*($CL$5:$CL$14))+'J04'!BL12 -> 0 | BM12: =SUMPRODUCT(($B$5:$F$14=AT12)*($CM$5:$CM$14))+'J04'!BM12 -> 2 | BN12: =SUMPRODUCT(($I$5:$M$14=AT12)*($CN$5:$CN$14))+'J04'!BN12 -> 0 | BO12: =SUMPRODUCT(($I$5:$M$14=AT12)*($CO$5:$CO$14))+'J04'!BO12 -> 1 | BP12: =SUMPRODUCT(($I$5:$M$14=AT12)*($CP$5:$CP$14))+'J04'!BP12 -> 1 | BQ12: 999.96 | BR12: =BQ12+0.0000007 -> 999.9600007 | BS12: 0 | BT12: 0 | BU12: 0 | BV12: 0 | BW12: 0 | BX12: 0 | BY12: 0 | BZ12: 0 | CA12: FALSE | CB12: FALSE | CC12: FALSE | CD12: FALSE | CE12: FALSE | CF12: FALSE | CG12: 0 | CH12: 0 | CI12: 0 | CJ12: 0 | CK12: FALSE | CL12: FALSE | CM12: FALSE | CN12: FALSE | CO12: FALSE | CP12: FALSE | CQ12: AWSOM | CR12: 4999.993 | CS12: 8 | CT12: USB
V13: JSOA | AA13: 0 | AB13: u | AC13: 9 | AD13: 4 | AE13: 4 | AF13: 1 | AG13: 1 | AH13: 2 | AI13: 5 | AJ13: 4 | AK13: 1 | AL13: 0 | AM13: 0 | AN13: 2 | AO13: 1 | AP13: 1 | AQ13: 0 | AR13: 9 | AS13: 5 | AT13: ='J01'!AT13:AX13 -> ALC | AY13: 5 | AZ13: ='J04'!AY13-AY13 -> 0 | BA13: =IF(AY13>'J04'!AY13,'J04'!$BA$20,IF(AY13='J04'!AY13,'J04'!$AZ$20,IF(AY13<'J04'!AY13,'J04'!$AY$20))) -> u | BB13: 5 | BC13: =SUMPRODUCT(($B$5:$F$14=AT13)*($BW$5:$BW$14))+SUMPRODUCT(($I$5:$M$14=AT13)*($BX$5:$BX$14))+'J04'!BC13 -> 7 | BD13: =SUMPRODUCT(($B$5:$F$14=AT13)*($BY$5:$BY$14))+SUMPRODUCT(($I$5:$M$14=AT13)*($BZ$5:$BZ$14))+'J04'!BD13 -> 4 | BE13: =SUMPRODUCT(($B$5:$F$14=AT13)*($CA$5:$CA$14))+SUMPRODUCT(($I$5:$M$14=AT13)*($CB$5:$CB$14))+'J04'!BE13 -> 2 | BF13: =SUMPRODUCT(($B$5:$F$14=AT13)*($CC$5:$CC$14))+SUMPRODUCT(($I$5:$M$14=AT13)*($CD$5:$CD$14))+'J04'!BF13 -> 1 | BG13: =SUMPRODUCT(($B$5:$F$14=AT13)*($CE$5:$CE$14))+SUMPRODUCT(($I$5:$M$14=AT13)*($CF$5:$CF$14))+'J04'!BG13 -> 1 | BH13: =SUMPRODUCT(($B$5:$F$14=AT13)*($CG$5:$CG$14))+SUMPRODUCT(($I$5:$M$14=AT13)*($CH$5:$CH$14))+'J04'!BH13 -> 4 | BI13: =SUMPRODUCT(($B$5:$F$14=AT13)*($CI$5:$CI$14))+SUMPRODUCT(($I$5:$M$14=AT13)*($CJ$5:$CJ$14))+'J04'!BI13 -> 5 | BJ13: -1 | BK13: =SUMPRODUCT(($B$5:$F$14=AT13)*($CK$5:$CK$14))+'J04'!BK13 -> 1 | BL13: =SUMPRODUCT(($B$5:$F$14=AT13)*($CL$5:$CL$14))+'J04'!BL13 -> 0 | BM13: =SUMPRODUCT(($B$5:$F$14=AT13)*($CM$5:$CM$14))+'J04'!BM13 -> 1 | BN13: =SUMPRODUCT(($I$5:$M$14=AT13)*($CN$5:$CN$14))+'J04'!BN13 -> 1 | BO13: =SUMPRODUCT(($I$5:$M$14=AT13)*($CO$5:$CO$14))+'J04'!BO13 -> 1 | BP13: =SUMPRODUCT(($I$5:$M$14=AT13)*($CP$5:$CP$14))+'J04'!BP13 -> 0 | BQ13: 6999.994 | BR13: =BQ13+0.0000006 -> 6999.994001 | BS13: 0 | BT13: 0 | BU13: 0 | BV13: 0 | BW13: 0 | BX13: 0 | BY13: 0 | BZ13: 0 | CA13: FALSE | CB13: FALSE | CC13: FALSE | CD13: FALSE | CE13: FALSE | CF13: FALSE | CG13: 0 | CH13: 0 | CI13: 0 | CJ13: 0 | CK13: FALSE | CL13: FALSE | CM13: FALSE | CN13: FALSE | CO13: FALSE | CP13: FALSE | CQ13: JSOA | CR13: 4000.015 | CS13: 9 | CT13: ALC
V14: ESMB | AA14: 0 | AB14: u | AC14: 10 | AD14: 4 | AE14: 4 | AF14: 1 | AG14: 1 | AH14: 2 | AI14: 6 | AJ14: 8 | AK14: -2 | AL14: 0 | AM14: 1 | AN14: 1 | AO14: 1 | AP14: 0 | AQ14: 1 | AR14: 10 | AS14: 12 | AT14: ='J01'!AT14:AX14 -> AUSAF | AY14: 12 | AZ14: ='J04'!AY14-AY14 -> 0 | BA14: =IF(AY14>'J04'!AY14,'J04'!$BA$20,IF(AY14='J04'!AY14,'J04'!$AZ$20,IF(AY14<'J04'!AY14,'J04'!$AY$20))) -> u | BB14: 12 | BC14: =SUMPRODUCT(($B$5:$F$14=AT14)*($BW$5:$BW$14))+SUMPRODUCT(($I$5:$M$14=AT14)*($BX$5:$BX$14))+'J04'!BC14 -> 3 | BD14: =SUMPRODUCT(($B$5:$F$14=AT14)*($BY$5:$BY$14))+SUMPRODUCT(($I$5:$M$14=AT14)*($BZ$5:$BZ$14))+'J04'!BD14 -> 4 | BE14: =SUMPRODUCT(($B$5:$F$14=AT14)*($CA$5:$CA$14))+SUMPRODUCT(($I$5:$M$14=AT14)*($CB$5:$CB$14))+'J04'!BE14 -> 1 | BF14: =SUMPRODUCT(($B$5:$F$14=AT14)*($CC$5:$CC$14))+SUMPRODUCT(($I$5:$M$14=AT14)*($CD$5:$CD$14))+'J04'!BF14 -> 0 | BG14: =SUMPRODUCT(($B$5:$F$14=AT14)*($CE$5:$CE$14))+SUMPRODUCT(($I$5:$M$14=AT14)*($CF$5:$CF$14))+'J04'!BG14 -> 3 | BH14: =SUMPRODUCT(($B$5:$F$14=AT14)*($CG$5:$CG$14))+SUMPRODUCT(($I$5:$M$14=AT14)*($CH$5:$CH$14))+'J04'!BH14 -> 2 | BI14: =SUMPRODUCT(($B$5:$F$14=AT14)*($CI$5:$CI$14))+SUMPRODUCT(($I$5:$M$14=AT14)*($CJ$5:$CJ$14))+'J04'!BI14 -> 3 | BJ14: -1 | BK14: =SUMPRODUCT(($B$5:$F$14=AT14)*($CK$5:$CK$14))+'J04'!BK14 -> 0 | BL14: =SUMPRODUCT(($B$5:$F$14=AT14)*($CL$5:$CL$14))+'J04'!BL14 -> 0 | BM14: =SUMPRODUCT(($B$5:$F$14=AT14)*($CM$5:$CM$14))+'J04'!BM14 -> 2 | BN14: =SUMPRODUCT(($I$5:$M$14=AT14)*($CN$5:$CN$14))+'J04'!BN14 -> 1 | BO14: =SUMPRODUCT(($I$5:$M$14=AT14)*($CO$5:$CO$14))+'J04'!BO14 -> 0 | BP14: =SUMPRODUCT(($I$5:$M$14=AT14)*($CP$5:$CP$14))+'J04'!BP14 -> 1 | BQ14: 2999.992 | BR14: =BQ14+0.0000005 -> 2999.992 | BS14: 0 | BT14: 0 | BU14: 0 | BV14: 0 | BW14: 0 | BX14: 0 | BY14: 0 | BZ14: 0 | CA14: FALSE | CB14: FALSE | CC14: FALSE | CD14: FALSE | CE14: FALSE | CF14: FALSE | CG14: 0 | CH14: 0 | CI14: 0 | CJ14: 0 | CK14: FALSE | CL14: FALSE | CM14: FALSE | CN14: FALSE | CO14: FALSE | CP14: FALSE | CQ14: ESMB | CR14: 3999.986 | CS14: 10 | CT14: AUSAF
V15: AJAK | AA15: 0 | AB15: u | AC15: 11 | AD15: 4 | AE15: 4 | AF15: 1 | AG15: 1 | AH15: 2 | AI15: 2 | AJ15: 7 | AK15: -5 | AL15: 0 | AM15: 0 | AN15: 2 | AO15: 1 | AP15: 1 | AQ15: 0 | AR15: 11 | AS15: 9 | AT15: ='J01'!AT15:AX15 -> JSOA | AY15: 9 | AZ15: ='J04'!AY15-AY15 -> 0 | BA15: =IF(AY15>'J04'!AY15,'J04'!$BA$20,IF(AY15='J04'!AY15,'J04'!$AZ$20,IF(AY15<'J04'!AY15,'J04'!$AY$20))) -> u | BB15: 9 | BC15: =SUMPRODUCT(($B$5:$F$14=AT15)*($BW$5:$BW$14))+SUMPRODUCT(($I$5:$M$14=AT15)*($BX$5:$BX$14))+'J04'!BC15 -> 4 | BD15: =SUMPRODUCT(($B$5:$F$14=AT15)*($BY$5:$BY$14))+SUMPRODUCT(($I$5:$M$14=AT15)*($BZ$5:$BZ$14))+'J04'!BD15 -> 4 | BE15: =SUMPRODUCT(($B$5:$F$14=AT15)*($CA$5:$CA$14))+SUMPRODUCT(($I$5:$M$14=AT15)*($CB$5:$CB$14))+'J04'!BE15 -> 1 | BF15: =SUMPRODUCT(($B$5:$F$14=AT15)*($CC$5:$CC$14))+SUMPRODUCT(($I$5:$M$14=AT15)*($CD$5:$CD$14))+'J04'!BF15 -> 1 | BG15: =SUMPRODUCT(($B$5:$F$14=AT15)*($CE$5:$CE$14))+SUMPRODUCT(($I$5:$M$14=AT15)*($CF$5:$CF$14))+'J04'!BG15 -> 2 | BH15: =SUMPRODUCT(($B$5:$F$14=AT15)*($CG$5:$CG$14))+SUMPRODUCT(($I$5:$M$14=AT15)*($CH$5:$CH$14))+'J04'!BH15 -> 5 | BI15: =SUMPRODUCT(($B$5:$F$14=AT15)*($CI$5:$CI$14))+SUMPRODUCT(($I$5:$M$14=AT15)*($CJ$5:$CJ$14))+'J04'!BI15 -> 4 | BJ15: 1 | BK15: =SUMPRODUCT(($B$5:$F$14=AT15)*($CK$5:$CK$14))+'J04'!BK15 -> 0 | BL15: =SUMPRODUCT(($B$5:$F$14=AT15)*($CL$5:$CL$14))+'J04'!BL15 -> 0 | BM15: =SUMPRODUCT(($B$5:$F$14=AT15)*($CM$5:$CM$14))+'J04'!BM15 -> 2 | BN15: =SUMPRODUCT(($I$5:$M$14=AT15)*($CN$5:$CN$14))+'J04'!BN15 -> 1 | BO15: =SUMPRODUCT(($I$5:$M$14=AT15)*($CO$5:$CO$14))+'J04'!BO15 -> 1 | BP15: =SUMPRODUCT(($I$5:$M$14=AT15)*($CP$5:$CP$14))+'J04'!BP15 -> 0 | BQ15: 4000.015 | BR15: =BQ15+0.0000004 -> 4000.015 | CQ15: AJAK | CR15: 3999.952 | CS15: 11 | CT15: JSOA
V16: AUSAF | AA16: 0 | AB16: u | AC16: 12 | AD16: 3 | AE16: 4 | AF16: 1 | AG16: 0 | AH16: 3 | AI16: 2 | AJ16: 3 | AK16: -1 | AL16: 0 | AM16: 0 | AN16: 2 | AO16: 1 | AP16: 0 | AQ16: 1 | AR16: 12 | AS16: 8 | AT16: ='J01'!AT16:AX16 -> AWSOM | AY16: 8 | AZ16: ='J04'!AY16-AY16 -> 0 | BA16: =IF(AY16>'J04'!AY16,'J04'!$BA$20,IF(AY16='J04'!AY16,'J04'!$AZ$20,IF(AY16<'J04'!AY16,'J04'!$AY$20))) -> u | BB16: 8 | BC16: =SUMPRODUCT(($B$5:$F$14=AT16)*($BW$5:$BW$14))+SUMPRODUCT(($I$5:$M$14=AT16)*($BX$5:$BX$14))+'J04'!BC16 -> 5 | BD16: =SUMPRODUCT(($B$5:$F$14=AT16)*($BY$5:$BY$14))+SUMPRODUCT(($I$5:$M$14=AT16)*($BZ$5:$BZ$14))+'J04'!BD16 -> 4 | BE16: =SUMPRODUCT(($B$5:$F$14=AT16)*($CA$5:$CA$14))+SUMPRODUCT(($I$5:$M$14=AT16)*($CB$5:$CB$14))+'J04'!BE16 -> 1 | BF16: =SUMPRODUCT(($B$5:$F$14=AT16)*($CC$5:$CC$14))+SUMPRODUCT(($I$5:$M$14=AT16)*($CD$5:$CD$14))+'J04'!BF16 -> 2 | BG16: =SUMPRODUCT(($B$5:$F$14=AT16)*($CE$5:$CE$14))+SUMPRODUCT(($I$5:$M$14=AT16)*($CF$5:$CF$14))+'J04'!BG16 -> 1 | BH16: =SUMPRODUCT(($B$5:$F$14=AT16)*($CG$5:$CG$14))+SUMPRODUCT(($I$5:$M$14=AT16)*($CH$5:$CH$14))+'J04'!BH16 -> 3 | BI16: =SUMPRODUCT(($B$5:$F$14=AT16)*($CI$5:$CI$14))+SUMPRODUCT(($I$5:$M$14=AT16)*($CJ$5:$CJ$14))+'J04'!BI16 -> 4 | BJ16: -1 | BK16: =SUMPRODUCT(($B$5:$F$14=AT16)*($CK$5:$CK$14))+'J04'!BK16 -> 0 | BL16: =SUMPRODUCT(($B$5:$F$14=AT16)*($CL$5:$CL$14))+'J04'!BL16 -> 2 | BM16: =SUMPRODUCT(($B$5:$F$14=AT16)*($CM$5:$CM$14))+'J04'!BM16 -> 0 | BN16: =SUMPRODUCT(($I$5:$M$14=AT16)*($CN$5:$CN$14))+'J04'!BN16 -> 1 | BO16: =SUMPRODUCT(($I$5:$M$14=AT16)*($CO$5:$CO$14))+'J04'!BO16 -> 0 | BP16: =SUMPRODUCT(($I$5:$M$14=AT16)*($CP$5:$CP$14))+'J04'!BP16 -> 1 | BQ16: 4999.993 | BR16: =BQ16+0.0000003 -> 4999.993 | CQ16: AUSAF | CR16: 2999.992 | CS16: 12 | CT16: AWSOM
V17: CUSL | AA17: 0 | AB17: u | AC17: 13 | AD17: 2 | AE17: 4 | AF17: 0 | AG17: 2 | AH17: 2 | AI17: 5 | AJ17: 11 | AK17: -6 | AL17: 0 | AM17: 1 | AN17: 1 | AO17: 0 | AP17: 1 | AQ17: 1 | AR17: 13 | AS17: 7 | AT17: ='J01'!AT17:AX17 -> HSMK | AY17: 7 | AZ17: ='J04'!AY17-AY17 -> 0 | BA17: =IF(AY17>'J04'!AY17,'J04'!$BA$20,IF(AY17='J04'!AY17,'J04'!$AZ$20,IF(AY17<'J04'!AY17,'J04'!$AY$20))) -> u | BB17: 7 | BC17: =SUMPRODUCT(($B$5:$F$14=AT17)*($BW$5:$BW$14))+SUMPRODUCT(($I$5:$M$14=AT17)*($BX$5:$BX$14))+'J04'!BC17 -> 5 | BD17: =SUMPRODUCT(($B$5:$F$14=AT17)*($BY$5:$BY$14))+SUMPRODUCT(($I$5:$M$14=AT17)*($BZ$5:$BZ$14))+'J04'!BD17 -> 4 | BE17: =SUMPRODUCT(($B$5:$F$14=AT17)*($CA$5:$CA$14))+SUMPRODUCT(($I$5:$M$14=AT17)*($CB$5:$CB$14))+'J04'!BE17 -> 1 | BF17: =SUMPRODUCT(($B$5:$F$14=AT17)*($CC$5:$CC$14))+SUMPRODUCT(($I$5:$M$14=AT17)*($CD$5:$CD$14))+'J04'!BF17 -> 2 | BG17: =SUMPRODUCT(($B$5:$F$14=AT17)*($CE$5:$CE$14))+SUMPRODUCT(($I$5:$M$14=AT17)*($CF$5:$CF$14))+'J04'!BG17 -> 1 | BH17: =SUMPRODUCT(($B$5:$F$14=AT17)*($CG$5:$CG$14))+SUMPRODUCT(($I$5:$M$14=AT17)*($CH$5:$CH$14))+'J04'!BH17 -> 5 | BI17: =SUMPRODUCT(($B$5:$F$14=AT17)*($CI$5:$CI$14))+SUMPRODUCT(($I$5:$M$14=AT17)*($CJ$5:$CJ$14))+'J04'!BI17 -> 5 | BJ17: 0 | BK17: =SUMPRODUCT(($B$5:$F$14=AT17)*($CK$5:$CK$14))+'J04'!BK17 -> 1 | BL17: =SUMPRODUCT(($B$5:$F$14=AT17)*($CL$5:$CL$14))+'J04'!BL17 -> 0 | BM17: =SUMPRODUCT(($B$5:$F$14=AT17)*($CM$5:$CM$14))+'J04'!BM17 -> 1 | BN17: =SUMPRODUCT(($I$5:$M$14=AT17)*($CN$5:$CN$14))+'J04'!BN17 -> 0 | BO17: =SUMPRODUCT(($I$5:$M$14=AT17)*($CO$5:$CO$14))+'J04'!BO17 -> 2 | BP17: =SUMPRODUCT(($I$5:$M$14=AT17)*($CP$5:$CP$14))+'J04'!BP17 -> 0 | BQ17: 5000.005 | BR17: =BQ17+0.0000002 -> 5000.005 | CQ17: CUSL | CR17: 1999.945 | CS17: 13 | CT17: HSMK
V18: USB | AA18: 0 | AB18: u | AC18: 14 | AD18: 1 | AE18: 4 | AF18: 0 | AG18: 1 | AH18: 3 | AI18: 0 | AJ18: 4 | AK18: -4 | AL18: 0 | AM18: 0 | AN18: 2 | AO18: 0 | AP18: 1 | AQ18: 1 | AR18: 14 | AS18: 10 | AT18: ='J01'!AT18:AX18 -> ESMB | AY18: 10 | AZ18: ='J04'!AY18-AY18 -> 0 | BA18: =IF(AY18>'J04'!AY18,'J04'!$BA$20,IF(AY18='J04'!AY18,'J04'!$AZ$20,IF(AY18<'J04'!AY18,'J04'!$AY$20))) -> u | BB18: 10 | BC18: =SUMPRODUCT(($B$5:$F$14=AT18)*($BW$5:$BW$14))+SUMPRODUCT(($I$5:$M$14=AT18)*($BX$5:$BX$14))+'J04'!BC18 -> 4 | BD18: =SUMPRODUCT(($B$5:$F$14=AT18)*($BY$5:$BY$14))+SUMPRODUCT(($I$5:$M$14=AT18)*($BZ$5:$BZ$14))+'J04'!BD18 -> 4 | BE18: =SUMPRODUCT(($B$5:$F$14=AT18)*($CA$5:$CA$14))+SUMPRODUCT(($I$5:$M$14=AT18)*($CB$5:$CB$14))+'J04'!BE18 -> 1 | BF18: =SUMPRODUCT(($B$5:$F$14=AT18)*($CC$5:$CC$14))+SUMPRODUCT(($I$5:$M$14=AT18)*($CD$5:$CD$14))+'J04'!BF18 -> 1 | BG18: =SUMPRODUCT(($B$5:$F$14=AT18)*($CE$5:$CE$14))+SUMPRODUCT(($I$5:$M$14=AT18)*($CF$5:$CF$14))+'J04'!BG18 -> 2 | BH18: =SUMPRODUCT(($B$5:$F$14=AT18)*($CG$5:$CG$14))+SUMPRODUCT(($I$5:$M$14=AT18)*($CH$5:$CH$14))+'J04'!BH18 -> 6 | BI18: =SUMPRODUCT(($B$5:$F$14=AT18)*($CI$5:$CI$14))+SUMPRODUCT(($I$5:$M$14=AT18)*($CJ$5:$CJ$14))+'J04'!BI18 -> 8 | BJ18: -2 | BK18: =SUMPRODUCT(($B$5:$F$14=AT18)*($CK$5:$CK$14))+'J04'!BK18 -> 0 | BL18: =SUMPRODUCT(($B$5:$F$14=AT18)*($CL$5:$CL$14))+'J04'!BL18 -> 1 | BM18: =SUMPRODUCT(($B$5:$F$14=AT18)*($CM$5:$CM$14))+'J04'!BM18 -> 1 | BN18: =SUMPRODUCT(($I$5:$M$14=AT18)*($CN$5:$CN$14))+'J04'!BN18 -> 1 | BO18: =SUMPRODUCT(($I$5:$M$14=AT18)*($CO$5:$CO$14))+'J04'!BO18 -> 0 | BP18: =SUMPRODUCT(($I$5:$M$14=AT18)*($CP$5:$CP$14))+'J04'!BP18 -> 1 | BQ18: 3999.986 | BR18: =BQ18+0.0000001 -> 3999.986 | CQ18: USB | CR18: 999.96 | CS18: 14 | CT18: ESMB
AO19: Buts/Journée | AY19: p | AZ19: u | BA19: q
AO20: =SUM(G5:H14) -> 0 | AY20: p | AZ20: u | BA20: q
AO22: Total Buts du Championnat
AO24: =AO20+'J04'!AO24:AP25 -> 68
AO26: Moyenne générale
AO28: =IF(AE5=0,"",SUM(AI5:AI24)/SUM(AE5:AE24)*2) -> 2.428571429

Sheet J06
A1: ='J01'!A1:C2 -> Nom du Championnat | I1: ='J01'!H1:K2 -> 2017-2018 | O1: JOURNEE 06 | V1: CLASSEMENT | AT1: CLASSEMENT | BS1: Domicile | BT1: Extérieur | BU1: Domicile | BV1: Extérieur | BW1: Domicile | BX1: Extérieur | BY1: Domicile | BZ1: Extérieur | CA1: Domicile | CB1: Extérieur | CC1: Domicile | CD1: Extérieur | CE1: Domicile | CF1: Extérieur | CG1: Domicile | CH1: Extérieur | CI1: Domicile | CJ1: Extérieur
A3: P | B3: Equipes | G3: Buts | H3: Buts | I3: Equipes | N3: P | O3: Dates | S3: Heure | V3: Equipes | AA3: Evolution | AC3: Place | AD3: Pts | AE3: J | AF3: G | AG3: N | AH3: P | AI3: B + | AJ3: B - | AK3: Diff. | AL3: Domicile | AO3: Extérieur | AT3: Equipes | AY3: R | AZ3: Evolution | BB3: R | BC3: Pts | BD3: J | BE3: G | BF3: N | BG3: P | BH3: B + | BI3: B - | BJ3: Diff. | BK3: Domicile | BN3: Extérieur | CK3: Domicile | CN3: Extérieur
AL4: G | AM4: N | AN4: P | AO4: G | AP4: N | AQ4: P | AS4: R | BK4: G | BL4: N | BM4: P | BN4: G | BO4: N | BP4: P | BQ4: % | BR4: % | BS4: P | BT4: P | BU4: Pts | BV4: Pts | BW4: T Pt | BX4: T Pt | BY4: J | BZ4: J | CA4: G | CB4: G | CC4: N | CD4: N | CE4: P | CF4: P | CG4: B + | CH4: B + | CI4: B - | CJ4: B - | CK4: G | CL4: N | CM4: P | CN4: G | CO4: N | CP4: P | CQ4: Equipes | CR4: % | CS4: R | CT4: Equipes
V5: =VLOOKUP(AR5,$AS$5:$AX$18,2,0) -> ASUD | AA5: =VLOOKUP(V5,$AT$5:$BP$18,7,0) -> 0 | AB5: =VLOOKUP(V5,$AT$5:$BP$18,8,0) -> u | AC5: 1 | AD5: =VLOOKUP(V5,$AT$5:$BP$18,10,0) -> 10 | AE5: =VLOOKUP(V5,$AT$5:$BP$18,11,0) -> 4 | AF5: =VLOOKUP(V5,$AT$5:$BP$18,12,0) -> 3 | AG5: =VLOOKUP(V5,$AT$5:$BP$18,13,0) -> 1 | AH5: =VLOOKUP(V5,$AT$5:$BP$18,14,0) -> 0 | AI5: =VLOOKUP(V5,$AT$5:$BP$18,15,0) -> 16 | AJ5: =VLOOKUP(V5,$AT$5:$BP$18,16,0) -> 5 | AK5: =VLOOKUP(V5,$AT$5:$BP$18,17,0) -> 11 | AL5: =VLOOKUP(V5,$AT$5:$BP$18,18,0) -> 2 | AM5: =VLOOKUP(V5,$AT$5:$BP$18,19,0) -> 0 | AN5: =VLOOKUP(V5,$AT$5:$BP$18,20,0) -> 0 | AO5: =VLOOKUP(V5,$AT$5:$BP$18,21,0) -> 1 | AP5: =VLOOKUP(V5,$AT$5:$BP$18,22,0) -> 1 | AQ5: =VLOOKUP(V5,$AT$5:$BP$18,23,0) -> 0 | AR5: 1 | AS5: =BB5 -> 6 | AT5: ='J01'!AT5:AX5 -> AUSBK | AY5: =RANK(BQ5,$BQ$5:$BQ$18) -> 6 | AZ5: ='J05'!AY5-AY5 -> 0 | BA5: =IF(AY5>'J05'!AY5,'J05'!$BA$20,IF(AY5='J05'!AY5,'J05'!$AZ$20,IF(AY5<'J05'!AY5,'J05'!$AY$20))) -> u | BB5: =RANK(BR5,$BR$5:$BR$18) -> 6 | BC5: =SUMPRODUCT(($B$5:$F$14=AT5)*($BW$5:$BW$14))+SUMPRODUCT(($I$5:$M$14=AT5)*($BX$5:$BX$14))+'J05'!BC5 -> 5 | BD5: =SUMPRODUCT(($B$5:$F$14=AT5)*($BY$5:$BY$14))+SUMPRODUCT(($I$5:$M$14=AT5)*($BZ$5:$BZ$14))+'J05'!BD5 -> 4 | BE5: =SUMPRODUCT(($B$5:$F$14=AT5)*($CA$5:$CA$14))+SUMPRODUCT(($I$5:$M$14=AT5)*($CB$5:$CB$14))+'J05'!BE5 -> 1 | BF5: =SUMPRODUCT(($B$5:$F$14=AT5)*($CC$5:$CC$14))+SUMPRODUCT(($I$5:$M$14=AT5)*($CD$5:$CD$14))+'J05'!BF5 -> 2 | BG5: =SUMPRODUCT(($B$5:$F$14=AT5)*($CE$5:$CE$14))+SUMPRODUCT(($I$5:$M$14=AT5)*($CF$5:$CF$14))+'J05'!BG5 -> 1 | BH5: =SUMPRODUCT(($B$5:$F$14=AT5)*($CG$5:$CG$14))+SUMPRODUCT(($I$5:$M$14=AT5)*($CH$5:$CH$14))+'J05'!BH5 -> 7 | BI5: =SUMPRODUCT(($B$5:$F$14=AT5)*($CI$5:$CI$14))+SUMPRODUCT(($I$5:$M$14=AT5)*($CJ$5:$CJ$14))+'J05'!BI5 -> 7 | BJ5: =BH5-BI5 -> 0 | BK5: =SUMPRODUCT(($B$5:$F$14=AT5)*($CK$5:$CK$14))+'J05'!BK5 -> 0 | BL5: =SUMPRODUCT(($B$5:$F$14=AT5)*($CL$5:$CL$14))+'J05'!BL5 -> 2 | BM5: =SUMPRODUCT(($B$5:$F$14=AT5)*($CM$5:$CM$14))+'J05'!BM5 -> 0 | BN5: =SUMPRODUCT(($I$5:$M$14=AT5)*($CN$5:$CN$14))+'J05'!BN5 -> 1 | BO5: =SUMPRODUCT(($I$5:$M$14=AT5)*($CO$5:$CO$14))+'J05'!BO5 -> 0 | BP5: =SUMPRODUCT(($I$5:$M$14=AT5)*($CP$5:$CP$14))+'J05'!BP5 -> 1 | BQ5: =SUM(BC5*1000+(BJ5)/100+(BH5)/1000) -> 5000.007 | BR5: =BQ5+0.0000014 -> 5000.007001 | BS5: =A5 -> 0 | BT5: =N5 -> 0 | BU5: =IF(G5="",0,IF(G5>H5,3,IF(G5=H5,1,IF(G5<H5,0)))) -> 0 | BV5: =IF(H5="",0,IF(H5>G5,3,IF(H5=G5,1,IF(H5<G5,0)))) -> 0 | BW5: =BU5-BS5 -> 0 | BX5: =BV5-BT5 -> 0 | BY5: =IF(G5="",0,1) -> 0 | BZ5: =IF(H5="",0,1) -> 0 | CA5: =IF(G5<>"",IF(G5>H5,1)) -> FALSE | CB5: =IF(H5<>"",IF(H5>G5,1)) -> FALSE | CC5: =IF(G5<>"",IF(G5=H5,1)) -> FALSE | CD5: =IF(H5<>"",IF(H5=G5,1)) -> FALSE | CE5: =IF(G5<>"",IF(G5<H5,1)) -> FALSE | CF5: =IF(H5<>"",IF(H5<G5,1)) -> FALSE | CG5: =G5 -> 0 | CH5: =H5 -> 0 | CI5: =H5 -> 0 | CJ5: =G5 -> 0 | CK5: =IF(G5<>"",IF(G5>H5,1)) -> FALSE | CL5: =IF(G5<>"",IF(G5=H5,1)) -> FALSE | CM5: =IF(G5<>"",IF(G5<H5,1)) -> FALSE | CN5: =IF(H5<>"",IF(H5>G5,1)) -> FALSE | CO5: =IF(H5<>"",IF(H5=G5,1)) -> FALSE | CP5: =IF(H5<>"",IF(H5<G5,1)) -> FALSE | CQ5: =VLOOKUP(AR5,$AS$5:$AX$18,2,0) -> ASUD | CR5: =VLOOKUP(CQ5,$AT$5:$BQ$18,24,0) -> 10000.126 | CS5: =RANK(CR5,$CR$5:$CR$18) -> 1 | CT5: =AT5 -> AUSBK
V6: AHDOZ | AA6: 0 | AB6: u | AC6: =IF(CR6=CR5,CS5,CS6) -> 2 | AD6: 10 | AE6: 4 | AF6: 3 | AG6: 1 | AH6: 0 | AI6: 5 | AJ6: 0 | AK6: 5 | AL6: 1 | AM6: 1 | AN6: =VLOOKUP(V6,$AT$5:$BP$18,20,0) -> 0 | AO6: 2 | AP6: =VLOOKUP(V6,$AT$5:$BP$18,22,0) -> 0 | AQ6: 0 | AR6: 2 | AS6: =BB6 -> 13 | AT6: ='J01'!AT6:AX6 -> CUSL | AY6: 13 | AZ6: ='J05'!AY6-AY6 -> 0 | BA6: =IF(AY6>'J05'!AY6,'J05'!$BA$20,IF(AY6='J05'!AY6,'J05'!$AZ$20,IF(AY6<'J05'!AY6,'J05'!$AY$20))) -> u | BB6: =RANK(BR6,$BR$5:$BR$18) -> 13 | BC6: =SUMPRODUCT(($B$5:$F$14=AT6)*($BW$5:$BW$14))+SUMPRODUCT(($I$5:$M$14=AT6)*($BX$5:$BX$14))+'J05'!BC6 -> 2 | BD6: =SUMPRODUCT(($B$5:$F$14=AT6)*($BY$5:$BY$14))+SUMPRODUCT(($I$5:$M$14=AT6)*($BZ$5:$BZ$14))+'J05'!BD6 -> 4 | BE6: =SUMPRODUCT(($B$5:$F$14=AT6)*($CA$5:$CA$14))+SUMPRODUCT(($I$5:$M$14=AT6)*($CB$5:$CB$14))+'J05'!BE6 -> 0 | BF6: =SUMPRODUCT(($B$5:$F$14=AT6)*($CC$5:$CC$14))+SUMPRODUCT(($I$5:$M$14=AT6)*($CD$5:$CD$14))+'J05'!BF6 -> 2 | BG6: =SUMPRODUCT(($B$5:$F$14=AT6)*($CE$5:$CE$14))+SUMPRODUCT(($I$5:$M$14=AT6)*($CF$5:$CF$14))+'J05'!BG6 -> 2 | BH6: =SUMPRODUCT(($B$5:$F$14=AT6)*($CG$5:$CG$14))+SUMPRODUCT(($I$5:$M$14=AT6)*($CH$5:$CH$14))+'J05'!BH6 -> 5 | BI6: =SUMPRODUCT(($B$5:$F$14=AT6)*($CI$5:$CI$14))+SUMPRODUCT(($I$5:$M$14=AT6)*($CJ$5:$CJ$14))+'J05'!BI6 -> 11 | BJ6: =BH6-BI6 -> -6 | BK6: =SUMPRODUCT(($B$5:$F$14=AT6)*($CK$5:$CK$14))+'J05'!BK6 -> 0 | BL6: =SUMPRODUCT(($B$5:$F$14=AT6)*($CL$5:$CL$14))+'J05'!BL6 -> 1 | BM6: =SUMPRODUCT(($B$5:$F$14=AT6)*($CM$5:$CM$14))+'J05'!BM6 -> 1 | BN6: =SUMPRODUCT(($I$5:$M$14=AT6)*($CN$5:$CN$14))+'J05'!BN6 -> 0 | BO6: =SUMPRODUCT(($I$5:$M$14=AT6)*($CO$5:$CO$14))+'J05'!BO6 -> 1 | BP6: =SUMPRODUCT(($I$5:$M$14=AT6)*($CP$5:$CP$14))+'J05'!BP6 -> 1 | BQ6: =SUM(BC6*1000+(BJ6)/100+(BH6)/1000) -> 1999.945 | BR6: =BQ6+0.0000013 -> 1999.945001 | BS6: =A6 -> 0 | BT6: =N6 -> 0 | BU6: =IF(G6="",0,IF(G6>H6,3,IF(G6=H6,1,IF(G6<H6,0)))) -> 0 | BV6: =IF(H6="",0,IF(H6>G6,3,IF(H6=G6,1,IF(H6<G6,0)))) -> 0 | BW6: =BU6-BS6 -> 0 | BX6: =BV6-BT6 -> 0 | BY6: =IF(G6="",0,1) -> 0 | BZ6: =IF(H6="",0,1) -> 0 | CA6: =IF(G6<>"",IF(G6>H6,1)) -> FALSE | CB6: =IF(H6<>"",IF(H6>G6,1)) -> FALSE | CC6: =IF(G6<>"",IF(G6=H6,1)) -> FALSE | CD6: =IF(H6<>"",IF(H6=G6,1)) -> FALSE | CE6: =IF(G6<>"",IF(G6<H6,1)) -> FALSE | CF6: =IF(H6<>"",IF(H6<G6,1)) -> FALSE | CG6: =G6 -> 0 | CH6: =H6 -> 0 | CI6: =H6 -> 0 | CJ6: =G6 -> 0 | CK6: =IF(G6<>"",IF(G6>H6,1)) -> FALSE | CL6: =IF(G6<>"",IF(G6=H6,1)) -> FALSE | CM6: =IF(G6<>"",IF(G6<H6,1)) -> FALSE | CN6: =IF(H6<>"",IF(H6>G6,1)) -> FALSE | CO6: =IF(H6<>"",IF(H6=G6,1)) -> FALSE | CP6: =IF(H6<>"",IF(H6<G6,1)) -> FALSE | CQ6: AHDOZ | CR6: 10000.055 | CS6: 2 | CT6: =AT6 -> CUSL
V7: CJBF | AA7: 0 | AB7: u | AC7: =IF(CR7=CR6,CS6,CS7) -> 3 | AD7: 8 | AE7: 4 | AF7: 2 | AG7: 2 | AH7: 0 | AI7: 5 | AJ7: 2 | AK7: 3 | AL7: 1 | AM7: 1 | AN7: 0 | AO7: 1 | AP7: 1 | AQ7: 0 | AR7: 3 | AS7: 4 | AT7: ='J01'!AT7:AX7 -> AUSA | AY7: 4 | AZ7: ='J05'!AY7-AY7 -> 0 | BA7: =IF(AY7>'J05'!AY7,'J05'!$BA$20,IF(AY7='J05'!AY7,'J05'!$AZ$20,IF(AY7<'J05'!AY7,'J05'!$AY$20))) -> u | BB7: 4 | BC7: =SUMPRODUCT(($B$5:$F$14=AT7)*($BW$5:$BW$14))+SUMPRODUCT(($I$5:$M$14=AT7)*($BX$5:$BX$14))+'J05'!BC7 -> 7 | BD7: =SUMPRODUCT(($B$5:$F$14=AT7)*($BY$5:$BY$14))+SUMPRODUCT(($I$5:$M$14=AT7)*($BZ$5:$BZ$14))+'J05'!BD7 -> 4 | BE7: =SUMPRODUCT(($B$5:$F$14=AT7)*($CA$5:$CA$14))+SUMPRODUCT(($I$5:$M$14=AT7)*($CB$5:$CB$14))+'J05'!BE7 -> 2 | BF7: =SUMPRODUCT(($B$5:$F$14=AT7)*($CC$5:$CC$14))+SUMPRODUCT(($I$5:$M$14=AT7)*($CD$5:$CD$14))+'J05'!BF7 -> 1 | BG7: =SUMPRODUCT(($B$5:$F$14=AT7)*($CE$5:$CE$14))+SUMPRODUCT(($I$5:$M$14=AT7)*($CF$5:$CF$14))+'J05'!BG7 -> 1 | BH7: =SUMPRODUCT(($B$5:$F$14=AT7)*($CG$5:$CG$14))+SUMPRODUCT(($I$5:$M$14=AT7)*($CH$5:$CH$14))+'J05'!BH7 -> 3 | BI7: =SUMPRODUCT(($B$5:$F$14=AT7)*($CI$5:$CI$14))+SUMPRODUCT(($I$5:$M$14=AT7)*($CJ$5:$CJ$14))+'J05'!BI7 -> 3 | BJ7: 0 | BK7: =SUMPRODUCT(($B$5:$F$14=AT7)*($CK$5:$CK$14))+'J05'!BK7 -> 1 | BL7: =SUMPRODUCT(($B$5:$F$14=AT7)*($CL$5:$CL$14))+'J05'!BL7 -> 1 | BM7: =SUMPRODUCT(($B$5:$F$14=AT7)*($CM$5:$CM$14))+'J05'!BM7 -> 0 | BN7: =SUMPRODUCT(($I$5:$M$14=AT7)*($CN$5:$CN$14))+'J05'!BN7 -> 1 | BO7: =SUMPRODUCT(($I$5:$M$14=AT7)*($CO$5:$CO$14))+'J05'!BO7 -> 0 | BP7: =SUMPRODUCT(($I$5:$M$14=AT7)*($CP$5:$CP$14))+'J05'!BP7 -> 1 | BQ7: 7000.003 | BR7: =BQ7+0.0000012 -> 7000.003001 | BS7: 0 | BT7: 0 | BU7: 0 | BV7: 0 | BW7: 0 | BX7: 0 | BY7: 0 | BZ7: 0 | CA7: FALSE | CB7: FALSE | CC7: FALSE | CD7: FALSE | CE7: FALSE | CF7: FALSE | CG7: 0 | CH7: 0 | CI7: 0 | CJ7: 0 | CK7: FALSE | CL7: FALSE | CM7: FALSE | CN7: FALSE | CO7: FALSE | CP7: FALSE | CQ7: CJBF | CR7: 8000.035 | CS7: 3 | CT7: AUSA
V8: AUSA | AA8: 0 | AB8: u | AC8: 4 | AD8: 7 | AE8: 4 | AF8: 2 | AG8: 1 | AH8: 1 | AI8: 3 | AJ8: 3 | AK8: 0 | AL8: 1 | AM8: 1 | AN8: 0 | AO8: 1 | AP8: 0 | AQ8: 1 | AR8: 4 | AS8: 3 | AT8: ='J01'!AT8:AX8 -> CJBF | AY8: 3 | AZ8: ='J05'!AY8-AY8 -> 0 | BA8: =IF(AY8>'J05'!AY8,'J05'!$BA$20,IF(AY8='J05'!AY8,'J05'!$AZ$20,IF(AY8<'J05'!AY8,'J05'!$AY$20))) -> u | BB8: 3 | BC8: =SUMPRODUCT(($B$5:$F$14=AT8)*($BW$5:$BW$14))+SUMPRODUCT(($I$5:$M$14=AT8)*($BX$5:$BX$14))+'J05'!BC8 -> 8 | BD8: =SUMPRODUCT(($B$5:$F$14=AT8)*($BY$5:$BY$14))+SUMPRODUCT(($I$5:$M$14=AT8)*($BZ$5:$BZ$14))+'J05'!BD8 -> 4 | BE8: =SUMPRODUCT(($B$5:$F$14=AT8)*($CA$5:$CA$14))+SUMPRODUCT(($I$5:$M$14=AT8)*($CB$5:$CB$14))+'J05'!BE8 -> 2 | BF8: =SUMPRODUCT(($B$5:$F$14=AT8)*($CC$5:$CC$14))+SUMPRODUCT(($I$5:$M$14=AT8)*($CD$5:$CD$14))+'J05'!BF8 -> 2 | BG8: =SUMPRODUCT(($B$5:$F$14=AT8)*($CE$5:$CE$14))+SUMPRODUCT(($I$5:$M$14=AT8)*($CF$5:$CF$14))+'J05'!BG8 -> 0 | BH8: =SUMPRODUCT(($B$5:$F$14=AT8)*($CG$5:$CG$14))+SUMPRODUCT(($I$5:$M$14=AT8)*($CH$5:$CH$14))+'J05'!BH8 -> 5 | BI8: =SUMPRODUCT(($B$5:$F$14=AT8)*($CI$5:$CI$14))+SUMPRODUCT(($I$5:$M$14=AT8)*($CJ$5:$CJ$14))+'J05'!BI8 -> 2 | BJ8: 3 | BK8: =SUMPRODUCT(($B$5:$F$14=AT8)*($CK$5:$CK$14))+'J05'!BK8 -> 1 | BL8: =SUMPRODUCT(($B$5:$F$14=AT8)*($CL$5:$CL$14))+'J05'!BL8 -> 1 | BM8: =SUMPRODUCT(($B$5:$F$14=AT8)*($CM$5:$CM$14))+'J05'!BM8 -> 0 | BN8: =SUMPRODUCT(($I$5:$M$14=AT8)*($CN$5:$CN$14))+'J05'!BN8 -> 1 | BO8: =SUMPRODUCT(($I$5:$M$14=AT8)*($CO$5:$CO$14))+'J05'!BO8 -> 1 | BP8: =SUMPRODUCT(($I$5:$M$14=AT8)*($CP$5:$CP$14))+'J05'!BP8 -> 0 | BQ8: 8000.035 | BR8: =BQ8+0.0000011 -> 8000.035001 | BS8: 0 | BT8: 0 | BU8: 0 | BV8: 0 | BW8: 0 | BX8: 0 | BY8: 0 | BZ8: 0 | CA8: FALSE | CB8: FALSE | CC8: FALSE | CD8: FALSE | CE8: FALSE | CF8: FALSE | CG8: 0 | CH8: 0 | CI8: 0 | CJ8: 0 | CK8: FALSE | CL8: FALSE | CM8: FALSE | CN8: FALSE | CO8: FALSE | CP8: FALSE | CQ8: AUSA | CR8: 7000.003 | CS8: 4 | CT8: CJBF
V9: ALC | AA9: 0 | AB9: u | AC9: 5 | AD9: 7 | AE9: 4 | AF9: 2 | AG9: 1 | AH9: 1 | AI9: 4 | AJ9: 5 | AK9: -1 | AL9: 1 | AM9: 0 | AN9: 1 | AO9: 1 | AP9: 1 | AQ9: 0 | AR9: 5 | AS9: 11 | AT9: ='J01'!AT9:AX9 -> AJAK | AY9: 11 | AZ9: ='J05'!AY9-AY9 -> 0 | BA9: =IF(AY9>'J05'!AY9,'J05'!$BA$20,IF(AY9='J05'!AY9,'J05'!$AZ$20,IF(AY9<'J05'!AY9,'J05'!$AY$20))) -> u | BB9: 11 | BC9: =SUMPRODUCT(($B$5:$F$14=AT9)*($BW$5:$BW$14))+SUMPRODUCT(($I$5:$M$14=AT9)*($BX$5:$BX$14))+'J05'!BC9 -> 4 | BD9: =SUMPRODUCT(($B$5:$F$14=AT9)*($BY$5:$BY$14))+SUMPRODUCT(($I$5:$M$14=AT9)*($BZ$5:$BZ$14))+'J05'!BD9 -> 4 | BE9: =SUMPRODUCT(($B$5:$F$14=AT9)*($CA$5:$CA$14))+SUMPRODUCT(($I$5:$M$14=AT9)*($CB$5:$CB$14))+'J05'!BE9 -> 1 | BF9: =SUMPRODUCT(($B$5:$F$14=AT9)*($CC$5:$CC$14))+SUMPRODUCT(($I$5:$M$14=AT9)*($CD$5:$CD$14))+'J05'!BF9 -> 1 | BG9: =SUMPRODUCT(($B$5:$F$14=AT9)*($CE$5:$CE$14))+SUMPRODUCT(($I$5:$M$14=AT9)*($CF$5:$CF$14))+'J05'!BG9 -> 2 | BH9: =SUMPRODUCT(($B$5:$F$14=AT9)*($CG$5:$CG$14))+SUMPRODUCT(($I$5:$M$14=AT9)*($CH$5:$CH$14))+'J05'!BH9 -> 2 | BI9: =SUMPRODUCT(($B$5:$F$14=AT9)*($CI$5:$CI$14))+SUMPRODUCT(($I$5:$M$14=AT9)*($CJ$5:$CJ$14))+'J05'!BI9 -> 7 | BJ9: -5 | BK9: =SUMPRODUCT(($B$5:$F$14=AT9)*($CK$5:$CK$14))+'J05'!BK9 -> 0 | BL9: =SUMPRODUCT(($B$5:$F$14=AT9)*($CL$5:$CL$14))+'J05'!BL9 -> 0 | BM9: =SUMPRODUCT(($B$5:$F$14=AT9)*($CM$5:$CM$14))+'J05'!BM9 -> 2 | BN9: =SUMPRODUCT(($I$5:$M$14=AT9)*($CN$5:$CN$14))+'J05'!BN9 -> 1 | BO9: =SUMPRODUCT(($I$5:$M$14=AT9)*($CO$5:$CO$14))+'J05'!BO9 -> 1 | BP9: =SUMPRODUCT(($I$5:$M$14=AT9)*($CP$5:$CP$14))+'J05'!BP9 -> 0 | BQ9: 3999.952 | BR9: =BQ9+0.000001 -> 3999.952001 | BS9: 0 | BT9: 0 | BU9: 0 | BV9: 0 | BW9: 0 | BX9: 0 | BY9: 0 | BZ9: 0 | CA9: FALSE | CB9: FALSE | CC9: FALSE | CD9: FALSE | CE9: FALSE | CF9: FALSE | CG9: 0 | CH9: 0 | CI9: 0 | CJ9: 0 | CK9: FALSE | CL9: FALSE | CM9: FALSE | CN9: FALSE | CO9: FALSE | CP9: FALSE | CQ9: ALC | CR9: 6999.994 | CS9: 5 | CT9: AJAK
V10: AUSBK | AA10: 0 | AB10: u | AC10: 6 | AD10: 5 | AE10: 4 | AF10: 1 | AG10: 2 | AH10: 1 | AI10: 7 | AJ10: 7 | AK10: 0 | AL10: 0 | AM10: 2 | AN10: 0 | AO10: 1 | AP10: 0 | AQ10: 1 | AR10: 6 | AS10: 1 | AT10: ='J01'!AT10:AX10 -> ASUD | AY10: 1 | AZ10: ='J05'!AY10-AY10 -> 0 | BA10: =IF(AY10>'J05'!AY10,'J05'!$BA$20,IF(AY10='J05'!AY10,'J05'!$AZ$20,IF(AY10<'J05'!AY10,'J05'!$AY$20))) -> u | BB10: 1 | BC10: =SUMPRODUCT(($B$5:$F$14=AT10)*($BW$5:$BW$14))+SUMPRODUCT(($I$5:$M$14=AT10)*($BX$5:$BX$14))+'J05'!BC10 -> 10 | BD10: =SUMPRODUCT(($B$5:$F$14=AT10)*($BY$5:$BY$14))+SUMPRODUCT(($I$5:$M$14=AT10)*($BZ$5:$BZ$14))+'J05'!BD10 -> 4 | BE10: =SUMPRODUCT(($B$5:$F$14=AT10)*($CA$5:$CA$14))+SUMPRODUCT(($I$5:$M$14=AT10)*($CB$5:$CB$14))+'J05'!BE10 -> 3 | BF10: =SUMPRODUCT(($B$5:$F$14=AT10)*($CC$5:$CC$14))+SUMPRODUCT(($I$5:$M$14=AT10)*($CD$5:$CD$14))+'J05'!BF10 -> 1 | BG10: =SUMPRODUCT(($B$5:$F$14=AT10)*($CE$5:$CE$14))+SUMPRODUCT(($I$5:$M$14=AT10)*($CF$5:$CF$14))+'J05'!BG10 -> 0 | BH10: =SUMPRODUCT(($B$5:$F$14=AT10)*($CG$5:$CG$14))+SUMPRODUCT(($I$5:$M$14=AT10)*($CH$5:$CH$14))+'J05'!BH10 -> 16 | BI10: =SUMPRODUCT(($B$5:$F$14=AT10)*($CI$5:$CI$14))+SUMPRODUCT(($I$5:$M$14=AT10)*($CJ$5:$CJ$14))+'J05'!BI10 -> 5 | BJ10: 11 | BK10: =SUMPRODUCT(($B$5:$F$14=AT10)*($CK$5:$CK$14))+'J05'!BK10 -> 2 | BL10: =SUMPRODUCT(($B$5:$F$14=AT10)*($CL$5:$CL$14))+'J05'!BL10 -> 0 | BM10: =SUMPRODUCT(($B$5:$F$14=AT10)*($CM$5:$CM$14))+'J05'!BM10 -> 0 | BN10: =SUMPRODUCT(($I$5:$M$14=AT10)*($CN$5:$CN$14))+'J05'!BN10 -> 1 | BO10: =SUMPRODUCT(($I$5:$M$14=AT10)*($CO$5:$CO$14))+'J05'!BO10 -> 1 | BP10: =SUMPRODUCT(($I$5:$M$14=AT10)*($CP$5:$CP$14))+'J05'!BP10 -> 0 | BQ10: 10000.126 | BR10: =BQ10+0.0000009 -> 10000.126 | BS10: 0 | BT10: 0 | BU10: 0 | BV10: 0 | BW10: 0 | BX10: 0 | BY10: 0 | BZ10: 0 | CA10: FALSE | CB10: FALSE | CC10: FALSE | CD10: FALSE | CE10: FALSE | CF10: FALSE | CG10: 0 | CH10: 0 | CI10: 0 | CJ10: 0 | CK10: FALSE | CL10: FALSE | CM10: FALSE | CN10: FALSE | CO10: FALSE | CP10: FALSE | CQ10: AUSBK | CR10: 5000.007 | CS10: 6 | CT10: ASUD
V11: HSMK | AA11: 0 | AB11: u | AC11: 7 | AD11: 5 | AE11: 4 | AF11: 1 | AG11: 2 | AH11: 1 | AI11: 5 | AJ11: 5 | AK11: 0 | AL11: 1 | AM11: 0 | AN11: 1 | AO11: 0 | AP11: 2 | AQ11: 0 | AR11: 7 | AS11: 2 | AT11: ='J01'!AT11:AX11 -> AHDOZ | AY11: 2 | AZ11: ='J05'!AY11-AY11 -> 0 | BA11: =IF(AY11>'J05'!AY11,'J05'!$BA$20,IF(AY11='J05'!AY11,'J05'!$AZ$20,IF(AY11<'J05'!AY11,'J05'!$AY$20))) -> u | BB11: 2 | BC11: =SUMPRODUCT(($B$5:$F$14=AT11)*($BW$5:$BW$14))+SUMPRODUCT(($I$5:$M$14=AT11)*($BX$5:$BX$14))+'J05'!BC11 -> 10 | BD11: =SUMPRODUCT(($B$5:$F$14=AT11)*($BY$5:$BY$14))+SUMPRODUCT(($I$5:$M$14=AT11)*($BZ$5:$BZ$14))+'J05'!BD11 -> 4 | BE11: =SUMPRODUCT(($B$5:$F$14=AT11)*($CA$5:$CA$14))+SUMPRODUCT(($I$5:$M$14=AT11)*($CB$5:$CB$14))+'J05'!BE11 -> 3 | BF11: =SUMPRODUCT(($B$5:$F$14=AT11)*($CC$5:$CC$14))+SUMPRODUCT(($I$5:$M$14=AT11)*($CD$5:$CD$14))+'J05'!BF11 -> 1 | BG11: =SUMPRODUCT(($B$5:$F$14=AT11)*($CE$5:$CE$14))+SUMPRODUCT(($I$5:$M$14=AT11)*($CF$5:$CF$14))+'J05'!BG11 -> 0 | BH11: =SUMPRODUCT(($B$5:$F$14=AT11)*($CG$5:$CG$14))+SUMPRODUCT(($I$5:$M$14=AT11)*($CH$5:$CH$14))+'J05'!BH11 -> 5 | BI11: =SUMPRODUCT(($B$5:$F$14=AT11)*($CI$5:$CI$14))+SUMPRODUCT(($I$5:$M$14=AT11)*($CJ$5:$CJ$14))+'J05'!BI11 -> 0 | BJ11: 5 | BK11: =SUMPRODUCT(($B$5:$F$14=AT11)*($CK$5:$CK$14))+'J05'!BK11 -> 1 | BL11: =SUMPRODUCT(($B$5:$F$14=AT11)*($CL$5:$CL$14))+'J05'!BL11 -> 1 | BM11: =SUMPRODUCT(($B$5:$F$14=AT11)*($CM$5:$CM$14))+'J05'!BM11 -> 0 | BN11: =SUMPRODUCT(($I$5:$M$14=AT11)*($CN$5:$CN$14))+'J05'!BN11 -> 2 | BO11: =SUMPRODUCT(($I$5:$M$14=AT11)*($CO$5:$CO$14))+'J05'!BO11 -> 0 | BP11: =SUMPRODUCT(($I$5:$M$14=AT11)*($CP$5:$CP$14))+'J05'!BP11 -> 0 | BQ11: 10000.055 | BR11: =BQ11+0.0000008 -> 10000.055 | BS11: 0 | BT11: 0 | BU11: 0 | BV11: 0 | BW11: 0 | BX11: 0 | BY11: 0 | BZ11: 0 | CA11: FALSE | CB11: FALSE | CC11: FALSE | CD11: FALSE | CE11: FALSE | CF11: FALSE | CG11: 0 | CH11: 0 | CI11: 0 | CJ11: 0 | CK11: FALSE | CL11: FALSE | CM11: FALSE | CN11: FALSE | CO11: FALSE | CP11: FALSE | CQ11: HSMK | CR11: 5000.005 | CS11: 7 | CT11: AHDOZ
V12: AWSOM | AA12: 0 | AB12: u | AC12: 8 | AD12: 5 | AE12: 4 | AF12: 1 | AG12: 2 | AH12: 1 | AI12: 3 | AJ12: 4 | AK12: -1 | AL12: 0 | AM12: 2 | AN12: 0 | AO12: 1 | AP12: 0 | AQ12: 1 | AR12: 8 | AS12: 14 | AT12: ='J01'!AT12:AX12 -> USB | AY12: 14 | AZ12: ='J05'!AY12-AY12 -> 0 | BA12: =IF(AY12>'J05'!AY12,'J05'!$BA$20,IF(AY12='J05'!AY12,'J05'!$AZ$20,IF(AY12<'J05'!AY12,'J05'!$AY$20))) -> u | BB12: 14 | BC12: =SUMPRODUCT(($B$5:$F$14=AT12)*($BW$5:$BW$14))+SUMPRODUCT(($I$5:$M$14=AT12)*($BX$5:$BX$14))+'J05'!BC12 -> 1 | BD12: =SUMPRODUCT(($B$5:$F$14=AT12)*($BY$5:$BY$14))+SUMPRODUCT(($I$5:$M$14=AT12)*($BZ$5:$BZ$14))+'J05'!BD12 -> 4 | BE12: =SUMPRODUCT(($B$5:$F$14=AT12)*($CA$5:$CA$14))+SUMPRODUCT(($I$5:$M$14=AT12)*($CB$5:$CB$14))+'J05'!BE12 -> 0 | BF12: =SUMPRODUCT(($B$5:$F$14=AT12)*($CC$5:$CC$14))+SUMPRODUCT(($I$5:$M$14=AT12)*($CD$5:$CD$14))+'J05'!BF12 -> 1 | BG12: =SUMPRODUCT(($B$5:$F$14=AT12)*($CE$5:$CE$14))+SUMPRODUCT(($I$5:$M$14=AT12)*($CF$5:$CF$14))+'J05'!BG12 -> 3 | BH12: =SUMPRODUCT(($B$5:$F$14=AT12)*($CG$5:$CG$14))+SUMPRODUCT(($I$5:$M$14=AT12)*($CH$5:$CH$14))+'J05'!BH12 -> 0 | BI12: =SUMPRODUCT(($B$5:$F$14=AT12)*($CI$5:$CI$14))+SUMPRODUCT(($I$5:$M$14=AT12)*($CJ$5:$CJ$14))+'J05'!BI12 -> 4 | BJ12: -4 | BK12: =SUMPRODUCT(($B$5:$F$14=AT12)*($CK$5:$CK$14))+'J05'!BK12 -> 0 | BL12: =SUMPRODUCT(($B$5:$F$14=AT12)*($CL$5:$CL$14))+'J05'!BL12 -> 0 | BM12: =SUMPRODUCT(($B$5:$F$14=AT12)*($CM$5:$CM$14))+'J05'!BM12 -> 2 | BN12: =SUMPRODUCT(($I$5:$M$14=AT12)*($CN$5:$CN$14))+'J05'!BN12 -> 0 | BO12: =SUMPRODUCT(($I$5:$M$14=AT12)*($CO$5:$CO$14))+'J05'!BO12 -> 1 | BP12: =SUMPRODUCT(($I$5:$M$14=AT12)*($CP$5:$CP$14))+'J05'!BP12 -> 1 | BQ12: 999.96 | BR12: =BQ12+0.0000007 -> 999.9600007 | BS12: 0 | BT12: 0 | BU12: 0 | BV12: 0 | BW12: 0 | BX12: 0 | BY12: 0 | BZ12: 0 | CA12: FALSE | CB12: FALSE | CC12: FALSE | CD12: FALSE | CE12: FALSE | CF12: FALSE | CG12: 0 | CH12: 0 | CI12: 0 | CJ12: 0 | CK12: FALSE | CL12: FALSE | CM12: FALSE | CN12: FALSE | CO12: FALSE | CP12: FALSE | CQ12: AWSOM | CR12: 4999.993 | CS12: 8 | CT12: USB
V13: JSOA | AA13: 0 | AB13: u | AC13: 9 | AD13: 4 | AE13: 4 | AF13: 1 | AG13: 1 | AH13: 2 | AI13: 5 | AJ13: 4 | AK13: 1 | AL13: 0 | AM13: 0 | AN13: 2 | AO13: 1 | AP13: 1 | AQ13: 0 | AR13: 9 | AS13: 5 | AT13: ='J01'!AT13:AX13 -> ALC | AY13: 5 | AZ13: ='J05'!AY13-AY13 -> 0 | BA13: =IF(AY13>'J05'!AY13,'J05'!$BA$20,IF(AY13='J05'!AY13,'J05'!$AZ$20,IF(AY13<'J05'!AY13,'J05'!$AY$20))) -> u | BB13: 5 | BC13: =SUMPRODUCT(($B$5:$F$14=AT13)*($BW$5:$BW$14))+SUMPRODUCT(($I$5:$M$14=AT13)*($BX$5:$BX$14))+'J05'!BC13 -> 7 | BD13: =SUMPRODUCT(($B$5:$F$14=AT13)*($BY$5:$BY$14))+SUMPRODUCT(($I$5:$M$14=AT13)*($BZ$5:$BZ$14))+'J05'!BD13 -> 4 | BE13: =SUMPRODUCT(($B$5:$F$14=AT13)*($CA$5:$CA$14))+SUMPRODUCT(($I$5:$M$14=AT13)*($CB$5:$CB$14))+'J05'!BE13 -> 2 | BF13: =SUMPRODUCT(($B$5:$F$14=AT13)*($CC$5:$CC$14))+SUMPRODUCT(($I$5:$M$14=AT13)*($CD$5:$CD$14))+'J05'!BF13 -> 1 | BG13: =SUMPRODUCT(($B$5:$F$14=AT13)*($CE$5:$CE$14))+SUMPRODUCT(($I$5:$M$14=AT13)*($CF$5:$CF$14))+'J05'!BG13 -> 1 | BH13: =SUMPRODUCT(($B$5:$F$14=AT13)*($CG$5:$CG$14))+SUMPRODUCT(($I$5:$M$14=AT13)*($CH$5:$CH$14))+'J05'!BH13 -> 4 | BI13: =SUMPRODUCT(($B$5:$F$14=AT13)*($CI$5:$CI$14))+SUMPRODUCT(($I$5:$M$14=AT13)*($CJ$5:$CJ$14))+'J05'!BI13 -> 5 | BJ13: -1 | BK13: =SUMPRODUCT(($B$5:$F$14=AT13)*($CK$5:$CK$14))+'J05'!BK13 -> 1 | BL13: =SUMPRODUCT(($B$5:$F$14=AT13)*($CL$5:$CL$14))+'J05'!BL13 -> 0 | BM13: =SUMPRODUCT(($B$5:$F$14=AT13)*($CM$5:$CM$14))+'J05'!BM13 -> 1 | BN13: =SUMPRODUCT(($I$5:$M$14=AT13)*($CN$5:$CN$14))+'J05'!BN13 -> 1 | BO13: =SUMPRODUCT(($I$5:$M$14=AT13)*($CO$5:$CO$14))+'J05'!BO13 -> 1 | BP13: =SUMPRODUCT(($I$5:$M$14=AT13)*($CP$5:$CP$14))+'J05'!BP13 -> 0 | BQ13: 6999.994 | BR13: =BQ13+0.0000006 -> 6999.994001 | BS13: 0 | BT13: 0 | BU13: 0 | BV13: 0 | BW13: 0 | BX13: 0 | BY13: 0 | BZ13: 0 | CA13: FALSE | CB13: FALSE | CC13: FALSE | CD13: FALSE | CE13: FALSE | CF13: FALSE | CG13: 0 | CH13: 0 | CI13: 0 | CJ13: 0 | CK13: FALSE | CL13: FALSE | CM13: FALSE | CN13: FALSE | CO13: FALSE | CP13: FALSE | CQ13: JSOA | CR13: 4000.015 | CS13: 9 | CT13: ALC
V14: ESMB | AA14: 0 | AB14: u | AC14: 10 | AD14: 4 | AE14: 4 | AF14: 1 | AG14: 1 | AH14: 2 | AI14: 6 | AJ14: 8 | AK14: -2 | AL14: 0 | AM14: 1 | AN14: 1 | AO14: 1 | AP14: 0 | AQ14: 1 | AR14: 10 | AS14: 12 | AT14: ='J01'!AT14:AX14 -> AUSAF | AY14: 12 | AZ14: ='J05'!AY14-AY14 -> 0 | BA14: =IF(AY14>'J05'!AY14,'J05'!$BA$20,IF(AY14='J05'!AY14,'J05'!$AZ$20,IF(AY14<'J05'!AY14,'J05'!$AY$20))) -> u | BB14: 12 | BC14: =SUMPRODUCT(($B$5:$F$14=AT14)*($BW$5:$BW$14))+SUMPRODUCT(($I$5:$M$14=AT14)*($BX$5:$BX$14))+'J05'!BC14 -> 3 | BD14: =SUMPRODUCT(($B$5:$F$14=AT14)*($BY$5:$BY$14))+SUMPRODUCT(($I$5:$M$14=AT14)*($BZ$5:$BZ$14))+'J05'!BD14 -> 4 | BE14: =SUMPRODUCT(($B$5:$F$14=AT14)*($CA$5:$CA$14))+SUMPRODUCT(($I$5:$M$14=AT14)*($CB$5:$CB$14))+'J05'!BE14 -> 1 | BF14: =SUMPRODUCT(($B$5:$F$14=AT14)*($CC$5:$CC$14))+SUMPRODUCT(($I$5:$M$14=AT14)*($CD$5:$CD$14))+'J05'!BF14 -> 0 | BG14: =SUMPRODUCT(($B$5:$F$14=AT14)*($CE$5:$CE$14))+SUMPRODUCT(($I$5:$M$14=AT14)*($CF$5:$CF$14))+'J05'!BG14 -> 3 | BH14: =SUMPRODUCT(($B$5:$F$14=AT14)*($CG$5:$CG$14))+SUMPRODUCT(($I$5:$M$14=AT14)*($CH$5:$CH$14))+'J05'!BH14 -> 2 | BI14: =SUMPRODUCT(($B$5:$F$14=AT14)*($CI$5:$CI$14))+SUMPRODUCT(($I$5:$M$14=AT14)*($CJ$5:$CJ$14))+'J05'!BI14 -> 3 | BJ14: -1 | BK14: =SUMPRODUCT(($B$5:$F$14=AT14)*($CK$5:$CK$14))+'J05'!BK14 -> 0 | BL14: =SUMPRODUCT(($B$5:$F$14=AT14)*($CL$5:$CL$14))+'J05'!BL14 -> 0 | BM14: =SUMPRODUCT(($B$5:$F$14=AT14)*($CM$5:$CM$14))+'J05'!BM14 -> 2 | BN14: =SUMPRODUCT(($I$5:$M$14=AT14)*($CN$5:$CN$14))+'J05'!BN14 -> 1 | BO14: =SUMPRODUCT(($I$5:$M$14=AT14)*($CO$5:$CO$14))+'J05'!BO14 -> 0 | BP14: =SUMPRODUCT(($I$5:$M$14=AT14)*($CP$5:$CP$14))+'J05'!BP14 -> 1 | BQ14: 2999.992 | BR14: =BQ14+0.0000005 -> 2999.992 | BS14: 0 | BT14: 0 | BU14: 0 | BV14: 0 | BW14: 0 | BX14: 0 | BY14: 0 | BZ14: 0 | CA14: FALSE | CB14: FALSE | CC14: FALSE | CD14: FALSE | CE14: FALSE | CF14: FALSE | CG14: 0 | CH14: 0 | CI14: 0 | CJ14: 0 | CK14: FALSE | CL14: FALSE | CM14: FALSE | CN14: FALSE | CO14: FALSE | CP14: FALSE | CQ14: ESMB | CR14: 3999.986 | CS14: 10 | CT14: AUSAF
V15: AJAK | AA15: 0 | AB15: u | AC15: 11 | AD15: 4 | AE15: 4 | AF15: 1 | AG15: 1 | AH15: 2 | AI15: 2 | AJ15: 7 | AK15: -5 | AL15: 0 | AM15: 0 | AN15: 2 | AO15: 1 | AP15: 1 | AQ15: 0 | AR15: 11 | AS15: 9 | AT15: ='J01'!AT15:AX15 -> JSOA | AY15: 9 | AZ15: ='J05'!AY15-AY15 -> 0 | BA15: =IF(AY15>'J05'!AY15,'J05'!$BA$20,IF(AY15='J05'!AY15,'J05'!$AZ$20,IF(AY15<'J05'!AY15,'J05'!$AY$20))) -> u | BB15: 9 | BC15: =SUMPRODUCT(($B$5:$F$14=AT15)*($BW$5:$BW$14))+SUMPRODUCT(($I$5:$M$14=AT15)*($BX$5:$BX$14))+'J05'!BC15 -> 4 | BD15: =SUMPRODUCT(($B$5:$F$14=AT15)*($BY$5:$BY$14))+SUMPRODUCT(($I$5:$M$14=AT15)*($BZ$5:$BZ$14))+'J05'!BD15 -> 4 | BE15: =SUMPRODUCT(($B$5:$F$14=AT15)*($CA$5:$CA$14))+SUMPRODUCT(($I$5:$M$14=AT15)*($CB$5:$CB$14))+'J05'!BE15 -> 1 | BF15: =SUMPRODUCT(($B$5:$F$14=AT15)*($CC$5:$CC$14))+SUMPRODUCT(($I$5:$M$14=AT15)*($CD$5:$CD$14))+'J05'!BF15 -> 1 | BG15: =SUMPRODUCT(($B$5:$F$14=AT15)*($CE$5:$CE$14))+SUMPRODUCT(($I$5:$M$14=AT15)*($CF$5:$CF$14))+'J05'!BG15 -> 2 | BH15: =SUMPRODUCT(($B$5:$F$14=AT15)*($CG$5:$CG$14))+SUMPRODUCT(($I$5:$M$14=AT15)*($CH$5:$CH$14))+'J05'!BH15 -> 5 | BI15: =SUMPRODUCT(($B$5:$F$14=AT15)*($CI$5:$CI$14))+SUMPRODUCT(($I$5:$M$14=AT15)*($CJ$5:$CJ$14))+'J05'!BI15 -> 4 | BJ15: 1 | BK15: =SUMPRODUCT(($B$5:$F$14=AT15)*($CK$5:$CK$14))+'J05'!BK15 -> 0 | BL15: =SUMPRODUCT(($B$5:$F$14=AT15)*($CL$5:$CL$14))+'J05'!BL15 -> 0 | BM15: =SUMPRODUCT(($B$5:$F$14=AT15)*($CM$5:$CM$14))+'J05'!BM15 -> 2 | BN15: =SUMPRODUCT(($I$5:$M$14=AT15)*($CN$5:$CN$14))+'J05'!BN15 -> 1 | BO15: =SUMPRODUCT(($I$5:$M$14=AT15)*($CO$5:$CO$14))+'J05'!BO15 -> 1 | BP15: =SUMPRODUCT(($I$5:$M$14=AT15)*($CP$5:$CP$14))+'J05'!BP15 -> 0 | BQ15: 4000.015 | BR15: =BQ15+0.0000004 -> 4000.015 | CQ15: AJAK | CR15: 3999.952 | CS15: 11 | CT15: JSOA
V16: AUSAF | AA16: 0 | AB16: u | AC16: 12 | AD16: 3 | AE16: 4 | AF16: 1 | AG16: 0 | AH16: 3 | AI16: 2 | AJ16: 3 | AK16: -1 | AL16: 0 | AM16: 0 | AN16: 2 | AO16: 1 | AP16: 0 | AQ16: 1 | AR16: 12 | AS16: 8 | AT16: ='J01'!AT16:AX16 -> AWSOM | AY16: 8 | AZ16: ='J05'!AY16-AY16 -> 0 | BA16: =IF(AY16>'J05'!AY16,'J05'!$BA$20,IF(AY16='J05'!AY16,'J05'!$AZ$20,IF(AY16<'J05'!AY16,'J05'!$AY$20))) -> u | BB16: 8 | BC16: =SUMPRODUCT(($B$5:$F$14=AT16)*($BW$5:$BW$14))+SUMPRODUCT(($I$5:$M$14=AT16)*($BX$5:$BX$14))+'J05'!BC16 -> 5 | BD16: =SUMPRODUCT(($B$5:$F$14=AT16)*($BY$5:$BY$14))+SUMPRODUCT(($I$5:$M$14=AT16)*($BZ$5:$BZ$14))+'J05'!BD16 -> 4 | BE16: =SUMPRODUCT(($B$5:$F$14=AT16)*($CA$5:$CA$14))+SUMPRODUCT(($I$5:$M$14=AT16)*($CB$5:$CB$14))+'J05'!BE16 -> 1 | BF16: =SUMPRODUCT(($B$5:$F$14=AT16)*($CC$5:$CC$14))+SUMPRODUCT(($I$5:$M$14=AT16)*($CD$5:$CD$14))+'J05'!BF16 -> 2 | BG16: =SUMPRODUCT(($B$5:$F$14=AT16)*($CE$5:$CE$14))+SUMPRODUCT(($I$5:$M$14=AT16)*($CF$5:$CF$14))+'J05'!BG16 -> 1 | BH16: =SUMPRODUCT(($B$5:$F$14=AT16)*($CG$5:$CG$14))+SUMPRODUCT(($I$5:$M$14=AT16)*($CH$5:$CH$14))+'J05'!BH16 -> 3 | BI16: =SUMPRODUCT(($B$5:$F$14=AT16)*($CI$5:$CI$14))+SUMPRODUCT(($I$5:$M$14=AT16)*($CJ$5:$CJ$14))+'J05'!BI16 -> 4 | BJ16: -1 | BK16: =SUMPRODUCT(($B$5:$F$14=AT16)*($CK$5:$CK$14))+'J05'!BK16 -> 0 | BL16: =SUMPRODUCT(($B$5:$F$14=AT16)*($CL$5:$CL$14))+'J05'!BL16 -> 2 | BM16: =SUMPRODUCT(($B$5:$F$14=AT16)*($CM$5:$CM$14))+'J05'!BM16 -> 0 | BN16: =SUMPRODUCT(($I$5:$M$14=AT16)*($CN$5:$CN$14))+'J05'!BN16 -> 1 | BO16: =SUMPRODUCT(($I$5:$M$14=AT16)*($CO$5:$CO$14))+'J05'!BO16 -> 0 | BP16: =SUMPRODUCT(($I$5:$M$14=AT16)*($CP$5:$CP$14))+'J05'!BP16 -> 1 | BQ16: 4999.993 | BR16: =BQ16+0.0000003 -> 4999.993 | CQ16: AUSAF | CR16: 2999.992 | CS16: 12 | CT16: AWSOM
V17: CUSL | AA17: 0 | AB17: u | AC17: 13 | AD17: 2 | AE17: 4 | AF17: 0 | AG17: 2 | AH17: 2 | AI17: 5 | AJ17: 11 | AK17: -6 | AL17: 0 | AM17: 1 | AN17: 1 | AO17: 0 | AP17: 1 | AQ17: 1 | AR17: 13 | AS17: 7 | AT17: ='J01'!AT17:AX17 -> HSMK | AY17: 7 | AZ17: ='J05'!AY17-AY17 -> 0 | BA17: =IF(AY17>'J05'!AY17,'J05'!$BA$20,IF(AY17='J05'!AY17,'J05'!$AZ$20,IF(AY17<'J05'!AY17,'J05'!$AY$20))) -> u | BB17: 7 | BC17: =SUMPRODUCT(($B$5:$F$14=AT17)*($BW$5:$BW$14))+SUMPRODUCT(($I$5:$M$14=AT17)*($BX$5:$BX$14))+'J05'!BC17 -> 5 | BD17: =SUMPRODUCT(($B$5:$F$14=AT17)*($BY$5:$BY$14))+SUMPRODUCT(($I$5:$M$14=AT17)*($BZ$5:$BZ$14))+'J05'!BD17 -> 4 | BE17: =SUMPRODUCT(($B$5:$F$14=AT17)*($CA$5:$CA$14))+SUMPRODUCT(($I$5:$M$14=AT17)*($CB$5:$CB$14))+'J05'!BE17 -> 1 | BF17: =SUMPRODUCT(($B$5:$F$14=AT17)*($CC$5:$CC$14))+SUMPRODUCT(($I$5:$M$14=AT17)*($CD$5:$CD$14))+'J05'!BF17 -> 2 | BG17: =SUMPRODUCT(($B$5:$F$14=AT17)*($CE$5:$CE$14))+SUMPRODUCT(($I$5:$M$14=AT17)*($CF$5:$CF$14))+'J05'!BG17 -> 1 | BH17: =SUMPRODUCT(($B$5:$F$14=AT17)*($CG$5:$CG$14))+SUMPRODUCT(($I$5:$M$14=AT17)*($CH$5:$CH$14))+'J05'!BH17 -> 5 | BI17: =SUMPRODUCT(($B$5:$F$14=AT17)*($CI$5:$CI$14))+SUMPRODUCT(($I$5:$M$14=AT17)*($CJ$5:$CJ$14))+'J05'!BI17 -> 5 | BJ17: 0 | BK17: =SUMPRODUCT(($B$5:$F$14=AT17)*($CK$5:$CK$14))+'J05'!BK17 -> 1 | BL17: =SUMPRODUCT(($B$5:$F$14=AT17)*($CL$5:$CL$14))+'J05'!BL17 -> 0 | BM17: =SUMPRODUCT(($B$5:$F$14=AT17)*($CM$5:$CM$14))+'J05'!BM17 -> 1 | BN17: =SUMPRODUCT(($I$5:$M$14=AT17)*($CN$5:$CN$14))+'J05'!BN17 -> 0 | BO17: =SUMPRODUCT(($I$5:$M$14=AT17)*($CO$5:$CO$14))+'J05'!BO17 -> 2 | BP17: =SUMPRODUCT(($I$5:$M$14=AT17)*($CP$5:$CP$14))+'J05'!BP17 -> 0 | BQ17: 5000.005 | BR17: =BQ17+0.0000002 -> 5000.005 | CQ17: CUSL | CR17: 1999.945 | CS17: 13 | CT17: HSMK
V18: USB | AA18: 0 | AB18: u | AC18: 14 | AD18: 1 | AE18: 4 | AF18: 0 | AG18: 1 | AH18: 3 | AI18: 0 | AJ18: 4 | AK18: -4 | AL18: 0 | AM18: 0 | AN18: 2 | AO18: 0 | AP18: 1 | AQ18: 1 | AR18: 14 | AS18: 10 | AT18: ='J01'!AT18:AX18 -> ESMB | AY18: 10 | AZ18: ='J05'!AY18-AY18 -> 0 | BA18: =IF(AY18>'J05'!AY18,'J05'!$BA$20,IF(AY18='J05'!AY18,'J05'!$AZ$20,IF(AY18<'J05'!AY18,'J05'!$AY$20))) -> u | BB18: 10 | BC18: =SUMPRODUCT(($B$5:$F$14=AT18)*($BW$5:$BW$14))+SUMPRODUCT(($I$5:$M$14=AT18)*($BX$5:$BX$14))+'J05'!BC18 -> 4 | BD18: =SUMPRODUCT(($B$5:$F$14=AT18)*($BY$5:$BY$14))+SUMPRODUCT(($I$5:$M$14=AT18)*($BZ$5:$BZ$14))+'J05'!BD18 -> 4 | BE18: =SUMPRODUCT(($B$5:$F$14=AT18)*($CA$5:$CA$14))+SUMPRODUCT(($I$5:$M$14=AT18)*($CB$5:$CB$14))+'J05'!BE18 -> 1 | BF18: =SUMPRODUCT(($B$5:$F$14=AT18)*($CC$5:$CC$14))+SUMPRODUCT(($I$5:$M$14=AT18)*($CD$5:$CD$14))+'J05'!BF18 -> 1 | BG18: =SUMPRODUCT(($B$5:$F$14=AT18)*($CE$5:$CE$14))+SUMPRODUCT(($I$5:$M$14=AT18)*($CF$5:$CF$14))+'J05'!BG18 -> 2 | BH18: =SUMPRODUCT(($B$5:$F$14=AT18)*($CG$5:$CG$14))+SUMPRODUCT(($I$5:$M$14=AT18)*($CH$5:$CH$14))+'J05'!BH18 -> 6 | BI18: =SUMPRODUCT(($B$5:$F$14=AT18)*($CI$5:$CI$14))+SUMPRODUCT(($I$5:$M$14=AT18)*($CJ$5:$CJ$14))+'J05'!BI18 -> 8 | BJ18: -2 | BK18: =SUMPRODUCT(($B$5:$F$14=AT18)*($CK$5:$CK$14))+'J05'!BK18 -> 0 | BL18: =SUMPRODUCT(($B$5:$F$14=AT18)*($CL$5:$CL$14))+'J05'!BL18 -> 1 | BM18: =SUMPRODUCT(($B$5:$F$14=AT18)*($CM$5:$CM$14))+'J05'!BM18 -> 1 | BN18: =SUMPRODUCT(($I$5:$M$14=AT18)*($CN$5:$CN$14))+'J05'!BN18 -> 1 | BO18: =SUMPRODUCT(($I$5:$M$14=AT18)*($CO$5:$CO$14))+'J05'!BO18 -> 0 | BP18: =SUMPRODUCT(($I$5:$M$14=AT18)*($CP$5:$CP$14))+'J05'!BP18 -> 1 | BQ18: 3999.986 | BR18: =BQ18+0.0000001 -> 3999.986 | CQ18: USB | CR18: 999.96 | CS18: 14 | CT18: ESMB
AO19: Buts/Journée | AY19: p | AZ19: u | BA19: q
AO20: =SUM(G5:H14) -> 0 | AY20: p | AZ20: u | BA20: q
AO22: Total Buts du Championnat
AO24: =AO20+'J05'!AO24:AP25 -> 68
AO26: Moyenne générale
AO28: =IF(AE5=0,"",SUM(AI5:AI24)/SUM(AE5:AE24)*2) -> 2.428571429

Sheet J07
A1: ='J01'!A1:C2 -> Nom du Championnat | I1: ='J01'!H1:K2 -> 2017-2018 | O1: JOURNEE 07 | V1: CLASSEMENT | AT1: CLASSEMENT | BS1: Domicile | BT1: Extérieur | BU1: Domicile | BV1: Extérieur | BW1: Domicile | BX1: Extérieur | BY1: Domicile | BZ1: Extérieur | CA1: Domicile | CB1: Extérieur | CC1: Domicile | CD1: Extérieur | CE1: Domicile | CF1: Extérieur | CG1: Domicile | CH1: Extérieur | CI1: Domicile | CJ1: Extérieur
A3: P | B3: Equipes | G3: Buts | H3: Buts | I3: Equipes | N3: P | O3: Dates | S3: Heure | V3: Equipes | AA3: Evolution | AC3: Place | AD3: Pts | AE3: J | AF3: G | AG3: N | AH3: P | AI3: B + | AJ3: B - | AK3: Diff. | AL3: Domicile | AO3: Extérieur | AT3: Equipes | AY3: R | AZ3: Evolution | BB3: R | BC3: Pts | BD3: J | BE3: G | BF3: N | BG3: P | BH3: B + | BI3: B - | BJ3: Diff. | BK3: Domicile | BN3: Extérieur | CK3: Domicile | CN3: Extérieur
AL4: G | AM4: N | AN4: P | AO4: G | AP4: N | AQ4: P | AS4: R | BK4: G | BL4: N | BM4: P | BN4: G | BO4: N | BP4: P | BQ4: % | BR4: % | BS4: P | BT4: P | BU4: Pts | BV4: Pts | BW4: T Pt | BX4: T Pt | BY4: J | BZ4: J | CA4: G | CB4: G | CC4: N | CD4: N | CE4: P | CF4: P | CG4: B + | CH4: B + | CI4: B - | CJ4: B - | CK4: G | CL4: N | CM4: P | CN4: G | CO4: N | CP4: P | CQ4: Equipes | CR4: % | CS4: R | CT4: Equipes
V5: =VLOOKUP(AR5,$AS$5:$AX$18,2,0) -> ASUD | AA5: =VLOOKUP(V5,$AT$5:$BP$18,7,0) -> 0 | AB5: =VLOOKUP(V5,$AT$5:$BP$18,8,0) -> u | AC5: 1 | AD5: =VLOOKUP(V5,$AT$5:$BP$18,10,0) -> 10 | AE5: =VLOOKUP(V5,$AT$5:$BP$18,11,0) -> 4 | AF5: =VLOOKUP(V5,$AT$5:$BP$18,12,0) -> 3 | AG5: =VLOOKUP(V5,$AT$5:$BP$18,13,0) -> 1 | AH5: =VLOOKUP(V5,$AT$5:$BP$18,14,0) -> 0 | AI5: =VLOOKUP(V5,$AT$5:$BP$18,15,0) -> 16 | AJ5: =VLOOKUP(V5,$AT$5:$BP$18,16,0) -> 5 | AK5: =VLOOKUP(V5,$AT$5:$BP$18,17,0) -> 11 | AL5: =VLOOKUP(V5,$AT$5:$BP$18,18,0) -> 2 | AM5: =VLOOKUP(V5,$AT$5:$BP$18,19,0) -> 0 | AN5: =VLOOKUP(V5,$AT$5:$BP$18,20,0) -> 0 | AO5: =VLOOKUP(V5,$AT$5:$BP$18,21,0) -> 1 | AP5: =VLOOKUP(V5,$AT$5:$BP$18,22,0) -> 1 | AQ5: =VLOOKUP(V5,$AT$5:$BP$18,23,0) -> 0 | AR5: 1 | AS5: =BB5 -> 6 | AT5: ='J01'!AT5:AX5 -> AUSBK | AY5: =RANK(BQ5,$BQ$5:$BQ$18) -> 6 | AZ5: ='J06'!AY5-AY5 -> 0 | BA5: =IF(AY5>'J06'!AY5,'J06'!$BA$20,IF(AY5='J06'!AY5,'J06'!$AZ$20,IF(AY5<'J06'!AY5,'J06'!$AY$20))) -> u | BB5: =RANK(BR5,$BR$5:$BR$18) -> 6 | BC5: =SUMPRODUCT(($B$5:$F$14=AT5)*($BW$5:$BW$14))+SUMPRODUCT(($I$5:$M$14=AT5)*($BX$5:$BX$14))+'J06'!BC5 -> 5 | BD5: =SUMPRODUCT(($B$5:$F$14=AT5)*($BY$5:$BY$14))+SUMPRODUCT(($I$5:$M$14=AT5)*($BZ$5:$BZ$14))+'J06'!BD5 -> 4 | BE5: =SUMPRODUCT(($B$5:$F$14=AT5)*($CA$5:$CA$14))+SUMPRODUCT(($I$5:$M$14=AT5)*($CB$5:$CB$14))+'J06'!BE5 -> 1 | BF5: =SUMPRODUCT(($B$5:$F$14=AT5)*($CC$5:$CC$14))+SUMPRODUCT(($I$5:$M$14=AT5)*($CD$5:$CD$14))+'J06'!BF5 -> 2 | BG5: =SUMPRODUCT(($B$5:$F$14=AT5)*($CE$5:$CE$14))+SUMPRODUCT(($I$5:$M$14=AT5)*($CF$5:$CF$14))+'J06'!BG5 -> 1 | BH5: =SUMPRODUCT(($B$5:$F$14=AT5)*($CG$5:$CG$14))+SUMPRODUCT(($I$5:$M$14=AT5)*($CH$5:$CH$14))+'J06'!BH5 -> 7 | BI5: =SUMPRODUCT(($B$5:$F$14=AT5)*($CI$5:$CI$14))+SUMPRODUCT(($I$5:$M$14=AT5)*($CJ$5:$CJ$14))+'J06'!BI5 -> 7 | BJ5: =BH5-BI5 -> 0 | BK5: =SUMPRODUCT(($B$5:$F$14=AT5)*($CK$5:$CK$14))+'J06'!BK5 -> 0 | BL5: =SUMPRODUCT(($B$5:$F$14=AT5)*($CL$5:$CL$14))+'J06'!BL5 -> 2 | BM5: =SUMPRODUCT(($B$5:$F$14=AT5)*($CM$5:$CM$14))+'J06'!BM5 -> 0 | BN5: =SUMPRODUCT(($I$5:$M$14=AT5)*($CN$5:$CN$14))+'J06'!BN5 -> 1 | BO5: =SUMPRODUCT(($I$5:$M$14=AT5)*($CO$5:$CO$14))+'J06'!BO5 -> 0 | BP5: =SUMPRODUCT(($I$5:$M$14=AT5)*($CP$5:$CP$14))+'J06'!BP5 -> 1 | BQ5: =SUM(BC5*1000+(BJ5)/100+(BH5)/1000) -> 5000.007 | BR5: =BQ5+0.0000014 -> 5000.007001 | BS5: =A5 -> 0 | BT5: =N5 -> 0 | BU5: =IF(G5="",0,IF(G5>H5,3,IF(G5=H5,1,IF(G5<H5,0)))) -> 0 | BV5: =IF(H5="",0,IF(H5>G5,3,IF(H5=G5,1,IF(H5<G5,0)))) -> 0 | BW5: =BU5-BS5 -> 0 | BX5: =BV5-BT5 -> 0 | BY5: =IF(G5="",0,1) -> 0 | BZ5: =IF(H5="",0,1) -> 0 | CA5: =IF(G5<>"",IF(G5>H5,1)) -> FALSE | CB5: =IF(H5<>"",IF(H5>G5,1)) -> FALSE | CC5: =IF(G5<>"",IF(G5=H5,1)) -> FALSE | CD5: =IF(H5<>"",IF(H5=G5,1)) -> FALSE | CE5: =IF(G5<>"",IF(G5<H5,1)) -> FALSE | CF5: =IF(H5<>"",IF(H5<G5,1)) -> FALSE | CG5: =G5 -> 0 | CH5: =H5 -> 0 | CI5: =H5 -> 0 | CJ5: =G5 -> 0 | CK5: =IF(G5<>"",IF(G5>H5,1)) -> FALSE | CL5: =IF(G5<>"",IF(G5=H5,1)) -> FALSE | CM5: =IF(G5<>"",IF(G5<H5,1)) -> FALSE | CN5: =IF(H5<>"",IF(H5>G5,1)) -> FALSE | CO5: =IF(H5<>"",IF(H5=G5,1)) -> FALSE | CP5: =IF(H5<>"",IF(H5<G5,1)) -> FALSE | CQ5: =VLOOKUP(AR5,$AS$5:$AX$18,2,0) -> ASUD | CR5: =VLOOKUP(CQ5,$AT$5:$BQ$18,24,0) -> 10000.126 | CS5: =RANK(CR5,$CR$5:$CR$18) -> 1 | CT5: =AT5 -> AUSBK
V6: AHDOZ | AA6: 0 | AB6: u | AC6: =IF(CR6=CR5,CS5,CS6) -> 2 | AD6: 10 | AE6: 4 | AF6: 3 | AG6: 1 | AH6: 0 | AI6: 5 | AJ6: 0 | AK6: 5 | AL6: 1 | AM6: 1 | AN6: =VLOOKUP(V6,$AT$5:$BP$18,20,0) -> 0 | AO6: 2 | AP6: =VLOOKUP(V6,$AT$5:$BP$18,22,0) -> 0 | AQ6: 0 | AR6: 2 | AS6: =BB6 -> 13 | AT6: ='J01'!AT6:AX6 -> CUSL | AY6: 13 | AZ6: ='J06'!AY6-AY6 -> 0 | BA6: =IF(AY6>'J06'!AY6,'J06'!$BA$20,IF(AY6='J06'!AY6,'J06'!$AZ$20,IF(AY6<'J06'!AY6,'J06'!$AY$20))) -> u | BB6: =RANK(BR6,$BR$5:$BR$18) -> 13 | BC6: =SUMPRODUCT(($B$5:$F$14=AT6)*($BW$5:$BW$14))+SUMPRODUCT(($I$5:$M$14=AT6)*($BX$5:$BX$14))+'J06'!BC6 -> 2 | BD6: =SUMPRODUCT(($B$5:$F$14=AT6)*($BY$5:$BY$14))+SUMPRODUCT(($I$5:$M$14=AT6)*($BZ$5:$BZ$14))+'J06'!BD6 -> 4 | BE6: =SUMPRODUCT(($B$5:$F$14=AT6)*($CA$5:$CA$14))+SUMPRODUCT(($I$5:$M$14=AT6)*($CB$5:$CB$14))+'J06'!BE6 -> 0 | BF6: =SUMPRODUCT(($B$5:$F$14=AT6)*($CC$5:$CC$14))+SUMPRODUCT(($I$5:$M$14=AT6)*($CD$5:$CD$14))+'J06'!BF6 -> 2 | BG6: =SUMPRODUCT(($B$5:$F$14=AT6)*($CE$5:$CE$14))+SUMPRODUCT(($I$5:$M$14=AT6)*($CF$5:$CF$14))+'J06'!BG6 -> 2 | BH6: =SUMPRODUCT(($B$5:$F$14=AT6)*($CG$5:$CG$14))+SUMPRODUCT(($I$5:$M$14=AT6)*($CH$5:$CH$14))+'J06'!BH6 -> 5 | BI6: =SUMPRODUCT(($B$5:$F$14=AT6)*($CI$5:$CI$14))+SUMPRODUCT(($I$5:$M$14=AT6)*($CJ$5:$CJ$14))+'J06'!BI6 -> 11 | BJ6: =BH6-BI6 -> -6 | BK6: =SUMPRODUCT(($B$5:$F$14=AT6)*($CK$5:$CK$14))+'J06'!BK6 -> 0 | BL6: =SUMPRODUCT(($B$5:$F$14=AT6)*($CL$5:$CL$14))+'J06'!BL6 -> 1 | BM6: =SUMPRODUCT(($B$5:$F$14=AT6)*($CM$5:$CM$14))+'J06'!BM6 -> 1 | BN6: =SUMPRODUCT(($I$5:$M$14=AT6)*($CN$5:$CN$14))+'J06'!BN6 -> 0 | BO6: =SUMPRODUCT(($I$5:$M$14=AT6)*($CO$5:$CO$14))+'J06'!BO6 -> 1 | BP6: =SUMPRODUCT(($I$5:$M$14=AT6)*($CP$5:$CP$14))+'J06'!BP6 -> 1 | BQ6: =SUM(BC6*1000+(BJ6)/100+(BH6)/1000) -> 1999.945 | BR6: =BQ6+0.0000013 -> 1999.945001 | BS6: =A6 -> 0 | BT6: =N6 -> 0 | BU6: =IF(G6="",0,IF(G6>H6,3,IF(G6=H6,1,IF(G6<H6,0)))) -> 0 | BV6: =IF(H6="",0,IF(H6>G6,3,IF(H6=G6,1,IF(H6<G6,0)))) -> 0 | BW6: =BU6-BS6 -> 0 | BX6: =BV6-BT6 -> 0 | BY6: =IF(G6="",0,1) -> 0 | BZ6: =IF(H6="",0,1) -> 0 | CA6: =IF(G6<>"",IF(G6>H6,1)) -> FALSE | CB6: =IF(H6<>"",IF(H6>G6,1)) -> FALSE | CC6: =IF(G6<>"",IF(G6=H6,1)) -> FALSE | CD6: =IF(H6<>"",IF(H6=G6,1)) -> FALSE | CE6: =IF(G6<>"",IF(G6<H6,1)) -> FALSE | CF6: =IF(H6<>"",IF(H6<G6,1)) -> FALSE | CG6: =G6 -> 0 | CH6: =H6 -> 0 | CI6: =H6 -> 0 | CJ6: =G6 -> 0 | CK6: =IF(G6<>"",IF(G6>H6,1)) -> FALSE | CL6: =IF(G6<>"",IF(G6=H6,1)) -> FALSE | CM6: =IF(G6<>"",IF(G6<H6,1)) -> FALSE | CN6: =IF(H6<>"",IF(H6>G6,1)) -> FALSE | CO6: =IF(H6<>"",IF(H6=G6,1)) -> FALSE | CP6: =IF(H6<>"",IF(H6<G6,1)) -> FALSE | CQ6: AHDOZ | CR6: 10000.055 | CS6: 2 | CT6: =AT6 -> CUSL
V7: CJBF | AA7: 0 | AB7: u | AC7: =IF(CR7=CR6,CS6,CS7) -> 3 | AD7: 8 | AE7: 4 | AF7: 2 | AG7: 2 | AH7: 0 | AI7: 5 | AJ7: 2 | AK7: 3 | AL7: 1 | AM7: 1 | AN7: 0 | AO7: 1 | AP7: 1 | AQ7: 0 | AR7: 3 | AS7: 4 | AT7: ='J01'!AT7:AX7 -> AUSA | AY7: 4 | AZ7: ='J06'!AY7-AY7 -> 0 | BA7: =IF(AY7>'J06'!AY7,'J06'!$BA$20,IF(AY7='J06'!AY7,'J06'!$AZ$20,IF(AY7<'J06'!AY7,'J06'!$AY$20))) -> u | BB7: 4 | BC7: =SUMPRODUCT(($B$5:$F$14=AT7)*($BW$5:$BW$14))+SUMPRODUCT(($I$5:$M$14=AT7)*($BX$5:$BX$14))+'J06'!BC7 -> 7 | BD7: =SUMPRODUCT(($B$5:$F$14=AT7)*($BY$5:$BY$14))+SUMPRODUCT(($I$5:$M$14=AT7)*($BZ$5:$BZ$14))+'J06'!BD7 -> 4 | BE7: =SUMPRODUCT(($B$5:$F$14=AT7)*($CA$5:$CA$14))+SUMPRODUCT(($I$5:$M$14=AT7)*($CB$5:$CB$14))+'J06'!BE7 -> 2 | BF7: =SUMPRODUCT(($B$5:$F$14=AT7)*($CC$5:$CC$14))+SUMPRODUCT(($I$5:$M$14=AT7)*($CD$5:$CD$14))+'J06'!BF7 -> 1 | BG7: =SUMPRODUCT(($B$5:$F$14=AT7)*($CE$5:$CE$14))+SUMPRODUCT(($I$5:$M$14=AT7)*($CF$5:$CF$14))+'J06'!BG7 -> 1 | BH7: =SUMPRODUCT(($B$5:$F$14=AT7)*($CG$5:$CG$14))+SUMPRODUCT(($I$5:$M$14=AT7)*($CH$5:$CH$14))+'J06'!BH7 -> 3 | BI7: =SUMPRODUCT(($B$5:$F$14=AT7)*($CI$5:$CI$14))+SUMPRODUCT(($I$5:$M$14=AT7)*($CJ$5:$CJ$14))+'J06'!BI7 -> 3 | BJ7: 0 | BK7: =SUMPRODUCT(($B$5:$F$14=AT7)*($CK$5:$CK$14))+'J06'!BK7 -> 1 | BL7: =SUMPRODUCT(($B$5:$F$14=AT7)*($CL$5:$CL$14))+'J06'!BL7 -> 1 | BM7: =SUMPRODUCT(($B$5:$F$14=AT7)*($CM$5:$CM$14))+'J06'!BM7 -> 0 | BN7: =SUMPRODUCT(($I$5:$M$14=AT7)*($CN$5:$CN$14))+'J06'!BN7 -> 1 | BO7: =SUMPRODUCT(($I$5:$M$14=AT7)*($CO$5:$CO$14))+'J06'!BO7 -> 0 | BP7: =SUMPRODUCT(($I$5:$M$14=AT7)*($CP$5:$CP$14))+'J06'!BP7 -> 1 | BQ7: 7000.003 | BR7: =BQ7+0.0000012 -> 7000.003001 | BS7: 0 | BT7: 0 | BU7: 0 | BV7: 0 | BW7: 0 | BX7: 0 | BY7: 0 | BZ7: 0 | CA7: FALSE | CB7: FALSE | CC7: FALSE | CD7: FALSE | CE7: FALSE | CF7: FALSE | CG7: 0 | CH7: 0 | CI7: 0 | CJ7: 0 | CK7: FALSE | CL7: FALSE | CM7: FALSE | CN7: FALSE | CO7: FALSE | CP7: FALSE | CQ7: CJBF | CR7: 8000.035 | CS7: 3 | CT7: AUSA
V8: AUSA | AA8: 0 | AB8: u | AC8: 4 | AD8: 7 | AE8: 4 | AF8: 2 | AG8: 1 | AH8: 1 | AI8: 3 | AJ8: 3 | AK8: 0 | AL8: 1 | AM8: 1 | AN8: 0 | AO8: 1 | AP8: 0 | AQ8: 1 | AR8: 4 | AS8: 3 | AT8: ='J01'!AT8:AX8 -> CJBF | AY8: 3 | AZ8: ='J06'!AY8-AY8 -> 0 | BA8: =IF(AY8>'J06'!AY8,'J06'!$BA$20,IF(AY8='J06'!AY8,'J06'!$AZ$20,IF(AY8<'J06'!AY8,'J06'!$AY$20))) -> u | BB8: 3 | BC8: =SUMPRODUCT(($B$5:$F$14=AT8)*($BW$5:$BW$14))+SUMPRODUCT(($I$5:$M$14=AT8)*($BX$5:$BX$14))+'J06'!BC8 -> 8 | BD8: =SUMPRODUCT(($B$5:$F$14=AT8)*($BY$5:$BY$14))+SUMPRODUCT(($I$5:$M$14=AT8)*($BZ$5:$BZ$14))+'J06'!BD8 -> 4 | BE8: =SUMPRODUCT(($B$5:$F$14=AT8)*($CA$5:$CA$14))+SUMPRODUCT(($I$5:$M$14=AT8)*($CB$5:$CB$14))+'J06'!BE8 -> 2 | BF8: =SUMPRODUCT(($B$5:$F$14=AT8)*($CC$5:$CC$14))+SUMPRODUCT(($I$5:$M$14=AT8)*($CD$5:$CD$14))+'J06'!BF8 -> 2 | BG8: =SUMPRODUCT(($B$5:$F$14=AT8)*($CE$5:$CE$14))+SUMPRODUCT(($I$5:$M$14=AT8)*($CF$5:$CF$14))+'J06'!BG8 -> 0 | BH8: =SUMPRODUCT(($B$5:$F$14=AT8)*($CG$5:$CG$14))+SUMPRODUCT(($I$5:$M$14=AT8)*($CH$5:$CH$14))+'J06'!BH8 -> 5 | BI8: =SUMPRODUCT(($B$5:$F$14=AT8)*($CI$5:$CI$14))+SUMPRODUCT(($I$5:$M$14=AT8)*($CJ$5:$CJ$14))+'J06'!BI8 -> 2 | BJ8: 3 | BK8: =SUMPRODUCT(($B$5:$F$14=AT8)*($CK$5:$CK$14))+'J06'!BK8 -> 1 | BL8: =SUMPRODUCT(($B$5:$F$14=AT8)*($CL$5:$CL$14))+'J06'!BL8 -> 1 | BM8: =SUMPRODUCT(($B$5:$F$14=AT8)*($CM$5:$CM$14))+'J06'!BM8 -> 0 | BN8: =SUMPRODUCT(($I$5:$M$14=AT8)*($CN$5:$CN$14))+'J06'!BN8 -> 1 | BO8: =SUMPRODUCT(($I$5:$M$14=AT8)*($CO$5:$CO$14))+'J06'!BO8 -> 1 | BP8: =SUMPRODUCT(($I$5:$M$14=AT8)*($CP$5:$CP$14))+'J06'!BP8 -> 0 | BQ8: 8000.035 | BR8: =BQ8+0.0000011 -> 8000.035001 | BS8: 0 | BT8: 0 | BU8: 0 | BV8: 0 | BW8: 0 | BX8: 0 | BY8: 0 | BZ8: 0 | CA8: FALSE | CB8: FALSE | CC8: FALSE | CD8: FALSE | CE8: FALSE | CF8: FALSE | CG8: 0 | CH8: 0 | CI8: 0 | CJ8: 0 | CK8: FALSE | CL8: FALSE | CM8: FALSE | CN8: FALSE | CO8: FALSE | CP8: FALSE | CQ8: AUSA | CR8: 7000.003 | CS8: 4 | CT8: CJBF
V9: ALC | AA9: 0 | AB9: u | AC9: 5 | AD9: 7 | AE9: 4 | AF9: 2 | AG9: 1 | AH9: 1 | AI9: 4 | AJ9: 5 | AK9: -1 | AL9: 1 | AM9: 0 | AN9: 1 | AO9: 1 | AP9: 1 | AQ9: 0 | AR9: 5 | AS9: 11 | AT9: ='J01'!AT9:AX9 -> AJAK | AY9: 11 | AZ9: ='J06'!AY9-AY9 -> 0 | BA9: =IF(AY9>'J06'!AY9,'J06'!$BA$20,IF(AY9='J06'!AY9,'J06'!$AZ$20,IF(AY9<'J06'!AY9,'J06'!$AY$20))) -> u | BB9: 11 | BC9: =SUMPRODUCT(($B$5:$F$14=AT9)*($BW$5:$BW$14))+SUMPRODUCT(($I$5:$M$14=AT9)*($BX$5:$BX$14))+'J06'!BC9 -> 4 | BD9: =SUMPRODUCT(($B$5:$F$14=AT9)*($BY$5:$BY$14))+SUMPRODUCT(($I$5:$M$14=AT9)*($BZ$5:$BZ$14))+'J06'!BD9 -> 4 | BE9: =SUMPRODUCT(($B$5:$F$14=AT9)*($CA$5:$CA$14))+SUMPRODUCT(($I$5:$M$14=AT9)*($CB$5:$CB$14))+'J06'!BE9 -> 1 | BF9: =SUMPRODUCT(($B$5:$F$14=AT9)*($CC$5:$CC$14))+SUMPRODUCT(($I$5:$M$14=AT9)*($CD$5:$CD$14))+'J06'!BF9 -> 1 | BG9: =SUMPRODUCT(($B$5:$F$14=AT9)*($CE$5:$CE$14))+SUMPRODUCT(($I$5:$M$14=AT9)*($CF$5:$CF$14))+'J06'!BG9 -> 2 | BH9: =SUMPRODUCT(($B$5:$F$14=AT9)*($CG$5:$CG$14))+SUMPRODUCT(($I$5:$M$14=AT9)*($CH$5:$CH$14))+'J06'!BH9 -> 2 | BI9: =SUMPRODUCT(($B$5:$F$14=AT9)*($CI$5:$CI$14))+SUMPRODUCT(($I$5:$M$14=AT9)*($CJ$5:$CJ$14))+'J06'!BI9 -> 7 | BJ9: -5 | BK9: =SUMPRODUCT(($B$5:$F$14=AT9)*($CK$5:$CK$14))+'J06'!BK9 -> 0 | BL9: =SUMPRODUCT(($B$5:$F$14=AT9)*($CL$5:$CL$14))+'J06'!BL9 -> 0 | BM9: =SUMPRODUCT(($B$5:$F$14=AT9)*($CM$5:$CM$14))+'J06'!BM9 -> 2 | BN9: =SUMPRODUCT(($I$5:$M$14=AT9)*($CN$5:$CN$14))+'J06'!BN9 -> 1 | BO9: =SUMPRODUCT(($I$5:$M$14=AT9)*($CO$5:$CO$14))+'J06'!BO9 -> 1 | BP9: =SUMPRODUCT(($I$5:$M$14=AT9)*($CP$5:$CP$14))+'J06'!BP9 -> 0 | BQ9: 3999.952 | BR9: =BQ9+0.000001 -> 3999.952001 | BS9: 0 | BT9: 0 | BU9: 0 | BV9: 0 | BW9: 0 | BX9: 0 | BY9: 0 | BZ9: 0 | CA9: FALSE | CB9: FALSE | CC9: FALSE | CD9: FALSE | CE9: FALSE | CF9: FALSE | CG9: 0 | CH9: 0 | CI9: 0 | CJ9: 0 | CK9: FALSE | CL9: FALSE | CM9: FALSE | CN9: FALSE | CO9: FALSE | CP9: FALSE | CQ9: ALC | CR9: 6999.994 | CS9: 5 | CT9: AJAK
V10: AUSBK | AA10: 0 | AB10: u | AC10: 6 | AD10: 5 | AE10: 4 | AF10: 1 | AG10: 2 | AH10: 1 | AI10: 7 | AJ10: 7 | AK10: 0 | AL10: 0 | AM10: 2 | AN10: 0 | AO10: 1 | AP10: 0 | AQ10: 1 | AR10: 6 | AS10: 1 | AT10: ='J01'!AT10:AX10 -> ASUD | AY10: 1 | AZ10: ='J06'!AY10-AY10 -> 0 | BA10: =IF(AY10>'J06'!AY10,'J06'!$BA$20,IF(AY10='J06'!AY10,'J06'!$AZ$20,IF(AY10<'J06'!AY10,'J06'!$AY$20))) -> u | BB10: 1 | BC10: =SUMPRODUCT(($B$5:$F$14=AT10)*($BW$5:$BW$14))+SUMPRODUCT(($I$5:$M$14=AT10)*($BX$5:$BX$14))+'J06'!BC10 -> 10 | BD10: =SUMPRODUCT(($B$5:$F$14=AT10)*($BY$5:$BY$14))+SUMPRODUCT(($I$5:$M$14=AT10)*($BZ$5:$BZ$14))+'J06'!BD10 -> 4 | BE10: =SUMPRODUCT(($B$5:$F$14=AT10)*($CA$5:$CA$14))+SUMPRODUCT(($I$5:$M$14=AT10)*($CB$5:$CB$14))+'J06'!BE10 -> 3 | BF10: =SUMPRODUCT(($B$5:$F$14=AT10)*($CC$5:$CC$14))+SUMPRODUCT(($I$5:$M$14=AT10)*($CD$5:$CD$14))+'J06'!BF10 -> 1 | BG10: =SUMPRODUCT(($B$5:$F$14=AT10)*($CE$5:$CE$14))+SUMPRODUCT(($I$5:$M$14=AT10)*($CF$5:$CF$14))+'J06'!BG10 -> 0 | BH10: =SUMPRODUCT(($B$5:$F$14=AT10)*($CG$5:$CG$14))+SUMPRODUCT(($I$5:$M$14=AT10)*($CH$5:$CH$14))+'J06'!BH10 -> 16 | BI10: =SUMPRODUCT(($B$5:$F$14=AT10)*($CI$5:$CI$14))+SUMPRODUCT(($I$5:$M$14=AT10)*($CJ$5:$CJ$14))+'J06'!BI10 -> 5 | BJ10: 11 | BK10: =SUMPRODUCT(($B$5:$F$14=AT10)*($CK$5:$CK$14))+'J06'!BK10 -> 2 | BL10: =SUMPRODUCT(($B$5:$F$14=AT10)*($CL$5:$CL$14))+'J06'!BL10 -> 0 | BM10: =SUMPRODUCT(($B$5:$F$14=AT10)*($CM$5:$CM$14))+'J06'!BM10 -> 0 | BN10: =SUMPRODUCT(($I$5:$M$14=AT10)*($CN$5:$CN$14))+'J06'!BN10 -> 1 | BO10: =SUMPRODUCT(($I$5:$M$14=AT10)*($CO$5:$CO$14))+'J06'!BO10 -> 1 | BP10: =SUMPRODUCT(($I$5:$M$14=AT10)*($CP$5:$CP$14))+'J06'!BP10 -> 0 | BQ10: 10000.126 | BR10: =BQ10+0.0000009 -> 10000.126 | BS10: 0 | BT10: 0 | BU10: 0 | BV10: 0 | BW10: 0 | BX10: 0 | BY10: 0 | BZ10: 0 | CA10: FALSE | CB10: FALSE | CC10: FALSE | CD10: FALSE | CE10: FALSE | CF10: FALSE | CG10: 0 | CH10: 0 | CI10: 0 | CJ10: 0 | CK10: FALSE | CL10: FALSE | CM10: FALSE | CN10: FALSE | CO10: FALSE | CP10: FALSE | CQ10: AUSBK | CR10: 5000.007 | CS10: 6 | CT10: ASUD
V11: HSMK | AA11: 0 | AB11: u | AC11: 7 | AD11: 5 | AE11: 4 | AF11: 1 | AG11: 2 | AH11: 1 | AI11: 5 | AJ11: 5 | AK11: 0 | AL11: 1 | AM11: 0 | AN11: 1 | AO11: 0 | AP11: 2 | AQ11: 0 | AR11: 7 | AS11: 2 | AT11: ='J01'!AT11:AX11 -> AHDOZ | AY11: 2 | AZ11: ='J06'!AY11-AY11 -> 0 | BA11: =IF(AY11>'J06'!AY11,'J06'!$BA$20,IF(AY11='J06'!AY11,'J06'!$AZ$20,IF(AY11<'J06'!AY11,'J06'!$AY$20))) -> u | BB11: 2 | BC11: =SUMPRODUCT(($B$5:$F$14=AT11)*($BW$5:$BW$14))+SUMPRODUCT(($I$5:$M$14=AT11)*($BX$5:$BX$14))+'J06'!BC11 -> 10 | BD11: =SUMPRODUCT(($B$5:$F$14=AT11)*($BY$5:$BY$14))+SUMPRODUCT(($I$5:$M$14=AT11)*($BZ$5:$BZ$14))+'J06'!BD11 -> 4 | BE11: =SUMPRODUCT(($B$5:$F$14=AT11)*($CA$5:$CA$14))+SUMPRODUCT(($I$5:$M$14=AT11)*($CB$5:$CB$14))+'J06'!BE11 -> 3 | BF11: =SUMPRODUCT(($B$5:$F$14=AT11)*($CC$5:$CC$14))+SUMPRODUCT(($I$5:$M$14=AT11)*($CD$5:$CD$14))+'J06'!BF11 -> 1 | BG11: =SUMPRODUCT(($B$5:$F$14=AT11)*($CE$5:$CE$14))+SUMPRODUCT(($I$5:$M$14=AT11)*($CF$5:$CF$14))+'J06'!BG11 -> 0 | BH11: =SUMPRODUCT(($B$5:$F$14=AT11)*($CG$5:$CG$14))+SUMPRODUCT(($I$5:$M$14=AT11)*($CH$5:$CH$14))+'J06'!BH11 -> 5 | BI11: =SUMPRODUCT(($B$5:$F$14=AT11)*($CI$5:$CI$14))+SUMPRODUCT(($I$5:$M$14=AT11)*($CJ$5:$CJ$14))+'J06'!BI11 -> 0 | BJ11: 5 | BK11: =SUMPRODUCT(($B$5:$F$14=AT11)*($CK$5:$CK$14))+'J06'!BK11 -> 1 | BL11: =SUMPRODUCT(($B$5:$F$14=AT11)*($CL$5:$CL$14))+'J06'!BL11 -> 1 | BM11: =SUMPRODUCT(($B$5:$F$14=AT11)*($CM$5:$CM$14))+'J06'!BM11 -> 0 | BN11: =SUMPRODUCT(($I$5:$M$14=AT11)*($CN$5:$CN$14))+'J06'!BN11 -> 2 | BO11: =SUMPRODUCT(($I$5:$M$14=AT11)*($CO$5:$CO$14))+'J06'!BO11 -> 0 | BP11: =SUMPRODUCT(($I$5:$M$14=AT11)*($CP$5:$CP$14))+'J06'!BP11 -> 0 | BQ11: 10000.055 | BR11: =BQ11+0.0000008 -> 10000.055 | BS11: 0 | BT11: 0 | BU11: 0 | BV11: 0 | BW11: 0 | BX11: 0 | BY11: 0 | BZ11: 0 | CA11: FALSE | CB11: FALSE | CC11: FALSE | CD11: FALSE | CE11: FALSE | CF11: FALSE | CG11: 0 | CH11: 0 | CI11: 0 | CJ11: 0 | CK11: FALSE | CL11: FALSE | CM11: FALSE | CN11: FALSE | CO11: FALSE | CP11: FALSE | CQ11: HSMK | CR11: 5000.005 | CS11: 7 | CT11: AHDOZ
V12: AWSOM | AA12: 0 | AB12: u | AC12: 8 | AD12: 5 | AE12: 4 | AF12: 1 | AG12: 2 | AH12: 1 | AI12: 3 | AJ12: 4 | AK12: -1 | AL12: 0 | AM12: 2 | AN12: 0 | AO12: 1 | AP12: 0 | AQ12: 1 | AR12: 8 | AS12: 14 | AT12: ='J01'!AT12:AX12 -> USB | AY12: 14 | AZ12: ='J06'!AY12-AY12 -> 0 | BA12: =IF(AY12>'J06'!AY12,'J06'!$BA$20,IF(AY12='J06'!AY12,'J06'!$AZ$20,IF(AY12<'J06'!AY12,'J06'!$AY$20))) -> u | BB12: 14 | BC12: =SUMPRODUCT(($B$5:$F$14=AT12)*($BW$5:$BW$14))+SUMPRODUCT(($I$5:$M$14=AT12)*($BX$5:$BX$14))+'J06'!BC12 -> 1 | BD12: =SUMPRODUCT(($B$5:$F$14=AT12)*($BY$5:$BY$14))+SUMPRODUCT(($I$5:$M$14=AT12)*($BZ$5:$BZ$14))+'J06'!BD12 -> 4 | BE12: =SUMPRODUCT(($B$5:$F$14=AT12)*($CA$5:$CA$14))+SUMPRODUCT(($I$5:$M$14=AT12)*($CB$5:$CB$14))+'J06'!BE12 -> 0 | BF12: =SUMPRODUCT(($B$5:$F$14=AT12)*($CC$5:$CC$14))+SUMPRODUCT(($I$5:$M$14=AT12)*($CD$5:$CD$14))+'J06'!BF12 -> 1 | BG12: =SUMPRODUCT(($B$5:$F$14=AT12)*($CE$5:$CE$14))+SUMPRODUCT(($I$5:$M$14=AT12)*($CF$5:$CF$14))+'J06'!BG12 -> 3 | BH12: =SUMPRODUCT(($B$5:$F$14=AT12)*($CG$5:$CG$14))+SUMPRODUCT(($I$5:$M$14=AT12)*($CH$5:$CH$14))+'J06'!BH12 -> 0 | BI12: =SUMPRODUCT(($B$5:$F$14=AT12)*($CI$5:$CI$14))+SUMPRODUCT(($I$5:$M$14=AT12)*($CJ$5:$CJ$14))+'J06'!BI12 -> 4 | BJ12: -4 | BK12: =SUMPRODUCT(($B$5:$F$14=AT12)*($CK$5:$CK$14))+'J06'!BK12 -> 0 | BL12: =SUMPRODUCT(($B$5:$F$14=AT12)*($CL$5:$CL$14))+'J06'!BL12 -> 0 | BM12: =SUMPRODUCT(($B$5:$F$14=AT12)*($CM$5:$CM$14))+'J06'!BM12 -> 2 | BN12: =SUMPRODUCT(($I$5:$M$14=AT12)*($CN$5:$CN$14))+'J06'!BN12 -> 0 | BO12: =SUMPRODUCT(($I$5:$M$14=AT12)*($CO$5:$CO$14))+'J06'!BO12 -> 1 | BP12: =SUMPRODUCT(($I$5:$M$14=AT12)*($CP$5:$CP$14))+'J06'!BP12 -> 1 | BQ12: 999.96 | BR12: =BQ12+0.0000007 -> 999.9600007 | BS12: 0 | BT12: 0 | BU12: 0 | BV12: 0 | BW12: 0 | BX12: 0 | BY12: 0 | BZ12: 0 | CA12: FALSE | CB12: FALSE | CC12: FALSE | CD12: FALSE | CE12: FALSE | CF12: FALSE | CG12: 0 | CH12: 0 | CI12: 0 | CJ12: 0 | CK12: FALSE | CL12: FALSE | CM12: FALSE | CN12: FALSE | CO12: FALSE | CP12: FALSE | CQ12: AWSOM | CR12: 4999.993 | CS12: 8 | CT12: USB
V13: JSOA | AA13: 0 | AB13: u | AC13: 9 | AD13: 4 | AE13: 4 | AF13: 1 | AG13: 1 | AH13: 2 | AI13: 5 | AJ13: 4 | AK13: 1 | AL13: 0 | AM13: 0 | AN13: 2 | AO13: 1 | AP13: 1 | AQ13: 0 | AR13: 9 | AS13: 5 | AT13: ='J01'!AT13:AX13 -> ALC | AY13: 5 | AZ13: ='J06'!AY13-AY13 -> 0 | BA13: =IF(AY13>'J06'!AY13,'J06'!$BA$20,IF(AY13='J06'!AY13,'J06'!$AZ$20,IF(AY13<'J06'!AY13,'J06'!$AY$20))) -> u | BB13: 5 | BC13: =SUMPRODUCT(($B$5:$F$14=AT13)*($BW$5:$BW$14))+SUMPRODUCT(($I$5:$M$14=AT13)*($BX$5:$BX$14))+'J06'!BC13 -> 7 | BD13: =SUMPRODUCT(($B$5:$F$14=AT13)*($BY$5:$BY$14))+SUMPRODUCT(($I$5:$M$14=AT13)*($BZ$5:$BZ$14))+'J06'!BD13 -> 4 | BE13: =SUMPRODUCT(($B$5:$F$14=AT13)*($CA$5:$CA$14))+SUMPRODUCT(($I$5:$M$14=AT13)*($CB$5:$CB$14))+'J06'!BE13 -> 2 | BF13: =SUMPRODUCT(($B$5:$F$14=AT13)*($CC$5:$CC$14))+SUMPRODUCT(($I$5:$M$14=AT13)*($CD$5:$CD$14))+'J06'!BF13 -> 1 | BG13: =SUMPRODUCT(($B$5:$F$14=AT13)*($CE$5:$CE$14))+SUMPRODUCT(($I$5:$M$14=AT13)*($CF$5:$CF$14))+'J06'!BG13 -> 1 | BH13: =SUMPRODUCT(($B$5:$F$14=AT13)*($CG$5:$CG$14))+SUMPRODUCT(($I$5:$M$14=AT13)*($CH$5:$CH$14))+'J06'!BH13 -> 4 | BI13: =SUMPRODUCT(($B$5:$F$14=AT13)*($CI$5:$CI$14))+SUMPRODUCT(($I$5:$M$14=AT13)*($CJ$5:$CJ$14))+'J06'!BI13 -> 5 | BJ13: -1 | BK13: =SUMPRODUCT(($B$5:$F$14=AT13)*($CK$5:$CK$14))+'J06'!BK13 -> 1 | BL13: =SUMPRODUCT(($B$5:$F$14=AT13)*($CL$5:$CL$14))+'J06'!BL13 -> 0 | BM13: =SUMPRODUCT(($B$5:$F$14=AT13)*($CM$5:$CM$14))+'J06'!BM13 -> 1 | BN13: =SUMPRODUCT(($I$5:$M$14=AT13)*($CN$5:$CN$14))+'J06'!BN13 -> 1 | BO13: =SUMPRODUCT(($I$5:$M$14=AT13)*($CO$5:$CO$14))+'J06'!BO13 -> 1 | BP13: =SUMPRODUCT(($I$5:$M$14=AT13)*($CP$5:$CP$14))+'J06'!BP13 -> 0 | BQ13: 6999.994 | BR13: =BQ13+0.0000006 -> 6999.994001 | BS13: 0 | BT13: 0 | BU13: 0 | BV13: 0 | BW13: 0 | BX13: 0 | BY13: 0 | BZ13: 0 | CA13: FALSE | CB13: FALSE | CC13: FALSE | CD13: FALSE | CE13: FALSE | CF13: FALSE | CG13: 0 | CH13: 0 | CI13: 0 | CJ13: 0 | CK13: FALSE | CL13: FALSE | CM13: FALSE | CN13: FALSE | CO13: FALSE | CP13: FALSE | CQ13: JSOA | CR13: 4000.015 | CS13: 9 | CT13: ALC
V14: ESMB | AA14: 0 | AB14: u | AC14: 10 | AD14: 4 | AE14: 4 | AF14: 1 | AG14: 1 | AH14: 2 | AI14: 6 | AJ14: 8 | AK14: -2 | AL14: 0 | AM14: 1 | AN14: 1 | AO14: 1 | AP14: 0 | AQ14: 1 | AR14: 10 | AS14: 12 | AT14: ='J01'!AT14:AX14 -> AUSAF | AY14: 12 | AZ14: ='J06'!AY14-AY14 -> 0 | BA14: =IF(AY14>'J06'!AY14,'J06'!$BA$20,IF(AY14='J06'!AY14,'J06'!$AZ$20,IF(AY14<'J06'!AY14,'J06'!$AY$20))) -> u | BB14: 12 | BC14: =SUMPRODUCT(($B$5:$F$14=AT14)*($BW$5:$BW$14))+SUMPRODUCT(($I$5:$M$14=AT14)*($BX$5:$BX$14))+'J06'!BC14 -> 3 | BD14: =SUMPRODUCT(($B$5:$F$14=AT14)*($BY$5:$BY$14))+SUMPRODUCT(($I$5:$M$14=AT14)*($BZ$5:$BZ$14))+'J06'!BD14 -> 4 | BE14: =SUMPRODUCT(($B$5:$F$14=AT14)*($CA$5:$CA$14))+SUMPRODUCT(($I$5:$M$14=AT14)*($CB$5:$CB$14))+'J06'!BE14 -> 1 | BF14: =SUMPRODUCT(($B$5:$F$14=AT14)*($CC$5:$CC$14))+SUMPRODUCT(($I$5:$M$14=AT14)*($CD$5:$CD$14))+'J06'!BF14 -> 0 | BG14: =SUMPRODUCT(($B$5:$F$14=AT14)*($CE$5:$CE$14))+SUMPRODUCT(($I$5:$M$14=AT14)*($CF$5:$CF$14))+'J06'!BG14 -> 3 | BH14: =SUMPRODUCT(($B$5:$F$14=AT14)*($CG$5:$CG$14))+SUMPRODUCT(($I$5:$M$14=AT14)*($CH$5:$CH$14))+'J06'!BH14 -> 2 | BI14: =SUMPRODUCT(($B$5:$F$14=AT14)*($CI$5:$CI$14))+SUMPRODUCT(($I$5:$M$14=AT14)*($CJ$5:$CJ$14))+'J06'!BI14 -> 3 | BJ14: -1 | BK14: =SUMPRODUCT(($B$5:$F$14=AT14)*($CK$5:$CK$14))+'J06'!BK14 -> 0 | BL14: =SUMPRODUCT(($B$5:$F$14=AT14)*($CL$5:$CL$14))+'J06'!BL14 -> 0 | BM14: =SUMPRODUCT(($B$5:$F$14=AT14)*($CM$5:$CM$14))+'J06'!BM14 -> 2 | BN14: =SUMPRODUCT(($I$5:$M$14=AT14)*($CN$5:$CN$14))+'J06'!BN14 -> 1 | BO14: =SUMPRODUCT(($I$5:$M$14=AT14)*($CO$5:$CO$14))+'J06'!BO14 -> 0 | BP14: =SUMPRODUCT(($I$5:$M$14=AT14)*($CP$5:$CP$14))+'J06'!BP14 -> 1 | BQ14: 2999.992 | BR14: =BQ14+0.0000005 -> 2999.992 | BS14: 0 | BT14: 0 | BU14: 0 | BV14: 0 | BW14: 0 | BX14: 0 | BY14: 0 | BZ14: 0 | CA14: FALSE | CB14: FALSE | CC14: FALSE | CD14: FALSE | CE14: FALSE | CF14: FALSE | CG14: 0 | CH14: 0 | CI14: 0 | CJ14: 0 | CK14: FALSE | CL14: FALSE | CM14: FALSE | CN14: FALSE | CO14: FALSE | CP14: FALSE | CQ14: ESMB | CR14: 3999.986 | CS14: 10 | CT14: AUSAF
V15: AJAK | AA15: 0 | AB15: u | AC15: 11 | AD15: 4 | AE15: 4 | AF15: 1 | AG15: 1 | AH15: 2 | AI15: 2 | AJ15: 7 | AK15: -5 | AL15: 0 | AM15: 0 | AN15: 2 | AO15: 1 | AP15: 1 | AQ15: 0 | AR15: 11 | AS15: 9 | AT15: ='J01'!AT15:AX15 -> JSOA | AY15: 9 | AZ15: ='J06'!AY15-AY15 -> 0 | BA15: =IF(AY15>'J06'!AY15,'J06'!$BA$20,IF(AY15='J06'!AY15,'J06'!$AZ$20,IF(AY15<'J06'!AY15,'J06'!$AY$20))) -> u | BB15: 9 | BC15: =SUMPRODUCT(($B$5:$F$14=AT15)*($BW$5:$BW$14))+SUMPRODUCT(($I$5:$M$14=AT15)*($BX$5:$BX$14))+'J06'!BC15 -> 4 | BD15: =SUMPRODUCT(($B$5:$F$14=AT15)*($BY$5:$BY$14))+SUMPRODUCT(($I$5:$M$14=AT15)*($BZ$5:$BZ$14))+'J06'!BD15 -> 4 | BE15: =SUMPRODUCT(($B$5:$F$14=AT15)*($CA$5:$CA$14))+SUMPRODUCT(($I$5:$M$14=AT15)*($CB$5:$CB$14))+'J06'!BE15 -> 1 | BF15: =SUMPRODUCT(($B$5:$F$14=AT15)*($CC$5:$CC$14))+SUMPRODUCT(($I$5:$M$14=AT15)*($CD$5:$CD$14))+'J06'!BF15 -> 1 | BG15: =SUMPRODUCT(($B$5:$F$14=AT15)*($CE$5:$CE$14))+SUMPRODUCT(($I$5:$M$14=AT15)*($CF$5:$CF$14))+'J06'!BG15 -> 2 | BH15: =SUMPRODUCT(($B$5:$F$14=AT15)*($CG$5:$CG$14))+SUMPRODUCT(($I$5:$M$14=AT15)*($CH$5:$CH$14))+'J06'!BH15 -> 5 | BI15: =SUMPRODUCT(($B$5:$F$14=AT15)*($CI$5:$CI$14))+SUMPRODUCT(($I$5:$M$14=AT15)*($CJ$5:$CJ$14))+'J06'!BI15 -> 4 | BJ15: 1 | BK15: =SUMPRODUCT(($B$5:$F$14=AT15)*($CK$5:$CK$14))+'J06'!BK15 -> 0 | BL15: =SUMPRODUCT(($B$5:$F$14=AT15)*($CL$5:$CL$14))+'J06'!BL15 -> 0 | BM15: =SUMPRODUCT(($B$5:$F$14=AT15)*($CM$5:$CM$14))+'J06'!BM15 -> 2 | BN15: =SUMPRODUCT(($I$5:$M$14=AT15)*($CN$5:$CN$14))+'J06'!BN15 -> 1 | BO15: =SUMPRODUCT(($I$5:$M$14=AT15)*($CO$5:$CO$14))+'J06'!BO15 -> 1 | BP15: =SUMPRODUCT(($I$5:$M$14=AT15)*($CP$5:$CP$14))+'J06'!BP15 -> 0 | BQ15: 4000.015 | BR15: =BQ15+0.0000004 -> 4000.015 | CQ15: AJAK | CR15: 3999.952 | CS15: 11 | CT15: JSOA
V16: AUSAF | AA16: 0 | AB16: u | AC16: 12 | AD16: 3 | AE16: 4 | AF16: 1 | AG16: 0 | AH16: 3 | AI16: 2 | AJ16: 3 | AK16: -1 | AL16: 0 | AM16: 0 | AN16: 2 | AO16: 1 | AP16: 0 | AQ16: 1 | AR16: 12 | AS16: 8 | AT16: ='J01'!AT16:AX16 -> AWSOM | AY16: 8 | AZ16: ='J06'!AY16-AY16 -> 0 | BA16: =IF(AY16>'J06'!AY16,'J06'!$BA$20,IF(AY16='J06'!AY16,'J06'!$AZ$20,IF(AY16<'J06'!AY16,'J06'!$AY$20))) -> u | BB16: 8 | BC16: =SUMPRODUCT(($B$5:$F$14=AT16)*($BW$5:$BW$14))+SUMPRODUCT(($I$5:$M$14=AT16)*($BX$5:$BX$14))+'J06'!BC16 -> 5 | BD16: =SUMPRODUCT(($B$5:$F$14=AT16)*($BY$5:$BY$14))+SUMPRODUCT(($I$5:$M$14=AT16)*($BZ$5:$BZ$14))+'J06'!BD16 -> 4 | BE16: =SUMPRODUCT(($B$5:$F$14=AT16)*($CA$5:$CA$14))+SUMPRODUCT(($I$5:$M$14=AT16)*($CB$5:$CB$14))+'J06'!BE16 -> 1 | BF16: =SUMPRODUCT(($B$5:$F$14=AT16)*($CC$5:$CC$14))+SUMPRODUCT(($I$5:$M$14=AT16)*($CD$5:$CD$14))+'J06'!BF16 -> 2 | BG16: =SUMPRODUCT(($B$5:$F$14=AT16)*($CE$5:$CE$14))+SUMPRODUCT(($I$5:$M$14=AT16)*($CF$5:$CF$14))+'J06'!BG16 -> 1 | BH16: =SUMPRODUCT(($B$5:$F$14=AT16)*($CG$5:$CG$14))+SUMPRODUCT(($I$5:$M$14=AT16)*($CH$5:$CH$14))+'J06'!BH16 -> 3 | BI16: =SUMPRODUCT(($B$5:$F$14=AT16)*($CI$5:$CI$14))+SUMPRODUCT(($I$5:$M$14=AT16)*($CJ$5:$CJ$14))+'J06'!BI16 -> 4 | BJ16: -1 | BK16: =SUMPRODUCT(($B$5:$F$14=AT16)*($CK$5:$CK$14))+'J06'!BK16 -> 0 | BL16: =SUMPRODUCT(($B$5:$F$14=AT16)*($CL$5:$CL$14))+'J06'!BL16 -> 2 | BM16: =SUMPRODUCT(($B$5:$F$14=AT16)*($CM$5:$CM$14))+'J06'!BM16 -> 0 | BN16: =SUMPRODUCT(($I$5:$M$14=AT16)*($CN$5:$CN$14))+'J06'!BN16 -> 1 | BO16: =SUMPRODUCT(($I$5:$M$14=AT16)*($CO$5:$CO$14))+'J06'!BO16 -> 0 | BP16: =SUMPRODUCT(($I$5:$M$14=AT16)*($CP$5:$CP$14))+'J06'!BP16 -> 1 | BQ16: 4999.993 | BR16: =BQ16+0.0000003 -> 4999.993 | CQ16: AUSAF | CR16: 2999.992 | CS16: 12 | CT16: AWSOM
V17: CUSL | AA17: 0 | AB17: u | AC17: 13 | AD17: 2 | AE17: 4 | AF17: 0 | AG17: 2 | AH17: 2 | AI17: 5 | AJ17: 11 | AK17: -6 | AL17: 0 | AM17: 1 | AN17: 1 | AO17: 0 | AP17: 1 | AQ17: 1 | AR17: 13 | AS17: 7 | AT17: ='J01'!AT17:AX17 -> HSMK | AY17: 7 | AZ17: ='J06'!AY17-AY17 -> 0 | BA17: =IF(AY17>'J06'!AY17,'J06'!$BA$20,IF(AY17='J06'!AY17,'J06'!$AZ$20,IF(AY17<'J06'!AY17,'J06'!$AY$20))) -> u | BB17: 7 | BC17: =SUMPRODUCT(($B$5:$F$14=AT17)*($BW$5:$BW$14))+SUMPRODUCT(($I$5:$M$14=AT17)*($BX$5:$BX$14))+'J06'!BC17 -> 5 | BD17: =SUMPRODUCT(($B$5:$F$14=AT17)*($BY$5:$BY$14))+SUMPRODUCT(($I$5:$M$14=AT17)*($BZ$5:$BZ$14))+'J06'!BD17 -> 4 | BE17: =SUMPRODUCT(($B$5:$F$14=AT17)*($CA$5:$CA$14))+SUMPRODUCT(($I$5:$M$14=AT17)*($CB$5:$CB$14))+'J06'!BE17 -> 1 | BF17: =SUMPRODUCT(($B$5:$F$14=AT17)*($CC$5:$CC$14))+SUMPRODUCT(($I$5:$M$14=AT17)*($CD$5:$CD$14))+'J06'!BF17 -> 2 | BG17: =SUMPRODUCT(($B$5:$F$14=AT17)*($CE$5:$CE$14))+SUMPRODUCT(($I$5:$M$14=AT17)*($CF$5:$CF$14))+'J06'!BG17 -> 1 | BH17: =SUMPRODUCT(($B$5:$F$14=AT17)*($CG$5:$CG$14))+SUMPRODUCT(($I$5:$M$14=AT17)*($CH$5:$CH$14))+'J06'!BH17 -> 5 | BI17: =SUMPRODUCT(($B$5:$F$14=AT17)*($CI$5:$CI$14))+SUMPRODUCT(($I$5:$M$14=AT17)*($CJ$5:$CJ$14))+'J06'!BI17 -> 5 | BJ17: 0 | BK17: =SUMPRODUCT(($B$5:$F$14=AT17)*($CK$5:$CK$14))+'J06'!BK17 -> 1 | BL17: =SUMPRODUCT(($B$5:$F$14=AT17)*($CL$5:$CL$14))+'J06'!BL17 -> 0 | BM17: =SUMPRODUCT(($B$5:$F$14=AT17)*($CM$5:$CM$14))+'J06'!BM17 -> 1 | BN17: =SUMPRODUCT(($I$5:$M$14=AT17)*($CN$5:$CN$14))+'J06'!BN17 -> 0 | BO17: =SUMPRODUCT(($I$5:$M$14=AT17)*($CO$5:$CO$14))+'J06'!BO17 -> 2 | BP17: =SUMPRODUCT(($I$5:$M$14=AT17)*($CP$5:$CP$14))+'J06'!BP17 -> 0 | BQ17: 5000.005 | BR17: =BQ17+0.0000002 -> 5000.005 | CQ17: CUSL | CR17: 1999.945 | CS17: 13 | CT17: HSMK
V18: USB | AA18: 0 | AB18: u | AC18: 14 | AD18: 1 | AE18: 4 | AF18: 0 | AG18: 1 | AH18: 3 | AI18: 0 | AJ18: 4 | AK18: -4 | AL18: 0 | AM18: 0 | AN18: 2 | AO18: 0 | AP18: 1 | AQ18: 1 | AR18: 14 | AS18: 10 | AT18: ='J01'!AT18:AX18 -> ESMB | AY18: 10 | AZ18: ='J06'!AY18-AY18 -> 0 | BA18: =IF(AY18>'J06'!AY18,'J06'!$BA$20,IF(AY18='J06'!AY18,'J06'!$AZ$20,IF(AY18<'J06'!AY18,'J06'!$AY$20))) -> u | BB18: 10 | BC18: =SUMPRODUCT(($B$5:$F$14=AT18)*($BW$5:$BW$14))+SUMPRODUCT(($I$5:$M$14=AT18)*($BX$5:$BX$14))+'J06'!BC18 -> 4 | BD18: =SUMPRODUCT(($B$5:$F$14=AT18)*($BY$5:$BY$14))+SUMPRODUCT(($I$5:$M$14=AT18)*($BZ$5:$BZ$14))+'J06'!BD18 -> 4 | BE18: =SUMPRODUCT(($B$5:$F$14=AT18)*($CA$5:$CA$14))+SUMPRODUCT(($I$5:$M$14=AT18)*($CB$5:$CB$14))+'J06'!BE18 -> 1 | BF18: =SUMPRODUCT(($B$5:$F$14=AT18)*($CC$5:$CC$14))+SUMPRODUCT(($I$5:$M$14=AT18)*($CD$5:$CD$14))+'J06'!BF18 -> 1 | BG18: =SUMPRODUCT(($B$5:$F$14=AT18)*($CE$5:$CE$14))+SUMPRODUCT(($I$5:$M$14=AT18)*($CF$5:$CF$14))+'J06'!BG18 -> 2 | BH18: =SUMPRODUCT(($B$5:$F$14=AT18)*($CG$5:$CG$14))+SUMPRODUCT(($I$5:$M$14=AT18)*($CH$5:$CH$14))+'J06'!BH18 -> 6 | BI18: =SUMPRODUCT(($B$5:$F$14=AT18)*($CI$5:$CI$14))+SUMPRODUCT(($I$5:$M$14=AT18)*($CJ$5:$CJ$14))+'J06'!BI18 -> 8 | BJ18: -2 | BK18: =SUMPRODUCT(($B$5:$F$14=AT18)*($CK$5:$CK$14))+'J06'!BK18 -> 0 | BL18: =SUMPRODUCT(($B$5:$F$14=AT18)*($CL$5:$CL$14))+'J06'!BL18 -> 1 | BM18: =SUMPRODUCT(($B$5:$F$14=AT18)*($CM$5:$CM$14))+'J06'!BM18 -> 1 | BN18: =SUMPRODUCT(($I$5:$M$14=AT18)*($CN$5:$CN$14))+'J06'!BN18 -> 1 | BO18: =SUMPRODUCT(($I$5:$M$14=AT18)*($CO$5:$CO$14))+'J06'!BO18 -> 0 | BP18: =SUMPRODUCT(($I$5:$M$14=AT18)*($CP$5:$CP$14))+'J06'!BP18 -> 1 | BQ18: 3999.986 | BR18: =BQ18+0.0000001 -> 3999.986 | CQ18: USB | CR18: 999.96 | CS18: 14 | CT18: ESMB
AO19: Buts/Journée | AY19: p | AZ19: u | BA19: q
AO20: =SUM(G5:H14) -> 0 | AY20: p | AZ20: u | BA20: q
AO22: Total Buts du Championnat
AO24: =AO20+'J06'!AO24:AP25 -> 68
AO26: Moyenne générale
AO28: =IF(AE5=0,"",SUM(AI5:AI24)/SUM(AE5:AE24)*2) -> 2.428571429

Sheet J08
A1: ='J01'!A1:C2 -> Nom du Championnat | I1: ='J01'!H1:K2 -> 2017-2018 | O1: JOURNEE 08 | V1: CLASSEMENT | AT1: CLASSEMENT | BS1: Domicile | BT1: Extérieur | BU1: Domicile | BV1: Extérieur | BW1: Domicile | BX1: Extérieur | BY1: Domicile | BZ1: Extérieur | CA1: Domicile | CB1: Extérieur | CC1: Domicile | CD1: Extérieur | CE1: Domicile | CF1: Extérieur | CG1: Domicile | CH1: Extérieur | CI1: Domicile | CJ1: Extérieur
A3: P | B3: Equipes | G3: Buts | H3: Buts | I3: Equipes | N3: P | O3: Dates | S3: Heure | V3: Equipes | AA3: Evolution | AC3: Place | AD3: Pts | AE3: J | AF3: G | AG3: N | AH3: P | AI3: B + | AJ3: B - | AK3: Diff. | AL3: Domicile | AO3: Extérieur | AT3: Equipes | AY3: R | AZ3: Evolution | BB3: R | BC3: Pts | BD3: J | BE3: G | BF3: N | BG3: P | BH3: B + | BI3: B - | BJ3: Diff. | BK3: Domicile | BN3: Extérieur | CK3: Domicile | CN3: Extérieur
AL4: G | AM4: N | AN4: P | AO4: G | AP4: N | AQ4: P | AS4: R | BK4: G | BL4: N | BM4: P | BN4: G | BO4: N | BP4: P | BQ4: % | BR4: % | BS4: P | BT4: P | BU4: Pts | BV4: Pts | BW4: T Pt | BX4: T Pt | BY4: J | BZ4: J | CA4: G | CB4: G | CC4: N | CD4: N | CE4: P | CF4: P | CG4: B + | CH4: B + | CI4: B - | CJ4: B - | CK4: G | CL4: N | CM4: P | CN4: G | CO4: N | CP4: P | CQ4: Equipes | CR4: % | CS4: R | CT4: Equipes
V5: =VLOOKUP(AR5,$AS$5:$AX$18,2,0) -> ASUD | AA5: =VLOOKUP(V5,$AT$5:$BP$18,7,0) -> 0 | AB5: =VLOOKUP(V5,$AT$5:$BP$18,8,0) -> u | AC5: 1 | AD5: =VLOOKUP(V5,$AT$5:$BP$18,10,0) -> 10 | AE5: =VLOOKUP(V5,$AT$5:$BP$18,11,0) -> 4 | AF5: =VLOOKUP(V5,$AT$5:$BP$18,12,0) -> 3 | AG5: =VLOOKUP(V5,$AT$5:$BP$18,13,0) -> 1 | AH5: =VLOOKUP(V5,$AT$5:$BP$18,14,0) -> 0 | AI5: =VLOOKUP(V5,$AT$5:$BP$18,15,0) -> 16 | AJ5: =VLOOKUP(V5,$AT$5:$BP$18,16,0) -> 5 | AK5: =VLOOKUP(V5,$AT$5:$BP$18,17,0) -> 11 | AL5: =VLOOKUP(V5,$AT$5:$BP$18,18,0) -> 2 | AM5: =VLOOKUP(V5,$AT$5:$BP$18,19,0) -> 0 | AN5: =VLOOKUP(V5,$AT$5:$BP$18,20,0) -> 0 | AO5: =VLOOKUP(V5,$AT$5:$BP$18,21,0) -> 1 | AP5: =VLOOKUP(V5,$AT$5:$BP$18,22,0) -> 1 | AQ5: =VLOOKUP(V5,$AT$5:$BP$18,23,0) -> 0 | AR5: 1 | AS5: =BB5 -> 6 | AT5: ='J01'!AT5:AX5 -> AUSBK | AY5: =RANK(BQ5,$BQ$5:$BQ$18) -> 6 | AZ5: ='J07'!AY5-AY5 -> 0 | BA5: =IF(AY5>'J07'!AY5,'J07'!$BA$20,IF(AY5='J07'!AY5,'J07'!$AZ$20,IF(AY5<'J07'!AY5,'J07'!$AY$20))) -> u | BB5: =RANK(BR5,$BR$5:$BR$18) -> 6 | BC5: =SUMPRODUCT(($B$5:$F$14=AT5)*($BW$5:$BW$14))+SUMPRODUCT(($I$5:$M$14=AT5)*($BX$5:$BX$14))+'J07'!BC5 -> 5 | BD5: =SUMPRODUCT(($B$5:$F$14=AT5)*($BY$5:$BY$14))+SUMPRODUCT(($I$5:$M$14=AT5)*($BZ$5:$BZ$14))+'J07'!BD5 -> 4 | BE5: =SUMPRODUCT(($B$5:$F$14=AT5)*($CA$5:$CA$14))+SUMPRODUCT(($I$5:$M$14=AT5)*($CB$5:$CB$14))+'J07'!BE5 -> 1 | BF5: =SUMPRODUCT(($B$5:$F$14=AT5)*($CC$5:$CC$14))+SUMPRODUCT(($I$5:$M$14=AT5)*($CD$5:$CD$14))+'J07'!BF5 -> 2 | BG5: =SUMPRODUCT(($B$5:$F$14=AT5)*($CE$5:$CE$14))+SUMPRODUCT(($I$5:$M$14=AT5)*($CF$5:$CF$14))+'J07'!BG5 -> 1 | BH5: =SUMPRODUCT(($B$5:$F$14=AT5)*($CG$5:$CG$14))+SUMPRODUCT(($I$5:$M$14=AT5)*($CH$5:$CH$14))+'J07'!BH5 -> 7 | BI5: =SUMPRODUCT(($B$5:$F$14=AT5)*($CI$5:$CI$14))+SUMPRODUCT(($I$5:$M$14=AT5)*($CJ$5:$CJ$14))+'J07'!BI5 -> 7 | BJ5: =BH5-BI5 -> 0 | BK5: =SUMPRODUCT(($B$5:$F$14=AT5)*($CK$5:$CK$14))+'J07'!BK5 -> 0 | BL5: =SUMPRODUCT(($B$5:$F$14=AT5)*($CL$5:$CL$14))+'J07'!BL5 -> 2 | BM5: =SUMPRODUCT(($B$5:$F$14=AT5)*($CM$5:$CM$14))+'J07'!BM5 -> 0 | BN5: =SUMPRODUCT(($I$5:$M$14=AT5)*($CN$5:$CN$14))+'J07'!BN5 -> 1 | BO5: =SUMPRODUCT(($I$5:$M$14=AT5)*($CO$5:$CO$14))+'J07'!BO5 -> 0 | BP5: =SUMPRODUCT(($I$5:$M$14=AT5)*($CP$5:$CP$14))+'J07'!BP5 -> 1 | BQ5: =SUM(BC5*1000+(BJ5)/100+(BH5)/1000) -> 5000.007 | BR5: =BQ5+0.0000014 -> 5000.007001 | BS5: =A5 -> 0 | BT5: =N5 -> 0 | BU5: =IF(G5="",0,IF(G5>H5,3,IF(G5=H5,1,IF(G5<H5,0)))) -> 0 | BV5: =IF(H5="",0,IF(H5>G5,3,IF(H5=G5,1,IF(H5<G5,0)))) -> 0 | BW5: =BU5-BS5 -> 0 | BX5: =BV5-BT5 -> 0 | BY5: =IF(G5="",0,1) -> 0 | BZ5: =IF(H5="",0,1) -> 0 | CA5: =IF(G5<>"",IF(G5>H5,1)) -> FALSE | CB5: =IF(H5<>"",IF(H5>G5,1)) -> FALSE | CC5: =IF(G5<>"",IF(G5=H5,1)) -> FALSE | CD5: =IF(H5<>"",IF(H5=G5,1)) -> FALSE | CE5: =IF(G5<>"",IF(G5<H5,1)) -> FALSE | CF5: =IF(H5<>"",IF(H5<G5,1)) -> FALSE | CG5: =G5 -> 0 | CH5: =H5 -> 0 | CI5: =H5 -> 0 | CJ5: =G5 -> 0 | CK5: =IF(G5<>"",IF(G5>H5,1)) -> FALSE | CL5: =IF(G5<>"",IF(G5=H5,1)) -> FALSE | CM5: =IF(G5<>"",IF(G5<H5,1)) -> FALSE | CN5: =IF(H5<>"",IF(H5>G5,1)) -> FALSE | CO5: =IF(H5<>"",IF(H5=G5,1)) -> FALSE | CP5: =IF(H5<>"",IF(H5<G5,1)) -> FALSE | CQ5: =VLOOKUP(AR5,$AS$5:$AX$18,2,0) -> ASUD | CR5: =VLOOKUP(CQ5,$AT$5:$BQ$18,24,0) -> 10000.126 | CS5: =RANK(CR5,$CR$5:$CR$18) -> 1 | CT5: =AT5 -> AUSBK
V6: AHDOZ | AA6: 0 | AB6: u | AC6: =IF(CR6=CR5,CS5,CS6) -> 2 | AD6: 10 | AE6: 4 | AF6: 3 | AG6: 1 | AH6: 0 | AI6: 5 | AJ6: 0 | AK6: 5 | AL6: 1 | AM6: 1 | AN6: =VLOOKUP(V6,$AT$5:$BP$18,20,0) -> 0 | AO6: 2 | AP6: =VLOOKUP(V6,$AT$5:$BP$18,22,0) -> 0 | AQ6: 0 | AR6: 2 | AS6: =BB6 -> 13 | AT6: ='J01'!AT6:AX6 -> CUSL | AY6: 13 | AZ6: ='J07'!AY6-AY6 -> 0 | BA6: =IF(AY6>'J07'!AY6,'J07'!$BA$20,IF(AY6='J07'!AY6,'J07'!$AZ$20,IF(AY6<'J07'!AY6,'J07'!$AY$20))) -> u | BB6: =RANK(BR6,$BR$5:$BR$18) -> 13 | BC6: =SUMPRODUCT(($B$5:$F$14=AT6)*($BW$5:$BW$14))+SUMPRODUCT(($I$5:$M$14=AT6)*($BX$5:$BX$14))+'J07'!BC6 -> 2 | BD6: =SUMPRODUCT(($B$5:$F$14=AT6)*($BY$5:$BY$14))+SUMPRODUCT(($I$5:$M$14=AT6)*($BZ$5:$BZ$14))+'J07'!BD6 -> 4 | BE6: =SUMPRODUCT(($B$5:$F$14=AT6)*($CA$5:$CA$14))+SUMPRODUCT(($I$5:$M$14=AT6)*($CB$5:$CB$14))+'J07'!BE6 -> 0 | BF6: =SUMPRODUCT(($B$5:$F$14=AT6)*($CC$5:$CC$14))+SUMPRODUCT(($I$5:$M$14=AT6)*($CD$5:$CD$14))+'J07'!BF6 -> 2 | BG6: =SUMPRODUCT(($B$5:$F$14=AT6)*($CE$5:$CE$14))+SUMPRODUCT(($I$5:$M$14=AT6)*($CF$5:$CF$14))+'J07'!BG6 -> 2 | BH6: =SUMPRODUCT(($B$5:$F$14=AT6)*($CG$5:$CG$14))+SUMPRODUCT(($I$5:$M$14=AT6)*($CH$5:$CH$14))+'J07'!BH6 -> 5 | BI6: =SUMPRODUCT(($B$5:$F$14=AT6)*($CI$5:$CI$14))+SUMPRODUCT(($I$5:$M$14=AT6)*($CJ$5:$CJ$14))+'J07'!BI6 -> 11 | BJ6: =BH6-BI6 -> -6 | BK6: =SUMPRODUCT(($B$5:$F$14=AT6)*($CK$5:$CK$14))+'J07'!BK6 -> 0 | BL6: =SUMPRODUCT(($B$5:$F$14=AT6)*($CL$5:$CL$14))+'J07'!BL6 -> 1 | BM6: =SUMPRODUCT(($B$5:$F$14=AT6)*($CM$5:$CM$14))+'J07'!BM6 -> 1 | BN6: =SUMPRODUCT(($I$5:$M$14=AT6)*($CN$5:$CN$14))+'J07'!BN6 -> 0 | BO6: =SUMPRODUCT(($I$5:$M$14=AT6)*($CO$5:$CO$14))+'J07'!BO6 -> 1 | BP6: =SUMPRODUCT(($I$5:$M$14=AT6)*($CP$5:$CP$14))+'J07'!BP6 -> 1 | BQ6: =SUM(BC6*1000+(BJ6)/100+(BH6)/1000) -> 1999.945 | BR6: =BQ6+0.0000013 -> 1999.945001 | BS6: =A6 -> 0 | BT6: =N6 -> 0 | BU6: =IF(G6="",0,IF(G6>H6,3,IF(G6=H6,1,IF(G6<H6,0)))) -> 0 | BV6: =IF(H6="",0,IF(H6>G6,3,IF(H6=G6,1,IF(H6<G6,0)))) -> 0 | BW6: =BU6-BS6 -> 0 | BX6: =BV6-BT6 -> 0 | BY6: =IF(G6="",0,1) -> 0 | BZ6: =IF(H6="",0,1) -> 0 | CA6: =IF(G6<>"",IF(G6>H6,1)) -> FALSE | CB6: =IF(H6<>"",IF(H6>G6,1)) -> FALSE | CC6: =IF(G6<>"",IF(G6=H6,1)) -> FALSE | CD6: =IF(H6<>"",IF(H6=G6,1)) -> FALSE | CE6: =IF(G6<>"",IF(G6<H6,1)) -> FALSE | CF6: =IF(H6<>"",IF(H6<G6,1)) -> FALSE | CG6: =G6 -> 0 | CH6: =H6 -> 0 | CI6: =H6 -> 0 | CJ6: =G6 -> 0 | CK6: =IF(G6<>"",IF(G6>H6,1)) -> FALSE | CL6: =IF(G6<>"",IF(G6=H6,1)) -> FALSE | CM6: =IF(G6<>"",IF(G6<H6,1)) -> FALSE | CN6: =IF(H6<>"",IF(H6>G6,1)) -> FALSE | CO6: =IF(H6<>"",IF(H6=G6,1)) -> FALSE | CP6: =IF(H6<>"",IF(H6<G6,1)) -> FALSE | CQ6: AHDOZ | CR6: 10000.055 | CS6: 2 | CT6: =AT6 -> CUSL
V7: CJBF | AA7: 0 | AB7: u | AC7: =IF(CR7=CR6,CS6,CS7) -> 3 | AD7: 8 | AE7: 4 | AF7: 2 | AG7: 2 | AH7: 0 | AI7: 5 | AJ7: 2 | AK7: 3 | AL7: 1 | AM7: 1 | AN7: 0 | AO7: 1 | AP7: 1 | AQ7: 0 | AR7: 3 | AS7: 4 | AT7: ='J01'!AT7:AX7 -> AUSA | AY7: 4 | AZ7: ='J07'!AY7-AY7 -> 0 | BA7: =IF(AY7>'J07'!AY7,'J07'!$BA$20,IF(AY7='J07'!AY7,'J07'!$AZ$20,IF(AY7<'J07'!AY7,'J07'!$AY$20))) -> u | BB7: 4 | BC7: =SUMPRODUCT(($B$5:$F$14=AT7)*($BW$5:$BW$14))+SUMPRODUCT(($I$5:$M$14=AT7)*($BX$5:$BX$14))+'J07'!BC7 -> 7 | BD7: =SUMPRODUCT(($B$5:$F$14=AT7)*($BY$5:$BY$14))+SUMPRODUCT(($I$5:$M$14=AT7)*($BZ$5:$BZ$14))+'J07'!BD7 -> 4 | BE7: =SUMPRODUCT(($B$5:$F$14=AT7)*($CA$5:$CA$14))+SUMPRODUCT(($I$5:$M$14=AT7)*($CB$5:$CB$14))+'J07'!BE7 -> 2 | BF7: =SUMPRODUCT(($B$5:$F$14=AT7)*($CC$5:$CC$14))+SUMPRODUCT(($I$5:$M$14=AT7)*($CD$5:$CD$14))+'J07'!BF7 -> 1 | BG7: =SUMPRODUCT(($B$5:$F$14=AT7)*($CE$5:$CE$14))+SUMPRODUCT(($I$5:$M$14=AT7)*($CF$5:$CF$14))+'J07'!BG7 -> 1 | BH7: =SUMPRODUCT(($B$5:$F$14=AT7)*($CG$5:$CG$14))+SUMPRODUCT(($I$5:$M$14=AT7)*($CH$5:$CH$14))+'J07'!BH7 -> 3 | BI7: =SUMPRODUCT(($B$5:$F$14=AT7)*($CI$5:$CI$14))+SUMPRODUCT(($I$5:$M$14=AT7)*($CJ$5:$CJ$14))+'J07'!BI7 -> 3 | BJ7: 0 | BK7: =SUMPRODUCT(($B$5:$F$14=AT7)*($CK$5:$CK$14))+'J07'!BK7 -> 1 | BL7: =SUMPRODUCT(($B$5:$F$14=AT7)*($CL$5:$CL$14))+'J07'!BL7 -> 1 | BM7: =SUMPRODUCT(($B$5:$F$14=AT7)*($CM$5:$CM$14))+'J07'!BM7 -> 0 | BN7: =SUMPRODUCT(($I$5:$M$14=AT7)*($CN$5:$CN$14))+'J07'!BN7 -> 1 | BO7: =SUMPRODUCT(($I$5:$M$14=AT7)*($CO$5:$CO$14))+'J07'!BO7 -> 0 | BP7: =SUMPRODUCT(($I$5:$M$14=AT7)*($CP$5:$CP$14))+'J07'!BP7 -> 1 | BQ7: 7000.003 | BR7: =BQ7+0.0000012 -> 7000.003001 | BS7: 0 | BT7: 0 | BU7: 0 | BV7: 0 | BW7: 0 | BX7: 0 | BY7: 0 | BZ7: 0 | CA7: FALSE | CB7: FALSE | CC7: FALSE | CD7: FALSE | CE7: FALSE | CF7: FALSE | CG7: 0 | CH7: 0 | CI7: 0 | CJ7: 0 | CK7: FALSE | CL7: FALSE | CM7: FALSE | CN7: FALSE | CO7: FALSE | CP7: FALSE | CQ7: CJBF | CR7: 8000.035 | CS7: 3 | CT7: AUSA
V8: AUSA | AA8: 0 | AB8: u | AC8: 4 | AD8: 7 | AE8: 4 | AF8: 2 | AG8: 1 | AH8: 1 | AI8: 3 | AJ8: 3 | AK8: 0 | AL8: 1 | AM8: 1 | AN8: 0 | AO8: 1 | AP8: 0 | AQ8: 1 | AR8: 4 | AS8: 3 | AT8: ='J01'!AT8:AX8 -> CJBF | AY8: 3 | AZ8: ='J07'!AY8-AY8 -> 0 | BA8: =IF(AY8>'J07'!AY8,'J07'!$BA$20,IF(AY8='J07'!AY8,'J07'!$AZ$20,IF(AY8<'J07'!AY8,'J07'!$AY$20))) -> u | BB8: 3 | BC8: =SUMPRODUCT(($B$5:$F$14=AT8)*($BW$5:$BW$14))+SUMPRODUCT(($I$5:$M$14=AT8)*($BX$5:$BX$14))+'J07'!BC8 -> 8 | BD8: =SUMPRODUCT(($B$5:$F$14=AT8)*($BY$5:$BY$14))+SUMPRODUCT(($I$5:$M$14=AT8)*($BZ$5:$BZ$14))+'J07'!BD8 -> 4 | BE8: =SUMPRODUCT(($B$5:$F$14=AT8)*($CA$5:$CA$14))+SUMPRODUCT(($I$5:$M$14=AT8)*($CB$5:$CB$14))+'J07'!BE8 -> 2 | BF8: =SUMPRODUCT(($B$5:$F$14=AT8)*($CC$5:$CC$14))+SUMPRODUCT(($I$5:$M$14=AT8)*($CD$5:$CD$14))+'J07'!BF8 -> 2 | BG8: =SUMPRODUCT(($B$5:$F$14=AT8)*($CE$5:$CE$14))+SUMPRODUCT(($I$5:$M$14=AT8)*($CF$5:$CF$14))+'J07'!BG8 -> 0 | BH8: =SUMPRODUCT(($B$5:$F$14=AT8)*($CG$5:$CG$14))+SUMPRODUCT(($I$5:$M$14=AT8)*($CH$5:$CH$14))+'J07'!BH8 -> 5 | BI8: =SUMPRODUCT(($B$5:$F$14=AT8)*($CI$5:$CI$14))+SUMPRODUCT(($I$5:$M$14=AT8)*($CJ$5:$CJ$14))+'J07'!BI8 -> 2 | BJ8: 3 | BK8: =SUMPRODUCT(($B$5:$F$14=AT8)*($CK$5:$CK$14))+'J07'!BK8 -> 1 | BL8: =SUMPRODUCT(($B$5:$F$14=AT8)*($CL$5:$CL$14))+'J07'!BL8 -> 1 | BM8: =SUMPRODUCT(($B$5:$F$14=AT8)*($CM$5:$CM$14))+'J07'!BM8 -> 0 | BN8: =SUMPRODUCT(($I$5:$M$14=AT8)*($CN$5:$CN$14))+'J07'!BN8 -> 1 | BO8: =SUMPRODUCT(($I$5:$M$14=AT8)*($CO$5:$CO$14))+'J07'!BO8 -> 1 | BP8: =SUMPRODUCT(($I$5:$M$14=AT8)*($CP$5:$CP$14))+'J07'!BP8 -> 0 | BQ8: 8000.035 | BR8: =BQ8+0.0000011 -> 8000.035001 | BS8: 0 | BT8: 0 | BU8: 0 | BV8: 0 | BW8: 0 | BX8: 0 | BY8: 0 | BZ8: 0 | CA8: FALSE | CB8: FALSE | CC8: FALSE | CD8: FALSE | CE8: FALSE | CF8: FALSE | CG8: 0 | CH8: 0 | CI8: 0 | CJ8: 0 | CK8: FALSE | CL8: FALSE | CM8: FALSE | CN8: FALSE | CO8: FALSE | CP8: FALSE | CQ8: AUSA | CR8: 7000.003 | CS8: 4 | CT8: CJBF
V9: ALC | AA9: 0 | AB9: u | AC9: 5 | AD9: 7 | AE9: 4 | AF9: 2 | AG9: 1 | AH9: 1 | AI9: 4 | AJ9: 5 | AK9: -1 | AL9: 1 | AM9: 0 | AN9: 1 | AO9: 1 | AP9: 1 | AQ9: 0 | AR9: 5 | AS9: 11 | AT9: ='J01'!AT9:AX9 -> AJAK | AY9: 11 | AZ9: ='J07'!AY9-AY9 -> 0 | BA9: =IF(AY9>'J07'!AY9,'J07'!$BA$20,IF(AY9='J07'!AY9,'J07'!$AZ$20,IF(AY9<'J07'!AY9,'J07'!$AY$20))) -> u | BB9: 11 | BC9: =SUMPRODUCT(($B$5:$F$14=AT9)*($BW$5:$BW$14))+SUMPRODUCT(($I$5:$M$14=AT9)*($BX$5:$BX$14))+'J07'!BC9 -> 4 | BD9: =SUMPRODUCT(($B$5:$F$14=AT9)*($BY$5:$BY$14))+SUMPRODUCT(($I$5:$M$14=AT9)*($BZ$5:$BZ$14))+'J07'!BD9 -> 4 | BE9: =SUMPRODUCT(($B$5:$F$14=AT9)*($CA$5:$CA$14))+SUMPRODUCT(($I$5:$M$14=AT9)*($CB$5:$CB$14))+'J07'!BE9 -> 1 | BF9: =SUMPRODUCT(($B$5:$F$14=AT9)*($CC$5:$CC$14))+SUMPRODUCT(($I$5:$M$14=AT9)*($CD$5:$CD$14))+'J07'!BF9 -> 1 | BG9: =SUMPRODUCT(($B$5:$F$14=AT9)*($CE$5:$CE$14))+SUMPRODUCT(($I$5:$M$14=AT9)*($CF$5:$CF$14))+'J07'!BG9 -> 2 | BH9: =SUMPRODUCT(($B$5:$F$14=AT9)*($CG$5:$CG$14))+SUMPRODUCT(($I$5:$M$14=AT9)*($CH$5:$CH$14))+'J07'!BH9 -> 2 | BI9: =SUMPRODUCT(($B$5:$F$14=AT9)*($CI$5:$CI$14))+SUMPRODUCT(($I$5:$M$14=AT9)*($CJ$5:$CJ$14))+'J07'!BI9 -> 7 | BJ9: -5 | BK9: =SUMPRODUCT(($B$5:$F$14=AT9)*($CK$5:$CK$14))+'J07'!BK9 -> 0 | BL9: =SUMPRODUCT(($B$5:$F$14=AT9)*($CL$5:$CL$14))+'J07'!BL9 -> 0 | BM9: =SUMPRODUCT(($B$5:$F$14=AT9)*($CM$5:$CM$14))+'J07'!BM9 -> 2 | BN9: =SUMPRODUCT(($I$5:$M$14=AT9)*($CN$5:$CN$14))+'J07'!BN9 -> 1 | BO9: =SUMPRODUCT(($I$5:$M$14=AT9)*($CO$5:$CO$14))+'J07'!BO9 -> 1 | BP9: =SUMPRODUCT(($I$5:$M$14=AT9)*($CP$5:$CP$14))+'J07'!BP9 -> 0 | BQ9: 3999.952 | BR9: =BQ9+0.000001 -> 3999.952001 | BS9: 0 | BT9: 0 | BU9: 0 | BV9: 0 | BW9: 0 | BX9: 0 | BY9: 0 | BZ9: 0 | CA9: FALSE | CB9: FALSE | CC9: FALSE | CD9: FALSE | CE9: FALSE | CF9: FALSE | CG9: 0 | CH9: 0 | CI9: 0 | CJ9: 0 | CK9: FALSE | CL9: FALSE | CM9: FALSE | CN9: FALSE | CO9: FALSE | CP9: FALSE | CQ9: ALC | CR9: 6999.994 | CS9: 5 | CT9: AJAK
V10: AUSBK | AA10: 0 | AB10: u | AC10: 6 | AD10: 5 | AE10: 4 | AF10: 1 | AG10: 2 | AH10: 1 | AI10: 7 | AJ10: 7 | AK10: 0 | AL10: 0 | AM10: 2 | AN10: 0 | AO10: 1 | AP10: 0 | AQ10: 1 | AR10: 6 | AS10: 1 | AT10: ='J01'!AT10:AX10 -> ASUD | AY10: 1 | AZ10: ='J07'!AY10-AY10 -> 0 | BA10: =IF(AY10>'J07'!AY10,'J07'!$BA$20,IF(AY10='J07'!AY10,'J07'!$AZ$20,IF(AY10<'J07'!AY10,'J07'!$AY$20))) -> u | BB10: 1 | BC10: =SUMPRODUCT(($B$5:$F$14=AT10)*($BW$5:$BW$14))+SUMPRODUCT(($I$5:$M$14=AT10)*($BX$5:$BX$14))+'J07'!BC10 -> 10 | BD10: =SUMPRODUCT(($B$5:$F$14=AT10)*($BY$5:$BY$14))+SUMPRODUCT(($I$5:$M$14=AT10)*($BZ$5:$BZ$14))+'J07'!BD10 -> 4 | BE10: =SUMPRODUCT(($B$5:$F$14=AT10)*($CA$5:$CA$14))+SUMPRODUCT(($I$5:$M$14=AT10)*($CB$5:$CB$14))+'J07'!BE10 -> 3 | BF10: =SUMPRODUCT(($B$5:$F$14=AT10)*($CC$5:$CC$14))+SUMPRODUCT(($I$5:$M$14=AT10)*($CD$5:$CD$14))+'J07'!BF10 -> 1 | BG10: =SUMPRODUCT(($B$5:$F$14=AT10)*($CE$5:$CE$14))+SUMPRODUCT(($I$5:$M$14=AT10)*($CF$5:$CF$14))+'J07'!BG10 -> 0 | BH10: =SUMPRODUCT(($B$5:$F$14=AT10)*($CG$5:$CG$14))+SUMPRODUCT(($I$5:$M$14=AT10)*($CH$5:$CH$14))+'J07'!BH10 -> 16 | BI10: =SUMPRODUCT(($B$5:$F$14=AT10)*($CI$5:$CI$14))+SUMPRODUCT(($I$5:$M$14=AT10)*($CJ$5:$CJ$14))+'J07'!BI10 -> 5 | BJ10: 11 | BK10: =SUMPRODUCT(($B$5:$F$14=AT10)*($CK$5:$CK$14))+'J07'!BK10 -> 2 | BL10: =SUMPRODUCT(($B$5:$F$14=AT10)*($CL$5:$CL$14))+'J07'!BL10 -> 0 | BM10: =SUMPRODUCT(($B$5:$F$14=AT10)*($CM$5:$CM$14))+'J07'!BM10 -> 0 | BN10: =SUMPRODUCT(($I$5:$M$14=AT10)*($CN$5:$CN$14))+'J07'!BN10 -> 1 | BO10: =SUMPRODUCT(($I$5:$M$14=AT10)*($CO$5:$CO$14))+'J07'!BO10 -> 1 | BP10: =SUMPRODUCT(($I$5:$M$14=AT10)*($CP$5:$CP$14))+'J07'!BP10 -> 0 | BQ10: 10000.126 | BR10: =BQ10+0.0000009 -> 10000.126 | BS10: 0 | BT10: 0 | BU10: 0 | BV10: 0 | BW10: 0 | BX10: 0 | BY10: 0 | BZ10: 0 | CA10: FALSE | CB10: FALSE | CC10: FALSE | CD10: FALSE | CE10: FALSE | CF10: FALSE | CG10: 0 | CH10: 0 | CI10: 0 | CJ10: 0 | CK10: FALSE | CL10: FALSE | CM10: FALSE | CN10: FALSE | CO10: FALSE | CP10: FALSE | CQ10: AUSBK | CR10: 5000.007 | CS10: 6 | CT10: ASUD
V11: HSMK | AA11: 0 | AB11: u | AC11: 7 | AD11: 5 | AE11: 4 | AF11: 1 | AG11: 2 | AH11: 1 | AI11: 5 | AJ11: 5 | AK11: 0 | AL11: 1 | AM11: 0 | AN11: 1 | AO11: 0 | AP11: 2 | AQ11: 0 | AR11: 7 | AS11: 2 | AT11: ='J01'!AT11:AX11 -> AHDOZ | AY11: 2 | AZ11: ='J07'!AY11-AY11 -> 0 | BA11: =IF(AY11>'J07'!AY11,'J07'!$BA$20,IF(AY11='J07'!AY11,'J07'!$AZ$20,IF(AY11<'J07'!AY11,'J07'!$AY$20))) -> u | BB11: 2 | BC11: =SUMPRODUCT(($B$5:$F$14=AT11)*($BW$5:$BW$14))+SUMPRODUCT(($I$5:$M$14=AT11)*($BX$5:$BX$14))+'J07'!BC11 -> 10 | BD11: =SUMPRODUCT(($B$5:$F$14=AT11)*($BY$5:$BY$14))+SUMPRODUCT(($I$5:$M$14=AT11)*($BZ$5:$BZ$14))+'J07'!BD11 -> 4 | BE11: =SUMPRODUCT(($B$5:$F$14=AT11)*($CA$5:$CA$14))+SUMPRODUCT(($I$5:$M$14=AT11)*($CB$5:$CB$14))+'J07'!BE11 -> 3 | BF11: =SUMPRODUCT(($B$5:$F$14=AT11)*($CC$5:$CC$14))+SUMPRODUCT(($I$5:$M$14=AT11)*($CD$5:$CD$14))+'J07'!BF11 -> 1 | BG11: =SUMPRODUCT(($B$5:$F$14=AT11)*($CE$5:$CE$14))+SUMPRODUCT(($I$5:$M$14=AT11)*($CF$5:$CF$14))+'J07'!BG11 -> 0 | BH11: =SUMPRODUCT(($B$5:$F$14=AT11)*($CG$5:$CG$14))+SUMPRODUCT(($I$5:$M$14=AT11)*($CH$5:$CH$14))+'J07'!BH11 -> 5 | BI11: =SUMPRODUCT(($B$5:$F$14=AT11)*($CI$5:$CI$14))+SUMPRODUCT(($I$5:$M$14=AT11)*($CJ$5:$CJ$14))+'J07'!BI11 -> 0 | BJ11: 5 | BK11: =SUMPRODUCT(($B$5:$F$14=AT11)*($CK$5:$CK$14))+'J07'!BK11 -> 1 | BL11: =SUMPRODUCT(($B$5:$F$14=AT11)*($CL$5:$CL$14))+'J07'!BL11 -> 1 | BM11: =SUMPRODUCT(($B$5:$F$14=AT11)*($CM$5:$CM$14))+'J07'!BM11 -> 0 | BN11: =SUMPRODUCT(($I$5:$M$14=AT11)*($CN$5:$CN$14))+'J07'!BN11 -> 2 | BO11: =SUMPRODUCT(($I$5:$M$14=AT11)*($CO$5:$CO$14))+'J07'!BO11 -> 0 | BP11: =SUMPRODUCT(($I$5:$M$14=AT11)*($CP$5:$CP$14))+'J07'!BP11 -> 0 | BQ11: 10000.055 | BR11: =BQ11+0.0000008 -> 10000.055 | BS11: 0 | BT11: 0 | BU11: 0 | BV11: 0 | BW11: 0 | BX11: 0 | BY11: 0 | BZ11: 0 | CA11: FALSE | CB11: FALSE | CC11: FALSE | CD11: FALSE | CE11: FALSE | CF11: FALSE | CG11: 0 | CH11: 0 | CI11: 0 | CJ11: 0 | CK11: FALSE | CL11: FALSE | CM11: FALSE | CN11: FALSE | CO11: FALSE | CP11: FALSE | CQ11: HSMK | CR11: 5000.005 | CS11: 7 | CT11: AHDOZ
V12: AWSOM | AA12: 0 | AB12: u | AC12: 8 | AD12: 5 | AE12: 4 | AF12: 1 | AG12: 2 | AH12: 1 | AI12: 3 | AJ12: 4 | AK12: -1 | AL12: 0 | AM12: 2 | AN12: 0 | AO12: 1 | AP12: 0 | AQ12: 1 | AR12: 8 | AS12: 14 | AT12: ='J01'!AT12:AX12 -> USB | AY12: 14 | AZ12: ='J07'!AY12-AY12 -> 0 | BA12: =IF(AY12>'J07'!AY12,'J07'!$BA$20,IF(AY12='J07'!AY12,'J07'!$AZ$20,IF(AY12<'J07'!AY12,'J07'!$AY$20))) -> u | BB12: 14 | BC12: =SUMPRODUCT(($B$5:$F$14=AT12)*($BW$5:$BW$14))+SUMPRODUCT(($I$5:$M$14=AT12)*($BX$5:$BX$14))+'J07'!BC12 -> 1 | BD12: =SUMPRODUCT(($B$5:$F$14=AT12)*($BY$5:$BY$14))+SUMPRODUCT(($I$5:$M$14=AT12)*($BZ$5:$BZ$14))+'J07'!BD12 -> 4 | BE12: =SUMPRODUCT(($B$5:$F$14=AT12)*($CA$5:$CA$14))+SUMPRODUCT(($I$5:$M$14=AT12)*($CB$5:$CB$14))+'J07'!BE12 -> 0 | BF12: =SUMPRODUCT(($B$5:$F$14=AT12)*($CC$5:$CC$14))+SUMPRODUCT(($I$5:$M$14=AT12)*($CD$5:$CD$14))+'J07'!BF12 -> 1 | BG12: =SUMPRODUCT(($B$5:$F$14=AT12)*($CE$5:$CE$14))+SUMPRODUCT(($I$5:$M$14=AT12)*($CF$5:$CF$14))+'J07'!BG12 -> 3 | BH12: =SUMPRODUCT(($B$5:$F$14=AT12)*($CG$5:$CG$14))+SUMPRODUCT(($I$5:$M$14=AT12)*($CH$5:$CH$14))+'J07'!BH12 -> 0 | BI12: =SUMPRODUCT(($B$5:$F$14=AT12)*($CI$5:$CI$14))+SUMPRODUCT(($I$5:$M$14=AT12)*($CJ$5:$CJ$14))+'J07'!BI12 -> 4 | BJ12: -4 | BK12: =SUMPRODUCT(($B$5:$F$14=AT12)*($CK$5:$CK$14))+'J07'!BK12 -> 0 | BL12: =SUMPRODUCT(($B$5:$F$14=AT12)*($CL$5:$CL$14))+'J07'!BL12 -> 0 | BM12: =SUMPRODUCT(($B$5:$F$14=AT12)*($CM$5:$CM$14))+'J07'!BM12 -> 2 | BN12: =SUMPRODUCT(($I$5:$M$14=AT12)*($CN$5:$CN$14))+'J07'!BN12 -> 0 | BO12: =SUMPRODUCT(($I$5:$M$14=AT12)*($CO$5:$CO$14))+'J07'!BO12 -> 1 | BP12: =SUMPRODUCT(($I$5:$M$14=AT12)*($CP$5:$CP$14))+'J07'!BP12 -> 1 | BQ12: 999.96 | BR12: =BQ12+0.0000007 -> 999.9600007 | BS12: 0 | BT12: 0 | BU12: 0 | BV12: 0 | BW12: 0 | BX12: 0 | BY12: 0 | BZ12: 0 | CA12: FALSE | CB12: FALSE | CC12: FALSE | CD12: FALSE | CE12: FALSE | CF12: FALSE | CG12: 0 | CH12: 0 | CI12: 0 | CJ12: 0 | CK12: FALSE | CL12: FALSE | CM12: FALSE | CN12: FALSE | CO12: FALSE | CP12: FALSE | CQ12: AWSOM | CR12: 4999.993 | CS12: 8 | CT12: USB
V13: JSOA | AA13: 0 | AB13: u | AC13: 9 | AD13: 4 | AE13: 4 | AF13: 1 | AG13: 1 | AH13: 2 | AI13: 5 | AJ13: 4 | AK13: 1 | AL13: 0 | AM13: 0 | AN13: 2 | AO13: 1 | AP13: 1 | AQ13: 0 | AR13: 9 | AS13: 5 | AT13: ='J01'!AT13:AX13 -> ALC | AY13: 5 | AZ13: ='J07'!AY13-AY13 -> 0 | BA13: =IF(AY13>'J07'!AY13,'J07'!$BA$20,IF(AY13='J07'!AY13,'J07'!$AZ$20,IF(AY13<'J07'!AY13,'J07'!$AY$20))) -> u | BB13: 5 | BC13: =SUMPRODUCT(($B$5:$F$14=AT13)*($BW$5:$BW$14))+SUMPRODUCT(($I$5:$M$14=AT13)*($BX$5:$BX$14))+'J07'!BC13 -> 7 | BD13: =SUMPRODUCT(($B$5:$F$14=AT13)*($BY$5:$BY$14))+SUMPRODUCT(($I$5:$M$14=AT13)*($BZ$5:$BZ$14))+'J07'!BD13 -> 4 | BE13: =SUMPRODUCT(($B$5:$F$14=AT13)*($CA$5:$CA$14))+SUMPRODUCT(($I$5:$M$14=AT13)*($CB$5:$CB$14))+'J07'!BE13 -> 2 | BF13: =SUMPRODUCT(($B$5:$F$14=AT13)*($CC$5:$CC$14))+SUMPRODUCT(($I$5:$M$14=AT13)*($CD$5:$CD$14))+'J07'!BF13 -> 1 | BG13: =SUMPRODUCT(($B$5:$F$14=AT13)*($CE$5:$CE$14))+SUMPRODUCT(($I$5:$M$14=AT13)*($CF$5:$CF$14))+'J07'!BG13 -> 1 | BH13: =SUMPRODUCT(($B$5:$F$14=AT13)*($CG$5:$CG$14))+SUMPRODUCT(($I$5:$M$14=AT13)*($CH$5:$CH$14))+'J07'!BH13 -> 4 | BI13: =SUMPRODUCT(($B$5:$F$14=AT13)*($CI$5:$CI$14))+SUMPRODUCT(($I$5:$M$14=AT13)*($CJ$5:$CJ$14))+'J07'!BI13 -> 5 | BJ13: -1 | BK13: =SUMPRODUCT(($B$5:$F$14=AT13)*($CK$5:$CK$14))+'J07'!BK13 -> 1 | BL13: =SUMPRODUCT(($B$5:$F$14=AT13)*($CL$5:$CL$14))+'J07'!BL13 -> 0 | BM13: =SUMPRODUCT(($B$5:$F$14=AT13)*($CM$5:$CM$14))+'J07'!BM13 -> 1 | BN13: =SUMPRODUCT(($I$5:$M$14=AT13)*($CN$5:$CN$14))+'J07'!BN13 -> 1 | BO13: =SUMPRODUCT(($I$5:$M$14=AT13)*($CO$5:$CO$14))+'J07'!BO13 -> 1 | BP13: =SUMPRODUCT(($I$5:$M$14=AT13)*($CP$5:$CP$14))+'J07'!BP13 -> 0 | BQ13: 6999.994 | BR13: =BQ13+0.0000006 -> 6999.994001 | BS13: 0 | BT13: 0 | BU13: 0 | BV13: 0 | BW13: 0 | BX13: 0 | BY13: 0 | BZ13: 0 | CA13: FALSE | CB13: FALSE | CC13: FALSE | CD13: FALSE | CE13: FALSE | CF13: FALSE | CG13: 0 | CH13: 0 | CI13: 0 | CJ13: 0 | CK13: FALSE | CL13: FALSE | CM13: FALSE | CN13: FALSE | CO13: FALSE | CP13: FALSE | CQ13: JSOA | CR13: 4000.015 | CS13: 9 | CT13: ALC
V14: ESMB | AA14: 0 | AB14: u | AC14: 10 | AD14: 4 | AE14: 4 | AF14: 1 | AG14: 1 | AH14: 2 | AI14: 6 | AJ14: 8 | AK14: -2 | AL14: 0 | AM14: 1 | AN14: 1 | AO14: 1 | AP14: 0 | AQ14: 1 | AR14: 10 | AS14: 12 | AT14: ='J01'!AT14:AX14 -> AUSAF | AY14: 12 | AZ14: ='J07'!AY14-AY14 -> 0 | BA14: =IF(AY14>'J07'!AY14,'J07'!$BA$20,IF(AY14='J07'!AY14,'J07'!$AZ$20,IF(AY14<'J07'!AY14,'J07'!$AY$20))) -> u | BB14: 12 | BC14: =SUMPRODUCT(($B$5:$F$14=AT14)*($BW$5:$BW$14))+SUMPRODUCT(($I$5:$M$14=AT14)*($BX$5:$BX$14))+'J07'!BC14 -> 3 | BD14: =SUMPRODUCT(($B$5:$F$14=AT14)*($BY$5:$BY$14))+SUMPRODUCT(($I$5:$M$14=AT14)*($BZ$5:$BZ$14))+'J07'!BD14 -> 4 | BE14: =SUMPRODUCT(($B$5:$F$14=AT14)*($CA$5:$CA$14))+SUMPRODUCT(($I$5:$M$14=AT14)*($CB$5:$CB$14))+'J07'!BE14 -> 1 | BF14: =SUMPRODUCT(($B$5:$F$14=AT14)*($CC$5:$CC$14))+SUMPRODUCT(($I$5:$M$14=AT14)*($CD$5:$CD$14))+'J07'!BF14 -> 0 | BG14: =SUMPRODUCT(($B$5:$F$14=AT14)*($CE$5:$CE$14))+SUMPRODUCT(($I$5:$M$14=AT14)*($CF$5:$CF$14))+'J07'!BG14 -> 3 | BH14: =SUMPRODUCT(($B$5:$F$14=AT14)*($CG$5:$CG$14))+SUMPRODUCT(($I$5:$M$14=AT14)*($CH$5:$CH$14))+'J07'!BH14 -> 2 | BI14: =SUMPRODUCT(($B$5:$F$14=AT14)*($CI$5:$CI$14))+SUMPRODUCT(($I$5:$M$14=AT14)*($CJ$5:$CJ$14))+'J07'!BI14 -> 3 | BJ14: -1 | BK14: =SUMPRODUCT(($B$5:$F$14=AT14)*($CK$5:$CK$14))+'J07'!BK14 -> 0 | BL14: =SUMPRODUCT(($B$5:$F$14=AT14)*($CL$5:$CL$14))+'J07'!BL14 -> 0 | BM14: =SUMPRODUCT(($B$5:$F$14=AT14)*($CM$5:$CM$14))+'J07'!BM14 -> 2 | BN14: =SUMPRODUCT(($I$5:$M$14=AT14)*($CN$5:$CN$14))+'J07'!BN14 -> 1 | BO14: =SUMPRODUCT(($I$5:$M$14=AT14)*($CO$5:$CO$14))+'J07'!BO14 -> 0 | BP14: =SUMPRODUCT(($I$5:$M$14=AT14)*($CP$5:$CP$14))+'J07'!BP14 -> 1 | BQ14: 2999.992 | BR14: =BQ14+0.0000005 -> 2999.992 | BS14: 0 | BT14: 0 | BU14: 0 | BV14: 0 | BW14: 0 | BX14: 0 | BY14: 0 | BZ14: 0 | CA14: FALSE | CB14: FALSE | CC14: FALSE | CD14: FALSE | CE14: FALSE | CF14: FALSE | CG14: 0 | CH14: 0 | CI14: 0 | CJ14: 0 | CK14: FALSE | CL14: FALSE | CM14: FALSE | CN14: FALSE | CO14: FALSE | CP14: FALSE | CQ14: ESMB | CR14: 3999.986 | CS14: 10 | CT14: AUSAF
V15: AJAK | AA15: 0 | AB15: u | AC15: 11 | AD15: 4 | AE15: 4 | AF15: 1 | AG15: 1 | AH15: 2 | AI15: 2 | AJ15: 7 | AK15: -5 | AL15: 0 | AM15: 0 | AN15: 2 | AO15: 1 | AP15: 1 | AQ15: 0 | AR15: 11 | AS15: 9 | AT15: ='J01'!AT15:AX15 -> JSOA | AY15: 9 | AZ15: ='J07'!AY15-AY15 -> 0 | BA15: =IF(AY15>'J07'!AY15,'J07'!$BA$20,IF(AY15='J07'!AY15,'J07'!$AZ$20,IF(AY15<'J07'!AY15,'J07'!$AY$20))) -> u | BB15: 9 | BC15: =SUMPRODUCT(($B$5:$F$14=AT15)*($BW$5:$BW$14))+SUMPRODUCT(($I$5:$M$14=AT15)*($BX$5:$BX$14))+'J07'!BC15 -> 4 | BD15: =SUMPRODUCT(($B$5:$F$14=AT15)*($BY$5:$BY$14))+SUMPRODUCT(($I$5:$M$14=AT15)*($BZ$5:$BZ$14))+'J07'!BD15 -> 4 | BE15: =SUMPRODUCT(($B$5:$F$14=AT15)*($CA$5:$CA$14))+SUMPRODUCT(($I$5:$M$14=AT15)*($CB$5:$CB$14))+'J07'!BE15 -> 1 | BF15: =SUMPRODUCT(($B$5:$F$14=AT15)*($CC$5:$CC$14))+SUMPRODUCT(($I$5:$M$14=AT15)*($CD$5:$CD$14))+'J07'!BF15 -> 1 | BG15: =SUMPRODUCT(($B$5:$F$14=AT15)*($CE$5:$CE$14))+SUMPRODUCT(($I$5:$M$14=AT15)*($CF$5:$CF$14))+'J07'!BG15 -> 2 | BH15: =SUMPRODUCT(($B$5:$F$14=AT15)*($CG$5:$CG$14))+SUMPRODUCT(($I$5:$M$14=AT15)*($CH$5:$CH$14))+'J07'!BH15 -> 5 | BI15: =SUMPRODUCT(($B$5:$F$14=AT15)*($CI$5:$CI$14))+SUMPRODUCT(($I$5:$M$14=AT15)*($CJ$5:$CJ$14))+'J07'!BI15 -> 4 | BJ15: 1 | BK15: =SUMPRODUCT(($B$5:$F$14=AT15)*($CK$5:$CK$14))+'J07'!BK15 -> 0 | BL15: =SUMPRODUCT(($B$5:$F$14=AT15)*($CL$5:$CL$14))+'J07'!BL15 -> 0 | BM15: =SUMPRODUCT(($B$5:$F$14=AT15)*($CM$5:$CM$14))+'J07'!BM15 -> 2 | BN15: =SUMPRODUCT(($I$5:$M$14=AT15)*($CN$5:$CN$14))+'J07'!BN15 -> 1 | BO15: =SUMPRODUCT(($I$5:$M$14=AT15)*($CO$5:$CO$14))+'J07'!BO15 -> 1 | BP15: =SUMPRODUCT(($I$5:$M$14=AT15)*($CP$5:$CP$14))+'J07'!BP15 -> 0 | BQ15: 4000.015 | BR15: =BQ15+0.0000004 -> 4000.015 | CQ15: AJAK | CR15: 3999.952 | CS15: 11 | CT15: JSOA
V16: AUSAF | AA16: 0 | AB16: u | AC16: 12 | AD16: 3 | AE16: 4 | AF16: 1 | AG16: 0 | AH16: 3 | AI16: 2 | AJ16: 3 | AK16: -1 | AL16: 0 | AM16: 0 | AN16: 2 | AO16: 1 | AP16: 0 | AQ16: 1 | AR16: 12 | AS16: 8 | AT16: ='J01'!AT16:AX16 -> AWSOM | AY16: 8 | AZ16: ='J07'!AY16-AY16 -> 0 | BA16: =IF(AY16>'J07'!AY16,'J07'!$BA$20,IF(AY16='J07'!AY16,'J07'!$AZ$20,IF(AY16<'J07'!AY16,'J07'!$AY$20))) -> u | BB16: 8 | BC16: =SUMPRODUCT(($B$5:$F$14=AT16)*($BW$5:$BW$14))+SUMPRODUCT(($I$5:$M$14=AT16)*($BX$5:$BX$14))+'J07'!BC16 -> 5 | BD16: =SUMPRODUCT(($B$5:$F$14=AT16)*($BY$5:$BY$14))+SUMPRODUCT(($I$5:$M$14=AT16)*($BZ$5:$BZ$14))+'J07'!BD16 -> 4 | BE16: =SUMPRODUCT(($B$5:$F$14=AT16)*($CA$5:$CA$14))+SUMPRODUCT(($I$5:$M$14=AT16)*($CB$5:$CB$14))+'J07'!BE16 -> 1 | BF16: =SUMPRODUCT(($B$5:$F$14=AT16)*($CC$5:$CC$14))+SUMPRODUCT(($I$5:$M$14=AT16)*($CD$5:$CD$14))+'J07'!BF16 -> 2 | BG16: =SUMPRODUCT(($B$5:$F$14=AT16)*($CE$5:$CE$14))+SUMPRODUCT(($I$5:$M$14=AT16)*($CF$5:$CF$14))+'J07'!BG16 -> 1 | BH16: =SUMPRODUCT(($B$5:$F$14=AT16)*($CG$5:$CG$14))+SUMPRODUCT(($I$5:$M$14=AT16)*($CH$5:$CH$14))+'J07'!BH16 -> 3 | BI16: =SUMPRODUCT(($B$5:$F$14=AT16)*($CI$5:$CI$14))+SUMPRODUCT(($I$5:$M$14=AT16)*($CJ$5:$CJ$14))+'J07'!BI16 -> 4 | BJ16: -1 | BK16: =SUMPRODUCT(($B$5:$F$14=AT16)*($CK$5:$CK$14))+'J07'!BK16 -> 0 | BL16: =SUMPRODUCT(($B$5:$F$14=AT16)*($CL$5:$CL$14))+'J07'!BL16 -> 2 | BM16: =SUMPRODUCT(($B$5:$F$14=AT16)*($CM$5:$CM$14))+'J07'!BM16 -> 0 | BN16: =SUMPRODUCT(($I$5:$M$14=AT16)*($CN$5:$CN$14))+'J07'!BN16 -> 1 | BO16: =SUMPRODUCT(($I$5:$M$14=AT16)*($CO$5:$CO$14))+'J07'!BO16 -> 0 | BP16: =SUMPRODUCT(($I$5:$M$14=AT16)*($CP$5:$CP$14))+'J07'!BP16 -> 1 | BQ16: 4999.993 | BR16: =BQ16+0.0000003 -> 4999.993 | CQ16: AUSAF | CR16: 2999.992 | CS16: 12 | CT16: AWSOM
V17: CUSL | AA17: 0 | AB17: u | AC17: 13 | AD17: 2 | AE17: 4 | AF17: 0 | AG17: 2 | AH17: 2 | AI17: 5 | AJ17: 11 | AK17: -6 | AL17: 0 | AM17: 1 | AN17: 1 | AO17: 0 | AP17: 1 | AQ17: 1 | AR17: 13 | AS17: 7 | AT17: ='J01'!AT17:AX17 -> HSMK | AY17: 7 | AZ17: ='J07'!AY17-AY17 -> 0 | BA17: =IF(AY17>'J07'!AY17,'J07'!$BA$20,IF(AY17='J07'!AY17,'J07'!$AZ$20,IF(AY17<'J07'!AY17,'J07'!$AY$20))) -> u | BB17: 7 | BC17: =SUMPRODUCT(($B$5:$F$14=AT17)*($BW$5:$BW$14))+SUMPRODUCT(($I$5:$M$14=AT17)*($BX$5:$BX$14))+'J07'!BC17 -> 5 | BD17: =SUMPRODUCT(($B$5:$F$14=AT17)*($BY$5:$BY$14))+SUMPRODUCT(($I$5:$M$14=AT17)*($BZ$5:$BZ$14))+'J07'!BD17 -> 4 | BE17: =SUMPRODUCT(($B$5:$F$14=AT17)*($CA$5:$CA$14))+SUMPRODUCT(($I$5:$M$14=AT17)*($CB$5:$CB$14))+'J07'!BE17 -> 1 | BF17: =SUMPRODUCT(($B$5:$F$14=AT17)*($CC$5:$CC$14))+SUMPRODUCT(($I$5:$M$14=AT17)*($CD$5:$CD$14))+'J07'!BF17 -> 2 | BG17: =SUMPRODUCT(($B$5:$F$14=AT17)*($CE$5:$CE$14))+SUMPRODUCT(($I$5:$M$14=AT17)*($CF$5:$CF$14))+'J07'!BG17 -> 1 | BH17: =SUMPRODUCT(($B$5:$F$14=AT17)*($CG$5:$CG$14))+SUMPRODUCT(($I$5:$M$14=AT17)*($CH$5:$CH$14))+'J07'!BH17 -> 5 | BI17: =SUMPRODUCT(($B$5:$F$14=AT17)*($CI$5:$CI$14))+SUMPRODUCT(($I$5:$M$14=AT17)*($CJ$5:$CJ$14))+'J07'!BI17 -> 5 | BJ17: 0 | BK17: =SUMPRODUCT(($B$5:$F$14=AT17)*($CK$5:$CK$14))+'J07'!BK17 -> 1 | BL17: =SUMPRODUCT(($B$5:$F$14=AT17)*($CL$5:$CL$14))+'J07'!BL17 -> 0 | BM17: =SUMPRODUCT(($B$5:$F$14=AT17)*($CM$5:$CM$14))+'J07'!BM17 -> 1 | BN17: =SUMPRODUCT(($I$5:$M$14=AT17)*($CN$5:$CN$14))+'J07'!BN17 -> 0 | BO17: =SUMPRODUCT(($I$5:$M$14=AT17)*($CO$5:$CO$14))+'J07'!BO17 -> 2 | BP17: =SUMPRODUCT(($I$5:$M$14=AT17)*($CP$5:$CP$14))+'J07'!BP17 -> 0 | BQ17: 5000.005 | BR17: =BQ17+0.0000002 -> 5000.005 | CQ17: CUSL | CR17: 1999.945 | CS17: 13 | CT17: HSMK
V18: USB | AA18: 0 | AB18: u | AC18: 14 | AD18: 1 | AE18: 4 | AF18: 0 | AG18: 1 | AH18: 3 | AI18: 0 | AJ18: 4 | AK18: -4 | AL18: 0 | AM18: 0 | AN18: 2 | AO18: 0 | AP18: 1 | AQ18: 1 | AR18: 14 | AS18: 10 | AT18: ='J01'!AT18:AX18 -> ESMB | AY18: 10 | AZ18: ='J07'!AY18-AY18 -> 0 | BA18: =IF(AY18>'J07'!AY18,'J07'!$BA$20,IF(AY18='J07'!AY18,'J07'!$AZ$20,IF(AY18<'J07'!AY18,'J07'!$AY$20))) -> u | BB18: 10 | BC18: =SUMPRODUCT(($B$5:$F$14=AT18)*($BW$5:$BW$14))+SUMPRODUCT(($I$5:$M$14=AT18)*($BX$5:$BX$14))+'J07'!BC18 -> 4 | BD18: =SUMPRODUCT(($B$5:$F$14=AT18)*($BY$5:$BY$14))+SUMPRODUCT(($I$5:$M$14=AT18)*($BZ$5:$BZ$14))+'J07'!BD18 -> 4 | BE18: =SUMPRODUCT(($B$5:$F$14=AT18)*($CA$5:$CA$14))+SUMPRODUCT(($I$5:$M$14=AT18)*($CB$5:$CB$14))+'J07'!BE18 -> 1 | BF18: =SUMPRODUCT(($B$5:$F$14=AT18)*($CC$5:$CC$14))+SUMPRODUCT(($I$5:$M$14=AT18)*($CD$5:$CD$14))+'J07'!BF18 -> 1 | BG18: =SUMPRODUCT(($B$5:$F$14=AT18)*($CE$5:$CE$14))+SUMPRODUCT(($I$5:$M$14=AT18)*($CF$5:$CF$14))+'J07'!BG18 -> 2 | BH18: =SUMPRODUCT(($B$5:$F$14=AT18)*($CG$5:$CG$14))+SUMPRODUCT(($I$5:$M$14=AT18)*($CH$5:$CH$14))+'J07'!BH18 -> 6 | BI18: =SUMPRODUCT(($B$5:$F$14=AT18)*($CI$5:$CI$14))+SUMPRODUCT(($I$5:$M$14=AT18)*($CJ$5:$CJ$14))+'J07'!BI18 -> 8 | BJ18: -2 | BK18: =SUMPRODUCT(($B$5:$F$14=AT18)*($CK$5:$CK$14))+'J07'!BK18 -> 0 | BL18: =SUMPRODUCT(($B$5:$F$14=AT18)*($CL$5:$CL$14))+'J07'!BL18 -> 1 | BM18: =SUMPRODUCT(($B$5:$F$14=AT18)*($CM$5:$CM$14))+'J07'!BM18 -> 1 | BN18: =SUMPRODUCT(($I$5:$M$14=AT18)*($CN$5:$CN$14))+'J07'!BN18 -> 1 | BO18: =SUMPRODUCT(($I$5:$M$14=AT18)*($CO$5:$CO$14))+'J07'!BO18 -> 0 | BP18: =SUMPRODUCT(($I$5:$M$14=AT18)*($CP$5:$CP$14))+'J07'!BP18 -> 1 | BQ18: 3999.986 | BR18: =BQ18+0.0000001 -> 3999.986 | CQ18: USB | CR18: 999.96 | CS18: 14 | CT18: ESMB
AO19: Buts/Journée | AY19: p | AZ19: u | BA19: q
AO20: =SUM(G5:H14) -> 0 | AY20: p | AZ20: u | BA20: q
AO22: Total Buts du Championnat
AO24: =AO20+'J07'!AO24:AP25 -> 68
AO26: Moyenne générale
AO28: =IF(AE5=0,"",SUM(AI5:AI24)/SUM(AE5:AE24)*2) -> 2.428571429

Sheet J09
A1: ='J01'!A1:C2 -> Nom du Championnat | I1: ='J01'!H1:K2 -> 2017-2018 | O1: JOURNEE 09 | V1: CLASSEMENT | AT1: CLASSEMENT | BS1: Domicile | BT1: Extérieur | BU1: Domicile | BV1: Extérieur | BW1: Domicile | BX1: Extérieur | BY1: Domicile | BZ1: Extérieur | CA1: Domicile | CB1: Extérieur | CC1: Domicile | CD1: Extérieur | CE1: Domicile | CF1: Extérieur | CG1: Domicile | CH1: Extérieur | CI1: Domicile | CJ1: Extérieur
A3: P | B3: Equipes | G3: Buts | H3: Buts | I3: Equipes | N3: P | O3: Dates | S3: Heure | V3: Equipes | AA3: Evolution | AC3: Place | AD3: Pts | AE3: J | AF3: G | AG3: N | AH3: P | AI3: B + | AJ3: B - | AK3: Diff. | AL3: Domicile | AO3: Extérieur | AT3: Equipes | AY3: R | AZ3: Evolution | BB3: R | BC3: Pts | BD3: J | BE3: G | BF3: N | BG3: P | BH3: B + | BI3: B - | BJ3: Diff. | BK3: Domicile | BN3: Extérieur | CK3: Domicile | CN3: Extérieur
AL4: G | AM4: N | AN4: P | AO4: G | AP4: N | AQ4: P | AS4: R | BK4: G | BL4: N | BM4: P | BN4: G | BO4: N | BP4: P | BQ4: % | BR4: % | BS4: P | BT4: P | BU4: Pts | BV4: Pts | BW4: T Pt | BX4: T Pt | BY4: J | BZ4: J | CA4: G | CB4: G | CC4: N | CD4: N | CE4: P | CF4: P | CG4: B + | CH4: B + | CI4: B - | CJ4: B - | CK4: G | CL4: N | CM4: P | CN4: G | CO4: N | CP4: P | CQ4: Equipes | CR4: % | CS4: R | CT4: Equipes
V5: =VLOOKUP(AR5,$AS$5:$AX$18,2,0) -> ASUD | AA5: =VLOOKUP(V5,$AT$5:$BP$18,7,0) -> 0 | AB5: =VLOOKUP(V5,$AT$5:$BP$18,8,0) -> u | AC5: 1 | AD5: =VLOOKUP(V5,$AT$5:$BP$18,10,0) -> 10 | AE5: =VLOOKUP(V5,$AT$5:$BP$18,11,0) -> 4 | AF5: =VLOOKUP(V5,$AT$5:$BP$18,12,0) -> 3 | AG5: =VLOOKUP(V5,$AT$5:$BP$18,13,0) -> 1 | AH5: =VLOOKUP(V5,$AT$5:$BP$18,14,0) -> 0 | AI5: =VLOOKUP(V5,$AT$5:$BP$18,15,0) -> 16 | AJ5: =VLOOKUP(V5,$AT$5:$BP$18,16,0) -> 5 | AK5: =VLOOKUP(V5,$AT$5:$BP$18,17,0) -> 11 | AL5: =VLOOKUP(V5,$AT$5:$BP$18,18,0) -> 2 | AM5: =VLOOKUP(V5,$AT$5:$BP$18,19,0) -> 0 | AN5: =VLOOKUP(V5,$AT$5:$BP$18,20,0) -> 0 | AO5: =VLOOKUP(V5,$AT$5:$BP$18,21,0) -> 1 | AP5: =VLOOKUP(V5,$AT$5:$BP$18,22,0) -> 1 | AQ5: =VLOOKUP(V5,$AT$5:$BP$18,23,0) -> 0 | AR5: 1 | AS5: =BB5 -> 6 | AT5: ='J01'!AT5:AX5 -> AUSBK | AY5: =RANK(BQ5,$BQ$5:$BQ$18) -> 6 | AZ5: ='J08'!AY5-AY5 -> 0 | BA5: =IF(AY5>'J08'!AY5,'J08'!$BA$20,IF(AY5='J08'!AY5,'J08'!$AZ$20,IF(AY5<'J08'!AY5,'J08'!$AY$20))) -> u | BB5: =RANK(BR5,$BR$5:$BR$18) -> 6 | BC5: =SUMPRODUCT(($B$5:$F$14=AT5)*($BW$5:$BW$14))+SUMPRODUCT(($I$5:$M$14=AT5)*($BX$5:$BX$14))+'J08'!BC5 -> 5 | BD5: =SUMPRODUCT(($B$5:$F$14=AT5)*($BY$5:$BY$14))+SUMPRODUCT(($I$5:$M$14=AT5)*($BZ$5:$BZ$14))+'J08'!BD5 -> 4 | BE5: =SUMPRODUCT(($B$5:$F$14=AT5)*($CA$5:$CA$14))+SUMPRODUCT(($I$5:$M$14=AT5)*($CB$5:$CB$14))+'J08'!BE5 -> 1 | BF5: =SUMPRODUCT(($B$5:$F$14=AT5)*($CC$5:$CC$14))+SUMPRODUCT(($I$5:$M$14=AT5)*($CD$5:$CD$14))+'J08'!BF5 -> 2 | BG5: =SUMPRODUCT(($B$5:$F$14=AT5)*($CE$5:$CE$14))+SUMPRODUCT(($I$5:$M$14=AT5)*($CF$5:$CF$14))+'J08'!BG5 -> 1 | BH5: =SUMPRODUCT(($B$5:$F$14=AT5)*($CG$5:$CG$14))+SUMPRODUCT(($I$5:$M$14=AT5)*($CH$5:$CH$14))+'J08'!BH5 -> 7 | BI5: =SUMPRODUCT(($B$5:$F$14=AT5)*($CI$5:$CI$14))+SUMPRODUCT(($I$5:$M$14=AT5)*($CJ$5:$CJ$14))+'J08'!BI5 -> 7 | BJ5: =BH5-BI5 -> 0 | BK5: =SUMPRODUCT(($B$5:$F$14=AT5)*($CK$5:$CK$14))+'J08'!BK5 -> 0 | BL5: =SUMPRODUCT(($B$5:$F$14=AT5)*($CL$5:$CL$14))+'J08'!BL5 -> 2 | BM5: =SUMPRODUCT(($B$5:$F$14=AT5)*($CM$5:$CM$14))+'J08'!BM5 -> 0 | BN5: =SUMPRODUCT(($I$5:$M$14=AT5)*($CN$5:$CN$14))+'J08'!BN5 -> 1 | BO5: =SUMPRODUCT(($I$5:$M$14=AT5)*($CO$5:$CO$14))+'J08'!BO5 -> 0 | BP5: =SUMPRODUCT(($I$5:$M$14=AT5)*($CP$5:$CP$14))+'J08'!BP5 -> 1 | BQ5: =SUM(BC5*1000+(BJ5)/100+(BH5)/1000) -> 5000.007 | BR5: =BQ5+0.0000014 -> 5000.007001 | BS5: =A5 -> 0 | BT5: =N5 -> 0 | BU5: =IF(G5="",0,IF(G5>H5,3,IF(G5=H5,1,IF(G5<H5,0)))) -> 0 | BV5: =IF(H5="",0,IF(H5>G5,3,IF(H5=G5,1,IF(H5<G5,0)))) -> 0 | BW5: =BU5-BS5 -> 0 | BX5: =BV5-BT5 -> 0 | BY5: =IF(G5="",0,1) -> 0 | BZ5: =IF(H5="",0,1) -> 0 | CA5: =IF(G5<>"",IF(G5>H5,1)) -> FALSE | CB5: =IF(H5<>"",IF(H5>G5,1)) -> FALSE | CC5: =IF(G5<>"",IF(G5=H5,1)) -> FALSE | CD5: =IF(H5<>"",IF(H5=G5,1)) -> FALSE | CE5: =IF(G5<>"",IF(G5<H5,1)) -> FALSE | CF5: =IF(H5<>"",IF(H5<G5,1)) -> FALSE | CG5: =G5 -> 0 | CH5: =H5 -> 0 | CI5: =H5 -> 0 | CJ5: =G5 -> 0 | CK5: =IF(G5<>"",IF(G5>H5,1)) -> FALSE | CL5: =IF(G5<>"",IF(G5=H5,1)) -> FALSE | CM5: =IF(G5<>"",IF(G5<H5,1)) -> FALSE | CN5: =IF(H5<>"",IF(H5>G5,1)) -> FALSE | CO5: =IF(H5<>"",IF(H5=G5,1)) -> FALSE | CP5: =IF(H5<>"",IF(H5<G5,1)) -> FALSE | CQ5: =VLOOKUP(AR5,$AS$5:$AX$18,2,0) -> ASUD | CR5: =VLOOKUP(CQ5,$AT$5:$BQ$18,24,0) -> 10000.126 | CS5: =RANK(CR5,$CR$5:$CR$18) -> 1 | CT5: =AT5 -> AUSBK
V6: AHDOZ | AA6: 0 | AB6: u | AC6: =IF(CR6=CR5,CS5,CS6) -> 2 | AD6: 10 | AE6: 4 | AF6: 3 | AG6: 1 | AH6: 0 | AI6: 5 | AJ6: 0 | AK6: 5 | AL6: 1 | AM6: 1 | AN6: =VLOOKUP(V6,$AT$5:$BP$18,20,0) -> 0 | AO6: 2 | AP6: =VLOOKUP(V6,$AT$5:$BP$18,22,0) -> 0 | AQ6: 0 | AR6: 2 | AS6: =BB6 -> 13 | AT6: ='J01'!AT6:AX6 -> CUSL | AY6: 13 | AZ6: ='J08'!AY6-AY6 -> 0 | BA6: =IF(AY6>'J08'!AY6,'J08'!$BA$20,IF(AY6='J08'!AY6,'J08'!$AZ$20,IF(AY6<'J08'!AY6,'J08'!$AY$20))) -> u | BB6: =RANK(BR6,$BR$5:$BR$18) -> 13 | BC6: =SUMPRODUCT(($B$5:$F$14=AT6)*($BW$5:$BW$14))+SUMPRODUCT(($I$5:$M$14=AT6)*($BX$5:$BX$14))+'J08'!BC6 -> 2 | BD6: =SUMPRODUCT(($B$5:$F$14=AT6)*($BY$5:$BY$14))+SUMPRODUCT(($I$5:$M$14=AT6)*($BZ$5:$BZ$14))+'J08'!BD6 -> 4 | BE6: =SUMPRODUCT(($B$5:$F$14=AT6)*($CA$5:$CA$14))+SUMPRODUCT(($I$5:$M$14=AT6)*($CB$5:$CB$14))+'J08'!BE6 -> 0 | BF6: =SUMPRODUCT(($B$5:$F$14=AT6)*($CC$5:$CC$14))+SUMPRODUCT(($I$5:$M$14=AT6)*($CD$5:$CD$14))+'J08'!BF6 -> 2 | BG6: =SUMPRODUCT(($B$5:$F$14=AT6)*($CE$5:$CE$14))+SUMPRODUCT(($I$5:$M$14=AT6)*($CF$5:$CF$14))+'J08'!BG6 -> 2 | BH6: =SUMPRODUCT(($B$5:$F$14=AT6)*($CG$5:$CG$14))+SUMPRODUCT(($I$5:$M$14=AT6)*($CH$5:$CH$14))+'J08'!BH6 -> 5 | BI6: =SUMPRODUCT(($B$5:$F$14=AT6)*($CI$5:$CI$14))+SUMPRODUCT(($I$5:$M$14=AT6)*($CJ$5:$CJ$14))+'J08'!BI6 -> 11 | BJ6: =BH6-BI6 -> -6 | BK6: =SUMPRODUCT(($B$5:$F$14=AT6)*($CK$5:$CK$14))+'J08'!BK6 -> 0 | BL6: =SUMPRODUCT(($B$5:$F$14=AT6)*($CL$5:$CL$14))+'J08'!BL6 -> 1 | BM6: =SUMPRODUCT(($B$5:$F$14=AT6)*($CM$5:$CM$14))+'J08'!BM6 -> 1 | BN6: =SUMPRODUCT(($I$5:$M$14=AT6)*($CN$5:$CN$14))+'J08'!BN6 -> 0 | BO6: =SUMPRODUCT(($I$5:$M$14=AT6)*($CO$5:$CO$14))+'J08'!BO6 -> 1 | BP6: =SUMPRODUCT(($I$5:$M$14=AT6)*($CP$5:$CP$14))+'J08'!BP6 -> 1 | BQ6: =SUM(BC6*1000+(BJ6)/100+(BH6)/1000) -> 1999.945 | BR6: =BQ6+0.0000013 -> 1999.945001 | BS6: =A6 -> 0 | BT6: =N6 -> 0 | BU6: =IF(G6="",0,IF(G6>H6,3,IF(G6=H6,1,IF(G6<H6,0)))) -> 0 | BV6: =IF(H6="",0,IF(H6>G6,3,IF(H6=G6,1,IF(H6<G6,0)))) -> 0 | BW6: =BU6-BS6 -> 0 | BX6: =BV6-BT6 -> 0 | BY6: =IF(G6="",0,1) -> 0 | BZ6: =IF(H6="",0,1) -> 0 | CA6: =IF(G6<>"",IF(G6>H6,1)) -> FALSE | CB6: =IF(H6<>"",IF(H6>G6,1)) -> FALSE | CC6: =IF(G6<>"",IF(G6=H6,1)) -> FALSE | CD6: =IF(H6<>"",IF(H6=G6,1)) -> FALSE | CE6: =IF(G6<>"",IF(G6<H6,1)) -> FALSE | CF6: =IF(H6<>"",IF(H6<G6,1)) -> FALSE | CG6: =G6 -> 0 | CH6: =H6 -> 0 | CI6: =H6 -> 0 | CJ6: =G6 -> 0 | CK6: =IF(G6<>"",IF(G6>H6,1)) -> FALSE | CL6: =IF(G6<>"",IF(G6=H6,1)) -> FALSE | CM6: =IF(G6<>"",IF(G6<H6,1)) -> FALSE | CN6: =IF(H6<>"",IF(H6>G6,1)) -> FALSE | CO6: =IF(H6<>"",IF(H6=G6,1)) -> FALSE | CP6: =IF(H6<>"",IF(H6<G6,1)) -> FALSE | CQ6: AHDOZ | CR6: 10000.055 | CS6: 2 | CT6: =AT6 -> CUSL
V7: CJBF | AA7: 0 | AB7: u | AC7: =IF(CR7=CR6,CS6,CS7) -> 3 | AD7: 8 | AE7: 4 | AF7: 2 | AG7: 2 | AH7: 0 | AI7: 5 | AJ7: 2 | AK7: 3 | AL7: 1 | AM7: 1 | AN7: 0 | AO7: 1 | AP7: 1 | AQ7: 0 | AR7: 3 | AS7: 4 | AT7: ='J01'!AT7:AX7 -> AUSA | AY7: 4 | AZ7: ='J08'!AY7-AY7 -> 0 | BA7: =IF(AY7>'J08'!AY7,'J08'!$BA$20,IF(AY7='J08'!AY7,'J08'!$AZ$20,IF(AY7<'J08'!AY7,'J08'!$AY$20))) -> u | BB7: 4 | BC7: =SUMPRODUCT(($B$5:$F$14=AT7)*($BW$5:$BW$14))+SUMPRODUCT(($I$5:$M$14=AT7)*($BX$5:$BX$14))+'J08'!BC7 -> 7 | BD7: =SUMPRODUCT(($B$5:$F$14=AT7)*($BY$5:$BY$14))+SUMPRODUCT(($I$5:$M$14=AT7)*($BZ$5:$BZ$14))+'J08'!BD7 -> 4 | BE7: =SUMPRODUCT(($B$5:$F$14=AT7)*($CA$5:$CA$14))+SUMPRODUCT(($I$5:$M$14=AT7)*($CB$5:$CB$14))+'J08'!BE7 -> 2 | BF7: =SUMPRODUCT(($B$5:$F$14=AT7)*($CC$5:$CC$14))+SUMPRODUCT(($I$5:$M$14=AT7)*($CD$5:$CD$14))+'J08'!BF7 -> 1 | BG7: =SUMPRODUCT(($B$5:$F$14=AT7)*($CE$5:$CE$14))+SUMPRODUCT(($I$5:$M$14=AT7)*($CF$5:$CF$14))+'J08'!BG7 -> 1 | BH7: =SUMPRODUCT(($B$5:$F$14=AT7)*($CG$5:$CG$14))+SUMPRODUCT(($I$5:$M$14=AT7)*($CH$5:$CH$14))+'J08'!BH7 -> 3 | BI7: =SUMPRODUCT(($B$5:$F$14=AT7)*($CI$5:$CI$14))+SUMPRODUCT(($I$5:$M$14=AT7)*($CJ$5:$CJ$14))+'J08'!BI7 -> 3 | BJ7: 0 | BK7: =SUMPRODUCT(($B$5:$F$14=AT7)*($CK$5:$CK$14))+'J08'!BK7 -> 1 | BL7: =SUMPRODUCT(($B$5:$F$14=AT7)*($CL$5:$CL$14))+'J08'!BL7 -> 1 | BM7: =SUMPRODUCT(($B$5:$F$14=AT7)*($CM$5:$CM$14))+'J08'!BM7 -> 0 | BN7: =SUMPRODUCT(($I$5:$M$14=AT7)*($CN$5:$CN$14))+'J08'!BN7 -> 1 | BO7: =SUMPRODUCT(($I$5:$M$14=AT7)*($CO$5:$CO$14))+'J08'!BO7 -> 0 | BP7: =SUMPRODUCT(($I$5:$M$14=AT7)*($CP$5:$CP$14))+'J08'!BP7 -> 1 | BQ7: 7000.003 | BR7: =BQ7+0.0000012 -> 7000.003001 | BS7: 0 | BT7: 0 | BU7: 0 | BV7: 0 | BW7: 0 | BX7: 0 | BY7: 0 | BZ7: 0 | CA7: FALSE | CB7: FALSE | CC7: FALSE | CD7: FALSE | CE7: FALSE | CF7: FALSE | CG7: 0 | CH7: 0 | CI7: 0 | CJ7: 0 | CK7: FALSE | CL7: FALSE | CM7: FALSE | CN7: FALSE | CO7: FALSE | CP7: FALSE | CQ7: CJBF | CR7: 8000.035 | CS7: 3 | CT7: AUSA
V8: AUSA | AA8: 0 | AB8: u | AC8: 4 | AD8: 7 | AE8: 4 | AF8: 2 | AG8: 1 | AH8: 1 | AI8: 3 | AJ8: 3 | AK8: 0 | AL8: 1 | AM8: 1 | AN8: 0 | AO8: 1 | AP8: 0 | AQ8: 1 | AR8: 4 | AS8: 3 | AT8: ='J01'!AT8:AX8 -> CJBF | AY8: 3 | AZ8: ='J08'!AY8-AY8 -> 0 | BA8: =IF(AY8>'J08'!AY8,'J08'!$BA$20,IF(AY8='J08'!AY8,'J08'!$AZ$20,IF(AY8<'J08'!AY8,'J08'!$AY$20))) -> u | BB8: 3 | BC8: =SUMPRODUCT(($B$5:$F$14=AT8)*($BW$5:$BW$14))+SUMPRODUCT(($I$5:$M$14=AT8)*($BX$5:$BX$14))+'J08'!BC8 -> 8 | BD8: =SUMPRODUCT(($B$5:$F$14=AT8)*($BY$5:$BY$14))+SUMPRODUCT(($I$5:$M$14=AT8)*($BZ$5:$BZ$14))+'J08'!BD8 -> 4 | BE8: =SUMPRODUCT(($B$5:$F$14=AT8)*($CA$5:$CA$14))+SUMPRODUCT(($I$5:$M$14=AT8)*($CB$5:$CB$14))+'J08'!BE8 -> 2 | BF8: =SUMPRODUCT(($B$5:$F$14=AT8)*($CC$5:$CC$14))+SUMPRODUCT(($I$5:$M$14=AT8)*($CD$5:$CD$14))+'J08'!BF8 -> 2 | BG8: =SUMPRODUCT(($B$5:$F$14=AT8)*($CE$5:$CE$14))+SUMPRODUCT(($I$5:$M$14=AT8)*($CF$5:$CF$14))+'J08'!BG8 -> 0 | BH8: =SUMPRODUCT(($B$5:$F$14=AT8)*($CG$5:$CG$14))+SUMPRODUCT(($I$5:$M$14=AT8)*($CH$5:$CH$14))+'J08'!BH8 -> 5 | BI8: =SUMPRODUCT(($B$5:$F$14=AT8)*($CI$5:$CI$14))+SUMPRODUCT(($I$5:$M$14=AT8)*($CJ$5:$CJ$14))+'J08'!BI8 -> 2 | BJ8: 3 | BK8: =SUMPRODUCT(($B$5:$F$14=AT8)*($CK$5:$CK$14))+'J08'!BK8 -> 1 | BL8: =SUMPRODUCT(($B$5:$F$14=AT8)*($CL$5:$CL$14))+'J08'!BL8 -> 1 | BM8: =SUMPRODUCT(($B$5:$F$14=AT8)*($CM$5:$CM$14))+'J08'!BM8 -> 0 | BN8: =SUMPRODUCT(($I$5:$M$14=AT8)*($CN$5:$CN$14))+'J08'!BN8 -> 1 | BO8: =SUMPRODUCT(($I$5:$M$14=AT8)*($CO$5:$CO$14))+'J08'!BO8 -> 1 | BP8: =SUMPRODUCT(($I$5:$M$14=AT8)*($CP$5:$CP$14))+'J08'!BP8 -> 0 | BQ8: 8000.035 | BR8: =BQ8+0.0000011 -> 8000.035001 | BS8: 0 | BT8: 0 | BU8: 0 | BV8: 0 | BW8: 0 | BX8: 0 | BY8: 0 | BZ8: 0 | CA8: FALSE | CB8: FALSE | CC8: FALSE | CD8: FALSE | CE8: FALSE | CF8: FALSE | CG8: 0 | CH8: 0 | CI8: 0 | CJ8: 0 | CK8: FALSE | CL8: FALSE | CM8: FALSE | CN8: FALSE | CO8: FALSE | CP8: FALSE | CQ8: AUSA | CR8: 7000.003 | CS8: 4 | CT8: CJBF
V9: ALC | AA9: 0 | AB9: u | AC9: 5 | AD9: 7 | AE9: 4 | AF9: 2 | AG9: 1 | AH9: 1 | AI9: 4 | AJ9: 5 | AK9: -1 | AL9: 1 | AM9: 0 | AN9: 1 | AO9: 1 | AP9: 1 | AQ9: 0 | AR9: 5 | AS9: 11 | AT9: ='J01'!AT9:AX9 -> AJAK | AY9: 11 | AZ9: ='J08'!AY9-AY9 -> 0 | BA9: =IF(AY9>'J08'!AY9,'J08'!$BA$20,IF(AY9='J08'!AY9,'J08'!$AZ$20,IF(AY9<'J08'!AY9,'J08'!$AY$20))) -> u | BB9: 11 | BC9: =SUMPRODUCT(($B$5:$F$14=AT9)*($BW$5:$BW$14))+SUMPRODUCT(($I$5:$M$14=AT9)*($BX$5:$BX$14))+'J08'!BC9 -> 4 | BD9: =SUMPRODUCT(($B$5:$F$14=AT9)*($BY$5:$BY$14))+SUMPRODUCT(($I$5:$M$14=AT9)*($BZ$5:$BZ$14))+'J08'!BD9 -> 4 | BE9: =SUMPRODUCT(($B$5:$F$14=AT9)*($CA$5:$CA$14))+SUMPRODUCT(($I$5:$M$14=AT9)*($CB$5:$CB$14))+'J08'!BE9 -> 1 | BF9: =SUMPRODUCT(($B$5:$F$14=AT9)*($CC$5:$CC$14))+SUMPRODUCT(($I$5:$M$14=AT9)*($CD$5:$CD$14))+'J08'!BF9 -> 1 | BG9: =SUMPRODUCT(($B$5:$F$14=AT9)*($CE$5:$CE$14))+SUMPRODUCT(($I$5:$M$14=AT9)*($CF$5:$CF$14))+'J08'!BG9 -> 2 | BH9: =SUMPRODUCT(($B$5:$F$14=AT9)*($CG$5:$CG$14))+SUMPRODUCT(($I$5:$M$14=AT9)*($CH$5:$CH$14))+'J08'!BH9 -> 2 | BI9: =SUMPRODUCT(($B$5:$F$14=AT9)*($CI$5:$CI$14))+SUMPRODUCT(($I$5:$M$14=AT9)*($CJ$5:$CJ$14))+'J08'!BI9 -> 7 | BJ9: -5 | BK9: =SUMPRODUCT(($B$5:$F$14=AT9)*($CK$5:$CK$14))+'J08'!BK9 -> 0 | BL9: =SUMPRODUCT(($B$5:$F$14=AT9)*($CL$5:$CL$14))+'J08'!BL9 -> 0 | BM9: =SUMPRODUCT(($B$5:$F$14=AT9)*($CM$5:$CM$14))+'J08'!BM9 -> 2 | BN9: =SUMPRODUCT(($I$5:$M$14=AT9)*($CN$5:$CN$14))+'J08'!BN9 -> 1 | BO9: =SUMPRODUCT(($I$5:$M$14=AT9)*($CO$5:$CO$14))+'J08'!BO9 -> 1 | BP9: =SUMPRODUCT(($I$5:$M$14=AT9)*($CP$5:$CP$14))+'J08'!BP9 -> 0 | BQ9: 3999.952 | BR9: =BQ9+0.000001 -> 3999.952001 | BS9: 0 | BT9: 0 | BU9: 0 | BV9: 0 | BW9: 0 | BX9: 0 | BY9: 0 | BZ9: 0 | CA9: FALSE | CB9: FALSE | CC9: FALSE | CD9: FALSE | CE9: FALSE | CF9: FALSE | CG9: 0 | CH9: 0 | CI9: 0 | CJ9: 0 | CK9: FALSE | CL9: FALSE | CM9: FALSE | CN9: FALSE | CO9: FALSE | CP9: FALSE | CQ9: ALC | CR9: 6999.994 | CS9: 5 | CT9: AJAK
V10: AUSBK | AA10: 0 | AB10: u | AC10: 6 | AD10: 5 | AE10: 4 | AF10: 1 | AG10: 2 | AH10: 1 | AI10: 7 | AJ10: 7 | AK10: 0 | AL10: 0 | AM10: 2 | AN10: 0 | AO10: 1 | AP10: 0 | AQ10: 1 | AR10: 6 | AS10: 1 | AT10: ='J01'!AT10:AX10 -> ASUD | AY10: 1 | AZ10: ='J08'!AY10-AY10 -> 0 | BA10: =IF(AY10>'J08'!AY10,'J08'!$BA$20,IF(AY10='J08'!AY10,'J08'!$AZ$20,IF(AY10<'J08'!AY10,'J08'!$AY$20))) -> u | BB10: 1 | BC10: =SUMPRODUCT(($B$5:$F$14=AT10)*($BW$5:$BW$14))+SUMPRODUCT(($I$5:$M$14=AT10)*($BX$5:$BX$14))+'J08'!BC10 -> 10 | BD10: =SUMPRODUCT(($B$5:$F$14=AT10)*($BY$5:$BY$14))+SUMPRODUCT(($I$5:$M$14=AT10)*($BZ$5:$BZ$14))+'J08'!BD10 -> 4 | BE10: =SUMPRODUCT(($B$5:$F$14=AT10)*($CA$5:$CA$14))+SUMPRODUCT(($I$5:$M$14=AT10)*($CB$5:$CB$14))+'J08'!BE10 -> 3 | BF10: =SUMPRODUCT(($B$5:$F$14=AT10)*($CC$5:$CC$14))+SUMPRODUCT(($I$5:$M$14=AT10)*($CD$5:$CD$14))+'J08'!BF10 -> 1 | BG10: =SUMPRODUCT(($B$5:$F$14=AT10)*($CE$5:$CE$14))+SUMPRODUCT(($I$5:$M$14=AT10)*($CF$5:$CF$14))+'J08'!BG10 -> 0 | BH10: =SUMPRODUCT(($B$5:$F$14=AT10)*($CG$5:$CG$14))+SUMPRODUCT(($I$5:$M$14=AT10)*($CH$5:$CH$14))+'J08'!BH10 -> 16 | BI10: =SUMPRODUCT(($B$5:$F$14=AT10)*($CI$5:$CI$14))+SUMPRODUCT(($I$5:$M$14=AT10)*($CJ$5:$CJ$14))+'J08'!BI10 -> 5 | BJ10: 11 | BK10: =SUMPRODUCT(($B$5:$F$14=AT10)*($CK$5:$CK$14))+'J08'!BK10 -> 2 | BL10: =SUMPRODUCT(($B$5:$F$14=AT10)*($CL$5:$CL$14))+'J08'!BL10 -> 0 | BM10: =SUMPRODUCT(($B$5:$F$14=AT10)*($CM$5:$CM$14))+'J08'!BM10 -> 0 | BN10: =SUMPRODUCT(($I$5:$M$14=AT10)*($CN$5:$CN$14))+'J08'!BN10 -> 1 | BO10: =SUMPRODUCT(($I$5:$M$14=AT10)*($CO$5:$CO$14))+'J08'!BO10 -> 1 | BP10: =SUMPRODUCT(($I$5:$M$14=AT10)*($CP$5:$CP$14))+'J08'!BP10 -> 0 | BQ10: 10000.126 | BR10: =BQ10+0.0000009 -> 10000.126 | BS10: 0 | BT10: 0 | BU10: 0 | BV10: 0 | BW10: 0 | BX10: 0 | BY10: 0 | BZ10: 0 | CA10: FALSE | CB10: FALSE | CC10: FALSE | CD10: FALSE | CE10: FALSE | CF10: FALSE | CG10: 0 | CH10: 0 | CI10: 0 | CJ10: 0 | CK10: FALSE | CL10: FALSE | CM10: FALSE | CN10: FALSE | CO10: FALSE | CP10: FALSE | CQ10: AUSBK | CR10: 5000.007 | CS10: 6 | CT10: ASUD
V11: HSMK | AA11: 0 | AB11: u | AC11: 7 | AD11: 5 | AE11: 4 | AF11: 1 | AG11: 2 | AH11: 1 | AI11: 5 | AJ11: 5 | AK11: 0 | AL11: 1 | AM11: 0 | AN11: 1 | AO11: 0 | AP11: 2 | AQ11: 0 | AR11: 7 | AS11: 2 | AT11: ='J01'!AT11:AX11 -> AHDOZ | AY11: 2 | AZ11: ='J08'!AY11-AY11 -> 0 | BA11: =IF(AY11>'J08'!AY11,'J08'!$BA$20,IF(AY11='J08'!AY11,'J08'!$AZ$20,IF(AY11<'J08'!AY11,'J08'!$AY$20))) -> u | BB11: 2 | BC11: =SUMPRODUCT(($B$5:$F$14=AT11)*($BW$5:$BW$14))+SUMPRODUCT(($I$5:$M$14=AT11)*($BX$5:$BX$14))+'J08'!BC11 -> 10 | BD11: =SUMPRODUCT(($B$5:$F$14=AT11)*($BY$5:$BY$14))+SUMPRODUCT(($I$5:$M$14=AT11)*($BZ$5:$BZ$14))+'J08'!BD11 -> 4 | BE11: =SUMPRODUCT(($B$5:$F$14=AT11)*($CA$5:$CA$14))+SUMPRODUCT(($I$5:$M$14=AT11)*($CB$5:$CB$14))+'J08'!BE11 -> 3 | BF11: =SUMPRODUCT(($B$5:$F$14=AT11)*($CC$5:$CC$14))+SUMPRODUCT(($I$5:$M$14=AT11)*($CD$5:$CD$14))+'J08'!BF11 -> 1 | BG11: =SUMPRODUCT(($B$5:$F$14=AT11)*($CE$5:$CE$14))+SUMPRODUCT(($I$5:$M$14=AT11)*($CF$5:$CF$14))+'J08'!BG11 -> 0 | BH11: =SUMPRODUCT(($B$5:$F$14=AT11)*($CG$5:$CG$14))+SUMPRODUCT(($I$5:$M$14=AT11)*($CH$5:$CH$14))+'J08'!BH11 -> 5 | BI11: =SUMPRODUCT(($B$5:$F$14=AT11)*($CI$5:$CI$14))+SUMPRODUCT(($I$5:$M$14=AT11)*($CJ$5:$CJ$14))+'J08'!BI11 -> 0 | BJ11: 5 | BK11: =SUMPRODUCT(($B$5:$F$14=AT11)*($CK$5:$CK$14))+'J08'!BK11 -> 1 | BL11: =SUMPRODUCT(($B$5:$F$14=AT11)*($CL$5:$CL$14))+'J08'!BL11 -> 1 | BM11: =SUMPRODUCT(($B$5:$F$14=AT11)*($CM$5:$CM$14))+'J08'!BM11 -> 0 | BN11: =SUMPRODUCT(($I$5:$M$14=AT11)*($CN$5:$CN$14))+'J08'!BN11 -> 2 | BO11: =SUMPRODUCT(($I$5:$M$14=AT11)*($CO$5:$CO$14))+'J08'!BO11 -> 0 | BP11: =SUMPRODUCT(($I$5:$M$14=AT11)*($CP$5:$CP$14))+'J08'!BP11 -> 0 | BQ11: 10000.055 | BR11: =BQ11+0.0000008 -> 10000.055 | BS11: 0 | BT11: 0 | BU11: 0 | BV11: 0 | BW11: 0 | BX11: 0 | BY11: 0 | BZ11: 0 | CA11: FALSE | CB11: FALSE | CC11: FALSE | CD11: FALSE | CE11: FALSE | CF11: FALSE | CG11: 0 | CH11: 0 | CI11: 0 | CJ11: 0 | CK11: FALSE | CL11: FALSE | CM11: FALSE | CN11: FALSE | CO11: FALSE | CP11: FALSE | CQ11: HSMK | CR11: 5000.005 | CS11: 7 | CT11: AHDOZ
V12: AWSOM | AA12: 0 | AB12: u | AC12: 8 | AD12: 5 | AE12: 4 | AF12: 1 | AG12: 2 | AH12: 1 | AI12: 3 | AJ12: 4 | AK12: -1 | AL12: 0 | AM12: 2 | AN12: 0 | AO12: 1 | AP12: 0 | AQ12: 1 | AR12: 8 | AS12: 14 | AT12: ='J01'!AT12:AX12 -> USB | AY12: 14 | AZ12: ='J08'!AY12-AY12 -> 0 | BA12: =IF(AY12>'J08'!AY12,'J08'!$BA$20,IF(AY12='J08'!AY12,'J08'!$AZ$20,IF(AY12<'J08'!AY12,'J08'!$AY$20))) -> u | BB12: 14 | BC12: =SUMPRODUCT(($B$5:$F$14=AT12)*($BW$5:$BW$14))+SUMPRODUCT(($I$5:$M$14=AT12)*($BX$5:$BX$14))+'J08'!BC12 -> 1 | BD12: =SUMPRODUCT(($B$5:$F$14=AT12)*($BY$5:$BY$14))+SUMPRODUCT(($I$5:$M$14=AT12)*($BZ$5:$BZ$14))+'J08'!BD12 -> 4 | BE12: =SUMPRODUCT(($B$5:$F$14=AT12)*($CA$5:$CA$14))+SUMPRODUCT(($I$5:$M$14=AT12)*($CB$5:$CB$14))+'J08'!BE12 -> 0 | BF12: =SUMPRODUCT(($B$5:$F$14=AT12)*($CC$5:$CC$14))+SUMPRODUCT(($I$5:$M$14=AT12)*($CD$5:$CD$14))+'J08'!BF12 -> 1 | BG12: =SUMPRODUCT(($B$5:$F$14=AT12)*($CE$5:$CE$14))+SUMPRODUCT(($I$5:$M$14=AT12)*($CF$5:$CF$14))+'J08'!BG12 -> 3 | BH12: =SUMPRODUCT(($B$5:$F$14=AT12)*($CG$5:$CG$14))+SUMPRODUCT(($I$5:$M$14=AT12)*($CH$5:$CH$14))+'J08'!BH12 -> 0 | BI12: =SUMPRODUCT(($B$5:$F$14=AT12)*($CI$5:$CI$14))+SUMPRODUCT(($I$5:$M$14=AT12)*($CJ$5:$CJ$14))+'J08'!BI12 -> 4 | BJ12: -4 | BK12: =SUMPRODUCT(($B$5:$F$14=AT12)*($CK$5:$CK$14))+'J08'!BK12 -> 0 | BL12: =SUMPRODUCT(($B$5:$F$14=AT12)*($CL$5:$CL$14))+'J08'!BL12 -> 0 | BM12: =SUMPRODUCT(($B$5:$F$14=AT12)*($CM$5:$CM$14))+'J08'!BM12 -> 2 | BN12: =SUMPRODUCT(($I$5:$M$14=AT12)*($CN$5:$CN$14))+'J08'!BN12 -> 0 | BO12: =SUMPRODUCT(($I$5:$M$14=AT12)*($CO$5:$CO$14))+'J08'!BO12 -> 1 | BP12: =SUMPRODUCT(($I$5:$M$14=AT12)*($CP$5:$CP$14))+'J08'!BP12 -> 1 | BQ12: 999.96 | BR12: =BQ12+0.0000007 -> 999.9600007 | BS12: 0 | BT12: 0 | BU12: 0 | BV12: 0 | BW12: 0 | BX12: 0 | BY12: 0 | BZ12: 0 | CA12: FALSE | CB12: FALSE | CC12: FALSE | CD12: FALSE | CE12: FALSE | CF12: FALSE | CG12: 0 | CH12: 0 | CI12: 0 | CJ12: 0 | CK12: FALSE | CL12: FALSE | CM12: FALSE | CN12: FALSE | CO12: FALSE | CP12: FALSE | CQ12: AWSOM | CR12: 4999.993 | CS12: 8 | CT12: USB
V13: JSOA | AA13: 0 | AB13: u | AC13: 9 | AD13: 4 | AE13: 4 | AF13: 1 | AG13: 1 | AH13: 2 | AI13: 5 | AJ13: 4 | AK13: 1 | AL13: 0 | AM13: 0 | AN13: 2 | AO13: 1 | AP13: 1 | AQ13: 0 | AR13: 9 | AS13: 5 | AT13: ='J01'!AT13:AX13 -> ALC | AY13: 5 | AZ13: ='J08'!AY13-AY13 -> 0 | BA13: =IF(AY13>'J08'!AY13,'J08'!$BA$20,IF(AY13='J08'!AY13,'J08'!$AZ$20,IF(AY13<'J08'!AY13,'J08'!$AY$20))) -> u | BB13: 5 | BC13: =SUMPRODUCT(($B$5:$F$14=AT13)*($BW$5:$BW$14))+SUMPRODUCT(($I$5:$M$14=AT13)*($BX$5:$BX$14))+'J08'!BC13 -> 7 | BD13: =SUMPRODUCT(($B$5:$F$14=AT13)*($BY$5:$BY$14))+SUMPRODUCT(($I$5:$M$14=AT13)*($BZ$5:$BZ$14))+'J08'!BD13 -> 4 | BE13: =SUMPRODUCT(($B$5:$F$14=AT13)*($CA$5:$CA$14))+SUMPRODUCT(($I$5:$M$14=AT13)*($CB$5:$CB$14))+'J08'!BE13 -> 2 | BF13: =SUMPRODUCT(($B$5:$F$14=AT13)*($CC$5:$CC$14))+SUMPRODUCT(($I$5:$M$14=AT13)*($CD$5:$CD$14))+'J08'!BF13 -> 1 | BG13: =SUMPRODUCT(($B$5:$F$14=AT13)*($CE$5:$CE$14))+SUMPRODUCT(($I$5:$M$14=AT13)*($CF$5:$CF$14))+'J08'!BG13 -> 1 | BH13: =SUMPRODUCT(($B$5:$F$14=AT13)*($CG$5:$CG$14))+SUMPRODUCT(($I$5:$M$14=AT13)*($CH$5:$CH$14))+'J08'!BH13 -> 4 | BI13: =SUMPRODUCT(($B$5:$F$14=AT13)*($CI$5:$CI$14))+SUMPRODUCT(($I$5:$M$14=AT13)*($CJ$5:$CJ$14))+'J08'!BI13 -> 5 | BJ13: -1 | BK13: =SUMPRODUCT(($B$5:$F$14=AT13)*($CK$5:$CK$14))+'J08'!BK13 -> 1 | BL13: =SUMPRODUCT(($B$5:$F$14=AT13)*($CL$5:$CL$14))+'J08'!BL13 -> 0 | BM13: =SUMPRODUCT(($B$5:$F$14=AT13)*($CM$5:$CM$14))+'J08'!BM13 -> 1 | BN13: =SUMPRODUCT(($I$5:$M$14=AT13)*($CN$5:$CN$14))+'J08'!BN13 -> 1 | BO13: =SUMPRODUCT(($I$5:$M$14=AT13)*($CO$5:$CO$14))+'J08'!BO13 -> 1 | BP13: =SUMPRODUCT(($I$5:$M$14=AT13)*($CP$5:$CP$14))+'J08'!BP13 -> 0 | BQ13: 6999.994 | BR13: =BQ13+0.0000006 -> 6999.994001 | BS13: 0 | BT13: 0 | BU13: 0 | BV13: 0 | BW13: 0 | BX13: 0 | BY13: 0 | BZ13: 0 | CA13: FALSE | CB13: FALSE | CC13: FALSE | CD13: FALSE | CE13: FALSE | CF13: FALSE | CG13: 0 | CH13: 0 | CI13: 0 | CJ13: 0 | CK13: FALSE | CL13: FALSE | CM13: FALSE | CN13: FALSE | CO13: FALSE | CP13: FALSE | CQ13: JSOA | CR13: 4000.015 | CS13: 9 | CT13: ALC
V14: ESMB | AA14: 0 | AB14: u | AC14: 10 | AD14: 4 | AE14: 4 | AF14: 1 | AG14: 1 | AH14: 2 | AI14: 6 | AJ14: 8 | AK14: -2 | AL14: 0 | AM14: 1 | AN14: 1 | AO14: 1 | AP14: 0 | AQ14: 1 | AR14: 10 | AS14: 12 | AT14: ='J01'!AT14:AX14 -> AUSAF | AY14: 12 | AZ14: ='J08'!AY14-AY14 -> 0 | BA14: =IF(AY14>'J08'!AY14,'J08'!$BA$20,IF(AY14='J08'!AY14,'J08'!$AZ$20,IF(AY14<'J08'!AY14,'J08'!$AY$20))) -> u | BB14: 12 | BC14: =SUMPRODUCT(($B$5:$F$14=AT14)*($BW$5:$BW$14))+SUMPRODUCT(($I$5:$M$14=AT14)*($BX$5:$BX$14))+'J08'!BC14 -> 3 | BD14: =SUMPRODUCT(($B$5:$F$14=AT14)*($BY$5:$BY$14))+SUMPRODUCT(($I$5:$M$14=AT14)*($BZ$5:$BZ$14))+'J08'!BD14 -> 4 | BE14: =SUMPRODUCT(($B$5:$F$14=AT14)*($CA$5:$CA$14))+SUMPRODUCT(($I$5:$M$14=AT14)*($CB$5:$CB$14))+'J08'!BE14 -> 1 | BF14: =SUMPRODUCT(($B$5:$F$14=AT14)*($CC$5:$CC$14))+SUMPRODUCT(($I$5:$M$14=AT14)*($CD$5:$CD$14))+'J08'!BF14 -> 0 | BG14: =SUMPRODUCT(($B$5:$F$14=AT14)*($CE$5:$CE$14))+SUMPRODUCT(($I$5:$M$14=AT14)*($CF$5:$CF$14))+'J08'!BG14 -> 3 | BH14: =SUMPRODUCT(($B$5:$F$14=AT14)*($CG$5:$CG$14))+SUMPRODUCT(($I$5:$M$14=AT14)*($CH$5:$CH$14))+'J08'!BH14 -> 2 | BI14: =SUMPRODUCT(($B$5:$F$14=AT14)*($CI$5:$CI$14))+SUMPRODUCT(($I$5:$M$14=AT14)*($CJ$5:$CJ$14))+'J08'!BI14 -> 3 | BJ14: -1 | BK14: =SUMPRODUCT(($B$5:$F$14=AT14)*($CK$5:$CK$14))+'J08'!BK14 -> 0 | BL14: =SUMPRODUCT(($B$5:$F$14=AT14)*($CL$5:$CL$14))+'J08'!BL14 -> 0 | BM14: =SUMPRODUCT(($B$5:$F$14=AT14)*($CM$5:$CM$14))+'J08'!BM14 -> 2 | BN14: =SUMPRODUCT(($I$5:$M$14=AT14)*($CN$5:$CN$14))+'J08'!BN14 -> 1 | BO14: =SUMPRODUCT(($I$5:$M$14=AT14)*($CO$5:$CO$14))+'J08'!BO14 -> 0 | BP14: =SUMPRODUCT(($I$5:$M$14=AT14)*($CP$5:$CP$14))+'J08'!BP14 -> 1 | BQ14: 2999.992 | BR14: =BQ14+0.0000005 -> 2999.992 | BS14: 0 | BT14: 0 | BU14: 0 | BV14: 0 | BW14: 0 | BX14: 0 | BY14: 0 | BZ14: 0 | CA14: FALSE | CB14: FALSE | CC14: FALSE | CD14: FALSE | CE14: FALSE | CF14: FALSE | CG14: 0 | CH14: 0 | CI14: 0 | CJ14: 0 | CK14: FALSE | CL14: FALSE | CM14: FALSE | CN14: FALSE | CO14: FALSE | CP14: FALSE | CQ14: ESMB | CR14: 3999.986 | CS14: 10 | CT14: AUSAF
V15: AJAK | AA15: 0 | AB15: u | AC15: 11 | AD15: 4 | AE15: 4 | AF15: 1 | AG15: 1 | AH15: 2 | AI15: 2 | AJ15: 7 | AK15: -5 | AL15: 0 | AM15: 0 | AN15: 2 | AO15: 1 | AP15: 1 | AQ15: 0 | AR15: 11 | AS15: 9 | AT15: ='J01'!AT15:AX15 -> JSOA | AY15: 9 | AZ15: ='J08'!AY15-AY15 -> 0 | BA15: =IF(AY15>'J08'!AY15,'J08'!$BA$20,IF(AY15='J08'!AY15,'J08'!$AZ$20,IF(AY15<'J08'!AY15,'J08'!$AY$20))) -> u | BB15: 9 | BC15: =SUMPRODUCT(($B$5:$F$14=AT15)*($BW$5:$BW$14))+SUMPRODUCT(($I$5:$M$14=AT15)*($BX$5:$BX$14))+'J08'!BC15 -> 4 | BD15: =SUMPRODUCT(($B$5:$F$14=AT15)*($BY$5:$BY$14))+SUMPRODUCT(($I$5:$M$14=AT15)*($BZ$5:$BZ$14))+'J08'!BD15 -> 4 | BE15: =SUMPRODUCT(($B$5:$F$14=AT15)*($CA$5:$CA$14))+SUMPRODUCT(($I$5:$M$14=AT15)*($CB$5:$CB$14))+'J08'!BE15 -> 1 | BF15: =SUMPRODUCT(($B$5:$F$14=AT15)*($CC$5:$CC$14))+SUMPRODUCT(($I$5:$M$14=AT15)*($CD$5:$CD$14))+'J08'!BF15 -> 1 | BG15: =SUMPRODUCT(($B$5:$F$14=AT15)*($CE$5:$CE$14))+SUMPRODUCT(($I$5:$M$14=AT15)*($CF$5:$CF$14))+'J08'!BG15 -> 2 | BH15: =SUMPRODUCT(($B$5:$F$14=AT15)*($CG$5:$CG$14))+SUMPRODUCT(($I$5:$M$14=AT15)*($CH$5:$CH$14))+'J08'!BH15 -> 5 | BI15: =SUMPRODUCT(($B$5:$F$14=AT15)*($CI$5:$CI$14))+SUMPRODUCT(($I$5:$M$14=AT15)*($CJ$5:$CJ$14))+'J08'!BI15 -> 4 | BJ15: 1 | BK15: =SUMPRODUCT(($B$5:$F$14=AT15)*($CK$5:$CK$14))+'J08'!BK15 -> 0 | BL15: =SUMPRODUCT(($B$5:$F$14=AT15)*($CL$5:$CL$14))+'J08'!BL15 -> 0 | BM15: =SUMPRODUCT(($B$5:$F$14=AT15)*($CM$5:$CM$14))+'J08'!BM15 -> 2 | BN15: =SUMPRODUCT(($I$5:$M$14=AT15)*($CN$5:$CN$14))+'J08'!BN15 -> 1 | BO15: =SUMPRODUCT(($I$5:$M$14=AT15)*($CO$5:$CO$14))+'J08'!BO15 -> 1 | BP15: =SUMPRODUCT(($I$5:$M$14=AT15)*($CP$5:$CP$14))+'J08'!BP15 -> 0 | BQ15: 4000.015 | BR15: =BQ15+0.0000004 -> 4000.015 | CQ15: AJAK | CR15: 3999.952 | CS15: 11 | CT15: JSOA
V16: AUSAF | AA16: 0 | AB16: u | AC16: 12 | AD16: 3 | AE16: 4 | AF16: 1 | AG16: 0 | AH16: 3 | AI16: 2 | AJ16: 3 | AK16: -1 | AL16: 0 | AM16: 0 | AN16: 2 | AO16: 1 | AP16: 0 | AQ16: 1 | AR16: 12 | AS16: 8 | AT16: ='J01'!AT16:AX16 -> AWSOM | AY16: 8 | AZ16: ='J08'!AY16-AY16 -> 0 | BA16: =IF(AY16>'J08'!AY16,'J08'!$BA$20,IF(AY16='J08'!AY16,'J08'!$AZ$20,IF(AY16<'J08'!AY16,'J08'!$AY$20))) -> u | BB16: 8 | BC16: =SUMPRODUCT(($B$5:$F$14=AT16)*($BW$5:$BW$14))+SUMPRODUCT(($I$5:$M$14=AT16)*($BX$5:$BX$14))+'J08'!BC16 -> 5 | BD16: =SUMPRODUCT(($B$5:$F$14=AT16)*($BY$5:$BY$14))+SUMPRODUCT(($I$5:$M$14=AT16)*($BZ$5:$BZ$14))+'J08'!BD16 -> 4 | BE16: =SUMPRODUCT(($B$5:$F$14=AT16)*($CA$5:$CA$14))+SUMPRODUCT(($I$5:$M$14=AT16)*($CB$5:$CB$14))+'J08'!BE16 -> 1 | BF16: =SUMPRODUCT(($B$5:$F$14=AT16)*($CC$5:$CC$14))+SUMPRODUCT(($I$5:$M$14=AT16)*($CD$5:$CD$14))+'J08'!BF16 -> 2 | BG16: =SUMPRODUCT(($B$5:$F$14=AT16)*($CE$5:$CE$14))+SUMPRODUCT(($I$5:$M$14=AT16)*($CF$5:$CF$14))+'J08'!BG16 -> 1 | BH16: =SUMPRODUCT(($B$5:$F$14=AT16)*($CG$5:$CG$14))+SUMPRODUCT(($I$5:$M$14=AT16)*($CH$5:$CH$14))+'J08'!BH16 -> 3 | BI16: =SUMPRODUCT(($B$5:$F$14=AT16)*($CI$5:$CI$14))+SUMPRODUCT(($I$5:$M$14=AT16)*($CJ$5:$CJ$14))+'J08'!BI16 -> 4 | BJ16: -1 | BK16: =SUMPRODUCT(($B$5:$F$14=AT16)*($CK$5:$CK$14))+'J08'!BK16 -> 0 | BL16: =SUMPRODUCT(($B$5:$F$14=AT16)*($CL$5:$CL$14))+'J08'!BL16 -> 2 | BM16: =SUMPRODUCT(($B$5:$F$14=AT16)*($CM$5:$CM$14))+'J08'!BM16 -> 0 | BN16: =SUMPRODUCT(($I$5:$M$14=AT16)*($CN$5:$CN$14))+'J08'!BN16 -> 1 | BO16: =SUMPRODUCT(($I$5:$M$14=AT16)*($CO$5:$CO$14))+'J08'!BO16 -> 0 | BP16: =SUMPRODUCT(($I$5:$M$14=AT16)*($CP$5:$CP$14))+'J08'!BP16 -> 1 | BQ16: 4999.993 | BR16: =BQ16+0.0000003 -> 4999.993 | CQ16: AUSAF | CR16: 2999.992 | CS16: 12 | CT16: AWSOM
V17: CUSL | AA17: 0 | AB17: u | AC17: 13 | AD17: 2 | AE17: 4 | AF17: 0 | AG17: 2 | AH17: 2 | AI17: 5 | AJ17: 11 | AK17: -6 | AL17: 0 | AM17: 1 | AN17: 1 | AO17: 0 | AP17: 1 | AQ17: 1 | AR17: 13 | AS17: 7 | AT17: ='J01'!AT17:AX17 -> HSMK | AY17: 7 | AZ17: ='J08'!AY17-AY17 -> 0 | BA17: =IF(AY17>'J08'!AY17,'J08'!$BA$20,IF(AY17='J08'!AY17,'J08'!$AZ$20,IF(AY17<'J08'!AY17,'J08'!$AY$20))) -> u | BB17: 7 | BC17: =SUMPRODUCT(($B$5:$F$14=AT17)*($BW$5:$BW$14))+SUMPRODUCT(($I$5:$M$14=AT17)*($BX$5:$BX$14))+'J08'!BC17 -> 5 | BD17: =SUMPRODUCT(($B$5:$F$14=AT17)*($BY$5:$BY$14))+SUMPRODUCT(($I$5:$M$14=AT17)*($BZ$5:$BZ$14))+'J08'!BD17 -> 4 | BE17: =SUMPRODUCT(($B$5:$F$14=AT17)*($CA$5:$CA$14))+SUMPRODUCT(($I$5:$M$14=AT17)*($CB$5:$CB$14))+'J08'!BE17 -> 1 | BF17: =SUMPRODUCT(($B$5:$F$14=AT17)*($CC$5:$CC$14))+SUMPRODUCT(($I$5:$M$14=AT17)*($CD$5:$CD$14))+'J08'!BF17 -> 2 | BG17: =SUMPRODUCT(($B$5:$F$14=AT17)*($CE$5:$CE$14))+SUMPRODUCT(($I$5:$M$14=AT17)*($CF$5:$CF$14))+'J08'!BG17 -> 1 | BH17: =SUMPRODUCT(($B$5:$F$14=AT17)*($CG$5:$CG$14))+SUMPRODUCT(($I$5:$M$14=AT17)*($CH$5:$CH$14))+'J08'!BH17 -> 5 | BI17: =SUMPRODUCT(($B$5:$F$14=AT17)*($CI$5:$CI$14))+SUMPRODUCT(($I$5:$M$14=AT17)*($CJ$5:$CJ$14))+'J08'!BI17 -> 5 | BJ17: 0 | BK17: =SUMPRODUCT(($B$5:$F$14=AT17)*($CK$5:$CK$14))+'J08'!BK17 -> 1 | BL17: =SUMPRODUCT(($B$5:$F$14=AT17)*($CL$5:$CL$14))+'J08'!BL17 -> 0 | BM17: =SUMPRODUCT(($B$5:$F$14=AT17)*($CM$5:$CM$14))+'J08'!BM17 -> 1 | BN17: =SUMPRODUCT(($I$5:$M$14=AT17)*($CN$5:$CN$14))+'J08'!BN17 -> 0 | BO17: =SUMPRODUCT(($I$5:$M$14=AT17)*($CO$5:$CO$14))+'J08'!BO17 -> 2 | BP17: =SUMPRODUCT(($I$5:$M$14=AT17)*($CP$5:$CP$14))+'J08'!BP17 -> 0 | BQ17: 5000.005 | BR17: =BQ17+0.0000002 -> 5000.005 | CQ17: CUSL | CR17: 1999.945 | CS17: 13 | CT17: HSMK
V18: USB | AA18: 0 | AB18: u | AC18: 14 | AD18: 1 | AE18: 4 | AF18: 0 | AG18: 1 | AH18: 3 | AI18: 0 | AJ18: 4 | AK18: -4 | AL18: 0 | AM18: 0 | AN18: 2 | AO18: 0 | AP18: 1 | AQ18: 1 | AR18: 14 | AS18: 10 | AT18: ='J01'!AT18:AX18 -> ESMB | AY18: 10 | AZ18: ='J08'!AY18-AY18 -> 0 | BA18: =IF(AY18>'J08'!AY18,'J08'!$BA$20,IF(AY18='J08'!AY18,'J08'!$AZ$20,IF(AY18<'J08'!AY18,'J08'!$AY$20))) -> u | BB18: 10 | BC18: =SUMPRODUCT(($B$5:$F$14=AT18)*($BW$5:$BW$14))+SUMPRODUCT(($I$5:$M$14=AT18)*($BX$5:$BX$14))+'J08'!BC18 -> 4 | BD18: =SUMPRODUCT(($B$5:$F$14=AT18)*($BY$5:$BY$14))+SUMPRODUCT(($I$5:$M$14=AT18)*($BZ$5:$BZ$14))+'J08'!BD18 -> 4 | BE18: =SUMPRODUCT(($B$5:$F$14=AT18)*($CA$5:$CA$14))+SUMPRODUCT(($I$5:$M$14=AT18)*($CB$5:$CB$14))+'J08'!BE18 -> 1 | BF18: =SUMPRODUCT(($B$5:$F$14=AT18)*($CC$5:$CC$14))+SUMPRODUCT(($I$5:$M$14=AT18)*($CD$5:$CD$14))+'J08'!BF18 -> 1 | BG18: =SUMPRODUCT(($B$5:$F$14=AT18)*($CE$5:$CE$14))+SUMPRODUCT(($I$5:$M$14=AT18)*($CF$5:$CF$14))+'J08'!BG18 -> 2 | BH18: =SUMPRODUCT(($B$5:$F$14=AT18)*($CG$5:$CG$14))+SUMPRODUCT(($I$5:$M$14=AT18)*($CH$5:$CH$14))+'J08'!BH18 -> 6 | BI18: =SUMPRODUCT(($B$5:$F$14=AT18)*($CI$5:$CI$14))+SUMPRODUCT(($I$5:$M$14=AT18)*($CJ$5:$CJ$14))+'J08'!BI18 -> 8 | BJ18: -2 | BK18: =SUMPRODUCT(($B$5:$F$14=AT18)*($CK$5:$CK$14))+'J08'!BK18 -> 0 | BL18: =SUMPRODUCT(($B$5:$F$14=AT18)*($CL$5:$CL$14))+'J08'!BL18 -> 1 | BM18: =SUMPRODUCT(($B$5:$F$14=AT18)*($CM$5:$CM$14))+'J08'!BM18 -> 1 | BN18: =SUMPRODUCT(($I$5:$M$14=AT18)*($CN$5:$CN$14))+'J08'!BN18 -> 1 | BO18: =SUMPRODUCT(($I$5:$M$14=AT18)*($CO$5:$CO$14))+'J08'!BO18 -> 0 | BP18: =SUMPRODUCT(($I$5:$M$14=AT18)*($CP$5:$CP$14))+'J08'!BP18 -> 1 | BQ18: 3999.986 | BR18: =BQ18+0.0000001 -> 3999.986 | CQ18: USB | CR18: 999.96 | CS18: 14 | CT18: ESMB
AO19: Buts/Journée | AY19: p | AZ19: u | BA19: q
AO20: =SUM(G5:H14) -> 0 | AY20: p | AZ20: u | BA20: q
AO22: Total Buts du Championnat
AO24: =AO20+'J08'!AO24:AP25 -> 68
AO26: Moyenne générale
AO28: =IF(AE5=0,"",SUM(AI5:AI24)/SUM(AE5:AE24)*2) -> 2.428571429

Sheet J10
A1: ='J01'!A1:C2 -> Nom du Championnat | I1: ='J01'!H1:K2 -> 2017-2018 | O1: JOURNEE 10 | V1: CLASSEMENT | AT1: CLASSEMENT | BS1: Domicile | BT1: Extérieur | BU1: Domicile | BV1: Extérieur | BW1: Domicile | BX1: Extérieur | BY1: Domicile | BZ1: Extérieur | CA1: Domicile | CB1: Extérieur | CC1: Domicile | CD1: Extérieur | CE1: Domicile | CF1: Extérieur | CG1: Domicile | CH1: Extérieur | CI1: Domicile | CJ1: Extérieur
A3: P | B3: Equipes | G3: Buts | H3: Buts | I3: Equipes | N3: P | O3: Dates | S3: Heure | V3: Equipes | AA3: Evolution | AC3: Place | AD3: Pts | AE3: J | AF3: G | AG3: N | AH3: P | AI3: B + | AJ3: B - | AK3: Diff. | AL3: Domicile | AO3: Extérieur | AT3: Equipes | AY3: R | AZ3: Evolution | BB3: R | BC3: Pts | BD3: J | BE3: G | BF3: N | BG3: P | BH3: B + | BI3: B - | BJ3: Diff. | BK3: Domicile | BN3: Extérieur | CK3: Domicile | CN3: Extérieur
AL4: G | AM4: N | AN4: P | AO4: G | AP4: N | AQ4: P | AS4: R | BK4: G | BL4: N | BM4: P | BN4: G | BO4: N | BP4: P | BQ4: % | BR4: % | BS4: P | BT4: P | BU4: Pts | BV4: Pts | BW4: T Pt | BX4: T Pt | BY4: J | BZ4: J | CA4: G | CB4: G | CC4: N | CD4: N | CE4: P | CF4: P | CG4: B + | CH4: B + | CI4: B - | CJ4: B - | CK4: G | CL4: N | CM4: P | CN4: G | CO4: N | CP4: P | CQ4: Equipes | CR4: % | CS4: R | CT4: Equipes
V5: =VLOOKUP(AR5,$AS$5:$AX$18,2,0) -> ASUD | AA5: =VLOOKUP(V5,$AT$5:$BP$18,7,0) -> 0 | AB5: =VLOOKUP(V5,$AT$5:$BP$18,8,0) -> u | AC5: 1 | AD5: =VLOOKUP(V5,$AT$5:$BP$18,10,0) -> 10 | AE5: =VLOOKUP(V5,$AT$5:$BP$18,11,0) -> 4 | AF5: =VLOOKUP(V5,$AT$5:$BP$18,12,0) -> 3 | AG5: =VLOOKUP(V5,$AT$5:$BP$18,13,0) -> 1 | AH5: =VLOOKUP(V5,$AT$5:$BP$18,14,0) -> 0 | AI5: =VLOOKUP(V5,$AT$5:$BP$18,15,0) -> 16 | AJ5: =VLOOKUP(V5,$AT$5:$BP$18,16,0) -> 5 | AK5: =VLOOKUP(V5,$AT$5:$BP$18,17,0) -> 11 | AL5: =VLOOKUP(V5,$AT$5:$BP$18,18,0) -> 2 | AM5: =VLOOKUP(V5,$AT$5:$BP$18,19,0) -> 0 | AN5: =VLOOKUP(V5,$AT$5:$BP$18,20,0) -> 0 | AO5: =VLOOKUP(V5,$AT$5:$BP$18,21,0) -> 1 | AP5: =VLOOKUP(V5,$AT$5:$BP$18,22,0) -> 1 | AQ5: =VLOOKUP(V5,$AT$5:$BP$18,23,0) -> 0 | AR5: 1 | AS5: =BB5 -> 6 | AT5: ='J01'!AT5:AX5 -> AUSBK | AY5: =RANK(BQ5,$BQ$5:$BQ$18) -> 6 | AZ5: ='J09'!AY5-AY5 -> 0 | BA5: =IF(AY5>'J09'!AY5,'J09'!$BA$20,IF(AY5='J09'!AY5,'J09'!$AZ$20,IF(AY5<'J09'!AY5,'J09'!$AY$20))) -> u | BB5: =RANK(BR5,$BR$5:$BR$18) -> 6 | BC5: =SUMPRODUCT(($B$5:$F$14=AT5)*($BW$5:$BW$14))+SUMPRODUCT(($I$5:$M$14=AT5)*($BX$5:$BX$14))+'J09'!BC5 -> 5 | BD5: =SUMPRODUCT(($B$5:$F$14=AT5)*($BY$5:$BY$14))+SUMPRODUCT(($I$5:$M$14=AT5)*($BZ$5:$BZ$14))+'J09'!BD5 -> 4 | BE5: =SUMPRODUCT(($B$5:$F$14=AT5)*($CA$5:$CA$14))+SUMPRODUCT(($I$5:$M$14=AT5)*($CB$5:$CB$14))+'J09'!BE5 -> 1 | BF5: =SUMPRODUCT(($B$5:$F$14=AT5)*($CC$5:$CC$14))+SUMPRODUCT(($I$5:$M$14=AT5)*($CD$5:$CD$14))+'J09'!BF5 -> 2 | BG5: =SUMPRODUCT(($B$5:$F$14=AT5)*($CE$5:$CE$14))+SUMPRODUCT(($I$5:$M$14=AT5)*($CF$5:$CF$14))+'J09'!BG5 -> 1 | BH5: =SUMPRODUCT(($B$5:$F$14=AT5)*($CG$5:$CG$14))+SUMPRODUCT(($I$5:$M$14=AT5)*($CH$5:$CH$14))+'J09'!BH5 -> 7 | BI5: =SUMPRODUCT(($B$5:$F$14=AT5)*($CI$5:$CI$14))+SUMPRODUCT(($I$5:$M$14=AT5)*($CJ$5:$CJ$14))+'J09'!BI5 -> 7 | BJ5: =BH5-BI5 -> 0 | BK5: =SUMPRODUCT(($B$5:$F$14=AT5)*($CK$5:$CK$14))+'J09'!BK5 -> 0 | BL5: =SUMPRODUCT(($B$5:$F$14=AT5)*($CL$5:$CL$14))+'J09'!BL5 -> 2 | BM5: =SUMPRODUCT(($B$5:$F$14=AT5)*($CM$5:$CM$14))+'J09'!BM5 -> 0 | BN5: =SUMPRODUCT(($I$5:$M$14=AT5)*($CN$5:$CN$14))+'J09'!BN5 -> 1 | BO5: =SUMPRODUCT(($I$5:$M$14=AT5)*($CO$5:$CO$14))+'J09'!BO5 -> 0 | BP5: =SUMPRODUCT(($I$5:$M$14=AT5)*($CP$5:$CP$14))+'J09'!BP5 -> 1 | BQ5: =SUM(BC5*1000+(BJ5)/100+(BH5)/1000) -> 5000.007 | BR5: =BQ5+0.0000014 -> 5000.007001 | BS5: =A5 -> 0 | BT5: =N5 -> 0 | BU5: =IF(G5="",0,IF(G5>H5,3,IF(G5=H5,1,IF(G5<H5,0)))) -> 0 | BV5: =IF(H5="",0,IF(H5>G5,3,IF(H5=G5,1,IF(H5<G5,0)))) -> 0 | BW5: =BU5-BS5 -> 0 | BX5: =BV5-BT5 -> 0 | BY5: =IF(G5="",0,1) -> 0 | BZ5: =IF(H5="",0,1) -> 0 | CA5: =IF(G5<>"",IF(G5>H5,1)) -> FALSE | CB5: =IF(H5<>"",IF(H5>G5,1)) -> FALSE | CC5: =IF(G5<>"",IF(G5=H5,1)) -> FALSE | CD5: =IF(H5<>"",IF(H5=G5,1)) -> FALSE | CE5: =IF(G5<>"",IF(G5<H5,1)) -> FALSE | CF5: =IF(H5<>"",IF(H5<G5,1)) -> FALSE | CG5: =G5 -> 0 | CH5: =H5 -> 0 | CI5: =H5 -> 0 | CJ5: =G5 -> 0 | CK5: =IF(G5<>"",IF(G5>H5,1)) -> FALSE | CL5: =IF(G5<>"",IF(G5=H5,1)) -> FALSE | CM5: =IF(G5<>"",IF(G5<H5,1)) -> FALSE | CN5: =IF(H5<>"",IF(H5>G5,1)) -> FALSE | CO5: =IF(H5<>"",IF(H5=G5,1)) -> FALSE | CP5: =IF(H5<>"",IF(H5<G5,1)) -> FALSE | CQ5: =VLOOKUP(AR5,$AS$5:$AX$18,2,0) -> ASUD | CR5: =VLOOKUP(CQ5,$AT$5:$BQ$18,24,0) -> 10000.126 | CS5: =RANK(CR5,$CR$5:$CR$18) -> 1 | CT5: =AT5 -> AUSBK
V6: AHDOZ | AA6: 0 | AB6: u | AC6: =IF(CR6=CR5,CS5,CS6) -> 2 | AD6: 10 | AE6: 4 | AF6: 3 | AG6: 1 | AH6: 0 | AI6: 5 | AJ6: 0 | AK6: 5 | AL6: 1 | AM6: 1 | AN6: =VLOOKUP(V6,$AT$5:$BP$18,20,0) -> 0 | AO6: 2 | AP6: =VLOOKUP(V6,$AT$5:$BP$18,22,0) -> 0 | AQ6: 0 | AR6: 2 | AS6: =BB6 -> 13 | AT6: ='J01'!AT6:AX6 -> CUSL | AY6: 13 | AZ6: ='J09'!AY6-AY6 -> 0 | BA6: =IF(AY6>'J09'!AY6,'J09'!$BA$20,IF(AY6='J09'!AY6,'J09'!$AZ$20,IF(AY6<'J09'!AY6,'J09'!$AY$20))) -> u | BB6: =RANK(BR6,$BR$5:$BR$18) -> 13 | BC6: =SUMPRODUCT(($B$5:$F$14=AT6)*($BW$5:$BW$14))+SUMPRODUCT(($I$5:$M$14=AT6)*($BX$5:$BX$14))+'J09'!BC6 -> 2 | BD6: =SUMPRODUCT(($B$5:$F$14=AT6)*($BY$5:$BY$14))+SUMPRODUCT(($I$5:$M$14=AT6)*($BZ$5:$BZ$14))+'J09'!BD6 -> 4 | BE6: =SUMPRODUCT(($B$5:$F$14=AT6)*($CA$5:$CA$14))+SUMPRODUCT(($I$5:$M$14=AT6)*($CB$5:$CB$14))+'J09'!BE6 -> 0 | BF6: =SUMPRODUCT(($B$5:$F$14=AT6)*($CC$5:$CC$14))+SUMPRODUCT(($I$5:$M$14=AT6)*($CD$5:$CD$14))+'J09'!BF6 -> 2 | BG6: =SUMPRODUCT(($B$5:$F$14=AT6)*($CE$5:$CE$14))+SUMPRODUCT(($I$5:$M$14=AT6)*($CF$5:$CF$14))+'J09'!BG6 -> 2 | BH6: =SUMPRODUCT(($B$5:$F$14=AT6)*($CG$5:$CG$14))+SUMPRODUCT(($I$5:$M$14=AT6)*($CH$5:$CH$14))+'J09'!BH6 -> 5 | BI6: =SUMPRODUCT(($B$5:$F$14=AT6)*($CI$5:$CI$14))+SUMPRODUCT(($I$5:$M$14=AT6)*($CJ$5:$CJ$14))+'J09'!BI6 -> 11 | BJ6: =BH6-BI6 -> -6 | BK6: =SUMPRODUCT(($B$5:$F$14=AT6)*($CK$5:$CK$14))+'J09'!BK6 -> 0 | BL6: =SUMPRODUCT(($B$5:$F$14=AT6)*($CL$5:$CL$14))+'J09'!BL6 -> 1 | BM6: =SUMPRODUCT(($B$5:$F$14=AT6)*($CM$5:$CM$14))+'J09'!BM6 -> 1 | BN6: =SUMPRODUCT(($I$5:$M$14=AT6)*($CN$5:$CN$14))+'J09'!BN6 -> 0 | BO6: =SUMPRODUCT(($I$5:$M$14=AT6)*($CO$5:$CO$14))+'J09'!BO6 -> 1 | BP6: =SUMPRODUCT(($I$5:$M$14=AT6)*($CP$5:$CP$14))+'J09'!BP6 -> 1 | BQ6: =SUM(BC6*1000+(BJ6)/100+(BH6)/1000) -> 1999.945 | BR6: =BQ6+0.0000013 -> 1999.945001 | BS6: =A6 -> 0 | BT6: =N6 -> 0 | BU6: =IF(G6="",0,IF(G6>H6,3,IF(G6=H6,1,IF(G6<H6,0)))) -> 0 | BV6: =IF(H6="",0,IF(H6>G6,3,IF(H6=G6,1,IF(H6<G6,0)))) -> 0 | BW6: =BU6-BS6 -> 0 | BX6: =BV6-BT6 -> 0 | BY6: =IF(G6="",0,1) -> 0 | BZ6: =IF(H6="",0,1) -> 0 | CA6: =IF(G6<>"",IF(G6>H6,1)) -> FALSE | CB6: =IF(H6<>"",IF(H6>G6,1)) -> FALSE | CC6: =IF(G6<>"",IF(G6=H6,1)) -> FALSE | CD6: =IF(H6<>"",IF(H6=G6,1)) -> FALSE | CE6: =IF(G6<>"",IF(G6<H6,1)) -> FALSE | CF6: =IF(H6<>"",IF(H6<G6,1)) -> FALSE | CG6: =G6 -> 0 | CH6: =H6 -> 0 | CI6: =H6 -> 0 | CJ6: =G6 -> 0 | CK6: =IF(G6<>"",IF(G6>H6,1)) -> FALSE | CL6: =IF(G6<>"",IF(G6=H6,1)) -> FALSE | CM6: =IF(G6<>"",IF(G6<H6,1)) -> FALSE | CN6: =IF(H6<>"",IF(H6>G6,1)) -> FALSE | CO6: =IF(H6<>"",IF(H6=G6,1)) -> FALSE | CP6: =IF(H6<>"",IF(H6<G6,1)) -> FALSE | CQ6: AHDOZ | CR6: 10000.055 | CS6: 2 | CT6: =AT6 -> CUSL
V7: CJBF | AA7: 0 | AB7: u | AC7: =IF(CR7=CR6,CS6,CS7) -> 3 | AD7: 8 | AE7: 4 | AF7: 2 | AG7: 2 | AH7: 0 | AI7: 5 | AJ7: 2 | AK7: 3 | AL7: 1 | AM7: 1 | AN7: 0 | AO7: 1 | AP7: 1 | AQ7: 0 | AR7: 3 | AS7: 4 | AT7: ='J01'!AT7:AX7 -> AUSA | AY7: 4 | AZ7: ='J09'!AY7-AY7 -> 0 | BA7: =IF(AY7>'J09'!AY7,'J09'!$BA$20,IF(AY7='J09'!AY7,'J09'!$AZ$20,IF(AY7<'J09'!AY7,'J09'!$AY$20))) -> u | BB7: 4 | BC7: =SUMPRODUCT(($B$5:$F$14=AT7)*($BW$5:$BW$14))+SUMPRODUCT(($I$5:$M$14=AT7)*($BX$5:$BX$14))+'J09'!BC7 -> 7 | BD7: =SUMPRODUCT(($B$5:$F$14=AT7)*($BY$5:$BY$14))+SUMPRODUCT(($I$5:$M$14=AT7)*($BZ$5:$BZ$14))+'J09'!BD7 -> 4 | BE7: =SUMPRODUCT(($B$5:$F$14=AT7)*($CA$5:$CA$14))+SUMPRODUCT(($I$5:$M$14=AT7)*($CB$5:$CB$14))+'J09'!BE7 -> 2 | BF7: =SUMPRODUCT(($B$5:$F$14=AT7)*($CC$5:$CC$14))+SUMPRODUCT(($I$5:$M$14=AT7)*($CD$5:$CD$14))+'J09'!BF7 -> 1 | BG7: =SUMPRODUCT(($B$5:$F$14=AT7)*($CE$5:$CE$14))+SUMPRODUCT(($I$5:$M$14=AT7)*($CF$5:$CF$14))+'J09'!BG7 -> 1 | BH7: =SUMPRODUCT(($B$5:$F$14=AT7)*($CG$5:$CG$14))+SUMPRODUCT(($I$5:$M$14=AT7)*($CH$5:$CH$14))+'J09'!BH7 -> 3 | BI7: =SUMPRODUCT(($B$5:$F$14=AT7)*($CI$5:$CI$14))+SUMPRODUCT(($I$5:$M$14=AT7)*($CJ$5:$CJ$14))+'J09'!BI7 -> 3 | BJ7: 0 | BK7: =SUMPRODUCT(($B$5:$F$14=AT7)*($CK$5:$CK$14))+'J09'!BK7 -> 1 | BL7: =SUMPRODUCT(($B$5:$F$14=AT7)*($CL$5:$CL$14))+'J09'!BL7 -> 1 | BM7: =SUMPRODUCT(($B$5:$F$14=AT7)*($CM$5:$CM$14))+'J09'!BM7 -> 0 | BN7: =SUMPRODUCT(($I$5:$M$14=AT7)*($CN$5:$CN$14))+'J09'!BN7 -> 1 | BO7: =SUMPRODUCT(($I$5:$M$14=AT7)*($CO$5:$CO$14))+'J09'!BO7 -> 0 | BP7: =SUMPRODUCT(($I$5:$M$14=AT7)*($CP$5:$CP$14))+'J09'!BP7 -> 1 | BQ7: 7000.003 | BR7: =BQ7+0.0000012 -> 7000.003001 | BS7: 0 | BT7: 0 | BU7: 0 | BV7: 0 | BW7: 0 | BX7: 0 | BY7: 0 | BZ7: 0 | CA7: FALSE | CB7: FALSE | CC7: FALSE | CD7: FALSE | CE7: FALSE | CF7: FALSE | CG7: 0 | CH7: 0 | CI7: 0 | CJ7: 0 | CK7: FALSE | CL7: FALSE | CM7: FALSE | CN7: FALSE | CO7: FALSE | CP7: FALSE | CQ7: CJBF | CR7: 8000.035 | CS7: 3 | CT7: AUSA
V8: AUSA | AA8: 0 | AB8: u | AC8: 4 | AD8: 7 | AE8: 4 | AF8: 2 | AG8: 1 | AH8: 1 | AI8: 3 | AJ8: 3 | AK8: 0 | AL8: 1 | AM8: 1 | AN8: 0 | AO8: 1 | AP8: 0 | AQ8: 1 | AR8: 4 | AS8: 3 | AT8: ='J01'!AT8:AX8 -> CJBF | AY8: 3 | AZ8: ='J09'!AY8-AY8 -> 0 | BA8: =IF(AY8>'J09'!AY8,'J09'!$BA$20,IF(AY8='J09'!AY8,'J09'!$AZ$20,IF(AY8<'J09'!AY8,'J09'!$AY$20))) -> u | BB8: 3 | BC8: =SUMPRODUCT(($B$5:$F$14=AT8)*($BW$5:$BW$14))+SUMPRODUCT(($I$5:$M$14=AT8)*($BX$5:$BX$14))+'J09'!BC8 -> 8 | BD8: =SUMPRODUCT(($B$5:$F$14=AT8)*($BY$5:$BY$14))+SUMPRODUCT(($I$5:$M$14=AT8)*($BZ$5:$BZ$14))+'J09'!BD8 -> 4 | BE8: =SUMPRODUCT(($B$5:$F$14=AT8)*($CA$5:$CA$14))+SUMPRODUCT(($I$5:$M$14=AT8)*($CB$5:$CB$14))+'J09'!BE8 -> 2 | BF8: =SUMPRODUCT(($B$5:$F$14=AT8)*($CC$5:$CC$14))+SUMPRODUCT(($I$5:$M$14=AT8)*($CD$5:$CD$14))+'J09'!BF8 -> 2 | BG8: =SUMPRODUCT(($B$5:$F$14=AT8)*($CE$5:$CE$14))+SUMPRODUCT(($I$5:$M$14=AT8)*($CF$5:$CF$14))+'J09'!BG8 -> 0 | BH8: =SUMPRODUCT(($B$5:$F$14=AT8)*($CG$5:$CG$14))+SUMPRODUCT(($I$5:$M$14=AT8)*($CH$5:$CH$14))+'J09'!BH8 -> 5 | BI8: =SUMPRODUCT(($B$5:$F$14=AT8)*($CI$5:$CI$14))+SUMPRODUCT(($I$5:$M$14=AT8)*($CJ$5:$CJ$14))+'J09'!BI8 -> 2 | BJ8: 3 | BK8: =SUMPRODUCT(($B$5:$F$14=AT8)*($CK$5:$CK$14))+'J09'!BK8 -> 1 | BL8: =SUMPRODUCT(($B$5:$F$14=AT8)*($CL$5:$CL$14))+'J09'!BL8 -> 1 | BM8: =SUMPRODUCT(($B$5:$F$14=AT8)*($CM$5:$CM$14))+'J09'!BM8 -> 0 | BN8: =SUMPRODUCT(($I$5:$M$14=AT8)*($CN$5:$CN$14))+'J09'!BN8 -> 1 | BO8: =SUMPRODUCT(($I$5:$M$14=AT8)*($CO$5:$CO$14))+'J09'!BO8 -> 1 | BP8: =SUMPRODUCT(($I$5:$M$14=AT8)*($CP$5:$CP$14))+'J09'!BP8 -> 0 | BQ8: 8000.035 | BR8: =BQ8+0.0000011 -> 8000.035001 | BS8: 0 | BT8: 0 | BU8: 0 | BV8: 0 | BW8: 0 | BX8: 0 | BY8: 0 | BZ8: 0 | CA8: FALSE | CB8: FALSE | CC8: FALSE | CD8: FALSE | CE8: FALSE | CF8: FALSE | CG8: 0 | CH8: 0 | CI8: 0 | CJ8: 0 | CK8: FALSE | CL8: FALSE | CM8: FALSE | CN8: FALSE | CO8: FALSE | CP8: FALSE | CQ8: AUSA | CR8: 7000.003 | CS8: 4 | CT8: CJBF
V9: ALC | AA9: 0 | AB9: u | AC9: 5 | AD9: 7 | AE9: 4 | AF9: 2 | AG9: 1 | AH9: 1 | AI9: 4 | AJ9: 5 | AK9: -1 | AL9: 1 | AM9: 0 | AN9: 1 | AO9: 1 | AP9: 1 | AQ9: 0 | AR9: 5 | AS9: 11 | AT9: ='J01'!AT9:AX9 -> AJAK | AY9: 11 | AZ9: ='J09'!AY9-AY9 -> 0 | BA9: =IF(AY9>'J09'!AY9,'J09'!$BA$20,IF(AY9='J09'!AY9,'J09'!$AZ$20,IF(AY9<'J09'!AY9,'J09'!$AY$20))) -> u | BB9: 11 | BC9: =SUMPRODUCT(($B$5:$F$14=AT9)*($BW$5:$BW$14))+SUMPRODUCT(($I$5:$M$14=AT9)*($BX$5:$BX$14))+'J09'!BC9 -> 4 | BD9: =SUMPRODUCT(($B$5:$F$14=AT9)*($BY$5:$BY$14))+SUMPRODUCT(($I$5:$M$14=AT9)*($BZ$5:$BZ$14))+'J09'!BD9 -> 4 | BE9: =SUMPRODUCT(($B$5:$F$14=AT9)*($CA$5:$CA$14))+SUMPRODUCT(($I$5:$M$14=AT9)*($CB$5:$CB$14))+'J09'!BE9 -> 1 | BF9: =SUMPRODUCT(($B$5:$F$14=AT9)*($CC$5:$CC$14))+SUMPRODUCT(($I$5:$M$14=AT9)*($CD$5:$CD$14))+'J09'!BF9 -> 1 | BG9: =SUMPRODUCT(($B$5:$F$14=AT9)*($CE$5:$CE$14))+SUMPRODUCT(($I$5:$M$14=AT9)*($CF$5:$CF$14))+'J09'!BG9 -> 2 | BH9: =SUMPRODUCT(($B$5:$F$14=AT9)*($CG$5:$CG$14))+SUMPRODUCT(($I$5:$M$14=AT9)*($CH$5:$CH$14))+'J09'!BH9 -> 2 | BI9: =SUMPRODUCT(($B$5:$F$14=AT9)*($CI$5:$CI$14))+SUMPRODUCT(($I$5:$M$14=AT9)*($CJ$5:$CJ$14))+'J09'!BI9 -> 7 | BJ9: -5 | BK9: =SUMPRODUCT(($B$5:$F$14=AT9)*($CK$5:$CK$14))+'J09'!BK9 -> 0 | BL9: =SUMPRODUCT(($B$5:$F$14=AT9)*($CL$5:$CL$14))+'J09'!BL9 -> 0 | BM9: =SUMPRODUCT(($B$5:$F$14=AT9)*($CM$5:$CM$14))+'J09'!BM9 -> 2 | BN9: =SUMPRODUCT(($I$5:$M$14=AT9)*($CN$5:$CN$14))+'J09'!BN9 -> 1 | BO9: =SUMPRODUCT(($I$5:$M$14=AT9)*($CO$5:$CO$14))+'J09'!BO9 -> 1 | BP9: =SUMPRODUCT(($I$5:$M$14=AT9)*($CP$5:$CP$14))+'J09'!BP9 -> 0 | BQ9: 3999.952 | BR9: =BQ9+0.000001 -> 3999.952001 | BS9: 0 | BT9: 0 | BU9: 0 | BV9: 0 | BW9: 0 | BX9: 0 | BY9: 0 | BZ9: 0 | CA9: FALSE | CB9: FALSE | CC9: FALSE | CD9: FALSE | CE9: FALSE | CF9: FALSE | CG9: 0 | CH9: 0 | CI9: 0 | CJ9: 0 | CK9: FALSE | CL9: FALSE | CM9: FALSE | CN9: FALSE | CO9: FALSE | CP9: FALSE | CQ9: ALC | CR9: 6999.994 | CS9: 5 | CT9: AJAK
V10: AUSBK | AA10: 0 | AB10: u | AC10: 6 | AD10: 5 | AE10: 4 | AF10: 1 | AG10: 2 | AH10: 1 | AI10: 7 | AJ10: 7 | AK10: 0 | AL10: 0 | AM10: 2 | AN10: 0 | AO10: 1 | AP10: 0 | AQ10: 1 | AR10: 6 | AS10: 1 | AT10: ='J01'!AT10:AX10 -> ASUD | AY10: 1 | AZ10: ='J09'!AY10-AY10 -> 0 | BA10: =IF(AY10>'J09'!AY10,'J09'!$BA$20,IF(AY10='J09'!AY10,'J09'!$AZ$20,IF(AY10<'J09'!AY10,'J09'!$AY$20))) -> u | BB10: 1 | BC10: =SUMPRODUCT(($B$5:$F$14=AT10)*($BW$5:$BW$14))+SUMPRODUCT(($I$5:$M$14=AT10)*($BX$5:$BX$14))+'J09'!BC10 -> 10 | BD10: =SUMPRODUCT(($B$5:$F$14=AT10)*($BY$5:$BY$14))+SUMPRODUCT(($I$5:$M$14=AT10)*($BZ$5:$BZ$14))+'J09'!BD10 -> 4 | BE10: =SUMPRODUCT(($B$5:$F$14=AT10)*($CA$5:$CA$14))+SUMPRODUCT(($I$5:$M$14=AT10)*($CB$5:$CB$14))+'J09'!BE10 -> 3 | BF10: =SUMPRODUCT(($B$5:$F$14=AT10)*($CC$5:$CC$14))+SUMPRODUCT(($I$5:$M$14=AT10)*($CD$5:$CD$14))+'J09'!BF10 -> 1 | BG10: =SUMPRODUCT(($B$5:$F$14=AT10)*($CE$5:$CE$14))+SUMPRODUCT(($I$5:$M$14=AT10)*($CF$5:$CF$14))+'J09'!BG10 -> 0 | BH10: =SUMPRODUCT(($B$5:$F$14=AT10)*($CG$5:$CG$14))+SUMPRODUCT(($I$5:$M$14=AT10)*($CH$5:$CH$14))+'J09'!BH10 -> 16 | BI10: =SUMPRODUCT(($B$5:$F$14=AT10)*($CI$5:$CI$14))+SUMPRODUCT(($I$5:$M$14=AT10)*($CJ$5:$CJ$14))+'J09'!BI10 -> 5 | BJ10: 11 | BK10: =SUMPRODUCT(($B$5:$F$14=AT10)*($CK$5:$CK$14))+'J09'!BK10 -> 2 | BL10: =SUMPRODUCT(($B$5:$F$14=AT10)*($CL$5:$CL$14))+'J09'!BL10 -> 0 | BM10: =SUMPRODUCT(($B$5:$F$14=AT10)*($CM$5:$CM$14))+'J09'!BM10 -> 0 | BN10: =SUMPRODUCT(($I$5:$M$14=AT10)*($CN$5:$CN$14))+'J09'!BN10 -> 1 | BO10: =SUMPRODUCT(($I$5:$M$14=AT10)*($CO$5:$CO$14))+'J09'!BO10 -> 1 | BP10: =SUMPRODUCT(($I$5:$M$14=AT10)*($CP$5:$CP$14))+'J09'!BP10 -> 0 | BQ10: 10000.126 | BR10: =BQ10+0.0000009 -> 10000.126 | BS10: 0 | BT10: 0 | BU10: 0 | BV10: 0 | BW10: 0 | BX10: 0 | BY10: 0 | BZ10: 0 | CA10: FALSE | CB10: FALSE | CC10: FALSE | CD10: FALSE | CE10: FALSE | CF10: FALSE | CG10: 0 | CH10: 0 | CI10: 0 | CJ10: 0 | CK10: FALSE | CL10: FALSE | CM10: FALSE | CN10: FALSE | CO10: FALSE | CP10: FALSE | CQ10: AUSBK | CR10: 5000.007 | CS10: 6 | CT10: ASUD
V11: HSMK | AA11: 0 | AB11: u | AC11: 7 | AD11: 5 | AE11: 4 | AF11: 1 | AG11: 2 | AH11: 1 | AI11: 5 | AJ11: 5 | AK11: 0 | AL11: 1 | AM11: 0 | AN11: 1 | AO11: 0 | AP11: 2 | AQ11: 0 | AR11: 7 | AS11: 2 | AT11: ='J01'!AT11:AX11 -> AHDOZ | AY11: 2 | AZ11: ='J09'!AY11-AY11 -> 0 | BA11: =IF(AY11>'J09'!AY11,'J09'!$BA$20,IF(AY11='J09'!AY11,'J09'!$AZ$20,IF(AY11<'J09'!AY11,'J09'!$AY$20))) -> u | BB11: 2 | BC11: =SUMPRODUCT(($B$5:$F$14=AT11)*($BW$5:$BW$14))+SUMPRODUCT(($I$5:$M$14=AT11)*($BX$5:$BX$14))+'J09'!BC11 -> 10 | BD11: =SUMPRODUCT(($B$5:$F$14=AT11)*($BY$5:$BY$14))+SUMPRODUCT(($I$5:$M$14=AT11)*($BZ$5:$BZ$14))+'J09'!BD11 -> 4 | BE11: =SUMPRODUCT(($B$5:$F$14=AT11)*($CA$5:$CA$14))+SUMPRODUCT(($I$5:$M$14=AT11)*($CB$5:$CB$14))+'J09'!BE11 -> 3 | BF11: =SUMPRODUCT(($B$5:$F$14=AT11)*($CC$5:$CC$14))+SUMPRODUCT(($I$5:$M$14=AT11)*($CD$5:$CD$14))+'J09'!BF11 -> 1 | BG11: =SUMPRODUCT(($B$5:$F$14=AT11)*($CE$5:$CE$14))+SUMPRODUCT(($I$5:$M$14=AT11)*($CF$5:$CF$14))+'J09'!BG11 -> 0 | BH11: =SUMPRODUCT(($B$5:$F$14=AT11)*($CG$5:$CG$14))+SUMPRODUCT(($I$5:$M$14=AT11)*($CH$5:$CH$14))+'J09'!BH11 -> 5 | BI11: =SUMPRODUCT(($B$5:$F$14=AT11)*($CI$5:$CI$14))+SUMPRODUCT(($I$5:$M$14=AT11)*($CJ$5:$CJ$14))+'J09'!BI11 -> 0 | BJ11: 5 | BK11: =SUMPRODUCT(($B$5:$F$14=AT11)*($CK$5:$CK$14))+'J09'!BK11 -> 1 | BL11: =SUMPRODUCT(($B$5:$F$14=AT11)*($CL$5:$CL$14))+'J09'!BL11 -> 1 | BM11: =SUMPRODUCT(($B$5:$F$14=AT11)*($CM$5:$CM$14))+'J09'!BM11 -> 0 | BN11: =SUMPRODUCT(($I$5:$M$14=AT11)*($CN$5:$CN$14))+'J09'!BN11 -> 2 | BO11: =SUMPRODUCT(($I$5:$M$14=AT11)*($CO$5:$CO$14))+'J09'!BO11 -> 0 | BP11: =SUMPRODUCT(($I$5:$M$14=AT11)*($CP$5:$CP$14))+'J09'!BP11 -> 0 | BQ11: 10000.055 | BR11: =BQ11+0.0000008 -> 10000.055 | BS11: 0 | BT11: 0 | BU11: 0 | BV11: 0 | BW11: 0 | BX11: 0 | BY11: 0 | BZ11: 0 | CA11: FALSE | CB11: FALSE | CC11: FALSE | CD11: FALSE | CE11: FALSE | CF11: FALSE | CG11: 0 | CH11: 0 | CI11: 0 | CJ11: 0 | CK11: FALSE | CL11: FALSE | CM11: FALSE | CN11: FALSE | CO11: FALSE | CP11: FALSE | CQ11: HSMK | CR11: 5000.005 | CS11: 7 | CT11: AHDOZ
V12: AWSOM | AA12: 0 | AB12: u | AC12: 8 | AD12: 5 | AE12: 4 | AF12: 1 | AG12: 2 | AH12: 1 | AI12: 3 | AJ12: 4 | AK12: -1 | AL12: 0 | AM12: 2 | AN12: 0 | AO12: 1 | AP12: 0 | AQ12: 1 | AR12: 8 | AS12: 14 | AT12: ='J01'!AT12:AX12 -> USB | AY12: 14 | AZ12: ='J09'!AY12-AY12 -> 0 | BA12: =IF(AY12>'J09'!AY12,'J09'!$BA$20,IF(AY12='J09'!AY12,'J09'!$AZ$20,IF(AY12<'J09'!AY12,'J09'!$AY$20))) -> u | BB12: 14 | BC12: =SUMPRODUCT(($B$5:$F$14=AT12)*($BW$5:$BW$14))+SUMPRODUCT(($I$5:$M$14=AT12)*($BX$5:$BX$14))+'J09'!BC12 -> 1 | BD12: =SUMPRODUCT(($B$5:$F$14=AT12)*($BY$5:$BY$14))+SUMPRODUCT(($I$5:$M$14=AT12)*($BZ$5:$BZ$14))+'J09'!BD12 -> 4 | BE12: =SUMPRODUCT(($B$5:$F$14=AT12)*($CA$5:$CA$14))+SUMPRODUCT(($I$5:$M$14=AT12)*($CB$5:$CB$14))+'J09'!BE12 -> 0 | BF12: =SUMPRODUCT(($B$5:$F$14=AT12)*($CC$5:$CC$14))+SUMPRODUCT(($I$5:$M$14=AT12)*($CD$5:$CD$14))+'J09'!BF12 -> 1 | BG12: =SUMPRODUCT(($B$5:$F$14=AT12)*($CE$5:$CE$14))+SUMPRODUCT(($I$5:$M$14=AT12)*($CF$5:$CF$14))+'J09'!BG12 -> 3 | BH12: =SUMPRODUCT(($B$5:$F$14=AT12)*($CG$5:$CG$14))+SUMPRODUCT(($I$5:$M$14=AT12)*($CH$5:$CH$14))+'J09'!BH12 -> 0 | BI12: =SUMPRODUCT(($B$5:$F$14=AT12)*($CI$5:$CI$14))+SUMPRODUCT(($I$5:$M$14=AT12)*($CJ$5:$CJ$14))+'J09'!BI12 -> 4 | BJ12: -4 | BK12: =SUMPRODUCT(($B$5:$F$14=AT12)*($CK$5:$CK$14))+'J09'!BK12 -> 0 | BL12: =SUMPRODUCT(($B$5:$F$14=AT12)*($CL$5:$CL$14))+'J09'!BL12 -> 0 | BM12: =SUMPRODUCT(($B$5:$F$14=AT12)*($CM$5:$CM$14))+'J09'!BM12 -> 2 | BN12: =SUMPRODUCT(($I$5:$M$14=AT12)*($CN$5:$CN$14))+'J09'!BN12 -> 0 | BO12: =SUMPRODUCT(($I$5:$M$14=AT12)*($CO$5:$CO$14))+'J09'!BO12 -> 1 | BP12: =SUMPRODUCT(($I$5:$M$14=AT12)*($CP$5:$CP$14))+'J09'!BP12 -> 1 | BQ12: 999.96 | BR12: =BQ12+0.0000007 -> 999.9600007 | BS12: 0 | BT12: 0 | BU12: 0 | BV12: 0 | BW12: 0 | BX12: 0 | BY12: 0 | BZ12: 0 | CA12: FALSE | CB12: FALSE | CC12: FALSE | CD12: FALSE | CE12: FALSE | CF12: FALSE | CG12: 0 | CH12: 0 | CI12: 0 | CJ12: 0 | CK12: FALSE | CL12: FALSE | CM12: FALSE | CN12: FALSE | CO12: FALSE | CP12: FALSE | CQ12: AWSOM | CR12: 4999.993 | CS12: 8 | CT12: USB
V13: JSOA | AA13: 0 | AB13: u | AC13: 9 | AD13: 4 | AE13: 4 | AF13: 1 | AG13: 1 | AH13: 2 | AI13: 5 | AJ13: 4 | AK13: 1 | AL13: 0 | AM13: 0 | AN13: 2 | AO13: 1 | AP13: 1 | AQ13: 0 | AR13: 9 | AS13: 5 | AT13: ='J01'!AT13:AX13 -> ALC | AY13: 5 | AZ13: ='J09'!AY13-AY13 -> 0 | BA13: =IF(AY13>'J09'!AY13,'J09'!$BA$20,IF(AY13='J09'!AY13,'J09'!$AZ$20,IF(AY13<'J09'!AY13,'J09'!$AY$20))) -> u | BB13: 5 | BC13: =SUMPRODUCT(($B$5:$F$14=AT13)*($BW$5:$BW$14))+SUMPRODUCT(($I$5:$M$14=AT13)*($BX$5:$BX$14))+'J09'!BC13 -> 7 | BD13: =SUMPRODUCT(($B$5:$F$14=AT13)*($BY$5:$BY$14))+SUMPRODUCT(($I$5:$M$14=AT13)*($BZ$5:$BZ$14))+'J09'!BD13 -> 4 | BE13: =SUMPRODUCT(($B$5:$F$14=AT13)*($CA$5:$CA$14))+SUMPRODUCT(($I$5:$M$14=AT13)*($CB$5:$CB$14))+'J09'!BE13 -> 2 | BF13: =SUMPRODUCT(($B$5:$F$14=AT13)*($CC$5:$CC$14))+SUMPRODUCT(($I$5:$M$14=AT13)*($CD$5:$CD$14))+'J09'!BF13 -> 1 | BG13: =SUMPRODUCT(($B$5:$F$14=AT13)*($CE$5:$CE$14))+SUMPRODUCT(($I$5:$M$14=AT13)*($CF$5:$CF$14))+'J09'!BG13 -> 1 | BH13: =SUMPRODUCT(($B$5:$F$14=AT13)*($CG$5:$CG$14))+SUMPRODUCT(($I$5:$M$14=AT13)*($CH$5:$CH$14))+'J09'!BH13 -> 4 | BI13: =SUMPRODUCT(($B$5:$F$14=AT13)*($CI$5:$CI$14))+SUMPRODUCT(($I$5:$M$14=AT13)*($CJ$5:$CJ$14))+'J09'!BI13 -> 5 | BJ13: -1 | BK13: =SUMPRODUCT(($B$5:$F$14=AT13)*($CK$5:$CK$14))+'J09'!BK13 -> 1 | BL13: =SUMPRODUCT(($B$5:$F$14=AT13)*($CL$5:$CL$14))+'J09'!BL13 -> 0 | BM13: =SUMPRODUCT(($B$5:$F$14=AT13)*($CM$5:$CM$14))+'J09'!BM13 -> 1 | BN13: =SUMPRODUCT(($I$5:$M$14=AT13)*($CN$5:$CN$14))+'J09'!BN13 -> 1 | BO13: =SUMPRODUCT(($I$5:$M$14=AT13)*($CO$5:$CO$14))+'J09'!BO13 -> 1 | BP13: =SUMPRODUCT(($I$5:$M$14=AT13)*($CP$5:$CP$14))+'J09'!BP13 -> 0 | BQ13: 6999.994 | BR13: =BQ13+0.0000006 -> 6999.994001 | BS13: 0 | BT13: 0 | BU13: 0 | BV13: 0 | BW13: 0 | BX13: 0 | BY13: 0 | BZ13: 0 | CA13: FALSE | CB13: FALSE | CC13: FALSE | CD13: FALSE | CE13: FALSE | CF13: FALSE | CG13: 0 | CH13: 0 | CI13: 0 | CJ13: 0 | CK13: FALSE | CL13: FALSE | CM13: FALSE | CN13: FALSE | CO13: FALSE | CP13: FALSE | CQ13: JSOA | CR13: 4000.015 | CS13: 9 | CT13: ALC
V14: ESMB | AA14: 0 | AB14: u | AC14: 10 | AD14: 4 | AE14: 4 | AF14: 1 | AG14: 1 | AH14: 2 | AI14: 6 | AJ14: 8 | AK14: -2 | AL14: 0 | AM14: 1 | AN14: 1 | AO14: 1 | AP14: 0 | AQ14: 1 | AR14: 10 | AS14: 12 | AT14: ='J01'!AT14:AX14 -> AUSAF | AY14: 12 | AZ14: ='J09'!AY14-AY14 -> 0 | BA14: =IF(AY14>'J09'!AY14,'J09'!$BA$20,IF(AY14='J09'!AY14,'J09'!$AZ$20,IF(AY14<'J09'!AY14,'J09'!$AY$20))) -> u | BB14: 12 | BC14: =SUMPRODUCT(($B$5:$F$14=AT14)*($BW$5:$BW$14))+SUMPRODUCT(($I$5:$M$14=AT14)*($BX$5:$BX$14))+'J09'!BC14 -> 3 | BD14: =SUMPRODUCT(($B$5:$F$14=AT14)*($BY$5:$BY$14))+SUMPRODUCT(($I$5:$M$14=AT14)*($BZ$5:$BZ$14))+'J09'!BD14 -> 4 | BE14: =SUMPRODUCT(($B$5:$F$14=AT14)*($CA$5:$CA$14))+SUMPRODUCT(($I$5:$M$14=AT14)*($CB$5:$CB$14))+'J09'!BE14 -> 1 | BF14: =SUMPRODUCT(($B$5:$F$14=AT14)*($CC$5:$CC$14))+SUMPRODUCT(($I$5:$M$14=AT14)*($CD$5:$CD$14))+'J09'!BF14 -> 0 | BG14: =SUMPRODUCT(($B$5:$F$14=AT14)*($CE$5:$CE$14))+SUMPRODUCT(($I$5:$M$14=AT14)*($CF$5:$CF$14))+'J09'!BG14 -> 3 | BH14: =SUMPRODUCT(($B$5:$F$14=AT14)*($CG$5:$CG$14))+SUMPRODUCT(($I$5:$M$14=AT14)*($CH$5:$CH$14))+'J09'!BH14 -> 2 | BI14: =SUMPRODUCT(($B$5:$F$14=AT14)*($CI$5:$CI$14))+SUMPRODUCT(($I$5:$M$14=AT14)*($CJ$5:$CJ$14))+'J09'!BI14 -> 3 | BJ14: -1 | BK14: =SUMPRODUCT(($B$5:$F$14=AT14)*($CK$5:$CK$14))+'J09'!BK14 -> 0 | BL14: =SUMPRODUCT(($B$5:$F$14=AT14)*($CL$5:$CL$14))+'J09'!BL14 -> 0 | BM14: =SUMPRODUCT(($B$5:$F$14=AT14)*($CM$5:$CM$14))+'J09'!BM14 -> 2 | BN14: =SUMPRODUCT(($I$5:$M$14=AT14)*($CN$5:$CN$14))+'J09'!BN14 -> 1 | BO14: =SUMPRODUCT(($I$5:$M$14=AT14)*($CO$5:$CO$14))+'J09'!BO14 -> 0 | BP14: =SUMPRODUCT(($I$5:$M$14=AT14)*($CP$5:$CP$14))+'J09'!BP14 -> 1 | BQ14: 2999.992 | BR14: =BQ14+0.0000005 -> 2999.992 | BS14: 0 | BT14: 0 | BU14: 0 | BV14: 0 | BW14: 0 | BX14: 0 | BY14: 0 | BZ14: 0 | CA14: FALSE | CB14: FALSE | CC14: FALSE | CD14: FALSE | CE14: FALSE | CF14: FALSE | CG14: 0 | CH14: 0 | CI14: 0 | CJ14: 0 | CK14: FALSE | CL14: FALSE | CM14: FALSE | CN14: FALSE | CO14: FALSE | CP14: FALSE | CQ14: ESMB | CR14: 3999.986 | CS14: 10 | CT14: AUSAF
V15: AJAK | AA15: 0 | AB15: u | AC15: 11 | AD15: 4 | AE15: 4 | AF15: 1 | AG15: 1 | AH15: 2 | AI15: 2 | AJ15: 7 | AK15: -5 | AL15: 0 | AM15: 0 | AN15: 2 | AO15: 1 | AP15: 1 | AQ15: 0 | AR15: 11 | AS15: 9 | AT15: ='J01'!AT15:AX15 -> JSOA | AY15: 9 | AZ15: ='J09'!AY15-AY15 -> 0 | BA15: =IF(AY15>'J09'!AY15,'J09'!$BA$20,IF(AY15='J09'!AY15,'J09'!$AZ$20,IF(AY15<'J09'!AY15,'J09'!$AY$20))) -> u | BB15: 9 | BC15: =SUMPRODUCT(($B$5:$F$14=AT15)*($BW$5:$BW$14))+SUMPRODUCT(($I$5:$M$14=AT15)*($BX$5:$BX$14))+'J09'!BC15 -> 4 | BD15: =SUMPRODUCT(($B$5:$F$14=AT15)*($BY$5:$BY$14))+SUMPRODUCT(($I$5:$M$14=AT15)*($BZ$5:$BZ$14))+'J09'!BD15 -> 4 | BE15: =SUMPRODUCT(($B$5:$F$14=AT15)*($CA$5:$CA$14))+SUMPRODUCT(($I$5:$M$14=AT15)*($CB$5:$CB$14))+'J09'!BE15 -> 1 | BF15: =SUMPRODUCT(($B$5:$F$14=AT15)*($CC$5:$CC$14))+SUMPRODUCT(($I$5:$M$14=AT15)*($CD$5:$CD$14))+'J09'!BF15 -> 1 | BG15: =SUMPRODUCT(($B$5:$F$14=AT15)*($CE$5:$CE$14))+SUMPRODUCT(($I$5:$M$14=AT15)*($CF$5:$CF$14))+'J09'!BG15 -> 2 | BH15: =SUMPRODUCT(($B$5:$F$14=AT15)*($CG$5:$CG$14))+SUMPRODUCT(($I$5:$M$14=AT15)*($CH$5:$CH$14))+'J09'!BH15 -> 5 | BI15: =SUMPRODUCT(($B$5:$F$14=AT15)*($CI$5:$CI$14))+SUMPRODUCT(($I$5:$M$14=AT15)*($CJ$5:$CJ$14))+'J09'!BI15 -> 4 | BJ15: 1 | BK15: =SUMPRODUCT(($B$5:$F$14=AT15)*($CK$5:$CK$14))+'J09'!BK15 -> 0 | BL15: =SUMPRODUCT(($B$5:$F$14=AT15)*($CL$5:$CL$14))+'J09'!BL15 -> 0 | BM15: =SUMPRODUCT(($B$5:$F$14=AT15)*($CM$5:$CM$14))+'J09'!BM15 -> 2 | BN15: =SUMPRODUCT(($I$5:$M$14=AT15)*($CN$5:$CN$14))+'J09'!BN15 -> 1 | BO15: =SUMPRODUCT(($I$5:$M$14=AT15)*($CO$5:$CO$14))+'J09'!BO15 -> 1 | BP15: =SUMPRODUCT(($I$5:$M$14=AT15)*($CP$5:$CP$14))+'J09'!BP15 -> 0 | BQ15: 4000.015 | BR15: =BQ15+0.0000004 -> 4000.015 | CQ15: AJAK | CR15: 3999.952 | CS15: 11 | CT15: JSOA
V16: AUSAF | AA16: 0 | AB16: u | AC16: 12 | AD16: 3 | AE16: 4 | AF16: 1 | AG16: 0 | AH16: 3 | AI16: 2 | AJ16: 3 | AK16: -1 | AL16: 0 | AM16: 0 | AN16: 2 | AO16: 1 | AP16: 0 | AQ16: 1 | AR16: 12 | AS16: 8 | AT16: ='J01'!AT16:AX16 -> AWSOM | AY16: 8 | AZ16: ='J09'!AY16-AY16 -> 0 | BA16: =IF(AY16>'J09'!AY16,'J09'!$BA$20,IF(AY16='J09'!AY16,'J09'!$AZ$20,IF(AY16<'J09'!AY16,'J09'!$AY$20))) -> u | BB16: 8 | BC16: =SUMPRODUCT(($B$5:$F$14=AT16)*($BW$5:$BW$14))+SUMPRODUCT(($I$5:$M$14=AT16)*($BX$5:$BX$14))+'J09'!BC16 -> 5 | BD16: =SUMPRODUCT(($B$5:$F$14=AT16)*($BY$5:$BY$14))+SUMPRODUCT(($I$5:$M$14=AT16)*($BZ$5:$BZ$14))+'J09'!BD16 -> 4 | BE16: =SUMPRODUCT(($B$5:$F$14=AT16)*($CA$5:$CA$14))+SUMPRODUCT(($I$5:$M$14=AT16)*($CB$5:$CB$14))+'J09'!BE16 -> 1 | BF16: =SUMPRODUCT(($B$5:$F$14=AT16)*($CC$5:$CC$14))+SUMPRODUCT(($I$5:$M$14=AT16)*($CD$5:$CD$14))+'J09'!BF16 -> 2 | BG16: =SUMPRODUCT(($B$5:$F$14=AT16)*($CE$5:$CE$14))+SUMPRODUCT(($I$5:$M$14=AT16)*($CF$5:$CF$14))+'J09'!BG16 -> 1 | BH16: =SUMPRODUCT(($B$5:$F$14=AT16)*($CG$5:$CG$14))+SUMPRODUCT(($I$5:$M$14=AT16)*($CH$5:$CH$14))+'J09'!BH16 -> 3 | BI16: =SUMPRODUCT(($B$5:$F$14=AT16)*($CI$5:$CI$14))+SUMPRODUCT(($I$5:$M$14=AT16)*($CJ$5:$CJ$14))+'J09'!BI16 -> 4 | BJ16: -1 | BK16: =SUMPRODUCT(($B$5:$F$14=AT16)*($CK$5:$CK$14))+'J09'!BK16 -> 0 | BL16: =SUMPRODUCT(($B$5:$F$14=AT16)*($CL$5:$CL$14))+'J09'!BL16 -> 2 | BM16: =SUMPRODUCT(($B$5:$F$14=AT16)*($CM$5:$CM$14))+'J09'!BM16 -> 0 | BN16: =SUMPRODUCT(($I$5:$M$14=AT16)*($CN$5:$CN$14))+'J09'!BN16 -> 1 | BO16: =SUMPRODUCT(($I$5:$M$14=AT16)*($CO$5:$CO$14))+'J09'!BO16 -> 0 | BP16: =SUMPRODUCT(($I$5:$M$14=AT16)*($CP$5:$CP$14))+'J09'!BP16 -> 1 | BQ16: 4999.993 | BR16: =BQ16+0.0000003 -> 4999.993 | CQ16: AUSAF | CR16: 2999.992 | CS16: 12 | CT16: AWSOM
V17: CUSL | AA17: 0 | AB17: u | AC17: 13 | AD17: 2 | AE17: 4 | AF17: 0 | AG17: 2 | AH17: 2 | AI17: 5 | AJ17: 11 | AK17: -6 | AL17: 0 | AM17: 1 | AN17: 1 | AO17: 0 | AP17: 1 | AQ17: 1 | AR17: 13 | AS17: 7 | AT17: ='J01'!AT17:AX17 -> HSMK | AY17: 7 | AZ17: ='J09'!AY17-AY17 -> 0 | BA17: =IF(AY17>'J09'!AY17,'J09'!$BA$20,IF(AY17='J09'!AY17,'J09'!$AZ$20,IF(AY17<'J09'!AY17,'J09'!$AY$20))) -> u | BB17: 7 | BC17: =SUMPRODUCT(($B$5:$F$14=AT17)*($BW$5:$BW$14))+SUMPRODUCT(($I$5:$M$14=AT17)*($BX$5:$BX$14))+'J09'!BC17 -> 5 | BD17: =SUMPRODUCT(($B$5:$F$14=AT17)*($BY$5:$BY$14))+SUMPRODUCT(($I$5:$M$14=AT17)*($BZ$5:$BZ$14))+'J09'!BD17 -> 4 | BE17: =SUMPRODUCT(($B$5:$F$14=AT17)*($CA$5:$CA$14))+SUMPRODUCT(($I$5:$M$14=AT17)*($CB$5:$CB$14))+'J09'!BE17 -> 1 | BF17: =SUMPRODUCT(($B$5:$F$14=AT17)*($CC$5:$CC$14))+SUMPRODUCT(($I$5:$M$14=AT17)*($CD$5:$CD$14))+'J09'!BF17 -> 2 | BG17: =SUMPRODUCT(($B$5:$F$14=AT17)*($CE$5:$CE$14))+SUMPRODUCT(($I$5:$M$14=AT17)*($CF$5:$CF$14))+'J09'!BG17 -> 1 | BH17: =SUMPRODUCT(($B$5:$F$14=AT17)*($CG$5:$CG$14))+SUMPRODUCT(($I$5:$M$14=AT17)*($CH$5:$CH$14))+'J09'!BH17 -> 5 | BI17: =SUMPRODUCT(($B$5:$F$14=AT17)*($CI$5:$CI$14))+SUMPRODUCT(($I$5:$M$14=AT17)*($CJ$5:$CJ$14))+'J09'!BI17 -> 5 | BJ17: 0 | BK17: =SUMPRODUCT(($B$5:$F$14=AT17)*($CK$5:$CK$14))+'J09'!BK17 -> 1 | BL17: =SUMPRODUCT(($B$5:$F$14=AT17)*($CL$5:$CL$14))+'J09'!BL17 -> 0 | BM17: =SUMPRODUCT(($B$5:$F$14=AT17)*($CM$5:$CM$14))+'J09'!BM17 -> 1 | BN17: =SUMPRODUCT(($I$5:$M$14=AT17)*($CN$5:$CN$14))+'J09'!BN17 -> 0 | BO17: =SUMPRODUCT(($I$5:$M$14=AT17)*($CO$5:$CO$14))+'J09'!BO17 -> 2 | BP17: =SUMPRODUCT(($I$5:$M$14=AT17)*($CP$5:$CP$14))+'J09'!BP17 -> 0 | BQ17: 5000.005 | BR17: =BQ17+0.0000002 -> 5000.005 | CQ17: CUSL | CR17: 1999.945 | CS17: 13 | CT17: HSMK
V18: USB | AA18: 0 | AB18: u | AC18: 14 | AD18: 1 | AE18: 4 | AF18: 0 | AG18: 1 | AH18: 3 | AI18: 0 | AJ18: 4 | AK18: -4 | AL18: 0 | AM18: 0 | AN18: 2 | AO18: 0 | AP18: 1 | AQ18: 1 | AR18: 14 | AS18: 10 | AT18: ='J01'!AT18:AX18 -> ESMB | AY18: 10 | AZ18: ='J09'!AY18-AY18 -> 0 | BA18: =IF(AY18>'J09'!AY18,'J09'!$BA$20,IF(AY18='J09'!AY18,'J09'!$AZ$20,IF(AY18<'J09'!AY18,'J09'!$AY$20))) -> u | BB18: 10 | BC18: =SUMPRODUCT(($B$5:$F$14=AT18)*($BW$5:$BW$14))+SUMPRODUCT(($I$5:$M$14=AT18)*($BX$5:$BX$14))+'J09'!BC18 -> 4 | BD18: =SUMPRODUCT(($B$5:$F$14=AT18)*($BY$5:$BY$14))+SUMPRODUCT(($I$5:$M$14=AT18)*($BZ$5:$BZ$14))+'J09'!BD18 -> 4 | BE18: =SUMPRODUCT(($B$5:$F$14=AT18)*($CA$5:$CA$14))+SUMPRODUCT(($I$5:$M$14=AT18)*($CB$5:$CB$14))+'J09'!BE18 -> 1 | BF18: =SUMPRODUCT(($B$5:$F$14=AT18)*($CC$5:$CC$14))+SUMPRODUCT(($I$5:$M$14=AT18)*($CD$5:$CD$14))+'J09'!BF18 -> 1 | BG18: =SUMPRODUCT(($B$5:$F$14=AT18)*($CE$5:$CE$14))+SUMPRODUCT(($I$5:$M$14=AT18)*($CF$5:$CF$14))+'J09'!BG18 -> 2 | BH18: =SUMPRODUCT(($B$5:$F$14=AT18)*($CG$5:$CG$14))+SUMPRODUCT(($I$5:$M$14=AT18)*($CH$5:$CH$14))+'J09'!BH18 -> 6 | BI18: =SUMPRODUCT(($B$5:$F$14=AT18)*($CI$5:$CI$14))+SUMPRODUCT(($I$5:$M$14=AT18)*($CJ$5:$CJ$14))+'J09'!BI18 -> 8 | BJ18: -2 | BK18: =SUMPRODUCT(($B$5:$F$14=AT18)*($CK$5:$CK$14))+'J09'!BK18 -> 0 | BL18: =SUMPRODUCT(($B$5:$F$14=AT18)*($CL$5:$CL$14))+'J09'!BL18 -> 1 | BM18: =SUMPRODUCT(($B$5:$F$14=AT18)*($CM$5:$CM$14))+'J09'!BM18 -> 1 | BN18: =SUMPRODUCT(($I$5:$M$14=AT18)*($CN$5:$CN$14))+'J09'!BN18 -> 1 | BO18: =SUMPRODUCT(($I$5:$M$14=AT18)*($CO$5:$CO$14))+'J09'!BO18 -> 0 | BP18: =SUMPRODUCT(($I$5:$M$14=AT18)*($CP$5:$CP$14))+'J09'!BP18 -> 1 | BQ18: 3999.986 | BR18: =BQ18+0.0000001 -> 3999.986 | CQ18: USB | CR18: 999.96 | CS18: 14 | CT18: ESMB
AO19: Buts/Journée | AY19: p | AZ19: u | BA19: q
AO20: =SUM(G5:H14) -> 0 | AY20: p | AZ20: u | BA20: q
AO22: Total Buts du Championnat
AO24: =AO20+'J09'!AO24:AP25 -> 68
AO26: Moyenne générale
AO28: =IF(AE5=0,"",SUM(AI5:AI24)/SUM(AE5:AE24)*2) -> 2.428571429

Sheet J11
A1: ='J01'!A1:C2 -> Nom du Championnat | I1: ='J01'!H1:K2 -> 2017-2018 | O1: JOURNEE 11 | V1: CLASSEMENT | AT1: CLASSEMENT | BS1: Domicile | BT1: Extérieur | BU1: Domicile | BV1: Extérieur | BW1: Domicile | BX1: Extérieur | BY1: Domicile | BZ1: Extérieur | CA1: Domicile | CB1: Extérieur | CC1: Domicile | CD1: Extérieur | CE1: Domicile | CF1: Extérieur | CG1: Domicile | CH1: Extérieur | CI1: Domicile | CJ1: Extérieur
A3: P | B3: Equipes | G3: Buts | H3: Buts | I3: Equipes | N3: P | O3: Dates | S3: Heure | V3: Equipes | AA3: Evolution | AC3: Place | AD3: Pts | AE3: J | AF3: G | AG3: N | AH3: P | AI3: B + | AJ3: B - | AK3: Diff. | AL3: Domicile | AO3: Extérieur | AT3: Equipes | AY3: R | AZ3: Evolution | BB3: R | BC3: Pts | BD3: J | BE3: G | BF3: N | BG3: P | BH3: B + | BI3: B - | BJ3: Diff. | BK3: Domicile | BN3: Extérieur | CK3: Domicile | CN3: Extérieur
AL4: G | AM4: N | AN4: P | AO4: G | AP4: N | AQ4: P | AS4: R | BK4: G | BL4: N | BM4: P | BN4: G | BO4: N | BP4: P | BQ4: % | BR4: % | BS4: P | BT4: P | BU4: Pts | BV4: Pts | BW4: T Pt | BX4: T Pt | BY4: J | BZ4: J | CA4: G | CB4: G | CC4: N | CD4: N | CE4: P | CF4: P | CG4: B + | CH4: B + | CI4: B - | CJ4: B - | CK4: G | CL4: N | CM4: P | CN4: G | CO4: N | CP4: P | CQ4: Equipes | CR4: % | CS4: R | CT4: Equipes
V5: =VLOOKUP(AR5,$AS$5:$AX$18,2,0) -> ASUD | AA5: =VLOOKUP(V5,$AT$5:$BP$18,7,0) -> 0 | AB5: =VLOOKUP(V5,$AT$5:$BP$18,8,0) -> u | AC5: 1 | AD5: =VLOOKUP(V5,$AT$5:$BP$18,10,0) -> 10 | AE5: =VLOOKUP(V5,$AT$5:$BP$18,11,0) -> 4 | AF5: =VLOOKUP(V5,$AT$5:$BP$18,12,0) -> 3 | AG5: =VLOOKUP(V5,$AT$5:$BP$18,13,0) -> 1 | AH5: =VLOOKUP(V5,$AT$5:$BP$18,14,0) -> 0 | AI5: =VLOOKUP(V5,$AT$5:$BP$18,15,0) -> 16 | AJ5: =VLOOKUP(V5,$AT$5:$BP$18,16,0) -> 5 | AK5: =VLOOKUP(V5,$AT$5:$BP$18,17,0) -> 11 | AL5: =VLOOKUP(V5,$AT$5:$BP$18,18,0) -> 2 | AM5: =VLOOKUP(V5,$AT$5:$BP$18,19,0) -> 0 | AN5: =VLOOKUP(V5,$AT$5:$BP$18,20,0) -> 0 | AO5: =VLOOKUP(V5,$AT$5:$BP$18,21,0) -> 1 | AP5: =VLOOKUP(V5,$AT$5:$BP$18,22,0) -> 1 | AQ5: =VLOOKUP(V5,$AT$5:$BP$18,23,0) -> 0 | AR5: 1 | AS5: =BB5 -> 6 | AT5: ='J01'!AT5:AX5 -> AUSBK | AY5: =RANK(BQ5,$BQ$5:$BQ$18) -> 6 | AZ5: ='J10'!AY5-AY5 -> 0 | BA5: =IF(AY5>'J10'!AY5,'J10'!$BA$20,IF(AY5='J10'!AY5,'J10'!$AZ$20,IF(AY5<'J10'!AY5,'J10'!$AY$20))) -> u | BB5: =RANK(BR5,$BR$5:$BR$18) -> 6 | BC5: =SUMPRODUCT(($B$5:$F$14=AT5)*($BW$5:$BW$14))+SUMPRODUCT(($I$5:$M$14=AT5)*($BX$5:$BX$14))+'J10'!BC5 -> 5 | BD5: =SUMPRODUCT(($B$5:$F$14=AT5)*($BY$5:$BY$14))+SUMPRODUCT(($I$5:$M$14=AT5)*($BZ$5:$BZ$14))+'J10'!BD5 -> 4 | BE5: =SUMPRODUCT(($B$5:$F$14=AT5)*($CA$5:$CA$14))+SUMPRODUCT(($I$5:$M$14=AT5)*($CB$5:$CB$14))+'J10'!BE5 -> 1 | BF5: =SUMPRODUCT(($B$5:$F$14=AT5)*($CC$5:$CC$14))+SUMPRODUCT(($I$5:$M$14=AT5)*($CD$5:$CD$14))+'J10'!BF5 -> 2 | BG5: =SUMPRODUCT(($B$5:$F$14=AT5)*($CE$5:$CE$14))+SUMPRODUCT(($I$5:$M$14=AT5)*($CF$5:$CF$14))+'J10'!BG5 -> 1 | BH5: =SUMPRODUCT(($B$5:$F$14=AT5)*($CG$5:$CG$14))+SUMPRODUCT(($I$5:$M$14=AT5)*($CH$5:$CH$14))+'J10'!BH5 -> 7 | BI5: =SUMPRODUCT(($B$5:$F$14=AT5)*($CI$5:$CI$14))+SUMPRODUCT(($I$5:$M$14=AT5)*($CJ$5:$CJ$14))+'J10'!BI5 -> 7 | BJ5: =BH5-BI5 -> 0 | BK5: =SUMPRODUCT(($B$5:$F$14=AT5)*($CK$5:$CK$14))+'J10'!BK5 -> 0 | BL5: =SUMPRODUCT(($B$5:$F$14=AT5)*($CL$5:$CL$14))+'J10'!BL5 -> 2 | BM5: =SUMPRODUCT(($B$5:$F$14=AT5)*($CM$5:$CM$14))+'J10'!BM5 -> 0 | BN5: =SUMPRODUCT(($I$5:$M$14=AT5)*($CN$5:$CN$14))+'J10'!BN5 -> 1 | BO5: =SUMPRODUCT(($I$5:$M$14=AT5)*($CO$5:$CO$14))+'J10'!BO5 -> 0 | BP5: =SUMPRODUCT(($I$5:$M$14=AT5)*($CP$5:$CP$14))+'J10'!BP5 -> 1 | BQ5: =SUM(BC5*1000+(BJ5)/100+(BH5)/1000) -> 5000.007 | BR5: =BQ5+0.0000014 -> 5000.007001 | BS5: =A5 -> 0 | BT5: =N5 -> 0 | BU5: =IF(G5="",0,IF(G5>H5,3,IF(G5=H5,1,IF(G5<H5,0)))) -> 0 | BV5: =IF(H5="",0,IF(H5>G5,3,IF(H5=G5,1,IF(H5<G5,0)))) -> 0 | BW5: =BU5-BS5 -> 0 | BX5: =BV5-BT5 -> 0 | BY5: =IF(G5="",0,1) -> 0 | BZ5: =IF(H5="",0,1) -> 0 | CA5: =IF(G5<>"",IF(G5>H5,1)) -> FALSE | CB5: =IF(H5<>"",IF(H5>G5,1)) -> FALSE | CC5: =IF(G5<>"",IF(G5=H5,1)) -> FALSE | CD5: =IF(H5<>"",IF(H5=G5,1)) -> FALSE | CE5: =IF(G5<>"",IF(G5<H5,1)) -> FALSE | CF5: =IF(H5<>"",IF(H5<G5,1)) -> FALSE | CG5: =G5 -> 0 | CH5: =H5 -> 0 | CI5: =H5 -> 0 | CJ5: =G5 -> 0 | CK5: =IF(G5<>"",IF(G5>H5,1)) -> FALSE | CL5: =IF(G5<>"",IF(G5=H5,1)) -> FALSE | CM5: =IF(G5<>"",IF(G5<H5,1)) -> FALSE | CN5: =IF(H5<>"",IF(H5>G5,1)) -> FALSE | CO5: =IF(H5<>"",IF(H5=G5,1)) -> FALSE | CP5: =IF(H5<>"",IF(H5<G5,1)) -> FALSE | CQ5: =VLOOKUP(AR5,$AS$5:$AX$18,2,0) -> ASUD | CR5: =VLOOKUP(CQ5,$AT$5:$BQ$18,24,0) -> 10000.126 | CS5: =RANK(CR5,$CR$5:$CR$18) -> 1 | CT5: =AT5 -> AUSBK
V6: AHDOZ | AA6: 0 | AB6: u | AC6: =IF(CR6=CR5,CS5,CS6) -> 2 | AD6: 10 | AE6: 4 | AF6: 3 | AG6: 1 | AH6: 0 | AI6: 5 | AJ6: 0 | AK6: 5 | AL6: 1 | AM6: 1 | AN6: =VLOOKUP(V6,$AT$5:$BP$18,20,0) -> 0 | AO6: 2 | AP6: =VLOOKUP(V6,$AT$5:$BP$18,22,0) -> 0 | AQ6: 0 | AR6: 2 | AS6: =BB6 -> 13 | AT6: ='J01'!AT6:AX6 -> CUSL | AY6: 13 | AZ6: ='J10'!AY6-AY6 -> 0 | BA6: =IF(AY6>'J10'!AY6,'J10'!$BA$20,IF(AY6='J10'!AY6,'J10'!$AZ$20,IF(AY6<'J10'!AY6,'J10'!$AY$20))) -> u | BB6: =RANK(BR6,$BR$5:$BR$18) -> 13 | BC6: =SUMPRODUCT(($B$5:$F$14=AT6)*($BW$5:$BW$14))+SUMPRODUCT(($I$5:$M$14=AT6)*($BX$5:$BX$14))+'J10'!BC6 -> 2 | BD6: =SUMPRODUCT(($B$5:$F$14=AT6)*($BY$5:$BY$14))+SUMPRODUCT(($I$5:$M$14=AT6)*($BZ$5:$BZ$14))+'J10'!BD6 -> 4 | BE6: =SUMPRODUCT(($B$5:$F$14=AT6)*($CA$5:$CA$14))+SUMPRODUCT(($I$5:$M$14=AT6)*($CB$5:$CB$14))+'J10'!BE6 -> 0 | BF6: =SUMPRODUCT(($B$5:$F$14=AT6)*($CC$5:$CC$14))+SUMPRODUCT(($I$5:$M$14=AT6)*($CD$5:$CD$14))+'J10'!BF6 -> 2 | BG6: =SUMPRODUCT(($B$5:$F$14=AT6)*($CE$5:$CE$14))+SUMPRODUCT(($I$5:$M$14=AT6)*($CF$5:$CF$14))+'J10'!BG6 -> 2 | BH6: =SUMPRODUCT(($B$5:$F$14=AT6)*($CG$5:$CG$14))+SUMPRODUCT(($I$5:$M$14=AT6)*($CH$5:$CH$14))+'J10'!BH6 -> 5 | BI6: =SUMPRODUCT(($B$5:$F$14=AT6)*($CI$5:$CI$14))+SUMPRODUCT(($I$5:$M$14=AT6)*($CJ$5:$CJ$14))+'J10'!BI6 -> 11 | BJ6: =BH6-BI6 -> -6 | BK6: =SUMPRODUCT(($B$5:$F$14=AT6)*($CK$5:$CK$14))+'J10'!BK6 -> 0 | BL6: =SUMPRODUCT(($B$5:$F$14=AT6)*($CL$5:$CL$14))+'J10'!BL6 -> 1 | BM6: =SUMPRODUCT(($B$5:$F$14=AT6)*($CM$5:$CM$14))+'J10'!BM6 -> 1 | BN6: =SUMPRODUCT(($I$5:$M$14=AT6)*($CN$5:$CN$14))+'J10'!BN6 -> 0 | BO6: =SUMPRODUCT(($I$5:$M$14=AT6)*($CO$5:$CO$14))+'J10'!BO6 -> 1 | BP6: =SUMPRODUCT(($I$5:$M$14=AT6)*($CP$5:$CP$14))+'J10'!BP6 -> 1 | BQ6: =SUM(BC6*1000+(BJ6)/100+(BH6)/1000) -> 1999.945 | BR6: =BQ6+0.0000013 -> 1999.945001 | BS6: =A6 -> 0 | BT6: =N6 -> 0 | BU6: =IF(G6="",0,IF(G6>H6,3,IF(G6=H6,1,IF(G6<H6,0)))) -> 0 | BV6: =IF(H6="",0,IF(H6>G6,3,IF(H6=G6,1,IF(H6<G6,0)))) -> 0 | BW6: =BU6-BS6 -> 0 | BX6: =BV6-BT6 -> 0 | BY6: =IF(G6="",0,1) -> 0 | BZ6: =IF(H6="",0,1) -> 0 | CA6: =IF(G6<>"",IF(G6>H6,1)) -> FALSE | CB6: =IF(H6<>"",IF(H6>G6,1)) -> FALSE | CC6: =IF(G6<>"",IF(G6=H6,1)) -> FALSE | CD6: =IF(H6<>"",IF(H6=G6,1)) -> FALSE | CE6: =IF(G6<>"",IF(G6<H6,1)) -> FALSE | CF6: =IF(H6<>"",IF(H6<G6,1)) -> FALSE | CG6: =G6 -> 0 | CH6: =H6 -> 0 | CI6: =H6 -> 0 | CJ6: =G6 -> 0 | CK6: =IF(G6<>"",IF(G6>H6,1)) -> FALSE | CL6: =IF(G6<>"",IF(G6=H6,1)) -> FALSE | CM6: =IF(G6<>"",IF(G6<H6,1)) -> FALSE | CN6: =IF(H6<>"",IF(H6>G6,1)) -> FALSE | CO6: =IF(H6<>"",IF(H6=G6,1)) -> FALSE | CP6: =IF(H6<>"",IF(H6<G6,1)) -> FALSE | CQ6: AHDOZ | CR6: 10000.055 | CS6: 2 | CT6: =AT6 -> CUSL
V7: CJBF | AA7: 0 | AB7: u | AC7: =IF(CR7=CR6,CS6,CS7) -> 3 | AD7: 8 | AE7: 4 | AF7: 2 | AG7: 2 | AH7: 0 | AI7: 5 | AJ7: 2 | AK7: 3 | AL7: 1 | AM7: 1 | AN7: 0 | AO7: 1 | AP7: 1 | AQ7: 0 | AR7: 3 | AS7: 4 | AT7: ='J01'!AT7:AX7 -> AUSA | AY7: 4 | AZ7: ='J10'!AY7-AY7 -> 0 | BA7: =IF(AY7>'J10'!AY7,'J10'!$BA$20,IF(AY7='J10'!AY7,'J10'!$AZ$20,IF(AY7<'J10'!AY7,'J10'!$AY$20))) -> u | BB7: 4 | BC7: =SUMPRODUCT(($B$5:$F$14=AT7)*($BW$5:$BW$14))+SUMPRODUCT(($I$5:$M$14=AT7)*($BX$5:$BX$14))+'J10'!BC7 -> 7 | BD7: =SUMPRODUCT(($B$5:$F$14=AT7)*($BY$5:$BY$14))+SUMPRODUCT(($I$5:$M$14=AT7)*($BZ$5:$BZ$14))+'J10'!BD7 -> 4 | BE7: =SUMPRODUCT(($B$5:$F$14=AT7)*($CA$5:$CA$14))+SUMPRODUCT(($I$5:$M$14=AT7)*($CB$5:$CB$14))+'J10'!BE7 -> 2 | BF7: =SUMPRODUCT(($B$5:$F$14=AT7)*($CC$5:$CC$14))+SUMPRODUCT(($I$5:$M$14=AT7)*($CD$5:$CD$14))+'J10'!BF7 -> 1 | BG7: =SUMPRODUCT(($B$5:$F$14=AT7)*($CE$5:$CE$14))+SUMPRODUCT(($I$5:$M$14=AT7)*($CF$5:$CF$14))+'J10'!BG7 -> 1 | BH7: =SUMPRODUCT(($B$5:$F$14=AT7)*($CG$5:$CG$14))+SUMPRODUCT(($I$5:$M$14=AT7)*($CH$5:$CH$14))+'J10'!BH7 -> 3 | BI7: =SUMPRODUCT(($B$5:$F$14=AT7)*($CI$5:$CI$14))+SUMPRODUCT(($I$5:$M$14=AT7)*($CJ$5:$CJ$14))+'J10'!BI7 -> 3 | BJ7: 0 | BK7: =SUMPRODUCT(($B$5:$F$14=AT7)*($CK$5:$CK$14))+'J10'!BK7 -> 1 | BL7: =SUMPRODUCT(($B$5:$F$14=AT7)*($CL$5:$CL$14))+'J10'!BL7 -> 1 | BM7: =SUMPRODUCT(($B$5:$F$14=AT7)*($CM$5:$CM$14))+'J10'!BM7 -> 0 | BN7: =SUMPRODUCT(($I$5:$M$14=AT7)*($CN$5:$CN$14))+'J10'!BN7 -> 1 | BO7: =SUMPRODUCT(($I$5:$M$14=AT7)*($CO$5:$CO$14))+'J10'!BO7 -> 0 | BP7: =SUMPRODUCT(($I$5:$M$14=AT7)*($CP$5:$CP$14))+'J10'!BP7 -> 1 | BQ7: 7000.003 | BR7: =BQ7+0.0000012 -> 7000.003001 | BS7: 0 | BT7: 0 | BU7: 0 | BV7: 0 | BW7: 0 | BX7: 0 | BY7: 0 | BZ7: 0 | CA7: FALSE | CB7: FALSE | CC7: FALSE | CD7: FALSE | CE7: FALSE | CF7: FALSE | CG7: 0 | CH7: 0 | CI7: 0 | CJ7: 0 | CK7: FALSE | CL7: FALSE | CM7: FALSE | CN7: FALSE | CO7: FALSE | CP7: FALSE | CQ7: CJBF | CR7: 8000.035 | CS7: 3 | CT7: AUSA
